{"text_format":"1","workbook":"xlsx","n_sheets":19,"sheets":["ניהול","א. פתיח","ב. תוכן עניינים","ג. שאלון למילוי מגיש הבקשה","ד. ציוד כללי למתחם","ה. ציוד חדרי קבוצות","ו. ריפוי בעיסוק","ז. קלינאות תקשורת","ח. סנוזלן","ט. מתקני חצר ","י. פיזיותרפיה","יא. ציוד טיפולי-שיקומי","יב. מטבח מחמם","יג. מטבח מבשל","יד. ציוד פעילות גופנית- זוזו","טו. ציוד צוות","טז. ציוד נוסף","יח. סיכום","סיכום מפורט (לשימוש משרדי)"],"not_rendered":{"charts":0,"images":2,"macros":1,"external_links":1,"defined_names":19,"comments":0,"pivot_tables":0},"unopened":[],"bounds":{"document_bytes":16777216,"sheet_cells":100000,"rows_first":2000,"rows_last":500,"rows_between":2000,"halvings":0,"cell_chars":16384,"cell_head_chars":4096},"cells_cut":0,"cells_raw":0,"read":"whole","date_system":"1900"}

{"sheet":"ניהול","index":0,"n_rows":17,"n_cols":4,"rows_kept":17,"cut":false,"hidden":true,"merged":[]}
["סוג המסגרת",null,"פעולות נעילה/ פתיחה"]
["נא לבחור מתוך הרשימה",null,"כלים","הסבר"]
["מרכז רש\"ת/מע\"ש 21+",1,null,"הכפתור נועל את הנתונים הנבחרים "]
["מפעל רב נכותי 21+",null,null,"הקובץ  נשלח עם נעילת נתוני התקן ונוסחאות"]
["מרכז יום (טיפולי/סיעודי) 21+",2,null,"הכפתור פותח את כל הנתונים"]
["יח' טיפולית במרכז רש\"ת/מע\"ש 21+",null,null,"יש להפעיל אותו לאחר  אישור בקשת הגוף"]
["יח' מזדקנים במרכז רש\"ת",null,null,"לצורך נעילת שלב אישור בקשת הגוף"]
["מרכז יום לגמלאים",3,null,"יש להפעיל את הכפתור אחרי פעולה מס' 2"]
[null,null,null,"ואחרי זה כפתור מס' 1 "]
[null,4,null,"הכפתור נדרש במקרים מיוחדים"]
[null,null,null,"במידה ויש לעשות תיקונים אחרי שלב האישור"]
[null,null,null,"או לצרכים טכניים"]
[null,null,null,"להפעלתו יש לעשות פעולה מס' 2"]
[null,null,null,"ואחרי תיקון נתוני האישור לבצע פעולות  3 ו- 1"]
[null,5,null,"סינון ציוד מוזמן בסעיף \"סיכום מפורט\" אינו מוגן"]
[null,null,null,"מפני שהסינון לא עובד במצב נעול, לכן יש להיזהר "]
[null,null,null,"מכול פעולה מעבר מהפעלת הסינון באמצאות הכפתורים"]

{"sheet":"א. פתיח","index":1,"n_rows":42,"n_cols":3,"rows_kept":42,"cut":false,"hidden":false,"merged":[[8,0,8,2],[28,1,28,10],[29,1,29,10],[30,1,30,7],[24,1,24,10],[25,1,25,10],[26,1,26,10],[27,1,27,10]]}
[]
[]
[]
[]
[]
[]
[]
[]
["גרסה : 12.01.25"]
[null,"תקן ציוד למרכזי יום טיפוליים סיעודיים ו/או תעסוקה"]
[null," ציוד כללי, פרא רפואי, חדר סנוזלן, ציוד למטבח מבשל וציוד לצוות. "]
[]
[null,"רקע כללי"]
[null,"הסיוע ניתן לשיפוץ או ציוד. תקן זה עוסק בציוד. "]
[null,"מענק מעלה","עד 100,000 ₪ אחת ל 3 שנים מתאריך תשלום אחרון."]
[null,"מענק צמרת","עד 500,000 ₪ ועד 50%  מהעלות הכוללת, הנמוך מביניהם, אחת ל 5 שנים מתאריך תשלום אחרון."]
[null,"יש להיכנס לאתר קרן שלם, פיתוח פיזי מענקים, ולפעול בהתאם להנחיות המתעדכנות באתר."]
[null,"מטרת תקן ציוד"]
[null," לסייע לרשויות או גופים המפעילים מסגרות, לבנות את רשימת הציוד בהתאם להיקף ולסוג פעילותם. "]
[null,"התקן מהווה רשימת ציוד מומלצת אשר ניתן לבחור מתוכה את פריטי הציוד הדרושים. "]
[null,"ניתן להשתמש בתקן בצורה מודולרית בהתאם למספר המשתתפים, גודל המקום והתכנים המופעלים בו. "]
[null,"לא נדרש להציג שתי הצעות מחיר, למעט בגיליון ציוד נוסף= ציוד שאינו נמצא בתקן."]
[]
[null,"הבהרות"]
[]
[null,"הסיוע בציוד למרכזי יום סיעודיים טיפוליים ותעסוקה, יינתן על פי מספר משתתפים. "]
[null,"לתשומת ליבכם, הכמויות של חלק מהציוד נקבעות לפי מספר האנשים במסגרת (כמו לדוגמא: כמות הכיסאות והשולחנות),"]
[null,"ואילו הכמויות של חלק אחר מהציוד הינן קבועות ואינן תלויות במספר האנשים (כמו לדוגמא: ציוד מטבח או מתקני חצר)."]
[null,"במידה וקיים צורך בציוד אשר אינו מופיע בתקן ניתן לבקש בגיליון ציוד נוסף. "]
[null,"הסכומים המופיעים בטבלאות כוללים מע\"מ ."]
[null,"גובה הסיוע כפוף להחלטות ומדיניות הנהלת הקרן המשתנות/מתעדכנות באתר הקרן."]
[]
[null,"הנחיות למילוי הקובץ:"]
[null,"שלב הגשת הבקשה:"]
[null,"עליכם למלא גיליון ג' טרם מילוי הגיליונות האחרים."]
[null,"גיליונות ד' עד י\"ב עליכם למלא רק עמודות הצבועות בירוק."]
[null,"אין לגעת בתאים האחרים- תאים אלו \"נעולים\"."]
[]
[null,"שלב הדיווח על ההוצאות:"]
[null,"לאחר אישור הבקשה יוחזר הגיליון עם הפריטים המאושרים. "]
[null,"גיליונות ד' עד י\"ב, עליכם למלא רק עמודות הצבועות בכתום. "]
[null,"אין לגעת בתאים האחרים- תאים אלו \"נעולים\"."]

{"sheet":"ב. תוכן עניינים","index":2,"n_rows":31,"n_cols":3,"rows_kept":31,"cut":false,"hidden":false,"merged":[]}
[]
[]
[]
[]
[]
[]
[]
[null,"תקן ציוד למרכזי יום טיפוליים סיעודיים ו/או תעסוקה"]
[null," ציוד פרא רפואי, חדר סנוזלן, ציוד למטבח מבשל וציוד לצוות. "]
[]
[null,"תוכן עניינים"]
[]
[null,"לשונית בקובץ","תוכן הלשונית "]
[null,"א","פתיח"]
[null,"ב","תוכן עניינים"]
[null,"ג","שאלון מגיש הבקשה "]
[null,"ד","ציוד כללי למתחם"]
[null,"ה","ציוד חדרי קבוצות"]
[null,"ו","ריפוי בעיסוק"]
[null,"ז","קלינאות תקשורת"]
[null,"ח","חדר סנוזלן"]
[null,"ט","מתקני חצר"]
[null,"י","פיזיותרפיה"]
[null,"יא","ציוד טיפולי שיקומי"]
[null,"יב","ציוד מטבח מחמם"]
[null,"יג","ציוד מטבח מבשל"]
[null,"יד","ציוד פעילות גופנית- זוזו"]
[null,"טו","ציוד לצוות"]
[null,"טז","ציוד נוסף"]
[null,"יח","סיכום "]
[null,"יט","סיכום מפורט (לשימוש משרדי)"]

{"sheet":"ג. שאלון למילוי מגיש הבקשה","index":3,"n_rows":47,"n_cols":4,"rows_kept":47,"cut":false,"hidden":false,"merged":[]}
[]
[]
[]
[]
[]
[]
[]
[null,"תקן ציוד למרכזי יום טיפוליים סיעודיים ו/או תעסוקה "]
[null,"ציוד פרא רפואי, חדר סנוזלן, ציוד למטבח מבשל וציוד לצוות. "]
[]
[]
[null,"שאלון למגיש הבקשה"]
[]
[null,"הערות והסברים למילוי הבקשה"]
[null,"יש למלא את השאלון לעיל לפני מעבר לכתב הכמויות"]
[null,"הגוף המבקש מתבקש למלא רק פרטים בתאים המסומנים בצבע ירוק . אין לגעת בתאים אחרים."]
[null,"כל מחירי הציוד כוללים מע\"מ."]
[null,"קרן שלם מסייעת למסגרות  לאנשים עם מש\"ה.  במסגרות לאוכלוסיה  רב נכותית,  ההתיחסות הינה עפי מס' המקבלי השרות המוכרים עם מש\"ה."]
[]
[]
[]
[null,null,"תאריך הגשת הבקשה"]
[]
[null,null,"שם המסגרת"]
[]
[null,null,"סוג המסגרת","נא לבחור מתוך הרשימה"]
[]
[null,null,"שם הרשות"]
[]
[null,null,"שם הארגון המפעיל"]
[]
[null,null,"כתובת המסגרת"]
[]
[null,null,"שם ושם משפחה איש קשר"]
[]
[null,null,"תפקיד איש קשר"]
[]
[null,null,"נייד איש קשר "]
[]
[null,null,"מייל איש קשר"]
[]
[null,null,"מספר האנשים שעבורם מיועד הפרויקט"]
[]
[null,null,"כמה מתוכם מוכרים עם מש\"ה (מוגבלות שיכלית התפתחותית)"]
[]
[null,null,"האם לפרויקט אושר מימון מהביטוח הלאומי ב 3 השנים האחרונות?","נא לבחור"]
[null,null,"אין כפילות במימון הביטוח הלאומי וקרן שלם"]

{"sheet":"ד. ציוד כללי למתחם","index":4,"n_rows":47,"n_cols":14,"rows_kept":47,"cut":false,"hidden":false,"merged":[[5,1,5,4],[5,6,5,8],[5,10,5,13]]}
[null,{"$f":"'ב. תוכן עניינים'!C17","v":"ציוד כללי למתחם"},{"$f":"IF('ג. שאלון למילוי מגיש הבקשה'!$D$46=\"כן\",\"התקבל מימון ביטוח לאומי, אסור לבקש מימון כפול\",\"\")","v":""},null,null,null,"שלב הגשת הבקשה:",null,null,null,"שלב הדיווח על ההוצאות:"]
[null,"שם המסגרת :",{"$f":"'ג. שאלון למילוי מגיש הבקשה'!D24","v":0},null,null,null,"עליכם למלא גיליון ג' בטרם מילוי הגיליונות האחרים ",null,null,null,"לאחר אישור הבקשה יוחזר הגיליון עם הפריטים המאושרים"]
[null,"סוג המסגרת :",{"$f":"'ג. שאלון למילוי מגיש הבקשה'!D26","v":"נא לבחור מתוך הרשימה"},null,null,null,"גיליונות ד' עד י\"ב עליכם למלא רק עמודות הצבועות בירוק",null,null,null,"גיליונות ד' עד י\"ב עליכם למלא רק עמודות הצבועות בוורוד "]
[null,"מספר האנשים שעבורם מיועד הפרויקט :",{"$f":"'ג. שאלון למילוי מגיש הבקשה'!D42","v":0},null,null,null,"אין לגעת בתאים האחרים- תאים אלו יהיו נעולים",null,null,null,"אין לגעת בתאים האחרים- תאים אלו יהיו נעולים"]
[]
[null,"תקן  ציוד ",null,null,null,null,"בקשת הגוף ",null,null,null,"דיווח לתשלום לאחר ביצוע"]
[null,"פריטים","כמות תקן","עלות ליחידה כולל מע\"מ","סך עלות כולל מע\"מ",null,"כמות מבוקשת עבור חדר בודד","תקציב מבוקש","הערות הגוף",null,"הפריט שנרכש","מס' חשבונית מס","תאריך חשבונית מס","סכום כולל מע\"מ"]
[null,"ציוד סננאות ותעסוקה",null,null,null,null,{"$f":"B8","v":"ציוד סננאות ותעסוקה"},null,null,null,{"$f":"G8","v":"ציוד סננאות ותעסוקה"}]
[null,"רמה א' - סט ציוד לסדנאות: קרמיקה/  נגרות/ מחשבים ומולטימדיה  ",{"$f":"IF($C$4<31,1,IF($C$4<61,2,3))","v":1},30000,{"$f":"D9*C9","v":30000},{"$f":"IF(C$1=\"\",\"\",\"אסור להזמין\")","v":""},null,{"$f":"G9*D9","v":0}]
[null,"רמה ב' - סט ציוד לסדנאות: גינון עם אדניות מוגבהות/ מוזיקה/ בישול/ אפיה/ בית קפה ",{"$f":"IF($C$4<31,1,IF($C$4<61,2,3))","v":1},18000,{"$f":"D10*C10","v":18000},{"$f":"IF(C$1=\"\",\"\",\"אסור להזמין\")","v":""},null,0]
[null,"סה\"כ ציוד סדנאות ותעסוקה כולל מע\"מ",null,null,{"$f":"SUM(E9:E10)","v":48000},null,null,{"$f":"SUM(H9:H10)","v":0},{"$f":"B11","v":"סה\"כ ציוד סדנאות ותעסוקה כולל מע\"מ"},null,{"$f":"B11","v":"סה\"כ ציוד סדנאות ותעסוקה כולל מע\"מ"},null,null,{"$f":"SUM(N9:N10)","v":0}]
[null,"ריהוט וציוד חללים משותפים  ",null,null,null,null,{"$f":"B12","v":"ריהוט וציוד חללים משותפים  "},null,null,null,{"$f":"G12","v":"ריהוט וציוד חללים משותפים  "}]
[null,"פינת ישיבה ללובי  ",{"$f":"IF($C$4<31,1,IF($C$4<61,2,3))","v":1},10000,10000,{"$f":"IF(C$1=\"\",\"\",\"אסור להזמין\")","v":""},null,{"$f":"G13*D13","v":0}]
[null,"ציוד מחסן - מדפים ",{"$f":"ROUNDUP($C$4/10,0)","v":0},1000,0,"",null,0]
[null,"אביזרי נוי  ",1,{"$f":"IF($C$4<31,12000,IF($C$4<61,15000,20000))","v":12000},12000,"",null,0]
[null,"סה\"כ ריהוט וציוד חללים משותפים כולל מע\"מ",null,null,{"$f":"SUM(E13:E15)","v":22000},null,null,{"$f":"SUM(H13:H15)","v":0},{"$f":"B16","v":"סה\"כ ריהוט וציוד חללים משותפים כולל מע\"מ"},null,{"$f":"B16","v":"סה\"כ ריהוט וציוד חללים משותפים כולל מע\"מ"},null,null,{"$f":"SUM(N13:N15)","v":0}]
[null,"ציוד מולטימדיה כללי",null,null,null,null,{"$f":"B17","v":"ציוד מולטימדיה כללי"},null,null,null,{"$f":"G17","v":"ציוד מולטימדיה כללי"}]
[null,"מערכת הקרנה ומסך חשמלי",1,8000,8000,{"$f":"IF(C$1=\"\",\"\",\"אסור להזמין\")","v":""},null,{"$f":"G18*D18","v":0}]
[null,"מחשב קומפלט ",{"$f":"IF($C$4<31,1,IF($C$4<61,2,3))","v":1},5000,5000,"",null,0]
[null,"ציוד הגברה  ",1,{"$f":"IF($C$4<31,7000,IF($C$4<61,10000,15000))","v":7000},7000,"",null,0]
[null,"סה\"כ ציוד מולטימדיה כללי כולל מע\"מ",null,null,{"$f":"SUM(E18:E20)","v":20000},null,null,{"$f":"SUM(H18:H20)","v":0},{"$f":"B21","v":"סה\"כ ציוד מולטימדיה כללי כולל מע\"מ"},null,{"$f":"B21","v":"סה\"כ ציוד מולטימדיה כללי כולל מע\"מ"},null,null,{"$f":"SUM(N18:N20)","v":0}]
[null,"ציוד אחזקת מתחם",null,null,null,null,{"$f":"B22","v":"ציוד אחזקת מתחם"},null,null,null,{"$f":"G22","v":"ציוד אחזקת מתחם"}]
[null,"מכונת שטיפת רצפות ",1,{"$f":"IF($C$4<31,15000,25000)","v":15000},{"$f":"D23*C23","v":15000},{"$f":"IF(C$1=\"\",\"\",\"אסור להזמין\")","v":""},null,{"$f":"G23*D23","v":0}]
[null,"שואב אבק תעשייתי",1,4000,4000,"",null,0]
[null,"מכונת כביסה 7 ק\"ג",1,4500,4500,"",null,0]
[null,"מייבש כביסה 7 ק\"ג",1,3000,3000,"",null,0]
[null,"סולם",1,1500,1500,"",null,0]
[null,"ארגז כלים  ",1,{"$f":"IF($C$4<31,800,1600)","v":800},800,"",null,0]
[null,"ציוד לתחזוקת חצר  וגינון ",1,{"$f":"IF($C$4<31,2000,4000)","v":2000},2000,"",null,0]
[null,"סה\"כ ציוד אחזקת מתחם כולל מע\"מ",null,null,{"$f":"SUM(E23:E29)","v":30800},null,null,{"$f":"SUM(H23:H29)","v":0},{"$f":"B30","v":"סה\"כ ציוד אחזקת מתחם כולל מע\"מ"},null,{"$f":"B30","v":"סה\"כ ציוד אחזקת מתחם כולל מע\"מ"},null,null,{"$f":"SUM(N23:N29)","v":0}]
[null,"ציוד אבטחה ובטיחות",null,null,null,null,{"$f":"B31","v":"ציוד אבטחה ובטיחות"},null,null,null,{"$f":"G31","v":"ציוד אבטחה ובטיחות"}]
[null,"מערכת מצלמות אבטחה ",1,{"$f":"5000+$C$4*2000*2/10","v":5000},5000,{"$f":"IF(C$1=\"\",\"\",\"אסור להזמין\")","v":""},null,0]
[null,"מערכת כריזת חירום ",1,{"$f":"5000+$C$4*1000*1.5/10","v":5000},5000,"",null,0]
[null,"סה\"כ ציוד אבטחה ובטיחות כולל מע\"מ",null,null,{"$f":"SUM(E32:E33)","v":10000},null,null,{"$f":"SUM(H32:H33)","v":0},{"$f":"B34","v":"סה\"כ ציוד אבטחה ובטיחות כולל מע\"מ"},null,{"$f":"B34","v":"סה\"כ ציוד אבטחה ובטיחות כולל מע\"מ"},null,null,{"$f":"SUM(N32:N33)","v":0}]
[null,"ציוד עזרה ראשונה",null,null,null,null,{"$f":"B35","v":"ציוד עזרה ראשונה"},null,null,null,{"$f":"G35","v":"ציוד עזרה ראשונה"}]
[null,"תיק עזרה ראשונה  ",{"$f":"IF($C$4<31,1,IF($C$4<61,2,3))","v":1},700,{"$f":"C36*D36","v":700},{"$f":"IF(C$1=\"\",\"\",\"אסור להזמין\")","v":""},null,0]
[null,"דיפיבריליאטור",1,7000,7000,"",null,0]
[null,"ארון תרופות ",{"$f":"IF($C$4<31,1,IF($C$4<61,2,3))","v":1},1300,1300,"",null,0]
[null,"סה\"כ ציוד עזרה ראשונה כולל מע\"מ",null,null,{"$f":"SUM(E36:E38)","v":9000},null,null,{"$f":"SUM(H36:H38)","v":0},{"$f":"B39","v":"סה\"כ ציוד עזרה ראשונה כולל מע\"מ"},null,{"$f":"B39","v":"סה\"כ ציוד עזרה ראשונה כולל מע\"מ"},null,null,{"$f":"SUM(N36:N38)","v":0}]
[null,"ציוד חדר אוכל",null,null,null,null,{"$f":"B40","v":"ציוד חדר אוכל"},null,null,null,{"$f":"G40","v":"ציוד חדר אוכל"}]
[null,"שולחן חדר אוכל ",{"$f":"ROUNDUP($C$4/4,0)","v":0},3000,{"$f":"C41*D41","v":0},{"$f":"IF(C$1=\"\",\"\",\"אסור להזמין\")","v":""},null,{"$f":"G41*D41","v":0}]
[null,"כיסא חדר אוכל ",{"$f":"$C$4","v":0},500,0,"",null,0]
[null,"סט כלי אוכל ",{"$f":"ROUNDUP($C$4*1.2,0)","v":0},200,0,"",null,0]
[null,"עגלת אשפה",{"$f":"IF($C$4<31,1,IF($C$4<61,2,3))","v":1},1000,1000,"",null,0]
[null,"סה\"כ ציוד חדר אוכל כולל מע\"מ",null,null,{"$f":"SUM(E41:E44)","v":1000},null,null,{"$f":"SUM(H41:H44)","v":0},{"$f":"B45","v":"סה\"כ ציוד חדר אוכל כולל מע\"מ"},null,{"$f":"B45","v":"סה\"כ ציוד חדר אוכל כולל מע\"מ"},null,null,{"$f":"SUM(N41:N44)","v":0}]
[null,"שירותי אדריכלות ועיצוב פנים",1,{"$f":"IF($C$4<31,20000,IF($C$4<61,30000,50000))","v":20000},{"$f":"C46*D46","v":20000},{"$f":"IF(C$1=\"\",\"\",\"אסור להזמין\")","v":""},null,{"$f":"G46*D46","v":0}]
[null,"סה\"כ ציוד כללי למתחם כולל מע\"מ",null,null,{"$f":"E11+E16+E21+E30+E34+E39+E45+E46","v":160800},null,null,{"$f":"H11+H16+H21+H30+H34+H39+H45+H46","v":0},{"$f":"B47","v":"סה\"כ ציוד כללי למתחם כולל מע\"מ"},null,{"$f":"B47","v":"סה\"כ ציוד כללי למתחם כולל מע\"מ"},null,null,{"$f":"N11+N16+N21+N30+N34+N39+N45+N46","v":0}]

{"sheet":"ה. ציוד חדרי קבוצות","index":5,"n_rows":38,"n_cols":14,"rows_kept":38,"cut":false,"hidden":false,"merged":[[5,1,5,4],[5,6,5,8],[5,10,5,13]]}
[null,{"$f":"'ב. תוכן עניינים'!C18","v":"ציוד חדרי קבוצות"},{"$f":"IF('ג. שאלון למילוי מגיש הבקשה'!$D$46=\"כן\",\"התקבל מימון ביטוח לאומי, אסור לבקש מימון כפול\",\"\")","v":""},null,null,null,"שלב הגשת הבקשה:",null,null,null,"שלב הדיווח על ההוצאות:"]
[null,"שם המסגרת :",{"$f":"'ג. שאלון למילוי מגיש הבקשה'!D24","v":0},null,null,null,"עליכם למלא גיליון ג' בטרם מילוי הגיליונות האחרים ",null,null,null,"לאחר אישור הבקשה יוחזר הגיליון עם הפריטים המאושרים"]
[null,"סוג המסגרת :",{"$f":"'ג. שאלון למילוי מגיש הבקשה'!D26","v":"נא לבחור מתוך הרשימה"},null,null,null,"גיליונות ד' עד י\"ב עליכם למלא רק עמודות הצבועות בירוק",null,null,null,"גיליונות ד' עד י\"ב עליכם למלא רק עמודות הצבועות בוורוד "]
[null,"מספר האנשים שעבורם מיועד הפרויקט :",{"$f":"'ג. שאלון למילוי מגיש הבקשה'!D42","v":0},null,null,null,"אין לגעת בתאים האחרים- תאים אלו יהיו נעולים",null,null,null,"אין לגעת בתאים האחרים- תאים אלו יהיו נעולים"]
[]
[null,"תקן  ציוד ",null,null,null,null,"בקשת הגוף ",null,null,null,"דיווח לתשלום לאחר ביצוע"]
[null,"פריטים","כמות תקן","עלות ליחידה כולל מע\"מ","סך עלות כולל מע\"מ",null,"כמות מבוקשת עבור חדר בודד","תקציב מבוקש","הערות הגוף",null,"הפריט שנרכש","מס' חשבונית מס","תאריך חשבונית מס","סכום כולל מע\"מ"]
[null,"ציוד וריוט חדרי קבוצות",null,null,null,null,{"$f":"B8","v":"ציוד וריוט חדרי קבוצות"},null,null,null,{"$f":"G8","v":"ציוד וריוט חדרי קבוצות"}]
[null,"כסא בחדר קבוצה ",{"$f":"$C$4","v":0},500,{"$f":"D9*C9","v":0},{"$f":"IF(C$1=\"\",\"\",\"אסור להזמין\")","v":""},null,{"$f":"G9*D9","v":0}]
[null,"שולחן בחדר קבוצה ",{"$f":"ROUNDUP($C$4/4,0)","v":0},3000,0,"",null,0]
[null,"שולחן מחשב ",{"$f":"ROUNDUP($C$4/10,0)","v":0},1200,0,"",null,0]
[null,"כורסא ",{"$f":"ROUNDUP($C$4/10,0)","v":0},3000,0,"",null,0]
[null,"ארון איחסון ",{"$f":"ROUNDUP($C$4*2/10,0)","v":0},4500,0,"",null,0]
[null,"כוננית מדפים ",{"$f":"ROUNDUP($C$4/10,0)","v":0},1500,0,"",null,0]
[null,"ארון לוקרים ",{"$f":"ROUNDUP($C$4*1.1,0)","v":0},500,0,"",null,0]
[null,"מראה ",{"$f":"ROUNDUP($C$4/10,0)","v":0},300,0,"",null,0]
[null,"שעון קיר ",0,200,0,"",null,0]
[null,"וילונות חסיני אש  ",{"$f":"ROUNDUP($C$4*1.3/10,0)","v":0},{"$f":"12*500","v":6000},0,"",null,0]
[null,"שלוט פנים לאיפיון חדרים ",{"$f":"ROUNDUP($C$4*1.3/10,0)","v":0},200,0,"",null,0]
[null,"סה\"כ ציוד וריהוט חדרי קבוצות כולל מע\"מ",null,null,{"$f":"SUM(E9:E19)","v":0},null,null,{"$f":"SUM(H9:H19)","v":0},{"$f":"B20","v":"סה\"כ ציוד וריהוט חדרי קבוצות כולל מע\"מ"},null,{"$f":"B20","v":"סה\"כ ציוד וריהוט חדרי קבוצות כולל מע\"מ"},null,null,{"$f":"SUM(N9:N19)","v":0}]
[null,"מחשבים וציוד מולטימדיה",null,null,null,null,{"$f":"B21","v":"מחשבים וציוד מולטימדיה"},null,null,null,{"$f":"G21","v":"מחשבים וציוד מולטימדיה"}]
[null,"מחשב קומפלט ",{"$f":"ROUNDUP($C$4/10,0)","v":0},5000,0,{"$f":"IF(C$1=\"\",\"\",\"אסור להזמין\")","v":""},null,{"$f":"G22*D22","v":0}]
[null,"מדפסת משולבת",0,1600,0,{"$f":"IF(C$1=\"\",\"\",\"אסור להזמין\")","v":""},null,0]
[null,"טלוויזיה 65\" + מגן ",0,4500,0,{"$f":"IF(C$1=\"\",\"\",\"אסור להזמין\")","v":""},null,0]
[null,"סה\"כ מחשבים וציוד מולטימדיה כולל מע\"מ",null,null,{"$f":"SUM(E22:E24)","v":0},null,null,{"$f":"SUM(H22:H24)","v":0},{"$f":"B25","v":"סה\"כ מחשבים וציוד מולטימדיה כולל מע\"מ"},null,{"$f":"B25","v":"סה\"כ מחשבים וציוד מולטימדיה כולל מע\"מ"},null,null,{"$f":"SUM(N22:N24)","v":0}]
[null,"ציוד סניטריה לחדרי שירותים",null,null,null,null,{"$f":"B26","v":"ציוד סניטריה לחדרי שירותים"},null,null,null,{"$f":"G26","v":"ציוד סניטריה לחדרי שירותים"}]
[null,"מתקן נייר טואלט כפול ",{"$f":"ROUNDUP($C$4*1.3/10,0)","v":0},250,0,{"$f":"IF(C$1=\"\",\"\",\"אסור להזמין\")","v":""},null,{"$f":"G27*D27","v":0}]
[null,"פח אשפה ",0,450,0,"",null,0]
[null,"דיספנסר לסבון נוזלי ",0,200,0,"",null,0]
[null,"מתקן מגבות נייר ",0,300,0,"",null,0]
[null,"מראה ",0,300,0,"",null,0]
[null,"מתקן ניקוי אסלה ",{"$f":"ROUNDUP($C$4*1.3/10,0)","v":0},200,0,"",null,0]
[null,"סה\"כ ציוד סניטריה לחדרי שירותים כולל מע\"מ",null,null,{"$f":"SUM(E27:E32)","v":0},null,null,{"$f":"SUM(H27:H32)","v":0},{"$f":"B33","v":"סה\"כ ציוד סניטריה לחדרי שירותים כולל מע\"מ"},null,{"$f":"B33","v":"סה\"כ ציוד סניטריה לחדרי שירותים כולל מע\"מ"},null,null,{"$f":"SUM(N27:N32)","v":0}]
[null,"ציוד גן, חצר ומרפסות",null,null,null,null,{"$f":"B34","v":"ציוד גן, חצר ומרפסות"},null,null,null,{"$f":"G34","v":"ציוד גן, חצר ומרפסות"}]
[null,"שמשיה למרפסת ",{"$f":"ROUNDUP($C$4/10,0)","v":0},4000,0,{"$f":"IF(C$1=\"\",\"\",\"אסור להזמין\")","v":""},null,0,null,null,null,null,null,{"$f":"H35","v":0}]
[null,"פינת ישיבה למרפסת כיתה ",0,5000,0,{"$f":"IF(C$1=\"\",\"\",\"אסור להזמין\")","v":""},null,0,null,null,null,null,null,0]
[null,"סה\"כ ציוד גן, חצר ומרפסות כולל מע\"מ",null,null,{"$f":"SUM(E35:E36)","v":0},null,null,{"$f":"SUM(H35:H36)","v":0},{"$f":"B37","v":"סה\"כ ציוד גן, חצר ומרפסות כולל מע\"מ"},null,{"$f":"B37","v":"סה\"כ ציוד גן, חצר ומרפסות כולל מע\"מ"},null,null,{"$f":"SUM(N35:N36)","v":0}]
[null,"סה\"כ ציוד וריהוט חדרי קבוצות כולל מע\"מ",null,null,{"$f":"E20+E25+E33+E37","v":0},null,null,{"$f":"H20+H25+H33+H37","v":0},{"$f":"B38","v":"סה\"כ ציוד וריהוט חדרי קבוצות כולל מע\"מ"},null,{"$f":"B38","v":"סה\"כ ציוד וריהוט חדרי קבוצות כולל מע\"מ"},null,null,{"$f":"N20+N25+N33+N37","v":0}]

{"sheet":"ו. ריפוי בעיסוק","index":6,"n_rows":51,"n_cols":14,"rows_kept":51,"cut":false,"hidden":false,"merged":[[5,1,5,4],[5,10,5,13],[5,6,5,8]]}
[null,{"$f":"'ב. תוכן עניינים'!C19","v":"ריפוי בעיסוק"},null,null,null,null,"שלב הגשת הבקשה:",null,null,null,"שלב הדיווח על ההוצאות:"]
[null,"שם המסגרת :",{"$f":"'ג. שאלון למילוי מגיש הבקשה'!D24","v":0},null,null,null,"עליכם למלא גיליון ג' בטרם מילוי הגיליונות האחרים ",null,null,null,"לאחר אישור הבקשה יוחזר הגיליון עם הפריטים המאושרים"]
[null,"סוג המסגרת :",{"$f":"'ג. שאלון למילוי מגיש הבקשה'!D26","v":"נא לבחור מתוך הרשימה"},null,null,null,"גיליונות ד' עד י\"ב עליכם למלא רק עמודות הצבועות בירוק",null,null,null,"גיליונות ד' עד י\"ב עליכם למלא רק עמודות הצבועות בוורוד "]
[null,"מספר האנשים שעבורם מיועד הפרויקט :",{"$f":"'ג. שאלון למילוי מגיש הבקשה'!D42","v":0},null,null,null,"אין לגעת בתאים האחרים- תאים אלו יהיו נעולים",null,null,null,"אין לגעת בתאים האחרים- תאים אלו יהיו נעולים"]
[]
[null,"תקן  ציוד ",null,null,null,null,"בקשת הגוף ",null,null,null,"דיווח לתשלום לאחר ביצוע"]
[null,"פריטים","כמות תקן","עלות ליחידה כולל מע\"מ","סך עלות כולל מע\"מ",null,"כמות מבוקשת עבור חדר בודד","תקציב מבוקש","הערות הגוף",null,"הפריט שנרכש","מס' חשבונית מס","תאריך חשבונית מס","סכום כולל מע\"מ"]
[null,"ריהוט",null,null,null,null,{"$f":"B8","v":"ריהוט"},null,null,null,{"$f":"G8","v":"ריהוט"}]
[null,"מזרונים טיפוליים",3,300,{"$f":"D9*C9","v":900},null,null,{"$f":"G9*D9","v":0}]
[null,"ארון אחסון",1,3000,3000,null,null,0]
[null,"מדף אחסון לציוד גדול תלוי",1,2000,2000,null,null,0]
[null,"כסא מתכוונן",1,1500,1500,null,null,0]
[null,"כסא מטפל",1,760,760,null,null,0]
[null,"לוח מחיק",1,500,500,null,null,0]
[null,"מראה קבועה ווילון",1,800,800,null,null,0]
[null,"שולחן מתכוונן חשמלי",1,6000,6000,null,null,0]
[null,"סה\"כ ריהוט כולל מע\"מ",null,null,{"$f":"SUM(E9:E16)","v":15460},null,null,{"$f":"SUM(H9:H16)","v":0},{"$f":"B17","v":"סה\"כ ריהוט כולל מע\"מ"},null,{"$f":"B17","v":"סה\"כ ריהוט כולל מע\"מ"},null,null,{"$f":"SUM(N9:N16)","v":0}]
[null,"ציוד",null,null,null,null,{"$f":"B18","v":"ציוד"},null,null,null,{"$f":"G18","v":"ציוד"}]
[null,"נקודת תליה בתקרה, כולל התקנה ",2,500,1000,null,null,{"$f":"G19*D19","v":0}]
[null,"סקוטר למשקל של מבוגרים",2,250,500,null,null,0]
[null,"חבית טיפולית",1,1800,1800,null,null,0]
[null,"סט חמישה ספסלים",1,800,800,null,null,0]
[null,"ערסל בד טיפולי",1,200,200,null,null,0]
[null,"צלחת וסטיבולרית לבוגרים",1,250,250,null,null,0]
[null,"כדורים (סכום גלובלי)",1,500,500,null,null,0]
[null,"גלילים בגדלים שונים (סכום גלובלי)",1,1500,1500,null,null,0]
[null,"וסט נאופרן",1,450,450,null,null,0]
[null,"משחקי גריה שונים (סכום גלובלי)",1,1000,1000,null,null,0]
[null,"עזרים לטיפול קבוצתי (טבעות, \nמטפחות, כדורים, מצנח וכד') (סכום גלובלי)",1,3500,3500,null,null,0]
[null,"משחקי מרחב, בנייה והרכבה  (סכום גלובלי)",1,3000,3000,null,null,0]
[null,"פאזלים ומשחקי תפיסה (סכום גלובלי)",1,2000,2000,null,null,0]
[null,"אביזרי ADL מותאמים (סכום גלובלי)",1,1000,1000,null,null,0]
[null,"ציוד להכנת סדי ידיים ",1,3000,3000,null,null,0]
[null,"סה\"כ ציוד כולל מע\"מ",null,null,{"$f":"SUM(E19:E33)","v":20500},null,null,{"$f":"SUM(H19:H33)","v":0},{"$f":"B34","v":"סה\"כ ציוד כולל מע\"מ"},null,{"$f":"B34","v":"סה\"כ ציוד כולל מע\"מ"},null,null,{"$f":"SUM(N19:N33)","v":0}]
[null,"טכנולוגיה",null,null,null,null,{"$f":"B35","v":"טכנולוגיה"},null,null,null,{"$f":"G35","v":"טכנולוגיה"}]
[null,"מחשב נייח/נייד עם מסך מגע  ",1,5000,5000,null,null,{"$f":"G36*D36","v":0}]
[null,"מדפסת",1,1600,1600,null,null,0]
[null," אייפד (1  ל 5 אנשים)   Ipad 10.2\" 128GB WIFI ",1,2800,2800,null,null,0]
[null,"תוכנות לאייפד",1,5000,5000,null,null,0]
[null,"מגן לאייפד + מדבקת זכוכית",1,450,450,null,null,0]
[null,"Apple tv",1,900,900,null,null,0]
[null,"מסך הקרנה נגלל",1,3800,3800,null,null,0]
[null,"מסך מגע כ- 65\" לתלייה על קיר+ ארון + מחשב להפעלה, ניתן להשתמש גם בלוח חכם ",1,40000,40000,null,null,{"$f":"G43*D43","v":0}]
[null,"מערכת מציאות מדומה",1,40000,40000,null,null,0]
[null,"עכברים ייחודיים ",1,2500,2500,null,null,0]
[null,"מקלדות ייחודיות ",1,1200,1200,null,null,0]
[null,"מתגים ומתאמי מתגים ",1,4500,4500,null,null,0]
[null,"זרועות למתגים ולטאבלט ",1,5000,5000,null,null,0]
[null,"צעצועים מותאמים - סכום גלובלי",1,5000,5000,null,null,0]
[null,"סה\"כ טכנולוגיה כולל מע\"מ",null,null,{"$f":"SUM(E36:E49)","v":117750},null,null,{"$f":"SUM(H36:H49)","v":0},{"$f":"B50","v":"סה\"כ טכנולוגיה כולל מע\"מ"},null,{"$f":"B50","v":"סה\"כ טכנולוגיה כולל מע\"מ"},null,null,{"$f":"SUM(N36:N49)","v":0}]
[null,"סה\"כ ציוד ריפוי בעיסוק כולל מע\"מ",null,null,{"$f":"E17+E34+E50","v":153710},null,null,{"$f":"H17+H34+H50","v":0},{"$f":"B51","v":"סה\"כ ציוד ריפוי בעיסוק כולל מע\"מ"},null,{"$f":"B51","v":"סה\"כ ציוד ריפוי בעיסוק כולל מע\"מ"},null,null,{"$f":"N17+N34+N50","v":0}]

{"sheet":"ז. קלינאות תקשורת","index":7,"n_rows":33,"n_cols":14,"rows_kept":33,"cut":false,"hidden":false,"merged":[[4,1,4,4],[4,6,4,8],[4,10,4,13]]}
[null,{"$f":"'ב. תוכן עניינים'!C20","v":"קלינאות תקשורת"},null,null,null,null,"שלב הגשת הבקשה:",null,null,null,"שלב הדיווח על ההוצאות:"]
[null,"שם המסגרת :",{"$f":"'ג. שאלון למילוי מגיש הבקשה'!D24","v":0},null,null,null,"עליכם למלא גיליון ג' בטרם מילוי הגיליונות האחרים.",null,null,null,"לאחר אישור הבקשה יוחזר הגיליון עם הפריטים המאושרים"]
[null,"סוג המסגרת :",{"$f":"'ג. שאלון למילוי מגיש הבקשה'!D26","v":"נא לבחור מתוך הרשימה"},null,null,null,"גיליונות ד' עד י\"ב עליכם למלא רק עמודות הצבועות בירוק",null,null,null,"גיליונות ד' עד י\"ב עליכם למלא רק עמודות הצבועות בוורוד"]
[null,"מספר האנשים שעבורם מיועד הפרויקט :",{"$f":"'ג. שאלון למילוי מגיש הבקשה'!D42","v":0},null,null,null,"אין לגעת בתאים האחרים- תאים אלו יהיו נעולים",null,null,null,"אין לגעת בתאים האחרים- תאים אלו יהיו נעולים"]
[null,"תקן  ציוד ",null,null,null,null,"בקשת הגוף ",null,null,null,"דיווח לתשלום לאחר ביצוע"]
[null,"פריטים","כמות תקן","עלות ליחידה כולל מע\"מ","סך עלות כולל מע\"מ",null,"כמות מבוקשת עבור חדר בודד","תקציב מבוקש","הערות הגוף",null,"הפריט שנרכש","מס' חשבונית מס","תאריך חשבונית מס","סכום כולל מע\"מ"]
[null,"מיחשוב",null,null,null,null,{"$f":"B7","v":"מיחשוב"},null,null,null,{"$f":"G7","v":"מיחשוב"}]
[null,"מחשב נייח /נייד",1,5000,{"$f":"D8*C8","v":5000},null,null,{"$f":"G8*D8","v":0}]
[null,"מדפסת משולבת עם יישומי סריקה וצילום, פלט צבעוני",1,1600,1600,null,null,{"$f":"G9*D9","v":0}]
[null,"מכשיר למינציה",1,500,500,null,null,{"$f":"G10*D10","v":0}]
[null,"מחשב לוח (אייפד/טאבלט)",1,2800,2800,null,null,{"$f":"G11*D11","v":0}]
[null,"אפליקציות למחשב לוח (אייפד/טאבלט)",1,1200,1200,null,null,{"$f":"G12*D12","v":0}]
[null,"סה\"כ מחשבים כולל מע\"מ",null,null,{"$f":"SUM(E8:E12)","v":11100},null,null,{"$f":"SUM(H8:H12)","v":0},{"$f":"B13","v":"סה\"כ מחשבים כולל מע\"מ"},null,{"$f":"B13","v":"סה\"כ מחשבים כולל מע\"מ"},null,null,{"$f":"SUM(N8:N12)","v":0}]
[null,"תקשורת תומכת וחליפית",null,null,null,null,{"$f":"B14","v":"תקשורת תומכת וחליפית"},null,null,null,{"$f":"G14","v":"תקשורת תומכת וחליפית"}]
[null,"פלטים קוליים (סכום גלובלי)",1,5000,5000,null,null,{"$f":"G15*D15","v":0}]
[null,"מתגים (סכום גלובלי)",1,2000,2000,null,null,0]
[null,"אפליקציות לתקשורת תומכת חליפית  (סכום גלובלי)",1,2000,2000,null,null,0]
[null,"תוכנת גריד (סכום גלובלי)",1,7000,7000,null,null,{"$f":"G18*D18","v":0}]
[null,"סה\"כ תקשורת תומכת וחליפית כולל מע\"מ",null,null,{"$f":"SUM(E15:E18)","v":16000},null,null,{"$f":"SUM(H15:H18)","v":0},{"$f":"B19","v":"סה\"כ תקשורת תומכת וחליפית כולל מע\"מ"},null,{"$f":"B19","v":"סה\"כ תקשורת תומכת וחליפית כולל מע\"מ"},null,null,{"$f":"SUM(N15:N18)","v":0}]
[null,"תוכנות ומשחקים",null,null,null,null,{"$f":"B20","v":"תוכנות ומשחקים"},null,null,null,{"$f":"G20","v":"תוכנות ומשחקים"}]
[null,"ציוד טיפולי, ספרים, כרטיסיות ומשחקי שפה ותקשורת",1,3000,3000,null,null,0]
[null,"תוכנות תקשורת לאי-פד כמו sounding board, book creator,choice boards, snap scene ועוד, בהתאם למאפייני האוכלוסיה",1,3000,3000,null,null,0]
[null,"אי פד ",{"$f":"IF(C4<31,2,IF(C4<61,4,5))","v":2},2800,5600,null,null,0]
[null,"סה\"כ תוכנות ומשחקים כולל מע\"מ",null,null,{"$f":"SUM(E21:E23)","v":11600},null,null,{"$f":"SUM(H21:H23)","v":0},{"$f":"B24","v":"סה\"כ תוכנות ומשחקים כולל מע\"מ"},null,{"$f":"B24","v":"סה\"כ תוכנות ומשחקים כולל מע\"מ"},null,null,{"$f":"SUM(N21:N23)","v":0}]
[null,"ריהוט",null,null,null,null,{"$f":"B25","v":"ריהוט"},null,null,null,{"$f":"G25","v":"ריהוט"}]
[null,"ארון אחסון לציוד",1,3000,3000,null,null,{"$f":"G26*D26","v":0}]
[null,"כסאות",2,500,1000,null,null,0]
[null,"שולחנות",1,1200,1200,null,null,0]
[null,"מראה ווילון",1,800,800,null,null,0]
[null,"לוח מחיק",1,500,500,null,null,0]
[null,"שטיח",1,350,350,null,null,0]
[null,"סה\"כ ריהוט כולל מע\"מ",null,null,{"$f":"SUM(E26:E31)","v":6850},null,null,{"$f":"SUM(H26:H31)","v":0},{"$f":"B32","v":"סה\"כ ריהוט כולל מע\"מ"},null,{"$f":"B32","v":"סה\"כ ריהוט כולל מע\"מ"},null,null,{"$f":"SUM(N26:N31)","v":0}]
[null,"סה\"כ ציוד קלינאות תקשורת כולל מע\"מ",null,null,{"$f":"E13+E19+E24+E32","v":45550},null,null,{"$f":"H13+H19+H24+H32","v":0},{"$f":"B33","v":"סה\"כ ציוד קלינאות תקשורת כולל מע\"מ"},null,{"$f":"B33","v":"סה\"כ ציוד קלינאות תקשורת כולל מע\"מ"},null,null,{"$f":"N13+N19+N24+N32","v":0}]

{"sheet":"ח. סנוזלן","index":8,"n_rows":26,"n_cols":14,"rows_kept":26,"cut":false,"hidden":false,"merged":[[4,1,4,4],[4,6,4,8],[4,10,4,13]]}
[null,{"$f":"'ב. תוכן עניינים'!C21","v":"חדר סנוזלן"},null,null,null,null,"שלב הגשת הבקשה:",null,null,null,"שלב הדיווח על ההוצאות:"]
[null,"שם המסגרת",{"$f":"'ג. שאלון למילוי מגיש הבקשה'!D24","v":0},null,null,null,"עליכם למלא גיליון ג' בטרם מילוי הגיליונות האחרים.",null,null,null,"לאחר אישור הבקשה יוחזר הגיליון עם הפריטים המאושרים"]
[null,"סוג המסגרת",{"$f":"'ג. שאלון למילוי מגיש הבקשה'!D26","v":"נא לבחור מתוך הרשימה"},null,null,null,"גיליונות ד' עד י\"ב עליכם למלא רק עמודות הצבועות בירוק",null,null,null,"גיליונות ד' עד י\"ב עליכם למלא רק עמודות הצבועות בכתום",null,null,"צבועות בוורוד "]
[null,"מספר האנשים שעבורם מיועד הפרויקט",{"$f":"'ג. שאלון למילוי מגיש הבקשה'!D42","v":0},null,null,null,"אין לגעת בתאים האחרים- תאים אלו יהיו נעולים",null,null,null,"אין לגעת בתאים האחרים- תאים אלו יהיו נעולים"]
[null,"תקן  ציוד ",null,null,null,null,"בקשת הגוף ",null,null,null,"דיווח לתשלום לאחר ביצוע"]
[null,"פריטים","כמות תקן","עלות ליחידה כולל מע\"מ","סך עלות כולל מע\"מ",null,"כמות מבוקשת עבור חדר בודד","תקציב מבוקש","הערות הגוף",null,"הפריט שנרכש","מס' חשבונית מס","תאריך חשבונית מס","סכום כולל מע\"מ"]
[null,"מנוף תקרה+ התקנה (לסיעודיים)",1,25000,{"$f":"D7*C7","v":25000},null,null,{"$f":"G7*D7","v":0}]
[null,"עמוד בועות",1,13500,{"$f":"D8*C8","v":13500},null,null,{"$f":"G8*D8","v":0}]
[null,"מראות מחוסמות",1,1750,1750,null,null,0]
[null,"בסיס מרופד",1,1200,1200,null,null,0]
[null,"פרוג'קטור",1,5500,5500,null,null,0]
[null,"פופ",1,850,850,null,null,0]
[null,"מערכת מוסיקה",1,1600,1600,null,null,0]
[null,"ריפוד רצפה  וקירות ל 20 מ\"ר",20,400,8000,null,null,0]
[null,"סיבים אופטיים",1,6850,6850,null,null,0]
[null,"כדור מראות+מקרן",1,1400,1400,null,null,{"$f":"G16*D16","v":0}]
[null,"נדנדה",1,1000,1000,null,null,0]
[null,"מתרגם קול לאור",1,9000,9000,null,null,0]
[null,"מתקן גירוי תגובה",1,5500,5500,null,null,0]
[null,"אביזרי עיסוי",1,2500,2500,null,null,0]
[null,"אביזרי גריה קטנים",1,2500,2500,null,null,0]
[null,"ארון אחסון לעזרים",2,3000,6000,null,null,0]
[null,"סה\"כ ציוד חדר סנוזלן כולל מע\"מ",null,null,{"$f":"SUM(E7:E22)","v":92150},null,null,{"$f":"SUM(H7:H22)","v":0},{"$f":"B23","v":"סה\"כ ציוד חדר סנוזלן כולל מע\"מ"},null,{"$f":"B23","v":"סה\"כ ציוד חדר סנוזלן כולל מע\"מ"},null,null,{"$f":"SUM(N7:N22)","v":0}]
[]
[null,"הערה:"]
[null,"ציוד לחדר סנוזלן מותנה בהפעלת איש מקצוע שקיבל הכשרה בתחום.  גודל חדר מינימאלי 20 מ\"ר+ 5 מ\"ר מבואה."]

{"sheet":"ט. מתקני חצר ","index":9,"n_rows":32,"n_cols":15,"rows_kept":32,"cut":false,"hidden":false,"merged":[[4,7,4,9],[4,11,4,14]]}
[null,{"$f":"'ב. תוכן עניינים'!C22","v":"מתקני חצר"},null,null,null,null,null,"שלב הגשת הבקשה:",null,null,null,"שלב הדיווח על ההוצאות:"]
[null,"שם המסגרת :",{"$f":"'ג. שאלון למילוי מגיש הבקשה'!D24","v":0},null,null,null,null,"עליכם למלא גיליון ג' בטרם מילוי הגיליונות האחרים.",null,null,null,"לאחר אישור הבקשה יוחזר הגיליון עם הפריטים המאושרים"]
[null,"סוג המסגרת :",{"$f":"'ג. שאלון למילוי מגיש הבקשה'!D26","v":"נא לבחור מתוך הרשימה"},null,null,null,null,"גיליונות ד' עד י\"ב עליכם למלא רק עמודות הצבועות בירוק",null,null,null,"גיליונות ד' עד י\"ב עליכם למלא רק עמודות הצבועות בוורוד ",null,null,"בוורוד"]
[null,"מספר האנשים שעבורם מיועד הפרויקט :",{"$f":"'ג. שאלון למילוי מגיש הבקשה'!D42","v":0},null,null,null,null,"אין לגעת בתאים האחרים- תאים אלו יהיו נעולים",null,null,null,"אין לגעת בתאים האחרים- תאים אלו יהיו נעולים"]
[null,null,null,null,null,null,null,"בקשת הגוף ",null,null,null,"דיווח לתשלום לאחר ביצוע"]
[null,"מתקן","תיאור","כמות תקן למסגרת","מחיר ליחידה","תקציב מומלץ לפי תקן",null,"כמות מבוקשת","תקציב מבוקש לקבוצה","הערות הגוף",null,"הפריט שנרכש","מס' חשבונית מס","תאריך חשבונית מס","סכום כולל מע\"מ"]
[null,"לחיצת חזה משיכה עליונה","מתקן זוגי דחיקת חזה ומשיכה עליונה זוגי שתי\nמנחי פעילות אפשריות מנח יד אופקי ואנכי\nאימון שרירי חזה כלל השרירים\nכולל מדרכי רגל לקיבוע הגפיים",1,18000,{"$f":"D7*E7","v":18000},null,null,{"$f":"E7*H7","v":0}]
[null,"מתקן דחיקת כתפיים למשתמש","מתקן דחיקת כתפיים לאימון שרירי הכתפים\nוהיד הקדמית בלדחיקה מעלה לכיוון הכתף כולל\nידיות לקימה וישיבה והנגשה לאוכלוסיות\nמיוחדות כולל מדרכי רגל לקיבוע הגפיים",1,15000,{"$f":"D8*E8","v":15000},null,null,{"$f":"E8*H8","v":0}]
[null,"מתקן פרפר חזה","מתקן פרפר סגירה לאימון שרירי החזה ,בתוספת זוג ידיות אחיזה של מנחי פעילות של סגירה צרה וסגירה רחבה כולל משענות יד ומדרך רגל\nלקיבוע הגפיים",1,15000,15000,null,null,{"$f":"E9*H9","v":0}]
[null,"מתקן פרפר הפוך","מתקן פרפר פתיחה לאימון שרירי החזה, בתוספת ידיות אחיזה כולל משענות יד ומדרך רגל לקיבוע הגפיים",1,15000,15000,null,null,{"$f":"E10*H10","v":0}]
[null,"מתקן מקבילי כנף לזוג\nמשתמשים","מקבילי כנף בשני גבהים ברוחב אופטימאלי לאימון יד אחורית מונגש לאוכלוסיות גבוהות ונמוכות",1,10000,10000,null,null,0]
[null,"מתקן דחיקת רגליים לזוג משתמשים","מתקן דחיקת ארבע ראשים ושרירי התאומים בישיבה – כולל מנגנון הבטחה ומעצור למניעת היפוך זרוע ומפתח קיצוני",1,15000,15000,null,null,0]
[null,"מתקן סקי","מתקן סקי לאימון אירובי פעילות ידיים רגליים בתנועה קדימה ואחורה כולל מעצור למניעת מפתח קיצוני",1,10000,10000,null,null,0]
[null,"מתקן הליכה באוויר לזוג משתמשים","מתקן הליכה באוויר לזוג לאימון אירובי אימון ופיתוח מיומניות הליכה ,הגמשת המפשעה תנועת רגליים קדימה ואחורה כולל מעצור למניעת מפתח קיצוני, עד 70 מעלות",1,15000,15000,null,null,0]
[null,"מתקן חתירה בכורסא","מתקן אירובי לפלג גוף עליון לאימון הגב והזרועות לאימון אירובי ,תנועת ידיות אחיזה קדימה ואחורה כולל מעצור למניעת מפתח קיצוני, עד 70 מעלות",1,10000,10000,null,null,0]
[null,"ממתקן מאמן אגן שרירי בטן ישבן  וירכיים בתנועת מטוטלת","התקן לארבעה משתמשים כולל תחנות לכיפוף ברכיים ותנועת אגן, חיזוק מותניים בטן תחתונה והצרת היקפי מותן חיזוק ואימון ישבן יריכיים\nכולל מעצור למניעת מפתח קיצוני, עד 70 מעלות",1,15000,15000,null,null,0]
[null,"מתקן אופני ידיים רגליים","מתקן לאימון קואורדינציה ותיאום יד ורגל, ביצוע תנועות סיבוב אופני ידיים לחיזוק רצועות הכתפיים יחד עם ביצוע ודיווש רגליים לחיזוק רגליים, ירך וישבן כולל מנגנון התנגדות אופטימאלית נגיש לכלל האוכלוסיות",1,10000,10000,null,null,0]
[null,"מתקן אימון פולי תחתון בתמיכת חזה","מתקן פעילות ליד קדמית בצורת פעילות של משיכה תחתונה בתמיכת חזה, פעילות בישיבה זקופה 3 מנחי פעילות אפשריות מנח יד אופקי ואנכי אימון שרירי היד הקדמית ושרירי שכמות / גב כולל מדרכי רגל לקיבוע הגפיים",1,12000,12000,null,null,0]
[null,"מתקן אופני ספיננג","מתקן לאימון קואורדינציה ותיאום יד ורגל, ביצוע תנועות סיבוב אופני ידיים לחיזוק רצועות הכתפיים יחד עם ביצוע ודיווש רגליים לחיזוק רגליים, ירך וישבן כולל מנגנון התנגדות אופטימאלית. נגיש לכלל האוכלוסיות",1,10000,10000,null,null,0]
[null,"מתקן דחיקת רגליים לארבע","מתקן דחיקה לארבע אימון ארבע ראשים ושרירי התאומים בישיבה – כולל מנגנון הבטחה ומעצור למניעת היפוך זרוע ומפתח קיצוני",1,18000,18000,null,null,0]
[null,"מתקן מתח –מקבילים וכורסת בטן","מתקן לאימון פונקציונאלי אימון כושר חופשי\nמודולארי מעוגן באמצעות חובקים .\nניתן לקבלו במספר צורות וגבהים בהתאם\nלגרישות לקוח וצורת האימון המבוקשת",1,18000,18000,null,null,0]
[null,"נדנדה קן לציפור","נדנדה קן לציפור",1,15000,15000,null,null,0]
[null,"מתקני מוזיקה","מתקני מוזיקה לחצר",1,5000,5000,null,null,0]
[null,"כדורגל שולחן","משחק כדורגל שולחן",1,5000,5000,null,null,0]
[null,"הוקי אויר","משחק הוקי",1,5000,5000,null,null,0]
[null,"משטח גומי","משטח גומי עלות למ\"ר 1",{"$f":"IF(D7<31,50,IF(D7<61,80,100))","v":50},300,15000,null,null,0]
[null,"סה\"כ מתקני חצר (כולל מע\"מ)",null,null,null,{"$f":"SUM(F7:F26)","v":251000},null,null,{"$f":"SUM(I7:I26)","v":0},{"$f":"B27","v":"סה\"כ מתקני חצר (כולל מע\"מ)"},null,{"$f":"J27","v":"סה\"כ מתקני חצר (כולל מע\"מ)"},null,null,{"$f":"SUM(O7:O26)","v":0}]
[]
[null,"הערות:"]
[null,"האישור מותנה בהצגת תכנית העמדת המתקנים"]
[null,"המתקנים מחויבים בתו תקן "]
[null,"הסעיפים הנ\"ל מציגים מתקנים לדוגמה.  "]

{"sheet":"י. פיזיותרפיה","index":10,"n_rows":80,"n_cols":16384,"rows_kept":80,"cut":false,"hidden":false,"merged":[[4,1,4,4],[4,6,4,8],[4,10,4,13],[79,1,79,3]]}
[null,{"$f":"'ב. תוכן עניינים'!C23","v":"פיזיותרפיה"},null,null,null,null,"שלב הגשת הבקשה:",null,null,null,"שלב הדיווח על ההוצאות:"]
[null,"שם המסגרת :",{"$f":"'ג. שאלון למילוי מגיש הבקשה'!D24","v":0},null,null,null,"עליכם למלא גיליון ג' בטרם מילוי הגיליונות האחרים.",null,null,null,"לאחר אישור הבקשה יוחזר הגיליון עם הפריטים המאושרים"]
[null,"סוג המסגרת :",{"$f":"'ג. שאלון למילוי מגיש הבקשה'!D26","v":"נא לבחור מתוך הרשימה"},null,null,null,"גיליונות ד' עד י\"ב עליכם למלא רק עמודות הצבועות בירוק",null,null,null,"גיליונות ד' עד י\"ב עליכם למלא רק עמודות הצבועות בכתום",null,"וורוד"]
[null,"מספר האנשים שעבורם מיועד הפרויקט : ",{"$f":"'ג. שאלון למילוי מגיש הבקשה'!D42","v":0},null,null,null,"אין לגעת בתאים האחרים- תאים אלו יהיו נעולים",null,null,null,"אין לגעת בתאים האחרים- תאים אלו יהיו נעולים"]
[null,"תקן",null,null,null,null,"בקשת הגוף ",null,null,null,"דיווח לתשלום לאחר ביצוע"]
[null,"פריטים","כמות תקן","עלות ליחידה כולל מע\"מ","סך עלות  כולל מע\"מ",null,"כמות מבוקשת ","תקציב מבוקש ","הערות הגוף",null,"הפריט שנרכש","מס' חשבונית מס","תאריך חשבונית מס","סכום כולל מע\"מ"]
[null,"ציוד כללי לחדר פיזיותרפיה"]
[null,"בובט מיטת טיפול",1,6500,{"$f":"D8*C8","v":6500},null,null,{"$f":"G8*D8","v":0}]
[null,"כסא מטפל",1,760,760,null,null,0]
[null,"סולם שבדי ותוספות",1,2500,2500,null,null,0]
[null,"אחות אילמת",1,450,450,null,null,0]
[null,"מקבילים",1,4500,4500,null,null,0]
[null,"ארון איחסון",1,3000,3000,null,null,0]
[null,"מחשוב",1,5000,5000,null,null,0]
[null,"סה\"כ ציוד לחדר פיזיותרפיה כולל מע\"מ",null,null,{"$f":"SUM(E8:E14)","v":22710},null,null,{"$f":"SUM(H8:H14)","v":0},{"$f":"B15","v":"סה\"כ ציוד לחדר פיזיותרפיה כולל מע\"מ"},null,{"$f":"B15","v":"סה\"כ ציוד לחדר פיזיותרפיה כולל מע\"מ"},null,null,{"$f":"SUM(N8:N14)","v":0}]
[null,"הושבת מיוחדת"]
[null,"כיסא אקטיבי מיוחד קטן/בינוני",1,14500,14500,null,null,0]
[null,"כיסא אקטיבי מיוחד גדול",1,17550,17550,null,null,0]
[null,"סה\"כ  הושבה מיוחדת כולל מע\"מ",null,null,{"$f":"SUM(E17:E18)","v":32050},null,null,{"$f":"SUM(H17:H18)","v":0},{"$f":"B19","v":"סה\"כ  הושבה מיוחדת כולל מע\"מ"},null,{"$f":"B19","v":"סה\"כ  הושבה מיוחדת כולל מע\"מ"},null,null,{"$f":"SUM(N17:N18)","v":0}]
[null,"עמידונים "]
[null,"עמידון קידמי כולל תמיכות",1,16000,16000,null,null,0]
[null,"עמידון אחורי כולל תמיכות",1,16000,16000,null,null,0]
[null,"מיטת טיל גדולה",1,15000,15000,null,null,0]
[null,"עמידון גדול כולל תמיכות מרובות ",1,24000,24000,null,null,0]
[null,"ישיבה לעמידה עם תמיכות מרובות",1,46000,46000,null,null,0]
[null,"סה\"כ עלות עמודונים כולל מע\"מ",null,null,{"$f":"SUM(E21:E25)","v":117000},null,null,{"$f":"SUM(H21:H25)","v":0},{"$f":"B26","v":"סה\"כ עלות עמודונים כולל מע\"מ"},null,{"$f":"B26","v":"סה\"כ עלות עמודונים כולל מע\"מ"},null,null,{"$f":"SUM(N21:N25)","v":0},null,null,null,null,null,null,null,null,null,null,null,null,null,null,null,null,null,null,null,null,null,null,null,null,null,null,null,null,null,null,null,null,null,null,null,null,null,null,null,null,null,null,null,null,null,null,null,null,null,null,null,null,null,null,null,null,null,null,null,null,null,null,null,null,null,null,null,null,null,null,null,null,null,null,null,null,null,null,null,null,null,null,null,null,null,null,null,null,null,null,null,null,null,null,null,null,null,null,null,null,null,null,null,null,null,null,null,null,null,null,null,null,null,null,null,null,null,null,null,null,null,null,null,null,null,null,null,null,null,null,null,null,null,null,null,null,null,null,null,null,null,null,null,null,null,null,null,null,null,null,null,null,null,null,null,null,null,null,null,null,null,null,null,null,null,null,null,null,null,null,null,null,null,null,null,null,null,null,null,null,null,null,null,null,null,null,null,null,null,null,null,null,null,null,null,null,null,null,null,null,null,null,null,null,null,null,null,null,null,null,null,null,null,null,null,null,null,null,null,null,null,null,null,null,null,null,null,null,null,null,null,null,null,null,null,null,null,null,null,null,null,null,null,null,null,null,null,null,null,null,null,null,null,null,null,null,null,null,null,null,null,null,null,null,null,null,null,null,null,null,null,null,null,null,null,null,null,null,null,null,null,null,null,null,null,null,null,null,null,null,null,null,null,null,null,null,null,null,null,null,null,null,null,null,null,null,null,null,null,null,null,null,null,null,null,null,null,null,null,null,null,null,null,null,null,null,null,null,null,null,null,null,null,null,null,null,null,null,null,null,null,null,null,null,null,null,null,null,null,null,null,null,null,null,null,null,null,null,null,null,null,null,null,null,null,null,null,null,null,null,null,null,null,null,null,null,null,null,null,null,null,null,null,null,null,null,null,null,null,null,null,null,null,null,null,null,null,null,null,null,null,null,null,null,null,null,null,null,null,null,null,null,null,null,null,null,null,null,null,null,null,null,null,null,null,null,null,null,null,null,null,null,null,null,null,null,null,null,null,null,null,null,null,null,null,null,null,null,null,null,null,null,null,null,null,null,null,null,null,null,null,null,null,null,null,null,null,null,null,null,null,null,null,null,null,null,null,null,null,null,null,null,null,null,null,null,null,null,null,null,null,null,null,null,null,null,null,null,null,null,null,null,null,null,null,null,null,null,null,null,null,null,null,null,null,null,null,null,null,null,null,null,null,null,null,null,null,null,null,null,null,null,null,null,null,null,null,null,null,null,null,null,null,null,null,null,null,null,null,null,null,null,null,null,null,null,null,null,null,null,null,null,null,null,null,null,null,null,null,null,null,null,null,null,null,null,null,null,null,null,null,null,null,null,null,null,null,null,null,null,null,null,null,null,null,null,null,null,null,null,null,null,null,null,null,null,null,null,null,null,null,null,null,null,null,null,null,null,null,null,null,null,null,null,null,null,null,null,null,null,null,null,null,null,null,null,null,null,null,null,null,null,null,null,null,null,null,null,null,null,null,null,null,null,null,null,null,null,null,null,null,null,null,null,null,null,null,null,null,null,null,null,null,null,null,null,null,null,null,null,null,null,null,null,null,null,null,null,null,null,null,null,null,null,null,null,null,null,null,null,null,null,null,null,null,null,null,null,null,null,null,null,null,null,null,null,null,null,null,null,null,null,null,null,null,null,null,null,null,null,null,null,null,null,null,null,null,null,null,null,null,null,null,null,null,null,null,null,null,null,null,null,null,null,null,null,null,null,null,null,null,null,null,null,null,null,null,null,null,null,null,null,null,null,null,null,null,null,null,null,null,null,null,null,null,null,null,null,null,null,null,null,null,null,null,null,null,null,null,null,null,null,null,null,null,null,null,null,null,null,null,null,null,null,null,null,null,null,null,null,null,null,null,null,null,null,null,null,null,null,null,null,null,null,null,null,null,null,null,null,null,null,null,null,null,null,null,null,null,null,null,null,null,null,null,null,null,null,null,null,null,null,null,null,null,null,null,null,null,null,null,null,null,null,null,null,null,null,null,null,null,null,null,null,null,null,null,null,null,null,null,null,null,null,null,null,null,null,null,null,null,null,null,null,null,null,null,null,null,null,null,null,null,null,null,null,null,null,null,null,null,null,null,null,null,null,null,null,null,null,null,null,null,null,null,null,null,null,null,null,null,null,null,null,null,null,null,null,null,null,null,null,null,null,null,null,null,null,null,null,null,null,null,null,null,null,null,null,null,null,null,null,null,null,null,null,null,null,null,null,null,null,null,null,null,null,null,null,null,null,null,null,null,null,null,null,null,null,null,null,null,null,null,null,null,null,null,null,null,null,null,null,null,null,null,null,null,null,null,null,null,null,null,null,null,null,null,null,null,null,null,null,null,null,null,null,null,null,null,null,null,null,null,null,null,null,null,null,null,null,null,null,null,null,null,null,null,null,null,null,null,null,null,null,null,null,null,null,null,null,null,null,null,null,null,null,null,null,null,null,null,null,null,null,null,null,null,null,null,null,null,null,null,null,null,null,null,null,null,null,null,null,null,null,null,null,null,null,null,null,null,null,null,null,null,null,null,null,null,null,null,null,null,null,null,null,null,null,null,null,null,null,null,null,null,null,null,null,null,null,null,null,null,null,null,null,null,null,null,null,null,null,null,null,null,null,null,null,null,null,null,null,null,null,null,null,null,null,null,null,null,null,null,null,null,null,null,null,null,null,null,null,null,null,null,null,null,null,null,null,null,null,null,null,null,null,null,null,null,null,null,null,null,null,null,null,null,null,null,null,null,null,null,null,null,null,null,null,null,null,null,null,null,null,null,null,null,null,null,null,null,null,null,null,null,null,null,null,null,null,null,null,null,null,null,null,null,null,null,null,null,null,null,null,null,null,null,null,null,null,null,null,null,null,null,null,null,null,null,null,null,null,null,null,null,null,null,null,null,null,null,null,null,null,null,null,null,null,null,null,null,null,null,null,null,null,null,null,null,null,null,null,null,null,null,null,null,null,null,null,null,null,null,null,null,null,null,null,null,null,null,null,null,null,null,null,null,null,null,null,null,null,null,null,null,null,null,null,null,null,null,null,null,null,null,null,null,null,null,null,null,null,null,null,null,null,null,null,null,null,null,null,null,null,null,null,null,null,null,null,null,null,null,null,null,null,null,null,null,null,null,null,null,null,null,null,null,null,null,null,null,null,null,null,null,null,null,null,null,null,null,null,null,null,null,null,null,null,null,null,null,null,null,null,null,null,null,null,null,null,null,null,null,null,null,null,null,null,null,null,null,null,null,null,null,null,null,null,null,null,null,null,null,null,null,null,null,null,null,null,null,null,null,null,null,null,null,null,null,null,null,null,null,null,null,null,null,null,null,null,null,null,null,null,null,null,null,null,null,null,null,null,null,null,null,null,null,null,null,null,null,null,null,null,null,null,null,null,null,null,null,null,null,null,null,null,null,null,null,null,null,null,null,null,null,null,null,null,null,null,null,null,null,null,null,null,null,null,null,null,null,null,null,null,null,null,null,null,null,null,null,null,null,null,null,null,null,null,null,null,null,null,null,null,null,null,null,null,null,null,null,null,null,null,null,null,null,null,null,null,null,null,null,null,null,null,null,null,null,null,null,null,null,null,null,null,null,null,null,null,null,null,null,null,null,null,null,null,null,null,null,null,null,null,null,null,null,null,null,null,null,null,null,null,null,null,null,null,null,null,null,null,null,null,null,null,null,null,null,null,null,null,null,null,null,null,null,null,null,null,null,null,null,null,null,null,null,null,null,null,null,null,null,null,null,null,null,null,null,null,null,null,null,null,null,null,null,null,null,null,null,null,null,null,null,null,null,null,null,null,null,null,null,null,null,null,null,null,null,null,null,null,null,null,null,null,null,null,null,null,null,null,null,null,null,null,null,null,null,null,null,null,null,null,null,null,null,null,null,null,null,null,null,null,null,null,null,null,null,null,null,null,null,null,null,null,null,null,null,null,null,null,null,null,null,null,null,null,null,null,null,null,null,null,null,null,null,null,null,null,null,null,null,null,null,null,null,null,null,null,null,null,null,null,null,null,null,null,null,null,null,null,null,null,null,null,null,null,null,null,null,null,null,null,null,null,null,null,null,null,null,null,null,null,null,null,null,null,null,null,null,null,null,null,null,null,null,null,null,null,null,null,null,null,null,null,null,null,null,null,null,null,null,null,null,null,null,null,null,null,null,null,null,null,null,null,null,null,null,null,null,null,null,null,null,null,null,null,null,null,null,null,null,null,null,null,null,null,null,null,null,null,null,null,null,null,null,null,null,null,null,null,null,null,null,null,null,null,null,null,null,null,null,null,null,null,null,null,null,null,null,null,null,null,null,null,null,null,null,null,null,null,null,null,null,null,null,null,null,null,null,null,null,null,null,null,null,null,null,null,null,null,null,null,null,null,null,null,null,null,null,null,null,null,null,null,null,null,null,null,null,null,null,null,null,null,null,null,null,null,null,null,null,null,null,null,null,null,null,null,null,null,null,null,null,null,null,null,null,null,null,null,null,null,null,null,null,null,null,null,null,null,null,null,null,null,null,null,null,null,null,null,null,null,null,null,null,null,null,null,null,null,null,null,null,null,null,null,null,null,null,null,null,null,null,null,null,null,null,null,null,null,null,null,null,null,null,null,null,null,null,null,null,null,null,null,null,null,null,null,null,null,null,null,null,null,null,null,null,null,null,null,null,null,null,null,null,null,null,null,null,null,null,null,null,null,null,null,null,null,null,null,null,null,null,null,null,null,null,null,null,null,null,null,null,null,null,null,null,null,null,null,null,null,null,null,null,null,null,null,null,null,null,null,null,null,null,null,null,null,null,null,null,null,null,null,null,null,null,null,null,null,null,null,null,null,null,null,null,null,null,null,null,null,null,null,null,null,null,null,null,null,null,null,null,null,null,null,null,null,null,null,null,null,null,null,null,null,null,null,null,null,null,null,null,null,null,null,null,null,null,null,null,null,null,null,null,null,null,null,null,null,null,null,null,null,null,null,null,null,null,null,null,null,null,null,null,null,null,null,null,null,null,null,null,null,null,null,null,null,null,null,null,null,null,null,null,null,null,null,null,null,null,null,null,null,null,null,null,null,null,null,null,null,null,null,null,null,null,null,null,null,null,null,null,null,null,null,null,null,null,null,null,null,null,null,null,null,null,null,null,null,null,null,null,null,null,null,null,null,null,null,null,null,null,null,null,null,null,null,null,null,null,null,null,null,null,null,null,null,null,null,null,null,null,null,null,null,null,null,null,null,null,null,null,null,null,null,null,null,null,null,null,null,null,null,null,null,null,null,null,null,null,null,null,null,null,null,null,null,null,null,null,null,null,null,null,null,null,null,null,null,null,null,null,null,null,null,null,null,null,null,null,null,null,null,null,null,null,null,null,null,null,null,null,null,null,null,null,null,null,null,null,null,null,null,null,null,null,null,null,null,null,null,null,null,null,null,null,null,null,null,null,null,null,null,null,null,null,null,null,null,null,null,null,null,null,null,null,null,null,null,null,null,null,null,null,null,null,null,null,null,null,null,null,null,null,null,null,null,null,null,null,null,null,null,null,null,null,null,null,null,null,null,null,null,null,null,null,null,null,null,null,null,null,null,null,null,null,null,null,null,null,null,null,null,null,null,null,null,null,null,null,null,null,null,null,null,null,null,null,null,null,null,null,null,null,null,null,null,null,null,null,null,null,null,null,null,null,null,null,null,null,null,null,null,null,null,null,null,null,null,null,null,null,null,null,null,null,null,null,null,null,null,null,null,null,null,null,null,null,null,null,null,null,null,null,null,null,null,null,null,null,null,null,null,null,null,null,null,null,null,null,null,null,null,null,null,null,null,null,null,null,null,null,null,null,null,null,null,null,null,null,null,null,null,null,null,null,null,null,null,null,null,null,null,null,null,null,null,null,null,null,null,null,null,null,null,null,null,null,null,null,null,null,null,null,null,null,null,null,null,null,null,null,null,null,null,null,null,null,null,null,null,null,null,null,null,null,null,null,null,null,null,null,null,null,null,null,null,null,null,null,null,null,null,null,null,null,null,null,null,null,null,null,null,null,null,null,null,null,null,null,null,null,null,null,null,null,null,null,null,null,null,null,null,null,null,null,null,null,null,null,null,null,null,null,null,null,null,null,null,null,null,null,null,null,null,null,null,null,null,null,null,null,null,null,null,null,null,null,null,null,null,null,null,null,null,null,null,null,null,null,null,null,null,null,null,null,null,null,null,null,null,null,null,null,null,null,null,null,null,null,null,null,null,null,null,null,null,null,null,null,null,null,null,null,null,null,null,null,null,null,null,null,null,null,null,null,null,null,null,null,null,null,null,null,null,null,null,null,null,null,null,null,null,null,null,null,null,null,null,null,null,null,null,null,null,null,null,null,null,null,null,null,null,null,null,null,null,null,null,null,null,null,null,null,null,null,null,null,null,null,null,null,null,null,null,null,null,null,null,null,null,null,null,null,null,null,null,null,null,null,null,null,null,null,null,null,null,null,null,null,null,null,null,null,null,null,null,null,null,null,null,null,null,null,null,null,null,null,null,null,null,null,null,null,null,null,null,null,null,null,null,null,null,null,null,null,null,null,null,null,null,null,null,null,null,null,null,null,null,null,null,null,null,null,null,null,null,null,null,null,null,null,null,null,null,null,null,null,null,null,null,null,null,null,null,null,null,null,null,null,null,null,null,null,null,null,null,null,null,null,null,null,null,null,null,null,null,null,null,null,null,null,null,null,null,null,null,null,null,null,null,null,null,null,null,null,null,null,null,null,null,null,null,null,null,null,null,null,null,null,null,null,null,null,null,null,null,null,null,null,null,null,null,null,null,null,null,null,null,null,null,null,null,null,null,null,null,null,null,null,null,null,null,null,null,null,null,null,null,null,null,null,null,null,null,null,null,null,null,null,null,null,null,null,null,null,null,null,null,null,null,null,null,null,null,null,null,null,null,null,null,null,null,null,null,null,null,null,null,null,null,null,null,null,null,null,null,null,null,null,null,null,null,null,null,null,null,null,null,null,null,null,null,null,null,null,null,null,null,null,null,null,null,null,null,null,null,null,null,null,null,null,null,null,null,null,null,null,null,null,null,null,null,null,null,null,null,null,null,null,null,null,null,null,null,null,null,null,null,null,null,null,null,null,null,null,null,null,null,null,null,null,null,null,null,null,null,null,null,null,null,null,null,null,null,null,null,null,null,null,null,null,null,null,null,null,null,null,null,null,null,null,null,null,null,null,null,null,null,null,null,null,null,null,null,null,null,null,null,null,null,null,null,null,null,null,null,null,null,null,null,null,null,null,null,null,null,null,null,null,null,null,null,null,null,null,null,null,null,null,null,null,null,null,null,null,null,null,null,null,null,null,null,null,null,null,null,null,null,null,null,null,null,null,null,null,null,null,null,null,null,null,null,null,null,null,null,null,null,null,null,null,null,null,null,null,null,null,null,null,null,null,null,null,null,null,null,null,null,null,null,null,null,null,null,null,null,null,null,null,null,null,null,null,null,null,null,null,null,null,null,null,null,null,null,null,null,null,null,null,null,null,null,null,null,null,null,null,null,null,null,null,null,null,null,null,null,null,null,null,null,null,null,null,null,null,null,null,null,null,null,null,null,null,null,null,null,null,null,null,null,null,null,null,null,null,null,null,null,null,null,null,null,null,null,null,null,null,null,null,null,null,null,null,null,null,null,null,null,null,null,null,null,null,null,null,null,null,null,null,null,null,null,null,null,null,null,null,null,null,null,null,null,null,null,null,null,null,null,null,null,null,null,null,null,null,null,null,null,null,null,null,null,null,null,null,null,null,null,null,null,null,null,null,null,null,null,null,null,null,null,null,null,null,null,null,null,null,null,null,null,null,null,null,null,null,null,null,null,null,null,null,null,null,null,null,null,null,null,null,null,null,null,null,null,null,null,null,null,null,null,null,null,null,null,null,null,null,null,null,null,null,null,null,null,null,null,null,null,null,null,null,null,null,null,null,null,null,null,null,null,null,null,null,null,null,null,null,null,null,null,null,null,null,null,null,null,null,null,null,null,null,null,null,null,null,null,null,null,null,null,null,null,null,null,null,null,null,null,null,null,null,null,null,null,null,null,null,null,null,null,null,null,null,null,null,null,null,null,null,null,null,null,null,null,null,null,null,null,null,null,null,null,null,null,null,null,null,null,null,null,null,null,null,null,null,null,null,null,null,null,null,null,null,null,null,null,null,null,null,null,null,null,null,null,null,null,null,null,null,null,null,null,null,null,null,null,null,null,null,null,null,null,null,null,null,null,null,null,null,null,null,null,null,null,null,null,null,null,null,null,null,null,null,null,null,null,null,null,null,null,null,null,null,null,null,null,null,null,null,null,null,null,null,null,null,null,null,null,null,null,null,null,null,null,null,null,null,null,null,null,null,null,null,null,null,null,null,null,null,null,null,null,null,null,null,null,null,null,null,null,null,null,null,null,null,null,null,null,null,null,null,null,null,null,null,null,null,null,null,null,null,null,null,null,null,null,null,null,null,null,null,null,null,null,null,null,null,null,null,null,null,null,null,null,null,null,null,null,null,null,null,null,null,null,null,null,null,null,null,null,null,null,null,null,null,null,null,null,null,null,null,null,null,null,null,null,null,null,null,null,null,null,null,null,null,null,null,null,null,null,null,null,null,null,null,null,null,null,null,null,null,null,null,null,null,null,null,null,null,null,null,null,null,null,null,null,null,null,null,null,null,null,null,null,null,null,null,null,null,null,null,null,null,null,null,null,null,null,null,null,null,null,null,null,null,null,null,null,null,null,null,null,null,null,null,null,null,null,null,null,null,null,null,null,null,null,null,null,null,null,null,null,null,null,null,null,null,null,null,null,null,null,null,null,null,null,null,null,null,null,null,null,null,null,null,null,null,null,null,null,null,null,null,null,null,null,null,null,null,null,null,null,null,null,null,null,null,null,null,null,null,null,null,null,null,null,null,null,null,null,null,null,null,null,null,null,null,null,null,null,null,null,null,null,null,null,null,null,null,null,null,null,null,null,null,null,null,null,null,null,null,null,null,null,null,null,null,null,null,null,null,null,null,null,null,null,null,null,null,null,null,null,null,null,null,null,null,null,null,null,null,null,null,null,null,null,null,null,null,null,null,null,null,null,null,null,null,null,null,null,null,null,null,null,null,null,null,null,null,null,null,null,null,null,null,null,null,null,null,null,null,null,null,null,null,null,null,null,null,null,null,null,null,null,null,null,null,null,null,null,null,null,null,null,null,null,null,null,null,null,null,null,null,null,null,null,null,null,null,null,null,null,null,null,null,null,null,null,null,null,null,null,null,null,null,null,null,null,null,null,null,null,null,null,null,null,null,null,null,null,null,null,null,null,null,null,null,null,null,null,null,null,null,null,null,null,null,null,null,null,null,null,null,null,null,null,null,null,null,null,null,null,null,null,null,null,null,null,null,null,null,null,null,null,null,null,null,null,null,null,null,null,null,null,null,null,null,null,null,null,null,null,null,null,null,null,null,null,null,null,null,null,null,null,null,null,null,null,null,null,null,null,null,null,null,null,null,null,null,null,null,null,null,null,null,null,null,null,null,null,null,null,null,null,null,null,null,null,null,null,null,null,null,null,null,null,null,null,null,null,null,null,null,null,null,null,null,null,null,null,null,null,null,null,null,null,null,null,null,null,null,null,null,null,null,null,null,null,null,null,null,null,null,null,null,null,null,null,null,null,null,null,null,null,null,null,null,null,null,null,null,null,null,null,null,null,null,null,null,null,null,null,null,null,null,null,null,null,null,null,null,null,null,null,null,null,null,null,null,null,null,null,null,null,null,null,null,null,null,null,null,null,null,null,null,null,null,null,null,null,null,null,null,null,null,null,null,null,null,null,null,null,null,null,null,null,null,null,null,null,null,null,null,null,null,null,null,null,null,null,null,null,null,null,null,null,null,null,null,null,null,null,null,null,null,null,null,null,null,null,null,null,null,null,null,null,null,null,null,null,null,null,null,null,null,null,null,null,null,null,null,null,null,null,null,null,null,null,null,null,null,null,null,null,null,null,null,null,null,null,null,null,null,null,null,null,null,null,null,null,null,null,null,null,null,null,null,null,null,null,null,null,null,null,null,null,null,null,null,null,null,null,null,null,null,null,null,null,null,null,null,null,null,null,null,null,null,null,null,null,null,null,null,null,null,null,null,null,null,null,null,null,null,null,null,null,null,null,null,null,null,null,null,null,null,null,null,null,null,null,null,null,null,null,null,null,null,null,null,null,null,null,null,null,null,null,null,null,null,null,null,null,null,null,null,null,null,null,null,null,null,null,null,null,null,null,null,null,null,null,null,null,null,null,null,null,null,null,null,null,null,null,null,null,null,null,null,null,null,null,null,null,null,null,null,null,null,null,null,null,null,null,null,null,null,null,null,null,null,null,null,null,null,null,null,null,null,null,null,null,null,null,null,null,null,null,null,null,null,null,null,null,null,null,null,null,null,null,null,null,null,null,null,null,null,null,null,null,null,null,null,null,null,null,null,null,null,null,null,null,null,null,null,null,null,null,null,null,null,null,null,null,null,null,null,null,null,null,null,null,null,null,null,null,null,null,null,null,null,null,null,null,null,null,null,null,null,null,null,null,null,null,null,null,null,null,null,null,null,null,null,null,null,null,null,null,null,null,null,null,null,null,null,null,null,null,null,null,null,null,null,null,null,null,null,null,null,null,null,null,null,null,null,null,null,null,null,null,null,null,null,null,null,null,null,null,null,null,null,null,null,null,null,null,null,null,null,null,null,null,null,null,null,null,null,null,null,null,null,null,null,null,null,null,null,null,null,null,null,null,null,null,null,null,null,null,null,null,null,null,null,null,null,null,null,null,null,null,null,null,null,null,null,null,null,null,null,null,null,null,null,null,null,null,null,null,null,null,null,null,null,null,null,null,null,null,null,null,null,null,null,null,null,null,null,null,null,null,null,null,null,null,null,null,null,null,null,null,null,null,null,null,null,null,null,null,null,null,null,null,null,null,null,null,null,null,null,null,null,null,null,null,null,null,null,null,null,null,null,null,null,null,null,null,null,null,null,null,null,null,null,null,null,null,null,null,null,null,null,null,null,null,null,null,null,null,null,null,null,null,null,null,null,null,null,null,null,null,null,null,null,null,null,null,null,null,null,null,null,null,null,null,null,null,null,null,null,null,null,null,null,null,null,null,null,null,null,null,null,null,null,null,null,null,null,null,null,null,null,null,null,null,null,null,null,null,null,null,null,null,null,null,null,null,null,null,null,null,null,null,null,null,null,null,null,null,null,null,null,null,null,null,null,null,null,null,null,null,null,null,null,null,null,null,null,null,null,null,null,null,null,null,null,null,null,null,null,null,null,null,null,null,null,null,null,null,null,null,null,null,null,null,null,null,null,null,null,null,null,null,null,null,null,null,null,null,null,null,null,null,null,null,null,null,null,null,null,null,null,null,null,null,null,null,null,null,null,null,null,null,null,null,null,null,null,null,null,null,null,null,null,null,null,null,null,null,null,null,null,null,null,null,null,null,null,null,null,null,null,null,null,null,null,null,null,null,null,null,null,null,null,null,null,null,null,null,null,null,null,null,null,null,null,null,null,null,null,null,null,null,null,null,null,null,null,null,null,null,null,null,null,null,null,null,null,null,null,null,null,null,null,null,null,null,null,null,null,null,null,null,null,null,null,null,null,null,null,null,null,null,null,null,null,null,null,null,null,null,null,null,null,null,null,null,null,null,null,null,null,null,null,null,null,null,null,null,null,null,null,null,null,null,null,null,null,null,null,null,null,null,null,null,null,null,null,null,null,null,null,null,null,null,null,null,null,null,null,null,null,null,null,null,null,null,null,null,null,null,null,null,null,null,null,null,null,null,null,null,null,null,null,null,null,null,null,null,null,null,null,null,null,null,null,null,null,null,null,null,null,null,null,null,null,null,null,null,null,null,null,null,null,null,null,null,null,null,null,null,null,null,null,null,null,null,null,null,null,null,null,null,null,null,null,null,null,null,null,null,null,null,null,null,null,null,null,null,null,null,null,null,null,null,null,null,null,null,null,null,null,null,null,null,null,null,null,null,null,null,null,null,null,null,null,null,null,null,null,null,null,null,null,null,null,null,null,null,null,null,null,null,null,null,null,null,null,null,null,null,null,null,null,null,null,null,null,null,null,null,null,null,null,null,null,null,null,null,null,null,null,null,null,null,null,null,null,null,null,null,null,null,null,null,null,null,null,null,null,null,null,null,null,null,null,null,null,null,null,null,null,null,null,null,null,null,null,null,null,null,null,null,null,null,null,null,null,null,null,null,null,null,null,null,null,null,null,null,null,null,null,null,null,null,null,null,null,null,null,null,null,null,null,null,null,null,null,null,null,null,null,null,null,null,null,null,null,null,null,null,null,null,null,null,null,null,null,null,null,null,null,null,null,null,null,null,null,null,null,null,null,null,null,null,null,null,null,null,null,null,null,null,null,null,null,null,null,null,null,null,null,null,null,null,null,null,null,null,null,null,null,null,null,null,null,null,null,null,null,null,null,null,null,null,null,null,null,null,null,null,null,null,null,null,null,null,null,null,null,null,null,null,null,null,null,null,null,null,null,null,null,null,null,null,null,null,null,null,null,null,null,null,null,null,null,null,null,null,null,null,null,null,null,null,null,null,null,null,null,null,null,null,null,null,null,null,null,null,null,null,null,null,null,null,null,null,null,null,null,null,null,null,null,null,null,null,null,null,null,null,null,null,null,null,null,null,null,null,null,null,null,null,null,null,null,null,null,null,null,null,null,null,null,null,null,null,null,null,null,null,null,null,null,null,null,null,null,null,null,null,null,null,null,null,null,null,null,null,null,null,null,null,null,null,null,null,null,null,null,null,null,null,null,null,null,null,null,null,null,null,null,null,null,null,null,null,null,null,null,null,null,null,null,null,null,null,null,null,null,null,null,null,null,null,null,null,null,null,null,null,null,null,null,null,null,null,null,null,null,null,null,null,null,null,null,null,null,null,null,null,null,null,null,null,null,null,null,null,null,null,null,null,null,null,null,null,null,null,null,null,null,null,null,null,null,null,null,null,null,null,null,null,null,null,null,null,null,null,null,null,null,null,null,null,null,null,null,null,null,null,null,null,null,null,null,null,null,null,null,null,null,null,null,null,null,null,null,null,null,null,null,null,null,null,null,null,null,null,null,null,null,null,null,null,null,null,null,null,null,null,null,null,null,null,null,null,null,null,null,null,null,null,null,null,null,null,null,null,null,null,null,null,null,null,null,null,null,null,null,null,null,null,null,null,null,null,null,null,null,null,null,null,null,null,null,null,null,null,null,null,null,null,null,null,null,null,null,null,null,null,null,null,null,null,null,null,null,null,null,null,null,null,null,null,null,null,null,null,null,null,null,null,null,null,null,null,null,null,null,null,null,null,null,null,null,null,null,null,null,null,null,null,null,null,null,null,null,null,null,null,null,null,null,null,null,null,null,null,null,null,null,null,null,null,null,null,null,null,null,null,null,null,null,null,null,null,null,null,null,null,null,null,null,null,null,null,null,null,null,null,null,null,null,null,null,null,null,null,null,null,null,null,null,null,null,null,null,null,null,null,null,null,null,null,null,null,null,null,null,null,null,null,null,null,null,null,null,null,null,null,null,null,null,null,null,null,null,null,null,null,null,null,null,null,null,null,null,null,null,null,null,null,null,null,null,null,null,null,null,null,null,null,null,null,null,null,null,null,null,null,null,null,null,null,null,null,null,null,null,null,null,null,null,null,null,null,null,null,null,null,null,null,null,null,null,null,null,null,null,null,null,null,null,null,null,null,null,null,null,null,null,null,null,null,null,null,null,null,null,null,null,null,null,null,null,null,null,null,null,null,null,null,null,null,null,null,null,null,null,null,null,null,null,null,null,null,null,null,null,null,null,null,null,null,null,null,null,null,null,null,null,null,null,null,null,null,null,null,null,null,null,null,null,null,null,null,null,null,null,null,null,null,null,null,null,null,null,null,null,null,null,null,null,null,null,null,null,null,null,null,null,null,null,null,null,null,null,null,null,null,null,null,null,null,null,null,null,null,null,null,null,null,null,null,null,null,null,null,null,null,null,null,null,null,null,null,null,null,null,null,null,null,null,null,null,null,null,null,null,null,null,null,null,null,null,null,null,null,null,null,null,null,null,null,null,null,null,null,null,null,null,null,null,null,null,null,null,null,null,null,null,null,null,null,null,null,null,null,null,null,null,null,null,null,null,null,null,null,null,null,null,null,null,null,null,null,null,null,null,null,null,null,null,null,null,null,null,null,null,null,null,null,null,null,null,null,null,null,null,null,null,null,null,null,null,null,null,null,null,null,null,null,null,null,null,null,null,null,null,null,null,null,null,null,null,null,null,null,null,null,null,null,null,null,null,null,null,null,null,null,null,null,null,null,null,null,null,null,null,null,null,null,null,null,null,null,null,null,null,null,null,null,null,null,null,null,null,null,null,null,null,null,null,null,null,null,null,null,null,null,null,null,null,null,null,null,null,null,null,null,null,null,null,null,null,null,null,null,null,null,null,null,null,null,null,null,null,null,null,null,null,null,null,null,null,null,null,null,null,null,null,null,null,null,null,null,null,null,null,null,null,null,null,null,null,null,null,null,null,null,null,null,null,null,null,null,null,null,null,null,null,null,null,null,null,null,null,null,null,null,null,null,null,null,null,null,null,null,null,null,null,null,null,null,null,null,null,null,null,null,null,null,null,null,null,null,null,null,null,null,null,null,null,null,null,null,null,null,null,null,null,null,null,null,null,null,null,null,null,null,null,null,null,null,null,null,null,null,null,null,null,null,null,null,null,null,null,null,null,null,null,null,null,null,null,null,null,null,null,null,null,null,null,null,null,null,null,null,null,null,null,null,null,null,null,null,null,null,null,null,null,null,null,null,null,null,null,null,null,null,null,null,null,null,null,null,null,null,null,null,null,null,null,null,null,null,null,null,null,null,null,null,null,null,null,null,null,null,null,null,null,null,null,null,null,null,null,null,null,null,null,null,null,null,null,null,null,null,null,null,null,null,null,null,null,null,null,null,null,null,null,null,null,null,null,null,null,null,null,null,null,null,null,null,null,null,null,null,null,null,null,null,null,null,null,null,null,null,null,null,null,null,null,null,null,null,null,null,null,null,null,null,null,null,null,null,null,null,null,null,null,null,null,null,null,null,null,null,null,null,null,null,null,null,null,null,null,null,null,null,null,null,null,null,null,null,null,null,null,null,null,null,null,null,null,null,null,null,null,null,null,null,null,null,null,null,null,null,null,null,null,null,null,null,null,null,null,null,null,null,null,null,null,null,null,null,null,null,null,null,null,null,null,null,null,null,null,null,null,null,null,null,null,null,null,null,null,null,null,null,null,null,null,null,null,null,null,null,null,null,null,null,null,null,null,null,null,null,null,null,null,null,null,null,null,null,null,null,null,null,null,null,null,null,null,null,null,null,null,null,null,null,null,null,null,null,null,null,null,null,null,null,null,null,null,null,null,null,null,null,null,null,null,null,null,null,null,null,null,null,null,null,null,null,null,null,null,null,null,null,null,null,null,null,null,null,null,null,null,null,null,null,null,null,null,null,null,null,null,null,null,null,null,null,null,null,null,null,null,null,null,null,null,null,null,null,null,null,null,null,null,null,null,null,null,null,null,null,null,null,null,null,null,null,null,null,null,null,null,null,null,null,null,null,null,null,null,null,null,null,null,null,null,null,null,null,null,null,null,null,null,null,null,null,null,null,null,null,null,null,null,null,null,null,null,null,null,null,null,null,null,null,null,null,null,null,null,null,null,null,null,null,null,null,null,null,null,null,null,null,null,null,null,null,null,null,null,null,null,null,null,null,null,null,null,null,null,null,null,null,null,null,null,null,null,null,null,null,null,null,null,null,null,null,null,null,null,null,null,null,null,null,null,null,null,null,null,null,null,null,null,null,null,null,null,null,null,null,null,null,null,null,null,null,null,null,null,null,null,null,null,null,null,null,null,null,null,null,null,null,null,null,null,null,null,null,null,null,null,null,null,null,null,null,null,null,null,null,null,null,null,null,null,null,null,null,null,null,null,null,null,null,null,null,null,null,null,null,null,null,null,null,null,null,null,null,null,null,null,null,null,null,null,null,null,null,null,null,null,null,null,null,null,null,null,null,null,null,null,null,null,null,null,null,null,null,null,null,null,null,null,null,null,null,null,null,null,null,null,null,null,null,null,null,null,null,null,null,null,null,null,null,null,null,null,null,null,null,null,null,null,null,null,null,null,null,null,null,null,null,null,null,null,null,null,null,null,null,null,null,null,null,null,null,null,null,null,null,null,null,null,null,null,null,null,null,null,null,null,null,null,null,null,null,null,null,null,null,null,null,null,null,null,null,null,null,null,null,null,null,null,null,null,null,null,null,null,null,null,null,null,null,null,null,null,null,null,null,null,null,null,null,null,null,null,null,null,null,null,null,null,null,null,null,null,null,null,null,null,null,null,null,null,null,null,null,null,null,null,null,null,null,null,null,null,null,null,null,null,null,null,null,null,null,null,null,null,null,null,null,null,null,null,null,null,null,null,null,null,null,null,null,null,null,null,null,null,null,null,null,null,null,null,null,null,null,null,null,null,null,null,null,null,null,null,null,null,null,null,null,null,null,null,null,null,null,null,null,null,null,null,null,null,null,null,null,null,null,null,null,null,null,null,null,null,null,null,null,null,null,null,null,null,null,null,null,null,null,null,null,null,null,null,null,null,null,null,null,null,null,null,null,null,null,null,null,null,null,null,null,null,null,null,null,null,null,null,null,null,null,null,null,null,null,null,null,null,null,null,null,null,null,null,null,null,null,null,null,null,null,null,null,null,null,null,null,null,null,null,null,null,null,null,null,null,null,null,null,null,null,null,null,null,null,null,null,null,null,null,null,null,null,null,null,null,null,null,null,null,null,null,null,null,null,null,null,null,null,null,null,null,null,null,null,null,null,null,null,null,null,null,null,null,null,null,null,null,null,null,null,null,null,null,null,null,null,null,null,null,null,null,null,null,null,null,null,null,null,null,null,null,null,null,null,null,null,null,null,null,null,null,null,null,null,null,null,null,null,null,null,null,null,null,null,null,null,null,null,null,null,null,null,null,null,null,null,null,null,null,null,null,null,null,null,null,null,null,null,null,null,null,null,null,null,null,null,null,null,null,null,null,null,null,null,null,null,null,null,null,null,null,null,null,null,null,null,null,null,null,null,null,null,null,null,null,null,null,null,null,null,null,null,null,null,null,null,null,null,null,null,null,null,null,null,null,null,null,null,null,null,null,null,null,null,null,null,null,null,null,null,null,null,null,null,null,null,null,null,null,null,null,null,null,null,null,null,null,null,null,null,null,null,null,null,null,null,null,null,null,null,null,null,null,null,null,null,null,null,null,null,null,null,null,null,null,null,null,null,null,null,null,null,null,null,null,null,null,null,null,null,null,null,null,null,null,null,null,null,null,null,null,null,null,null,null,null,null,null,null,null,null,null,null,null,null,null,null,null,null,null,null,null,null,null,null,null,null,null,null,null,null,null,null,null,null,null,null,null,null,null,null,null,null,null,null,null,null,null,null,null,null,null,null,null,null,null,null,null,null,null,null,null,null,null,null,null,null,null,null,null,null,null,null,null,null,null,null,null,null,null,null,null,null,null,null,null,null,null,null,null,null,null,null,null,null,null,null,null,null,null,null,null,null,null,null,null,null,null,null,null,null,null,null,null,null,null,null,null,null,null,null,null,null,null,null,null,null,null,null,null,null,null,null,null,null,null,null,null,null,null,null,null,null,null,null,null,null,null,null,null,null,null,null,null,null,null,null,null,null,null,null,null,null,null,null,null,null,null,null,null,null,null,null,null,null,null,null,null,null,null,null,null,null,null,null,null,null,null,null,null,null,null,null,null,null,null,null,null,null,null,null,null,null,null,null,null,null,null,null,null,null,null,null,null,null,null,null,null,null,null,null,null,null,null,null,null,null,null,null,null,null,null,null,null,null,null,null,null,null,null,null,null,null,null,null,null,null,null,null,null,null,null,null,null,null,null,null,null,null,null,null,null,null,null,null,null,null,null,null,null,null,null,null,null,null,null,null,null,null,null,null,null,null,null,null,null,null,null,null,null,null,null,null,null,null,null,null,null,null,null,null,null,null,null,null,null,null,null,null,null,null,null,null,null,null,null,null,null,null,null,null,null,null,null,null,null,null,null,null,null,null,null,null,null,null,null,null,null,null,null,null,null,null,null,null,null,null,null,null,null,null,null,null,null,null,null,null,null,null,null,null,null,null,null,null,null,null,null,null,null,null,null,null,null,null,null,null,null,null,null,null,null,null,null,null,null,null,null,null,null,null,null,null,null,null,null,null,null,null,null,null,null,null,null,null,null,null,null,null,null,null,null,null,null,null,null,null,null,null,null,null,null,null,null,null,null,null,null,null,null,null,null,null,null,null,null,null,null,null,null,null,null,null,null,null,null,null,null,null,null,null,null,null,null,null,null,null,null,null,null,null,null,null,null,null,null,null,null,null,null,null,null,null,null,null,null,null,null,null,null,null,null,null,null,null,null,null,null,null,null,null,null,null,null,null,null,null,null,null,null,null,null,null,null,null,null,null,null,null,null,null,null,null,null,null,null,null,null,null,null,null,null,null,null,null,null,null,null,null,null,null,null,null,null,null,null,null,null,null,null,null,null,null,null,null,null,null,null,null,null,null,null,null,null,null,null,null,null,null,null,null,null,null,null,null,null,null,null,null,null,null,null,null,null,null,null,null,null,null,null,null,null,null,null,null,null,null,null,null,null,null,null,null,null,null,null,null,null,null,null,null,null,null,null,null,null,null,null,null,null,null,null,null,null,null,null,null,null,null,null,null,null,null,null,null,null,null,null,null,null,null,null,null,null,null,null,null,null,null,null,null,null,null,null,null,null,null,null,null,null,null,null,null,null,null,null,null,null,null,null,null,null,null,null,null,null,null,null,null,null,null,null,null,null,null,null,null,null,null,null,null,null,null,null,null,null,null,null,null,null,null,null,null,null,null,null,null,null,null,null,null,null,null,null,null,null,null,null,null,null,null,null,null,null,null,null,null,null,null,null,null,null,null,null,null,null,null,null,null,null,null,null,null,null,null,null,null,null,null,null,null,null,null,null,null,null,null,null,null,null,null,null,null,null,null,null,null,null,null,null,null,null,null,null,null,null,null,null,null,null,null,null,null,null,null,null,null,null,null,null,null,null,null,null,null,null,null,null,null,null,null,null,null,null,null,null,null,null,null,null,null,null,null,null,null,null,null,null,null,null,null,null,null,null,null,null,null,null,null,null,null,null,null,null,null,null,null,null,null,null,null,null,null,null,null,null,null,null,null,null,null,null,null,null,null,null,null,null,null,null,null,null,null,null,null,null,null,null,null,null,null,null,null,null,null,null,null,null,null,null,null,null,null,null,null,null,null,null,null,null,null,null,null,null,null,null,null,null,null,null,null,null,null,null,null,null,null,null,null,null,null,null,null,null,null,null,null,null,null,null,null,null,null,null,null,null,null,null,null,null,null,null,null,null,null,null,null,null,null,null,null,null,null,null,null,null,null,null,null,null,null,null,null,null,null,null,null,null,null,null,null,null,null,null,null,null,null,null,null,null,null,null,null,null,null,null,null,null,null,null,null,null,null,null,null,null,null,null,null,null,null,null,null,null,null,null,null,null,null,null,null,null,null,null,null,null,null,null,null,null,null,null,null,null,null,null,null,null,null,null,null,null,null,null,null,null,null,null,null,null,null,null,null,null,null,null,null,null,null,null,null,null,null,null,null,null,null,null,null,null,null,null,null,null,null,null,null,null,null,null,null,null,null,null,null,null,null,null,null,null,null,null,null,null,null,null,null,null,null,null,null,null,null,null,null,null,null,null,null,null,null,null,null,null,null,null,null,null,null,null,null,null,null,null,null,null,null,null,null,null,null,null,null,null,null,null,null,null,null,null,null,null,null,null,null,null,null,null,null,null,null,null,null,null,null,null,null,null,null,null,null,null,null,null,null,null,null,null,null,null,null,null,null,null,null,null,null,null,null,null,null,null,null,null,null,null,null,null,null,null,null,null,null,null,null,null,null,null,null,null,null,null,null,null,null,null,null,null,null,null,null,null,null,null,null,null,null,null,null,null,null,null,null,null,null,null,null,null,null,null,null,null,null,null,null,null,null,null,null,null,null,null,null,null,null,null,null,null,null,null,null,null,null,null,null,null,null,null,null,null,null,null,null,null,null,null,null,null,null,null,null,null,null,null,null,null,null,null,null,null,null,null,null,null,null,null,null,null,null,null,null,null,null,null,null,null,null,null,null,null,null,null,null,null,null,null,null,null,null,null,null,null,null,null,null,null,null,null,null,null,null,null,null,null,null,null,null,null,null,null,null,null,null,null,null,null,null,null,null,null,null,null,null,null,null,null,null,null,null,null,null,null,null,null,null,null,null,null,null,null,null,null,null,null,null,null,null,null,null,null,null,null,null,null,null,null,null,null,null,null,null,null,null,null,null,null,null,null,null,null,null,null,null,null,null,null,null,null,null,null,null,null,null,null,null,null,null,null,null,null,null,null,null,null,null,null,null,null,null,null,null,null,null,null,null,null,null,null,null,null,null,null,null,null,null,null,null,null,null,null,null,null,null,null,null,null,null,null,null,null,null,null,null,null,null,null,null,null,null,null,null,null,null,null,null,null,null,null,null,null,null,null,null,null,null,null,null,null,null,null,null,null,null,null,null,null,null,null,null,null,null,null,null,null,null,null,null,null,null,null,null,null,null,null,null,null,null,null,null,null,null,null,null,null,null,null,null,null,null,null,null,null,null,null,null,null,null,null,null,null,null,null,null,null,null,null,null,null,null,null,null,null,null,null,null,null,null,null,null,null,null,null,null,null,null,null,null,null,null,null,null,null,null,null,null,null,null,null,null,null,null,null,null,null,null,null,null,null,null,null,null,null,null,null,null,null,null,null,null,null,null,null,null,null,null,null,null,null,null,null,null,null,null,null,null,null,null,null,null,null,null,null,null,null,null,null,null,null,null,null,null,null,null,null,null,null,null,null,null,null,null,null,null,null,null,null,null,null,null,null,null,null,null,null,null,null,null,null,null,null,null,null,null,null,null,null,null,null,null,null,null,null,null,null,null,null,null,null,null,null,null,null,null,null,null,null,null,null,null,null,null,null,null,null,null,null,null,null,null,null,null,null,null,null,null,null,null,null,null,null,null,null,null,null,null,null,null,null,null,null,null,null,null,null,null,null,null,null,null,null,null,null,null,null,null,null,null,null,null,null,null,null,null,null,null,null,null,null,null,null,null,null,null,null,null,null,null,null,null,null,null,null,null,null,null,null,null,null,null,null,null,null,null,null,null,null,null,null,null,null,null,null,null,null,null,null,null,null,null,null,null,null,null,null,null,null,null,null,null,null,null,null,null,null,null,null,null,null,null,null,null,null,null,null,null,null,null,null,null,null,null,null,null,null,null,null,null,null,null,null,null,null,null,null,null,null,null,null,null,null,null,null,null,null,null,null,null,null,null,null,null,null,null,null,null,null,null,null,null,null,null,null,null,null,null,null,null,null,null,null,null,null,null,null,null,null,null,null,null,null,null,null,null,null,null,null,null,null,null,null,null,null,null,null,null,null,null,null,null,null,null,null,null,null,null,null,null,null,null,null,null,null,null,null,null,null,null,null,null,null,null,null,null,null,null,null,null,null,null,null,null,null,null,null,null,null,null,null,null,null,null,null,null,null,null,null,null,null,null,null,null,null,null,null,null,null,null,null,null,null,null,null,null,null,null,null,null,null,null,null,null,null,null,null,null,null,null,null,null,null,null,null,null,null,null,null,null,null,null,null,null,null,null,null,null,null,null,null,null,null,null,null,null,null,null,null,null,null,null,null,null,null,null,null,null,null,null,null,null,null,null,null,null,null,null,null,null,null,null,null,null,null,null,null,null,null,null,null,null,null,null,null,null,null,null,null,null,null,null,null,null,null,null,null,null,null,null,null,null,null,null,null,null,null,null,null,null,null,null,null,null,null,null,null,null,null,null,null,null,null,null,null,null,null,null,null,null,null,null,null,null,null,null,null,null,null,null,null,null,null,null,null,null,null,null,null,null,null,null,null,null,null,null,null,null,null,null,null,null,null,null,null,null,null,null,null,null,null,null,null,null,null,null,null,null,null,null,null,null,null,null,null,null,null,null,null,null,null,null,null,null,null,null,null,null,null,null,null,null,null,null,null,null,null,null,null,null,null,null,null,null,null,null,null,null,null,null,null,null,null,null,null,null,null,null,null,null,null,null,null,null,null,null,null,null,null,null,null,null,null,null,null,null,null,null,null,null,null,null,null,null,null,null,null,null,null,null,null,null,null,null,null,null,null,null,null,null,null,null,null,null,null,null,null,null,null,null,null,null,null,null,null,null,null,null,null,null,null,null,null,null,null,null,null,null,null,null,null,null,null,null,null,null,null,null,null,null,null,null,null,null,null,null,null,null,null,null,null,null,null,null,null,null,null,null,null,null,null,null,null,null,null,null,null,null,null,null,null,null,null,null,null,null,null,null,null,null,null,null,null,null,null,null,null,null,null,null,null,null,null,null,null,null,null,null,null,null,null,null,null,null,null,null,null,null,null,null,null,null,null,null,null,null,null,null,null,null,null,null,null,null,null,null,null,null,null,null,null,null,null,null,null,null,null,null,null,null,null,null,null,null,null,null,null,null,null,null,null,null,null,null,null,null,null,null,null,null,null,null,null,null,null,null,null,null,null,null,null,null,null,null,null,null,null,null,null,null,null,null,null,null,null,null,null,null,null,null,null,null,null,null,null,null,null,null,null,null,null,null,null,null,null,null,null,null,null,null,null,null,null,null,null,null,null,null,null,null,null,null,null,null,null,null,null,null,null,null,null,null,null,null,null,null,null,null,null,null,null,null,null,null,null,null,null,null,null,null,null,null,null,null,null,null,null,null,null,null,null,null,null,null,null,null,null,null,null,null,null,null,null,null,null,null,null,null,null,null,null,null,null,null,null,null,null,null,null,null,null,null,null,null,null,null,null,null,null,null,null,null,null,null,null,null,null,null,null,null,null,null,null,null,null,null,null,null,null,null,null,null,null,null,null,null,null,null,null,null,null,null,null,null,null,null,null,null,null,null,null,null,null,null,null,null,null,null,null,null,null,null,null,null,null,null,null,null,null,null,null,null,null,null,null,null,null,null,null,null,null,null,null,null,null,null,null,null,null,null,null,null,null,null,null,null,null,null,null,null,null,null,null,null,null,null,null,null,null,null,null,null,null,null,null,null,null,null,null,null,null,null,null,null,null,null,null,null,null,null,null,null,null,null,null,null,null,null,null,null,null,null,null,null,null,null,null,null,null,null,null,null,null,null,null,null,null,null,null,null,null,null,null,null,null,null,null,null,null,null,null,null,null,null,null,null,null,null,null,null,null,null,null,null,null,null,null,null,null,null,null,null,null,null,null,null,null,null,null,null,null,null,null,null,null,null,null,null,null,null,null,null,null,null,null,null,null,null,null,null,null,null,null,null,null,null,null,null,null,null,null,null,null,null,null,null,null,null,null,null,null,null,null,null,null,null,null,null,null,null,null,null,null,null,null,null,null,null,null,null,null,null,null,null,null,null,null,null,null,null,null,null,null,null,null,null,null,null,null,null,null,null,null,null,null,null,null,null,null,null,null,null,null,null,null,null,null,null,null,null,null,null,null,null,null,null,null,null,null,null,null,null,null,null,null,null,null,null,null,null,null,null,null,null,null,null,null,null,null,null,null,null,null,null,null,null,null,null,null,null,null,null,null,null,null,null,null,null,null,null,null,null,null,null,null,null,null,null,null,null,null,null,null,null,null,null,null,null,null,null,null,null,null,null,null,null,null,null,null,null,null,null,null,null,null,null,null,null,null,null,null,null,null,null,null,null,null,null,null,null,null,null,null,null,null,null,null,null,null,null,null,null,null,null,null,null,null,null,null,null,null,null,null,null,null,null,null,null,null,null,null,null,null,null,null,null,null,null,null,null,null,null,null,null,null,null,null,null,null,null,null,null,null,null,null,null,null,null,null,null,null,null,null,null,null,null,null,null,null,null,null,null,null,null,null,null,null,null,null,null,null,null,null,null,null,null,null,null,null,null,null,null,null,null,null,null,null,null,null,null,null,null,null,null,null,null,null,null,null,null,null,null,null,null,null,null,null,null,null,null,null,null,null,null,null,null,null,null,null,null,null,null,null,null,null,null,null,null,null,null,null,null,null,null,null,null,null,null,null,null,null,null,null,null,null,null,null,null,null,null,null,null,null,null,null,null,null,null,null,null,null,null,null,null,null,null,null,null,null,null,null,null,null,null,null,null,null,null,null,null,null,null,null,null,null,null,null,null,null,null,null,null,null,null,null,null,null,null,null,null,null,null,null,null,null,null,null,null,null,null,null,null,null,null,null,null,null,null,null,null,null,null,null,null,null,null,null,null,null,null,null,null,null,null,null,null,null,null,null,null,null,null,null,null,null,null,null,null,null,null,null,null,null,null,null,null,null,null,null,null,null,null,null,null,null,null,null,null,null,null,null,null,null,null,null,null,null,null,null,null,null,null,null,null,null,null,null,null,null,null,null,null,null,null,null,null,null,null,null,null,null,null,null,null,null,null,null,null,null,null,null,null,null,null,null,null,null,null,null,null,null,null,null,null,null,null,null,null,null,null,null,null,null,null,null,null,null,null,null,null,null,null,null,null,null,null,null,null,null,null,null,null,null,null,null,null,null,null,null,null,null,null,null,null,null,null,null,null,null,null,null,null,null,null,null,null,null,null,null,null,null,null,null,null,null,null,null,null,null,null,null,null,null,null,null,null,null,null,null,null,null,null,null,null,null,null,null,null,null,null,null,null,null,null,null,null,null,null,null,null,null,null,null,null,null,null,null,null,null,null,null,null,null,null,null,null,null,null,null,null,null,null,null,null,null,null,null,null,null,null,null,null,null,null,null,null,null,null,null,null,null,null,null,null,null,null,null,null,null,null,null,null,null,null,null,null,null,null,null,null,null,null,null,null,null,null,null,null,null,null,null,null,null,null,null,null,null,null,null,null,null,null,null,null,null,null,null,null,null,null,null,null,null,null,null,null,null,null,null,null,null,null,null,null,null,null,null,null,null,null,null,null,null,null,null,null,null,null,null,null,null,null,null,null,null,null,null,null,null,null,null,null,null,null,null,null,null,null,null,null,null,null,null,null,null,null,null,null,null,null,null,null,null,null,null,null,null,null,null,null,null,null,null,null,null,null,null,null,null,null,null,null,null,null,null,null,null,null,null,null,null,null,null,null,null,null,null,null,null,null,null,null,null,null,null,null,null,null,null,null,null,null,null,null,null,null,null,null,null,null,null,null,null,null,null,null,null,null,null,null,null,null,null,null,null,null,null,null,null,null,null,null,null,null,null,null,null,null,null,null,null,null,null,null,null,null,null,null,null,null,null,null,null,null,null,null,null,null,null,null,null,null,null,null,null,null,null,null,null,null,null,null,null,null,null,null,null,null,null,null,null,null,null,null,null,null,null,null,null,null,null,null,null,null,null,null,null,null,null,null,null,null,null,null,null,null,null,null,null,null,null,null,null,null,null,null,null,null,null,null,null,null,null,null,null,null,null,null,null,null,null,null,null,null,null,null,null,null,null,null,null,null,null,null,null,null,null,null,null,null,null,null,null,null,null,null,null,null,null,null,null,null,null,null,null,null,null,null,null,null,null,null,null,null,null,null,null,null,null,null,null,null,null,null,null,null,null,null,null,null,null,null,null,null,null,null,null,null,null,null,null,null,null,null,null,null,null,null,null,null,null,null,null,null,null,null,null,null,null,null,null,null,null,null,null,null,null,null,null,null,null,null,null,null,null,null,null,null,null,null,null,null,null,null,null,null,null,null,null,null,null,null,null,null,null,null,null,null,null,null,null,null,null,null,null,null,null,null,null,null,null,null,null,null,null,null,null,null,null,null,null,null,null,null,null,null,null,null,null,null,null,null,null,null,null,null,null,null,null,null,null,null,null,null,null,null,null,null,null,null,null,null,null,null,null,null,null,null,null,null,null,null,null,null,null,null,null,null,null,null,null,null,null,null,null,null,null,null,null,null,null,null,null,null,null,null,null,null,null,null,null,null,null,null,null,null,null,null,null,null,null,null,null,null,null,null,null,null,null,null,null,null,null,null,null,null,null,null,null,null,null,null,null,null,null,null,null,null,null,null,null,null,null,null,null,null,null,null,null,null,null,null,null,null,null,null,null,null,null,null,null,null,null,null,null,null,null,null,null,null,null,null,null,null,null,null,null,null,null,null,null,null,null,null,null,null,null,null,null,null,null,null,null,null,null,null,null,null,null,null,null,null,null,null,null,null,null,null,null,null,null,null,null,null,null,null,null,null,null,null,null,null,null,null,null,null,null,null,null,null,null,null,null,null,null,null,null,null,null,null,null,null,null,null,null,null,null,null,null,null,null,null,null,null,null,null,null,null,null,null,null,null,null,null,null,null,null,null,null,null,null,null,null,null,null,null,null,null,null,null,null,null,null,null,null,null,null,null,null,null,null,null,null,null,null,null,null,null,null,null,null,null,null,null,null,null,null,null,null,null,null,null,null,null,null,null,null,null,null,null,null,null,null,null,null,null,null,null,null,null,null,null,null,null,null,null,null,null,null,null,null,null,null,null,null,null,null,null,null,null,null,null,null,null,null,null,null,null,null,null,null,null,null,null,null,null,null,null,null,null,null,null,null,null,null,null,null,null,null,null,null,null,null,null,null,null,null,null,null,null,null,null,null,null,null,null,null,null,null,null,null,null,null,null,null,null,null,null,null,null,null,null,null,null,null,null,null,null,null,null,null,null,null,null,null,null,null,null,null,null,null,null,null,null,null,null,null,null,null,null,null,null,null,null,null,null,null,null,null,null,null,null,null,null,null,null,null,null,null,null,null,null,null,null,null,null,null,null,null,null,null,null,null,null,null,null,null,null,null,null,null,null,null,null,null,null,null,null,null,null,null,null,null,null,null,null,null,null,null,null,null,null,null,null,null,null,null,null,null,null,null,null,null,null,null,null,null,null,null,null,null,null,null,null,null,null,null,null,null,null,null,null,null,null,null,null,null,null,null,null,null,null,null,null,null,null,null,null,null,null,null,null,null,null,null,null,null,null,null,null,null,null,null,null,null,null,null,null,null,null,null,null,null,null,null,null,null,null,null,null,null,null,null,null,null,null,null,null,null,null,null,null,null,null,null,null,null,null,null,null,null,null,null,null,null,null,null,null,null,null,null,null,null,null,null,null,null,null,null,null,null,null,null,null,null,null,null,null,null,null,null,null,null,null,null,null,null,null,null,null,null,null,null,null,null,null,null,null,null,null,null,null,null,null,null,null,null,null,null,null,null,null,null,null,null,null,null,null,null,null,null,null,null,null,null,null,null,null,null,null,null,null,null,null,null,null,null,null,null,null,null,null,null,null,null,null,null,null,null,null,null,null,null,null,null,null,null,null,null,null,null,null,null,null,null,null,null,null,null,null,null,null,null,null,null,null,null,null,null,null,null,null,null,null,null,null,null,null,null,null,null,null,null,null,null,null,null,null,null,null,null,null,null,null,null,null,null,null,null,null,null,null,null,null,null,null,null,null,null,null,null,null,null,null,null,null,null,null,null,null,null,null,null,null,null,null,null,null,null,null,null,null,null,null,null,null,null,null,null,null,null,null,null,null,null,null,null,null,null,null,null,null,null,null,null,null,null,null,null,null,null,null,null,null,null,null,null,null,null,null,null,null,null,null,null,null,null,null,null,null,null,null,null,null,null,null,null,null,null,null,null,null,null,null,null,null,null,null,null,null,null,null,null,null,null,null,null,null,null,null,null,null,null,null,null,null,null,null,null,null,null,null,null,null,null,null,null,null,null,null,null,null,null,null,null,null,null,null,null,null,null,null,null,null,null,null,null,null,null,null,null,null,null,null,null,null,null,null,null,null,null,null,null,null,null,null,null,null,null,null,null,null,null,null,null,null,null,null,null,null,null,null,null,null,null,null,null,null,null,null,null,null,null,null,null,null,null,null,null,null,null,null,null,null,null,null,null,null,null,null,null,null,null,null,null,null,null,null,null,null,null,null,null,null,null,null,null,null,null,null,null,null,null,null,null,null,null,null,null,null,null,null,null,null,null,null,null,null,null,null,null,null,null,null,null,null,null,null,null,null,null,null,null,null,null,null,null,null,null,null,null,null,null,null,null,null,null,null,null,null,null,null,null,null,null,null,null,null,null,null,null,null,null,null,null,null,null,null,null,null,null,null,null,null,null,null,null,null,null,null,null,null,null,null,null,null,null,null,null,null,null,null,null,null,null,null,null,null,null,null,null,null,null,null,null,null,null,null,null,null,null,null,null,null,null,null,null,null,null,null,null,null,null,null,null,null,null,null,null,null,null,null,null,null,null,null,null,null,null,null,null,null,null,null,null,null,null,null,null,null,null,null,null,null,null,null,null,null,null,null,null,null,null,null,null,null,null,null,null,null,null,null,null,null,null,null,null,null,null,null,null,null,null,null,null,null,null,null,null,null,null,null,null,null,null,null,null,null,null,null,null,null,null,null,null,null,null,null,null,null,null,null,null,null,null,null,null,null,null,null,null,null,null,null,null,null,null,null,null,null,null,null,null,null,null,null,null,null,null,null,null,null,null,null,null,null,null,null,null,null,null,null,null,null,null,null,null,null,null,null,null,null,null,null,null,null,null,null,null,null,null,null,null,null,null,null,null,null,null,null,null,null,null,null,null,null,null,null,null,null,null,null,null,null,null,null,null,null,null,null,null,null,null,null,null,null,null,null,null,null,null,null,null,null,null,null,null,null,null,null,null,null,null,null,null,null,null,null,null,null,null,null,null,null,null,null,null,null,null,null,null,null,null,null,null,null,null,null,null,null,null,null,null,null,null,null,null,null,null,null,null,null,null,null,null,null,null,null,null,null,null,null,null,null,null,null,null,null,null,null,null,null,null,null,null,null,null,null,null,null,null,null,null,null,null,null,null,null,null,null,null,null,null,null,null,null,null,null,null,null,null,null,null,null,null,null,null,null,null,null,null,null,null,null,null,null,null,null,null,null,null,null,null,null,null,null,null,null,null,null,null,null,null,null,null,null,null,null,null,null,null,null,null,null,null,null,null,null,null,null,null,null,null,null,null,null,null,null,null,null,null,null,null,null,null,null,null,null,null,null,null,null,null,null,null,null,null,null,null,null,null,null,null,null,null,null,null,null,null,null,null,null,null,null,null,null,null,null,null,null,null,null,null,null,null,null,null,null,null,null,null,null,null,null,null,null,null,null,null,null,null,null,null,null,null,null,null,null,null,null,null,null,null,null,null,null,null,null,null,null,null,null,null,null,null,null,null,null,null,null,null,null,null,null,null,null,null,null,null,null,null,null,null,null,null,null,null,null,null,null,null,null,null,null,null,null,null,null,null,null,null,null,null,null,null,null,null,null,null,null,null,null,null,null,null,null,null,null,null,null,null,null,null,null,null,null,null,null,null,null,null,null,null,null,null,null,null,null,null,null,null,null,null,null,null,null,null,null,null,null,null,null,null,null,null,null,null,null,null,null,null,null,null,null,null,null,null,null,null,null,null,null,null,null,null,null,null,null,null,null,null,null,null,null,null,null,null,null,null,null,null,null,null,null,null,null,null,null,null,null,null,null,null,null,null,null,null,null,null,null,null,null,null,null,null,null,null,null,null,null,null,null,null,null,null,null,null,null,null,null,null,null,null,null,null,null,null,null,null,null,null,null,null,null,null,null,null,null,null,null,null,null,null,null,null,null,null,null,null,null,null,null,null,null,null,null,null,null,null,null,null,null,null,null,null,null,null,null,null,null,null,null,null,null,null,null,null,null,null,null,null,null,null,null,null,null,null,null,null,null,null,null,null,null,null,null,null,null,null,null,null,null,null,null,null,null,null,null,null,null,null,null,null,null,null,null,null,null,null,null,null,null,null,null,null,null,null,null,null,null,null,null,null,null,null,null,null,null,null,null,null,null,null,null,null,null,null,null,null,null,null,null,null,null,null,null,null,null,null,null,null,null,null,null,null,null,null,null,null,null,null,null,null,null,null,null,null,null,null,null,null,null,null,null,null,null,null,null,null,null,null,null,null,null,null,null,null,null,null,null,null,null,null,null,null,null,null,null,null,null,null,null,null,null,null,null,null,null,null,null,null,null,null,null,null,null,null,null,null,null,null,null,null,null,null,null,null,null,null,null,null,null,null,null,null,null,null,null,null,null,null,null,null,null,null,null,null,null,null,null,null,null,null,null,null,null,null,null,null,null,null,null,null,null,null,null,null,null,null,null,null,null,null,null,null,null,null,null,null,null,null,null,null,null,null,null,null,null,null,null,null,null,null,null,null,null,null,null,null,null,null,null,null,null,null,null,null,null,null,null,null,null,null,null,null,null,null,null,null,null,null,null,null,null,null,null,null,null,null,null,null,null,null,null,null,null,null,null,null,null,null,null,null,null,null,null,null,null,null,null,null,null,null,null,null,null,null,null,null,null,null,null,null,null,null,null,null,null,null,null,null,null,null,null,null,null,null,null,null,null,null,null,null,null,null,null,null,null,null,null,null,null,null,null,null,null,null,null,null,null,null,null,null,null,null,null,null,null,null,null,null,null,null,null,null,null,null,null,null,null,null,null,null,null,null,null,null,null,null,null,null,null,null,null,null,null,null,null,null,null,null,null,null,null,null,null,null,null,null,null,null,null,null,null,null,null,null,null,null,null,null,null,null,null,null,null,null,null,null,null,null,null,null,null,null,null,null,null,null,null,null,null,null,null,null,null,null,null,null,null,null,null,null,null,null,null,null,null,null,null,null,null,null,null,null,null,null,null,null,null,null,null,null,null,null,null,null,null,null,null,null,null,null,null,null,null,null,null,null,null,null,null,null,null,null,null,null,null,null,null,null,null,null,null,null,null,null,null,null,null,null,null,null,null,null,null,null,null,null,null,null,null,null,null,null,null,null,null,null,null,null,null,null,null,null,null,null,null,null,null,null,null,null,null,null,null,null,null,null,null,null,null,null,null,null,null,null,null,null,null,null,null,null,null,null,null,null,null,null,null,null,null,null,null,null,null,null,null,null,null,null,null,null,null,null,null,null,null,null,null,null,null,null,null,null,null,null,null,null,null,null,null,null,null,null,null,null,null,null,null,null,null,null,null,null,null,null,null,null,null,null,null,null,null,null,null,null,null,null,null,null,null,null,null,null,null,null,null,null,null,null,null,null,null,null,null,null,null,null,null,null,null,null,null,null,null,null,null,null,null,null,null,null,null,null,null,null,null,null,null,null,null,null,null,null,null,null,null,null,null,null,null,null,null,null,null,null,null,null,null,null,null,null,null,null,null,null,null,null,null,null,null,null,null,null,null,null,null,null,null,null,null,null,null,null,null,null,null,null,null,null,null,null,null,null,null,null,null,null,null,null,null,null,null,null,null,null,null,null,null,null,null,null,null,null,null,null,null,null,null,null,null,null,null,null,null,null,null,null,null,null,null,null,null,null,null,null,null,null,null,null,null,null,null,null,null,null,null,null,null,null,null,null,null,null,null,null,null,null,null,null,null,null,null,null,null,null,null,null,null,null,null,null,null,null,null,null,null,null,null,null,null,null,null,null,null,null,null,null,null,null,null,null,null,null,null,null,null,null,null,null,null,null,null,null,null,null,null,null,null,null,null,null,null,null,null,null,null,null,null,null,null,null,null,null,null,null,null,null,null,null,null,null,null,null,null,null,null,null,null,null,null,null,null,null,null,null,null,null,null,null,null,null,null,null,null,null,null,null,null,null,null,null,null,null,null,null,null,null,null,null,null,null,null,null,null,null,null,null,null,null,null,null,null,null,null,null,null,null,null,null,null,null,null,null,null,null,null,null,null,null,null,null,null,null,null,null,null,null,null,null,null,null,null,null,null,null,null,null,null,null,null,null,null,null,null,null,null,null,null,null,null,null,null,null,null,null,null,null,null,null,null,null,null,null,null,null,null,null,null,null,null,null,null,null,null,null,null,null,null,null,null,null,null,null,null,null,null,null,null,null,null,null,null,null,null,null,null,null,null,null,null,null,null,null,null,null,null,null,null,null,null,null,null,null,null,null,null,null,null,null,null,null,null,null,null,null,null,null,null,null,null,null,null,null,null,null,null,null,null,null,null,null,null,null,null,null,null,null,null,null,null,null,null,null,null,null,null,null,null,null,null,null,null,null,null,null,null,null,null,null,null,null,null,null,null,null,null,null,null,null,null,null,null,null,null,null,null,null,null,null,null,null,null,null,null,null,null,null,null,null,null,null,null,null,null,null,null,null,null,null,null,null,null,null,null,null,null,null,null,null,null,null,null,null,null,null,null,null,null,null,null,null,null,null,null,null,null,null,null,null,null,null,null,null,null,null,null,null,null,null,null,null,null,null,null,null,null,null,null,null,null,null,null,null,null,null,null,null,null,null,null,null,null,null,null,null,null,null,null,null,null,null,null,null,null,null,null,null,null,null,null,null,null,null,null,null,null,null,null,null,null,null,null,null,null,null,null,null,null,null,null,null,null,null,null,null,null,null,null,null,null,null,null,null,null,null,null,null,null,null,null,null,null,null,null,null,null,null,null,null,null,null,null,null,null,null,null,null,null,null,null,null,null,null,null,null,null,null,null,null,null,null,null,null,null,null,null,null,null,null,null,null,null,null,null,null,null,null,null,null,null,null,null,null,null,null,null,null,null,null,null,null,null,null,null,null,null,null,null,null,null,null,null,null,null,null,null,null,null,null,null,null,null,null,null,null,null,null,null,null,null,null,null,null,null,null,null,null,null,null,null,null,null,null,null,null,null,null,null,null,null,null,null,null,null,null,null,null,null,null,null,null,null,null,null,null,null,null,null,null,null,null,null,null,null,null,null,null,null,null,null,null,null,null,null,null,null,null,null,null,null,null,null,null,null,null,null,null,null,null,null,null,null,null,null,null,null,null,null,null,null,null,null,null,null,null,null,null,null,null,null,null,null,null,null,null,null,null,null,null,null,null,null,null,null,null,null,null,null,null,null,null,null,null,null,null,null,null,null,null,null,null,null,null,null,null,null,null,null,null,null,null,null,null,null,null,null,null,null,null,null,null,null,null,null,null,null,null,null,null,null,null,null,null,null,null,null,null,null,null,null,null,null,null,null,null,null,null,null,null,null,null,null,null,null,null,null,null,null,null,null,null,null,null,null,null,null,null,null,null,null,null,null,null,null,null,null,null,null,null,null,null,null,null,null,null,null,null,null,null,null,null,null,null,null,null,null,null,null,null,null,null,null,null,null,null,null,null,null,null,null,null,null,null,null,null,null,null,null,null,null,null,null,null,null,null,null,null,null,null,null,null,null,null,null,null,null,null,null,null,null,null,null,null,null,null,null,null,null,null,null,null,null,null,null,null,null,null,null,null,null,null,null,null,null,null,null,null,null,null,null,null,null,null,null,null,null,null,null,null,null,null,null,null,null,null,null,null,null,null,null,null,null,null,null,null,null,null,null,null,null,null,null,null,null,null,null,null,null,null,null,null,null,null,null,null,null,null,null,null,null,null,null,null,null,null,null,null,null,null,null,null,null,null,null,null,null,null,null,null,null,null,null,null,null,null,null,null,null,null,null,null,null,null,null,null,null,null,null,null,null,null,null,null,null,null,null,null,null,null,null,null,null,null,null,null,null,null,null,null,null,null,null,null,null,null,null,null,null,null,null,null,null,null,null,null,null,null,null,null,null,null,null,null,null,null,null,null,null,null,null,null,null,null,null,null,null,null,null,null,null,null,null,null,null,null,null,null,null,null,null,null,null,null,null,null,null,null,null,null,null,null,null,null,null,null,null,null,null,null,null,null,null,null,null,null,null,null,null,null,null,null,null,null,null,null,null,null,null,null,null,null,null,null,null,null,null,null,null,null,null,null,null,null,null,null,null,null,null,null,null,null,null,null,null,null,null,null,null,null,null,null,null,null,null,null,null,null,null,null,null,null,null,null,null,null,null,null,null,null,null,null,null,null,null,null,null,null,null,null,null,null,null,null,null,null,null,null,null,null,null,null,null,null,null,null,null,null,null,null,null,null,null,null,null,null,null,null,null,null,null,null,null,null,null,null,null,null,null,null,null,null,null,null,null,null,null,null,null,null,null,null,null,null,null,null,null,null,null,null,null,null,null,null,null,null,null,null,null,null,null,null,null,null,null,null,null,null,null,null,null,null,null,null,null,null,null,null,null,null,null,null,null,null,null,null,null,null,null,null,null,null,null,null,null,null,null,null,null,null,null,null,null,null,null,null,null,null,null,null,null,null,null,null,null,null,null,null,null,null,null,null,null,null,null,null,null,null,null,null,null,null,null,null,null,null,null,null,null,null,null,null,null,null,null,null,null,null,null,null,null,null,null,null,null,null,null,null,null,null,null,null,null,null,null,null,null,null,null,null,null,null,null,null,null,null,null,null,null,null,null,null,null,null,null,null,null,null,null,null,null,null,null,null,null,null,null,null,null,null,null,null,null,null,null,null,null,null,null,null,null,null,null,null,null,null,null,null,null,null,null,null,null,null,null,null,null,null,null,null,null,null,null,null,null,null,null,null,null,null,null,null,null,null,null,null,null,null,null,null,null,null,null,null,null,null,null,null,null,null,null,null,null,null,null,null,null,null,null,null,null,null,null,null,null,null,null,null,null,null,null,null,null,null,null,null,null,null,null,null,null,null,null,null,null,null,null,null,null,null,null,null,null,null,null,null,null,null,null,null,null,null,null,null,null,null,null,null,null,null,null,null,null,null,null,null,null,null,null,null,null,null,null,null,null,null,null,null,null,null,null,null,null,null,null,null,null,null,null,null,null,null,null,null,null,null,null,null,null,null,null,null,null,null,null,null,null,null,null,null,null,null,null,null,null,null,null,null,null,null,null,null,null,null,null,null,null,null,null,null,null,null,null,null,null,null,null,null,null,null,null,null,null,null,null,null,null,null,null,null,null,null,null,null,null,null,null,null,null,null,null,null,null,null,null,null,null,null,null,null,null,null,null,null,null,null,null,null,null,null,null,null,null,null,null,null,null,null,null,null,null,null,null,null,null,null,null,null,null,null,null,null,null,null,null,null,null,null,null,null,null,null,null,null,null,null,null,null,null,null,null,null,null,null,null,null,null,null,null,null,null,null,null,null,null,null,null,null,null,null,null,null,null,null,null,null,null,null,null,null,null,null,null,null,null,null,null,null,null,null,null,null,null,null,null,null,null,null,null,null,null,null,null,null,null,null,null,null,null,null,null,null,null,null,null,null,null,null,null,null,null,null,null,null,null,null,null,null,null,null,null,null,null,null,null,null,null,null,null,null,null,null,null,null,null,null,null,null,null,null,null,null,null,null,null,null,null,null,null,null,null,null,null,null,null,null,null,null,null,null,null,null,null,null,null,null,null,null,null,null,null,null,null,null,null,null,null,null,null,null,null,null,null,null,null,null,null,null,null,null,null,null,null,null,null,null,null,null,null,null,null,null,null,null,null,null,null,null,null,null,null,null,null,null,null,null,null,null,null,null,null,null,null,null,null,null,null,null,null,null,null,null,null,null,null,null,null,null,null,null,null,null,null,null,null,null,null,null,null,null,null,null,null,null,null,null,null,null,null,null,null,null,null,null,null,null,null,null,null,null,null,null,null,null,null,null,null,null,null,null,null,null,null,null,null,null,null,null,null,null,null,null,null,null,null,null,null,null,null,null,null,null,null,null,null,null,null,null,null,null,null,null,null,null,null,null,null,null,null,null,null,null,null,null,null,null,null,null,null,null,null,null,null,null,null,null,null,null,null,null,null,null,null,null,null,null,null,null,null,null,null,null,null,null,null,null,null,null,null,null,null,null,null,null,null,null,null,null,null,null,null,null,null,null,null,null,null,null,null,null,null,null,null,null,null,null,null,null,null,null,null,null,null,null,null,null,null,null,null,null,null,null,null,null,null,null,null,null,null,null,null,null,null,null,null,null,null,null,null,null,null,null,null,null,null,null,null,null,null,null,null,null,null,null,null,null,null,null,null,null,null,null,null,null,null,null,null,null,null,null,null,null,null,null,null,null,null,null,null,null,null,null,null,null,null,null,null,null,null,null,null,null,null,null,null,null,null,null,null,null,null,null,null,null,null,null,null,null,null,null,null,null,null,null,null,null,null,null,null,null,null,null,null,null,null,null,null,null,null,null,null,null,null,null,null,null,null,null,null,null,null,null,null,null,null,null,null,null,null,null,null,null,null,null,null,null,null,null,null,null,null,null,null,null,null,null,null,null,null,null,null,null,null,null,null,null,null,null,null,null,null,null,null,null,null,null,null,null,null,null,null,null,null,null,null,null,null,null,null,null,null,null,null,null,null,null,null,null,null,null,null,null,null,null,null,null,null,null,null,null,null,null,null,null,null,null,null,null,null,null,null,null,null,null,null,null,null,null,null,null,null,null,null,null,null,null,null,null,null,null,null,null,null,null,null,null,null,null,null,null,null,null,null,null,null,null,null,null,null,null,null,null,null,null,null,null,null,null,null,null,null,null,null,null,null,null,null,null,null,null,null,null,null,null,null,null,null,null,null,null,null,null,null,null,null,null,null,null,null,null,null,null,null,null,null,null,null,null,null,null,null,null,null,null,null,null,null,null,null,null,null,null,null,null,null,null,null,null,null,null,null,null,null,null,null,null,null,null,null,null,null,null,null,null,null,null,null,null,null,null,null,null,null,null,null,null,null,null,null,null,null,null,null,null,null,null,null,null,null,null,null,null,null,null,null,null,null,null,null,null,null,null,null,null,null,null,null,null,null,null,null,null,null,null,null,null,null,null,null,null,null,null,null,null,null,null,null,null,null,null,null,null,null,null,null,null,null,null,null,null,null,null,null,null,null,null,null,null,null,{"$f":"SUM(H26:XFC26)","v":0}]
[null,"הליכונים "]
[null,"הליכון קידמי פשוט",1,200,200,null,null,0]
[null,"הליכון אחורי ק",1,1400,1400,null,null,0]
[null,"הליכון אחורי ב",1,1900,1900,null,null,0]
[null,"הליכון אחורי ג",1,2000,2000,null,null,0]
[null,"הליכון אמות הדראולי",1,3800,3800,null,null,0]
[null,"הליכון אמות רגיל",1,800,800,null,null,0]
[null,"רולטור בסיסי",1,500,500,null,null,0]
[null,"רולטור מיוחד תמיכות",1,1800,1800,null,null,0]
[null,"הליכון פייסר",1,18000,18000,null,null,0]
[null,"הליכון גרילו",1,13000,13000,null,null,0]
[null,"הליכון אוכף",1,11000,11000,null,null,0]
[null,"סה\"כ עלות הליכונים כולל מע\"מ",null,null,{"$f":"SUM(E28:E38)","v":54400},null,null,{"$f":"SUM(H28:H38)","v":0},{"$f":"B39","v":"סה\"כ עלות הליכונים כולל מע\"מ"},null,{"$f":"B39","v":"סה\"כ עלות הליכונים כולל מע\"מ"},null,null,{"$f":"SUM(N28:N38)","v":0}]
[null,"מנופים וערסלים"]
[null,"מנוף תקרה+ התקנה",1,25000,25000,null,null,0]
[null,"מנוף רצפה",1,14000,14000,null,null,0]
[null,"מנופי העמדה",1,14000,14000,null,null,0]
[null,"ערסלים",1,2000,2000,null,null,0]
[null,"תוספת לערסלים מיוחדים",1,5500,5500,null,null,0]
[null,"סה\"כ עלות מנופים וערסלים כולל מע\"מ",null,null,{"$f":"SUM(E41:E45)","v":60500},null,null,{"$f":"SUM(H41:H45)","v":0},{"$f":"B46","v":"סה\"כ עלות מנופים וערסלים כולל מע\"מ"},null,{"$f":"B46","v":"סה\"כ עלות מנופים וערסלים כולל מע\"מ"},null,null,{"$f":"SUM(N41:N45)","v":0},null,null,null,null,null,null,null,null,null,null,null,null,null,null,null,null,null,null,null,null,null,null,null,null,null,null,null,null,null,null,null,null,null,null,null,null,null,null,null,null,null,null,null,null,null,null,null,null,null,null,null,null,null,null,null,null,null,null,null,null,null,null,null,null,null,null,null,null,null,null,null,null,null,null,null,null,null,null,null,null,null,null,null,null,null,null,null,null,null,null,null,null,null,null,null,null,null,null,null,null,null,null,null,null,null,null,null,null,null,null,null,null,null,null,null,null,null,null,null,null,null,null,null,null,null,null,null,null,null,null,null,null,null,null,null,null,null,null,null,null,null,null,null,null,null,null,null,null,null,null,null,null,null,null,null,null,null,null,null,null,null,null,null,null,null,null,null,null,null,null,null,null,null,null,null,null,null,null,null,null,null,null,null,null,null,null,null,null,null,null,null,null,null,null,null,null,null,null,null,null,null,null,null,null,null,null,null,null,null,null,null,null,null,null,null,null,null,null,null,null,null,null,null,null,null,null,null,null,null,null,null,null,null,null,null,null,null,null,null,null,null,null,null,null,null,null,null,null,null,null,null,null,null,null,null,null,null,null,null,null,null,null,null,null,null,null,null,null,null,null,null,null,null,null,null,null,null,null,null,null,null,null,null,null,null,null,null,null,null,null,null,null,null,null,null,null,null,null,null,null,null,null,null,null,null,null,null,null,null,null,null,null,null,null,null,null,null,null,null,null,null,null,null,null,null,null,null,null,null,null,null,null,null,null,null,null,null,null,null,null,null,null,null,null,null,null,null,null,null,null,null,null,null,null,null,null,null,null,null,null,null,null,null,null,null,null,null,null,null,null,null,null,null,null,null,null,null,null,null,null,null,null,null,null,null,null,null,null,null,null,null,null,null,null,null,null,null,null,null,null,null,null,null,null,null,null,null,null,null,null,null,null,null,null,null,null,null,null,null,null,null,null,null,null,null,null,null,null,null,null,null,null,null,null,null,null,null,null,null,null,null,null,null,null,null,null,null,null,null,null,null,null,null,null,null,null,null,null,null,null,null,null,null,null,null,null,null,null,null,null,null,null,null,null,null,null,null,null,null,null,null,null,null,null,null,null,null,null,null,null,null,null,null,null,null,null,null,null,null,null,null,null,null,null,null,null,null,null,null,null,null,null,null,null,null,null,null,null,null,null,null,null,null,null,null,null,null,null,null,null,null,null,null,null,null,null,null,null,null,null,null,null,null,null,null,null,null,null,null,null,null,null,null,null,null,null,null,null,null,null,null,null,null,null,null,null,null,null,null,null,null,null,null,null,null,null,null,null,null,null,null,null,null,null,null,null,null,null,null,null,null,null,null,null,null,null,null,null,null,null,null,null,null,null,null,null,null,null,null,null,null,null,null,null,null,null,null,null,null,null,null,null,null,null,null,null,null,null,null,null,null,null,null,null,null,null,null,null,null,null,null,null,null,null,null,null,null,null,null,null,null,null,null,null,null,null,null,null,null,null,null,null,null,null,null,null,null,null,null,null,null,null,null,null,null,null,null,null,null,null,null,null,null,null,null,null,null,null,null,null,null,null,null,null,null,null,null,null,null,null,null,null,null,null,null,null,null,null,null,null,null,null,null,null,null,null,null,null,null,null,null,null,null,null,null,null,null,null,null,null,null,null,null,null,null,null,null,null,null,null,null,null,null,null,null,null,null,null,null,null,null,null,null,null,null,null,null,null,null,null,null,null,null,null,null,null,null,null,null,null,null,null,null,null,null,null,null,null,null,null,null,null,null,null,null,null,null,null,null,null,null,null,null,null,null,null,null,null,null,null,null,null,null,null,null,null,null,null,null,null,null,null,null,null,null,null,null,null,null,null,null,null,null,null,null,null,null,null,null,null,null,null,null,null,null,null,null,null,null,null,null,null,null,null,null,null,null,null,null,null,null,null,null,null,null,null,null,null,null,null,null,null,null,null,null,null,null,null,null,null,null,null,null,null,null,null,null,null,null,null,null,null,null,null,null,null,null,null,null,null,null,null,null,null,null,null,null,null,null,null,null,null,null,null,null,null,null,null,null,null,null,null,null,null,null,null,null,null,null,null,null,null,null,null,null,null,null,null,null,null,null,null,null,null,null,null,null,null,null,null,null,null,null,null,null,null,null,null,null,null,null,null,null,null,null,null,null,null,null,null,null,null,null,null,null,null,null,null,null,null,null,null,null,null,null,null,null,null,null,null,null,null,null,null,null,null,null,null,null,null,null,null,null,null,null,null,null,null,null,null,null,null,null,null,null,null,null,null,null,null,null,null,null,null,null,null,null,null,null,null,null,null,null,null,null,null,null,null,null,null,null,null,null,null,null,null,null,null,null,null,null,null,null,null,null,null,null,null,null,null,null,null,null,null,null,null,null,null,null,null,null,null,null,null,null,null,null,null,null,null,null,null,null,null,null,null,null,null,null,null,null,null,null,null,null,null,null,null,null,null,null,null,null,null,null,null,null,null,null,null,null,null,null,null,null,null,null,null,null,null,null,null,null,null,null,null,null,null,null,null,null,null,null,null,null,null,null,null,null,null,null,null,null,null,null,null,null,null,null,null,null,null,null,null,null,null,null,null,null,null,null,null,null,null,null,null,null,null,null,null,null,null,null,null,null,null,null,null,null,null,null,null,null,null,null,null,null,null,null,null,null,null,null,null,null,null,null,null,null,null,null,null,null,null,null,null,null,null,null,null,null,null,null,null,null,null,null,null,null,null,null,null,null,null,null,null,null,null,null,null,null,null,null,null,null,null,null,null,null,null,null,null,null,null,null,null,null,null,null,null,null,null,null,null,null,null,null,null,null,null,null,null,null,null,null,null,null,null,null,null,null,null,null,null,null,null,null,null,null,null,null,null,null,null,null,null,null,null,null,null,null,null,null,null,null,null,null,null,null,null,null,null,null,null,null,null,null,null,null,null,null,null,null,null,null,null,null,null,null,null,null,null,null,null,null,null,null,null,null,null,null,null,null,null,null,null,null,null,null,null,null,null,null,null,null,null,null,null,null,null,null,null,null,null,null,null,null,null,null,null,null,null,null,null,null,null,null,null,null,null,null,null,null,null,null,null,null,null,null,null,null,null,null,null,null,null,null,null,null,null,null,null,null,null,null,null,null,null,null,null,null,null,null,null,null,null,null,null,null,null,null,null,null,null,null,null,null,null,null,null,null,null,null,null,null,null,null,null,null,null,null,null,null,null,null,null,null,null,null,null,null,null,null,null,null,null,null,null,null,null,null,null,null,null,null,null,null,null,null,null,null,null,null,null,null,null,null,null,null,null,null,null,null,null,null,null,null,null,null,null,null,null,null,null,null,null,null,null,null,null,null,null,null,null,null,null,null,null,null,null,null,null,null,null,null,null,null,null,null,null,null,null,null,null,null,null,null,null,null,null,null,null,null,null,null,null,null,null,null,null,null,null,null,null,null,null,null,null,null,null,null,null,null,null,null,null,null,null,null,null,null,null,null,null,null,null,null,null,null,null,null,null,null,null,null,null,null,null,null,null,null,null,null,null,null,null,null,null,null,null,null,null,null,null,null,null,null,null,null,null,null,null,null,null,null,null,null,null,null,null,null,null,null,null,null,null,null,null,null,null,null,null,null,null,null,null,null,null,null,null,null,null,null,null,null,null,null,null,null,null,null,null,null,null,null,null,null,null,null,null,null,null,null,null,null,null,null,null,null,null,null,null,null,null,null,null,null,null,null,null,null,null,null,null,null,null,null,null,null,null,null,null,null,null,null,null,null,null,null,null,null,null,null,null,null,null,null,null,null,null,null,null,null,null,null,null,null,null,null,null,null,null,null,null,null,null,null,null,null,null,null,null,null,null,null,null,null,null,null,null,null,null,null,null,null,null,null,null,null,null,null,null,null,null,null,null,null,null,null,null,null,null,null,null,null,null,null,null,null,null,null,null,null,null,null,null,null,null,null,null,null,null,null,null,null,null,null,null,null,null,null,null,null,null,null,null,null,null,null,null,null,null,null,null,null,null,null,null,null,null,null,null,null,null,null,null,null,null,null,null,null,null,null,null,null,null,null,null,null,null,null,null,null,null,null,null,null,null,null,null,null,null,null,null,null,null,null,null,null,null,null,null,null,null,null,null,null,null,null,null,null,null,null,null,null,null,null,null,null,null,null,null,null,null,null,null,null,null,null,null,null,null,null,null,null,null,null,null,null,null,null,null,null,null,null,null,null,null,null,null,null,null,null,null,null,null,null,null,null,null,null,null,null,null,null,null,null,null,null,null,null,null,null,null,null,null,null,null,null,null,null,null,null,null,null,null,null,null,null,null,null,null,null,null,null,null,null,null,null,null,null,null,null,null,null,null,null,null,null,null,null,null,null,null,null,null,null,null,null,null,null,null,null,null,null,null,null,null,null,null,null,null,null,null,null,null,null,null,null,null,null,null,null,null,null,null,null,null,null,null,null,null,null,null,null,null,null,null,null,null,null,null,null,null,null,null,null,null,null,null,null,null,null,null,null,null,null,null,null,null,null,null,null,null,null,null,null,null,null,null,null,null,null,null,null,null,null,null,null,null,null,null,null,null,null,null,null,null,null,null,null,null,null,null,null,null,null,null,null,null,null,null,null,null,null,null,null,null,null,null,null,null,null,null,null,null,null,null,null,null,null,null,null,null,null,null,null,null,null,null,null,null,null,null,null,null,null,null,null,null,null,null,null,null,null,null,null,null,null,null,null,null,null,null,null,null,null,null,null,null,null,null,null,null,null,null,null,null,null,null,null,null,null,null,null,null,null,null,null,null,null,null,null,null,null,null,null,null,null,null,null,null,null,null,null,null,null,null,null,null,null,null,null,null,null,null,null,null,null,null,null,null,null,null,null,null,null,null,null,null,null,null,null,null,null,null,null,null,null,null,null,null,null,null,null,null,null,null,null,null,null,null,null,null,null,null,null,null,null,null,null,null,null,null,null,null,null,null,null,null,null,null,null,null,null,null,null,null,null,null,null,null,null,null,null,null,null,null,null,null,null,null,null,null,null,null,null,null,null,null,null,null,null,null,null,null,null,null,null,null,null,null,null,null,null,null,null,null,null,null,null,null,null,null,null,null,null,null,null,null,null,null,null,null,null,null,null,null,null,null,null,null,null,null,null,null,null,null,null,null,null,null,null,null,null,null,null,null,null,null,null,null,null,null,null,null,null,null,null,null,null,null,null,null,null,null,null,null,null,null,null,null,null,null,null,null,null,null,null,null,null,null,null,null,null,null,null,null,null,null,null,null,null,null,null,null,null,null,null,null,null,null,null,null,null,null,null,null,null,null,null,null,null,null,null,null,null,null,null,null,null,null,null,null,null,null,null,null,null,null,null,null,null,null,null,null,null,null,null,null,null,null,null,null,null,null,null,null,null,null,null,null,null,null,null,null,null,null,null,null,null,null,null,null,null,null,null,null,null,null,null,null,null,null,null,null,null,null,null,null,null,null,null,null,null,null,null,null,null,null,null,null,null,null,null,null,null,null,null,null,null,null,null,null,null,null,null,null,null,null,null,null,null,null,null,null,null,null,null,null,null,null,null,null,null,null,null,null,null,null,null,null,null,null,null,null,null,null,null,null,null,null,null,null,null,null,null,null,null,null,null,null,null,null,null,null,null,null,null,null,null,null,null,null,null,null,null,null,null,null,null,null,null,null,null,null,null,null,null,null,null,null,null,null,null,null,null,null,null,null,null,null,null,null,null,null,null,null,null,null,null,null,null,null,null,null,null,null,null,null,null,null,null,null,null,null,null,null,null,null,null,null,null,null,null,null,null,null,null,null,null,null,null,null,null,null,null,null,null,null,null,null,null,null,null,null,null,null,null,null,null,null,null,null,null,null,null,null,null,null,null,null,null,null,null,null,null,null,null,null,null,null,null,null,null,null,null,null,null,null,null,null,null,null,null,null,null,null,null,null,null,null,null,null,null,null,null,null,null,null,null,null,null,null,null,null,null,null,null,null,null,null,null,null,null,null,null,null,null,null,null,null,null,null,null,null,null,null,null,null,null,null,null,null,null,null,null,null,null,null,null,null,null,null,null,null,null,null,null,null,null,null,null,null,null,null,null,null,null,null,null,null,null,null,null,null,null,null,null,null,null,null,null,null,null,null,null,null,null,null,null,null,null,null,null,null,null,null,null,null,null,null,null,null,null,null,null,null,null,null,null,null,null,null,null,null,null,null,null,null,null,null,null,null,null,null,null,null,null,null,null,null,null,null,null,null,null,null,null,null,null,null,null,null,null,null,null,null,null,null,null,null,null,null,null,null,null,null,null,null,null,null,null,null,null,null,null,null,null,null,null,null,null,null,null,null,null,null,null,null,null,null,null,null,null,null,null,null,null,null,null,null,null,null,null,null,null,null,null,null,null,null,null,null,null,null,null,null,null,null,null,null,null,null,null,null,null,null,null,null,null,null,null,null,null,null,null,null,null,null,null,null,null,null,null,null,null,null,null,null,null,null,null,null,null,null,null,null,null,null,null,null,null,null,null,null,null,null,null,null,null,null,null,null,null,null,null,null,null,null,null,null,null,null,null,null,null,null,null,null,null,null,null,null,null,null,null,null,null,null,null,null,null,null,null,null,null,null,null,null,null,null,null,null,null,null,null,null,null,null,null,null,null,null,null,null,null,null,null,null,null,null,null,null,null,null,null,null,null,null,null,null,null,null,null,null,null,null,null,null,null,null,null,null,null,null,null,null,null,null,null,null,null,null,null,null,null,null,null,null,null,null,null,null,null,null,null,null,null,null,null,null,null,null,null,null,null,null,null,null,null,null,null,null,null,null,null,null,null,null,null,null,null,null,null,null,null,null,null,null,null,null,null,null,null,null,null,null,null,null,null,null,null,null,null,null,null,null,null,null,null,null,null,null,null,null,null,null,null,null,null,null,null,null,null,null,null,null,null,null,null,null,null,null,null,null,null,null,null,null,null,null,null,null,null,null,null,null,null,null,null,null,null,null,null,null,null,null,null,null,null,null,null,null,null,null,null,null,null,null,null,null,null,null,null,null,null,null,null,null,null,null,null,null,null,null,null,null,null,null,null,null,null,null,null,null,null,null,null,null,null,null,null,null,null,null,null,null,null,null,null,null,null,null,null,null,null,null,null,null,null,null,null,null,null,null,null,null,null,null,null,null,null,null,null,null,null,null,null,null,null,null,null,null,null,null,null,null,null,null,null,null,null,null,null,null,null,null,null,null,null,null,null,null,null,null,null,null,null,null,null,null,null,null,null,null,null,null,null,null,null,null,null,null,null,null,null,null,null,null,null,null,null,null,null,null,null,null,null,null,null,null,null,null,null,null,null,null,null,null,null,null,null,null,null,null,null,null,null,null,null,null,null,null,null,null,null,null,null,null,null,null,null,null,null,null,null,null,null,null,null,null,null,null,null,null,null,null,null,null,null,null,null,null,null,null,null,null,null,null,null,null,null,null,null,null,null,null,null,null,null,null,null,null,null,null,null,null,null,null,null,null,null,null,null,null,null,null,null,null,null,null,null,null,null,null,null,null,null,null,null,null,null,null,null,null,null,null,null,null,null,null,null,null,null,null,null,null,null,null,null,null,null,null,null,null,null,null,null,null,null,null,null,null,null,null,null,null,null,null,null,null,null,null,null,null,null,null,null,null,null,null,null,null,null,null,null,null,null,null,null,null,null,null,null,null,null,null,null,null,null,null,null,null,null,null,null,null,null,null,null,null,null,null,null,null,null,null,null,null,null,null,null,null,null,null,null,null,null,null,null,null,null,null,null,null,null,null,null,null,null,null,null,null,null,null,null,null,null,null,null,null,null,null,null,null,null,null,null,null,null,null,null,null,null,null,null,null,null,null,null,null,null,null,null,null,null,null,null,null,null,null,null,null,null,null,null,null,null,null,null,null,null,null,null,null,null,null,null,null,null,null,null,null,null,null,null,null,null,null,null,null,null,null,null,null,null,null,null,null,null,null,null,null,null,null,null,null,null,null,null,null,null,null,null,null,null,null,null,null,null,null,null,null,null,null,null,null,null,null,null,null,null,null,null,null,null,null,null,null,null,null,null,null,null,null,null,null,null,null,null,null,null,null,null,null,null,null,null,null,null,null,null,null,null,null,null,null,null,null,null,null,null,null,null,null,null,null,null,null,null,null,null,null,null,null,null,null,null,null,null,null,null,null,null,null,null,null,null,null,null,null,null,null,null,null,null,null,null,null,null,null,null,null,null,null,null,null,null,null,null,null,null,null,null,null,null,null,null,null,null,null,null,null,null,null,null,null,null,null,null,null,null,null,null,null,null,null,null,null,null,null,null,null,null,null,null,null,null,null,null,null,null,null,null,null,null,null,null,null,null,null,null,null,null,null,null,null,null,null,null,null,null,null,null,null,null,null,null,null,null,null,null,null,null,null,null,null,null,null,null,null,null,null,null,null,null,null,null,null,null,null,null,null,null,null,null,null,null,null,null,null,null,null,null,null,null,null,null,null,null,null,null,null,null,null,null,null,null,null,null,null,null,null,null,null,null,null,null,null,null,null,null,null,null,null,null,null,null,null,null,null,null,null,null,null,null,null,null,null,null,null,null,null,null,null,null,null,null,null,null,null,null,null,null,null,null,null,null,null,null,null,null,null,null,null,null,null,null,null,null,null,null,null,null,null,null,null,null,null,null,null,null,null,null,null,null,null,null,null,null,null,null,null,null,null,null,null,null,null,null,null,null,null,null,null,null,null,null,null,null,null,null,null,null,null,null,null,null,null,null,null,null,null,null,null,null,null,null,null,null,null,null,null,null,null,null,null,null,null,null,null,null,null,null,null,null,null,null,null,null,null,null,null,null,null,null,null,null,null,null,null,null,null,null,null,null,null,null,null,null,null,null,null,null,null,null,null,null,null,null,null,null,null,null,null,null,null,null,null,null,null,null,null,null,null,null,null,null,null,null,null,null,null,null,null,null,null,null,null,null,null,null,null,null,null,null,null,null,null,null,null,null,null,null,null,null,null,null,null,null,null,null,null,null,null,null,null,null,null,null,null,null,null,null,null,null,null,null,null,null,null,null,null,null,null,null,null,null,null,null,null,null,null,null,null,null,null,null,null,null,null,null,null,null,null,null,null,null,null,null,null,null,null,null,null,null,null,null,null,null,null,null,null,null,null,null,null,null,null,null,null,null,null,null,null,null,null,null,null,null,null,null,null,null,null,null,null,null,null,null,null,null,null,null,null,null,null,null,null,null,null,null,null,null,null,null,null,null,null,null,null,null,null,null,null,null,null,null,null,null,null,null,null,null,null,null,null,null,null,null,null,null,null,null,null,null,null,null,null,null,null,null,null,null,null,null,null,null,null,null,null,null,null,null,null,null,null,null,null,null,null,null,null,null,null,null,null,null,null,null,null,null,null,null,null,null,null,null,null,null,null,null,null,null,null,null,null,null,null,null,null,null,null,null,null,null,null,null,null,null,null,null,null,null,null,null,null,null,null,null,null,null,null,null,null,null,null,null,null,null,null,null,null,null,null,null,null,null,null,null,null,null,null,null,null,null,null,null,null,null,null,null,null,null,null,null,null,null,null,null,null,null,null,null,null,null,null,null,null,null,null,null,null,null,null,null,null,null,null,null,null,null,null,null,null,null,null,null,null,null,null,null,null,null,null,null,null,null,null,null,null,null,null,null,null,null,null,null,null,null,null,null,null,null,null,null,null,null,null,null,null,null,null,null,null,null,null,null,null,null,null,null,null,null,null,null,null,null,null,null,null,null,null,null,null,null,null,null,null,null,null,null,null,null,null,null,null,null,null,null,null,null,null,null,null,null,null,null,null,null,null,null,null,null,null,null,null,null,null,null,null,null,null,null,null,null,null,null,null,null,null,null,null,null,null,null,null,null,null,null,null,null,null,null,null,null,null,null,null,null,null,null,null,null,null,null,null,null,null,null,null,null,null,null,null,null,null,null,null,null,null,null,null,null,null,null,null,null,null,null,null,null,null,null,null,null,null,null,null,null,null,null,null,null,null,null,null,null,null,null,null,null,null,null,null,null,null,null,null,null,null,null,null,null,null,null,null,null,null,null,null,null,null,null,null,null,null,null,null,null,null,null,null,null,null,null,null,null,null,null,null,null,null,null,null,null,null,null,null,null,null,null,null,null,null,null,null,null,null,null,null,null,null,null,null,null,null,null,null,null,null,null,null,null,null,null,null,null,null,null,null,null,null,null,null,null,null,null,null,null,null,null,null,null,null,null,null,null,null,null,null,null,null,null,null,null,null,null,null,null,null,null,null,null,null,null,null,null,null,null,null,null,null,null,null,null,null,null,null,null,null,null,null,null,null,null,null,null,null,null,null,null,null,null,null,null,null,null,null,null,null,null,null,null,null,null,null,null,null,null,null,null,null,null,null,null,null,null,null,null,null,null,null,null,null,null,null,null,null,null,null,null,null,null,null,null,null,null,null,null,null,null,null,null,null,null,null,null,null,null,null,null,null,null,null,null,null,null,null,null,null,null,null,null,null,null,null,null,null,null,null,null,null,null,null,null,null,null,null,null,null,null,null,null,null,null,null,null,null,null,null,null,null,null,null,null,null,null,null,null,null,null,null,null,null,null,null,null,null,null,null,null,null,null,null,null,null,null,null,null,null,null,null,null,null,null,null,null,null,null,null,null,null,null,null,null,null,null,null,null,null,null,null,null,null,null,null,null,null,null,null,null,null,null,null,null,null,null,null,null,null,null,null,null,null,null,null,null,null,null,null,null,null,null,null,null,null,null,null,null,null,null,null,null,null,null,null,null,null,null,null,null,null,null,null,null,null,null,null,null,null,null,null,null,null,null,null,null,null,null,null,null,null,null,null,null,null,null,null,null,null,null,null,null,null,null,null,null,null,null,null,null,null,null,null,null,null,null,null,null,null,null,null,null,null,null,null,null,null,null,null,null,null,null,null,null,null,null,null,null,null,null,null,null,null,null,null,null,null,null,null,null,null,null,null,null,null,null,null,null,null,null,null,null,null,null,null,null,null,null,null,null,null,null,null,null,null,null,null,null,null,null,null,null,null,null,null,null,null,null,null,null,null,null,null,null,null,null,null,null,null,null,null,null,null,null,null,null,null,null,null,null,null,null,null,null,null,null,null,null,null,null,null,null,null,null,null,null,null,null,null,null,null,null,null,null,null,null,null,null,null,null,null,null,null,null,null,null,null,null,null,null,null,null,null,null,null,null,null,null,null,null,null,null,null,null,null,null,null,null,null,null,null,null,null,null,null,null,null,null,null,null,null,null,null,null,null,null,null,null,null,null,null,null,null,null,null,null,null,null,null,null,null,null,null,null,null,null,null,null,null,null,null,null,null,null,null,null,null,null,null,null,null,null,null,null,null,null,null,null,null,null,null,null,null,null,null,null,null,null,null,null,null,null,null,null,null,null,null,null,null,null,null,null,null,null,null,null,null,null,null,null,null,null,null,null,null,null,null,null,null,null,null,null,null,null,null,null,null,null,null,null,null,null,null,null,null,null,null,null,null,null,null,null,null,null,null,null,null,null,null,null,null,null,null,null,null,null,null,null,null,null,null,null,null,null,null,null,null,null,null,null,null,null,null,null,null,null,null,null,null,null,null,null,null,null,null,null,null,null,null,null,null,null,null,null,null,null,null,null,null,null,null,null,null,null,null,null,null,null,null,null,null,null,null,null,null,null,null,null,null,null,null,null,null,null,null,null,null,null,null,null,null,null,null,null,null,null,null,null,null,null,null,null,null,null,null,null,null,null,null,null,null,null,null,null,null,null,null,null,null,null,null,null,null,null,null,null,null,null,null,null,null,null,null,null,null,null,null,null,null,null,null,null,null,null,null,null,null,null,null,null,null,null,null,null,null,null,null,null,null,null,null,null,null,null,null,null,null,null,null,null,null,null,null,null,null,null,null,null,null,null,null,null,null,null,null,null,null,null,null,null,null,null,null,null,null,null,null,null,null,null,null,null,null,null,null,null,null,null,null,null,null,null,null,null,null,null,null,null,null,null,null,null,null,null,null,null,null,null,null,null,null,null,null,null,null,null,null,null,null,null,null,null,null,null,null,null,null,null,null,null,null,null,null,null,null,null,null,null,null,null,null,null,null,null,null,null,null,null,null,null,null,null,null,null,null,null,null,null,null,null,null,null,null,null,null,null,null,null,null,null,null,null,null,null,null,null,null,null,null,null,null,null,null,null,null,null,null,null,null,null,null,null,null,null,null,null,null,null,null,null,null,null,null,null,null,null,null,null,null,null,null,null,null,null,null,null,null,null,null,null,null,null,null,null,null,null,null,null,null,null,null,null,null,null,null,null,null,null,null,null,null,null,null,null,null,null,null,null,null,null,null,null,null,null,null,null,null,null,null,null,null,null,null,null,null,null,null,null,null,null,null,null,null,null,null,null,null,null,null,null,null,null,null,null,null,null,null,null,null,null,null,null,null,null,null,null,null,null,null,null,null,null,null,null,null,null,null,null,null,null,null,null,null,null,null,null,null,null,null,null,null,null,null,null,null,null,null,null,null,null,null,null,null,null,null,null,null,null,null,null,null,null,null,null,null,null,null,null,null,null,null,null,null,null,null,null,null,null,null,null,null,null,null,null,null,null,null,null,null,null,null,null,null,null,null,null,null,null,null,null,null,null,null,null,null,null,null,null,null,null,null,null,null,null,null,null,null,null,null,null,null,null,null,null,null,null,null,null,null,null,null,null,null,null,null,null,null,null,null,null,null,null,null,null,null,null,null,null,null,null,null,null,null,null,null,null,null,null,null,null,null,null,null,null,null,null,null,null,null,null,null,null,null,null,null,null,null,null,null,null,null,null,null,null,null,null,null,null,null,null,null,null,null,null,null,null,null,null,null,null,null,null,null,null,null,null,null,null,null,null,null,null,null,null,null,null,null,null,null,null,null,null,null,null,null,null,null,null,null,null,null,null,null,null,null,null,null,null,null,null,null,null,null,null,null,null,null,null,null,null,null,null,null,null,null,null,null,null,null,null,null,null,null,null,null,null,null,null,null,null,null,null,null,null,null,null,null,null,null,null,null,null,null,null,null,null,null,null,null,null,null,null,null,null,null,null,null,null,null,null,null,null,null,null,null,null,null,null,null,null,null,null,null,null,null,null,null,null,null,null,null,null,null,null,null,null,null,null,null,null,null,null,null,null,null,null,null,null,null,null,null,null,null,null,null,null,null,null,null,null,null,null,null,null,null,null,null,null,null,null,null,null,null,null,null,null,null,null,null,null,null,null,null,null,null,null,null,null,null,null,null,null,null,null,null,null,null,null,null,null,null,null,null,null,null,null,null,null,null,null,null,null,null,null,null,null,null,null,null,null,null,null,null,null,null,null,null,null,null,null,null,null,null,null,null,null,null,null,null,null,null,null,null,null,null,null,null,null,null,null,null,null,null,null,null,null,null,null,null,null,null,null,null,null,null,null,null,null,null,null,null,null,null,null,null,null,null,null,null,null,null,null,null,null,null,null,null,null,null,null,null,null,null,null,null,null,null,null,null,null,null,null,null,null,null,null,null,null,null,null,null,null,null,null,null,null,null,null,null,null,null,null,null,null,null,null,null,null,null,null,null,null,null,null,null,null,null,null,null,null,null,null,null,null,null,null,null,null,null,null,null,null,null,null,null,null,null,null,null,null,null,null,null,null,null,null,null,null,null,null,null,null,null,null,null,null,null,null,null,null,null,null,null,null,null,null,null,null,null,null,null,null,null,null,null,null,null,null,null,null,null,null,null,null,null,null,null,null,null,null,null,null,null,null,null,null,null,null,null,null,null,null,null,null,null,null,null,null,null,null,null,null,null,null,null,null,null,null,null,null,null,null,null,null,null,null,null,null,null,null,null,null,null,null,null,null,null,null,null,null,null,null,null,null,null,null,null,null,null,null,null,null,null,null,null,null,null,null,null,null,null,null,null,null,null,null,null,null,null,null,null,null,null,null,null,null,null,null,null,null,null,null,null,null,null,null,null,null,null,null,null,null,null,null,null,null,null,null,null,null,null,null,null,null,null,null,null,null,null,null,null,null,null,null,null,null,null,null,null,null,null,null,null,null,null,null,null,null,null,null,null,null,null,null,null,null,null,null,null,null,null,null,null,null,null,null,null,null,null,null,null,null,null,null,null,null,null,null,null,null,null,null,null,null,null,null,null,null,null,null,null,null,null,null,null,null,null,null,null,null,null,null,null,null,null,null,null,null,null,null,null,null,null,null,null,null,null,null,null,null,null,null,null,null,null,null,null,null,null,null,null,null,null,null,null,null,null,null,null,null,null,null,null,null,null,null,null,null,null,null,null,null,null,null,null,null,null,null,null,null,null,null,null,null,null,null,null,null,null,null,null,null,null,null,null,null,null,null,null,null,null,null,null,null,null,null,null,null,null,null,null,null,null,null,null,null,null,null,null,null,null,null,null,null,null,null,null,null,null,null,null,null,null,null,null,null,null,null,null,null,null,null,null,null,null,null,null,null,null,null,null,null,null,null,null,null,null,null,null,null,null,null,null,null,null,null,null,null,null,null,null,null,null,null,null,null,null,null,null,null,null,null,null,null,null,null,null,null,null,null,null,null,null,null,null,null,null,null,null,null,null,null,null,null,null,null,null,null,null,null,null,null,null,null,null,null,null,null,null,null,null,null,null,null,null,null,null,null,null,null,null,null,null,null,null,null,null,null,null,null,null,null,null,null,null,null,null,null,null,null,null,null,null,null,null,null,null,null,null,null,null,null,null,null,null,null,null,null,null,null,null,null,null,null,null,null,null,null,null,null,null,null,null,null,null,null,null,null,null,null,null,null,null,null,null,null,null,null,null,null,null,null,null,null,null,null,null,null,null,null,null,null,null,null,null,null,null,null,null,null,null,null,null,null,null,null,null,null,null,null,null,null,null,null,null,null,null,null,null,null,null,null,null,null,null,null,null,null,null,null,null,null,null,null,null,null,null,null,null,null,null,null,null,null,null,null,null,null,null,null,null,null,null,null,null,null,null,null,null,null,null,null,null,null,null,null,null,null,null,null,null,null,null,null,null,null,null,null,null,null,null,null,null,null,null,null,null,null,null,null,null,null,null,null,null,null,null,null,null,null,null,null,null,null,null,null,null,null,null,null,null,null,null,null,null,null,null,null,null,null,null,null,null,null,null,null,null,null,null,null,null,null,null,null,null,null,null,null,null,null,null,null,null,null,null,null,null,null,null,null,null,null,null,null,null,null,null,null,null,null,null,null,null,null,null,null,null,null,null,null,null,null,null,null,null,null,null,null,null,null,null,null,null,null,null,null,null,null,null,null,null,null,null,null,null,null,null,null,null,null,null,null,null,null,null,null,null,null,null,null,null,null,null,null,null,null,null,null,null,null,null,null,null,null,null,null,null,null,null,null,null,null,null,null,null,null,null,null,null,null,null,null,null,null,null,null,null,null,null,null,null,null,null,null,null,null,null,null,null,null,null,null,null,null,null,null,null,null,null,null,null,null,null,null,null,null,null,null,null,null,null,null,null,null,null,null,null,null,null,null,null,null,null,null,null,null,null,null,null,null,null,null,null,null,null,null,null,null,null,null,null,null,null,null,null,null,null,null,null,null,null,null,null,null,null,null,null,null,null,null,null,null,null,null,null,null,null,null,null,null,null,null,null,null,null,null,null,null,null,null,null,null,null,null,null,null,null,null,null,null,null,null,null,null,null,null,null,null,null,null,null,null,null,null,null,null,null,null,null,null,null,null,null,null,null,null,null,null,null,null,null,null,null,null,null,null,null,null,null,null,null,null,null,null,null,null,null,null,null,null,null,null,null,null,null,null,null,null,null,null,null,null,null,null,null,null,null,null,null,null,null,null,null,null,null,null,null,null,null,null,null,null,null,null,null,null,null,null,null,null,null,null,null,null,null,null,null,null,null,null,null,null,null,null,null,null,null,null,null,null,null,null,null,null,null,null,null,null,null,null,null,null,null,null,null,null,null,null,null,null,null,null,null,null,null,null,null,null,null,null,null,null,null,null,null,null,null,null,null,null,null,null,null,null,null,null,null,null,null,null,null,null,null,null,null,null,null,null,null,null,null,null,null,null,null,null,null,null,null,null,null,null,null,null,null,null,null,null,null,null,null,null,null,null,null,null,null,null,null,null,null,null,null,null,null,null,null,null,null,null,null,null,null,null,null,null,null,null,null,null,null,null,null,null,null,null,null,null,null,null,null,null,null,null,null,null,null,null,null,null,null,null,null,null,null,null,null,null,null,null,null,null,null,null,null,null,null,null,null,null,null,null,null,null,null,null,null,null,null,null,null,null,null,null,null,null,null,null,null,null,null,null,null,null,null,null,null,null,null,null,null,null,null,null,null,null,null,null,null,null,null,null,null,null,null,null,null,null,null,null,null,null,null,null,null,null,null,null,null,null,null,null,null,null,null,null,null,null,null,null,null,null,null,null,null,null,null,null,null,null,null,null,null,null,null,null,null,null,null,null,null,null,null,null,null,null,null,null,null,null,null,null,null,null,null,null,null,null,null,null,null,null,null,null,null,null,null,null,null,null,null,null,null,null,null,null,null,null,null,null,null,null,null,null,null,null,null,null,null,null,null,null,null,null,null,null,null,null,null,null,null,null,null,null,null,null,null,null,null,null,null,null,null,null,null,null,null,null,null,null,null,null,null,null,null,null,null,null,null,null,null,null,null,null,null,null,null,null,null,null,null,null,null,null,null,null,null,null,null,null,null,null,null,null,null,null,null,null,null,null,null,null,null,null,null,null,null,null,null,null,null,null,null,null,null,null,null,null,null,null,null,null,null,null,null,null,null,null,null,null,null,null,null,null,null,null,null,null,null,null,null,null,null,null,null,null,null,null,null,null,null,null,null,null,null,null,null,null,null,null,null,null,null,null,null,null,null,null,null,null,null,null,null,null,null,null,null,null,null,null,null,null,null,null,null,null,null,null,null,null,null,null,null,null,null,null,null,null,null,null,null,null,null,null,null,null,null,null,null,null,null,null,null,null,null,null,null,null,null,null,null,null,null,null,null,null,null,null,null,null,null,null,null,null,null,null,null,null,null,null,null,null,null,null,null,null,null,null,null,null,null,null,null,null,null,null,null,null,null,null,null,null,null,null,null,null,null,null,null,null,null,null,null,null,null,null,null,null,null,null,null,null,null,null,null,null,null,null,null,null,null,null,null,null,null,null,null,null,null,null,null,null,null,null,null,null,null,null,null,null,null,null,null,null,null,null,null,null,null,null,null,null,null,null,null,null,null,null,null,null,null,null,null,null,null,null,null,null,null,null,null,null,null,null,null,null,null,null,null,null,null,null,null,null,null,null,null,null,null,null,null,null,null,null,null,null,null,null,null,null,null,null,null,null,null,null,null,null,null,null,null,null,null,null,null,null,null,null,null,null,null,null,null,null,null,null,null,null,null,null,null,null,null,null,null,null,null,null,null,null,null,null,null,null,null,null,null,null,null,null,null,null,null,null,null,null,null,null,null,null,null,null,null,null,null,null,null,null,null,null,null,null,null,null,null,null,null,null,null,null,null,null,null,null,null,null,null,null,null,null,null,null,null,null,null,null,null,null,null,null,null,null,null,null,null,null,null,null,null,null,null,null,null,null,null,null,null,null,null,null,null,null,null,null,null,null,null,null,null,null,null,null,null,null,null,null,null,null,null,null,null,null,null,null,null,null,null,null,null,null,null,null,null,null,null,null,null,null,null,null,null,null,null,null,null,null,null,null,null,null,null,null,null,null,null,null,null,null,null,null,null,null,null,null,null,null,null,null,null,null,null,null,null,null,null,null,null,null,null,null,null,null,null,null,null,null,null,null,null,null,null,null,null,null,null,null,null,null,null,null,null,null,null,null,null,null,null,null,null,null,null,null,null,null,null,null,null,null,null,null,null,null,null,null,null,null,null,null,null,null,null,null,null,null,null,null,null,null,null,null,null,null,null,null,null,null,null,null,null,null,null,null,null,null,null,null,null,null,null,null,null,null,null,null,null,null,null,null,null,null,null,null,null,null,null,null,null,null,null,null,null,null,null,null,null,null,null,null,null,null,null,null,null,null,null,null,null,null,null,null,null,null,null,null,null,null,null,null,null,null,null,null,null,null,null,null,null,null,null,null,null,null,null,null,null,null,null,null,null,null,null,null,null,null,null,null,null,null,null,null,null,null,null,null,null,null,null,null,null,null,null,null,null,null,null,null,null,null,null,null,null,null,null,null,null,null,null,null,null,null,null,null,null,null,null,null,null,null,null,null,null,null,null,null,null,null,null,null,null,null,null,null,null,null,null,null,null,null,null,null,null,null,null,null,null,null,null,null,null,null,null,null,null,null,null,null,null,null,null,null,null,null,null,null,null,null,null,null,null,null,null,null,null,null,null,null,null,null,null,null,null,null,null,null,null,null,null,null,null,null,null,null,null,null,null,null,null,null,null,null,null,null,null,null,null,null,null,null,null,null,null,null,null,null,null,null,null,null,null,null,null,null,null,null,null,null,null,null,null,null,null,null,null,null,null,null,null,null,null,null,null,null,null,null,null,null,null,null,null,null,null,null,null,null,null,null,null,null,null,null,null,null,null,null,null,null,null,null,null,null,null,null,null,null,null,null,null,null,null,null,null,null,null,null,null,null,null,null,null,null,null,null,null,null,null,null,null,null,null,null,null,null,null,null,null,null,null,null,null,null,null,null,null,null,null,null,null,null,null,null,null,null,null,null,null,null,null,null,null,null,null,null,null,null,null,null,null,null,null,null,null,null,null,null,null,null,null,null,null,null,null,null,null,null,null,null,null,null,null,null,null,null,null,null,null,null,null,null,null,null,null,null,null,null,null,null,null,null,null,null,null,null,null,null,null,null,null,null,null,null,null,null,null,null,null,null,null,null,null,null,null,null,null,null,null,null,null,null,null,null,null,null,null,null,null,null,null,null,null,null,null,null,null,null,null,null,null,null,null,null,null,null,null,null,null,null,null,null,null,null,null,null,null,null,null,null,null,null,null,null,null,null,null,null,null,null,null,null,null,null,null,null,null,null,null,null,null,null,null,null,null,null,null,null,null,null,null,null,null,null,null,null,null,null,null,null,null,null,null,null,null,null,null,null,null,null,null,null,null,null,null,null,null,null,null,null,null,null,null,null,null,null,null,null,null,null,null,null,null,null,null,null,null,null,null,null,null,null,null,null,null,null,null,null,null,null,null,null,null,null,null,null,null,null,null,null,null,null,null,null,null,null,null,null,null,null,null,null,null,null,null,null,null,null,null,null,null,null,null,null,null,null,null,null,null,null,null,null,null,null,null,null,null,null,null,null,null,null,null,null,null,null,null,null,null,null,null,null,null,null,null,null,null,null,null,null,null,null,null,null,null,null,null,null,null,null,null,null,null,null,null,null,null,null,null,null,null,null,null,null,null,null,null,null,null,null,null,null,null,null,null,null,null,null,null,null,null,null,null,null,null,null,null,null,null,null,null,null,null,null,null,null,null,null,null,null,null,null,null,null,null,null,null,null,null,null,null,null,null,null,null,null,null,null,null,null,null,null,null,null,null,null,null,null,null,null,null,null,null,null,null,null,null,null,null,null,null,null,null,null,null,null,null,null,null,null,null,null,null,null,null,null,null,null,null,null,null,null,null,null,null,null,null,null,null,null,null,null,null,null,null,null,null,null,null,null,null,null,null,null,null,null,null,null,null,null,null,null,null,null,null,null,null,null,null,null,null,null,null,null,null,null,null,null,null,null,null,null,null,null,null,null,null,null,null,null,null,null,null,null,null,null,null,null,null,null,null,null,null,null,null,null,null,null,null,null,null,null,null,null,null,null,null,null,null,null,null,null,null,null,null,null,null,null,null,null,null,null,null,null,null,null,null,null,null,null,null,null,null,null,null,null,null,null,null,null,null,null,null,null,null,null,null,null,null,null,null,null,null,null,null,null,null,null,null,null,null,null,null,null,null,null,null,null,null,null,null,null,null,null,null,null,null,null,null,null,null,null,null,null,null,null,null,null,null,null,null,null,null,null,null,null,null,null,null,null,null,null,null,null,null,null,null,null,null,null,null,null,null,null,null,null,null,null,null,null,null,null,null,null,null,null,null,null,null,null,null,null,null,null,null,null,null,null,null,null,null,null,null,null,null,null,null,null,null,null,null,null,null,null,null,null,null,null,null,null,null,null,null,null,null,null,null,null,null,null,null,null,null,null,null,null,null,null,null,null,null,null,null,null,null,null,null,null,null,null,null,null,null,null,null,null,null,null,null,null,null,null,null,null,null,null,null,null,null,null,null,null,null,null,null,null,null,null,null,null,null,null,null,null,null,null,null,null,null,null,null,null,null,null,null,null,null,null,null,null,null,null,null,null,null,null,null,null,null,null,null,null,null,null,null,null,null,null,null,null,null,null,null,null,null,null,null,null,null,null,null,null,null,null,null,null,null,null,null,null,null,null,null,null,null,null,null,null,null,null,null,null,null,null,null,null,null,null,null,null,null,null,null,null,null,null,null,null,null,null,null,null,null,null,null,null,null,null,null,null,null,null,null,null,null,null,null,null,null,null,null,null,null,null,null,null,null,null,null,null,null,null,null,null,null,null,null,null,null,null,null,null,null,null,null,null,null,null,null,null,null,null,null,null,null,null,null,null,null,null,null,null,null,null,null,null,null,null,null,null,null,null,null,null,null,null,null,null,null,null,null,null,null,null,null,null,null,null,null,null,null,null,null,null,null,null,null,null,null,null,null,null,null,null,null,null,null,null,null,null,null,null,null,null,null,null,null,null,null,null,null,null,null,null,null,null,null,null,null,null,null,null,null,null,null,null,null,null,null,null,null,null,null,null,null,null,null,null,null,null,null,null,null,null,null,null,null,null,null,null,null,null,null,null,null,null,null,null,null,null,null,null,null,null,null,null,null,null,null,null,null,null,null,null,null,null,null,null,null,null,null,null,null,null,null,null,null,null,null,null,null,null,null,null,null,null,null,null,null,null,null,null,null,null,null,null,null,null,null,null,null,null,null,null,null,null,null,null,null,null,null,null,null,null,null,null,null,null,null,null,null,null,null,null,null,null,null,null,null,null,null,null,null,null,null,null,null,null,null,null,null,null,null,null,null,null,null,null,null,null,null,null,null,null,null,null,null,null,null,null,null,null,null,null,null,null,null,null,null,null,null,null,null,null,null,null,null,null,null,null,null,null,null,null,null,null,null,null,null,null,null,null,null,null,null,null,null,null,null,null,null,null,null,null,null,null,null,null,null,null,null,null,null,null,null,null,null,null,null,null,null,null,null,null,null,null,null,null,null,null,null,null,null,null,null,null,null,null,null,null,null,null,null,null,null,null,null,null,null,null,null,null,null,null,null,null,null,null,null,null,null,null,null,null,null,null,null,null,null,null,null,null,null,null,null,null,null,null,null,null,null,null,null,null,null,null,null,null,null,null,null,null,null,null,null,null,null,null,null,null,null,null,null,null,null,null,null,null,null,null,null,null,null,null,null,null,null,null,null,null,null,null,null,null,null,null,null,null,null,null,null,null,null,null,null,null,null,null,null,null,null,null,null,null,null,null,null,null,null,null,null,null,null,null,null,null,null,null,null,null,null,null,null,null,null,null,null,null,null,null,null,null,null,null,null,null,null,null,null,null,null,null,null,null,null,null,null,null,null,null,null,null,null,null,null,null,null,null,null,null,null,null,null,null,null,null,null,null,null,null,null,null,null,null,null,null,null,null,null,null,null,null,null,null,null,null,null,null,null,null,null,null,null,null,null,null,null,null,null,null,null,null,null,null,null,null,null,null,null,null,null,null,null,null,null,null,null,null,null,null,null,null,null,null,null,null,null,null,null,null,null,null,null,null,null,null,null,null,null,null,null,null,null,null,null,null,null,null,null,null,null,null,null,null,null,null,null,null,null,null,null,null,null,null,null,null,null,null,null,null,null,null,null,null,null,null,null,null,null,null,null,null,null,null,null,null,null,null,null,null,null,null,null,null,null,null,null,null,null,null,null,null,null,null,null,null,null,null,null,null,null,null,null,null,null,null,null,null,null,null,null,null,null,null,null,null,null,null,null,null,null,null,null,null,null,null,null,null,null,null,null,null,null,null,null,null,null,null,null,null,null,null,null,null,null,null,null,null,null,null,null,null,null,null,null,null,null,null,null,null,null,null,null,null,null,null,null,null,null,null,null,null,null,null,null,null,null,null,null,null,null,null,null,null,null,null,null,null,null,null,null,null,null,null,null,null,null,null,null,null,null,null,null,null,null,null,null,null,null,null,null,null,null,null,null,null,null,null,null,null,null,null,null,null,null,null,null,null,null,null,null,null,null,null,null,null,null,null,null,null,null,null,null,null,null,null,null,null,null,null,null,null,null,null,null,null,null,null,null,null,null,null,null,null,null,null,null,null,null,null,null,null,null,null,null,null,null,null,null,null,null,null,null,null,null,null,null,null,null,null,null,null,null,null,null,null,null,null,null,null,null,null,null,null,null,null,null,null,null,null,null,null,null,null,null,null,null,null,null,null,null,null,null,null,null,null,null,null,null,null,null,null,null,null,null,null,null,null,null,null,null,null,null,null,null,null,null,null,null,null,null,null,null,null,null,null,null,null,null,null,null,null,null,null,null,null,null,null,null,null,null,null,null,null,null,null,null,null,null,null,null,null,null,null,null,null,null,null,null,null,null,null,null,null,null,null,null,null,null,null,null,null,null,null,null,null,null,null,null,null,null,null,null,null,null,null,null,null,null,null,null,null,null,null,null,null,null,null,null,null,null,null,null,null,null,null,null,null,null,null,null,null,null,null,null,null,null,null,null,null,null,null,null,null,null,null,null,null,null,null,null,null,null,null,null,null,null,null,null,null,null,null,null,null,null,null,null,null,null,null,null,null,null,null,null,null,null,null,null,null,null,null,null,null,null,null,null,null,null,null,null,null,null,null,null,null,null,null,null,null,null,null,null,null,null,null,null,null,null,null,null,null,null,null,null,null,null,null,null,null,null,null,null,null,null,null,null,null,null,null,null,null,null,null,null,null,null,null,null,null,null,null,null,null,null,null,null,null,null,null,null,null,null,null,null,null,null,null,null,null,null,null,null,null,null,null,null,null,null,null,null,null,null,null,null,null,null,null,null,null,null,null,null,null,null,null,null,null,null,null,null,null,null,null,null,null,null,null,null,null,null,null,null,null,null,null,null,null,null,null,null,null,null,null,null,null,null,null,null,null,null,null,null,null,null,null,null,null,null,null,null,null,null,null,null,null,null,null,null,null,null,null,null,null,null,null,null,null,null,null,null,null,null,null,null,null,null,null,null,null,null,null,null,null,null,null,null,null,null,null,null,null,null,null,null,null,null,null,null,null,null,null,null,null,null,null,null,null,null,null,null,null,null,null,null,null,null,null,null,null,null,null,null,null,null,null,null,null,null,null,null,null,null,null,null,null,null,null,null,null,null,null,null,null,null,null,null,null,null,null,null,null,null,null,null,null,null,null,null,null,null,null,null,null,null,null,null,null,null,null,null,null,null,null,null,null,null,null,null,null,null,null,null,null,null,null,null,null,null,null,null,null,null,null,null,null,null,null,null,null,null,null,null,null,null,null,null,null,null,null,null,null,null,null,null,null,null,null,null,null,null,null,null,null,null,null,null,null,null,null,null,null,null,null,null,null,null,null,null,null,null,null,null,null,null,null,null,null,null,null,null,null,null,null,null,null,null,null,null,null,null,null,null,null,null,null,null,null,null,null,null,null,null,null,null,null,null,null,null,null,null,null,null,null,null,null,null,null,null,null,null,null,null,null,null,null,null,null,null,null,null,null,null,null,null,null,null,null,null,null,null,null,null,null,null,null,null,null,null,null,null,null,null,null,null,null,null,null,null,null,null,null,null,null,null,null,null,null,null,null,null,null,null,null,null,null,null,null,null,null,null,null,null,null,null,null,null,null,null,null,null,null,null,null,null,null,null,null,null,null,null,null,null,null,null,null,null,null,null,null,null,null,null,null,null,null,null,null,null,null,null,null,null,null,null,null,null,null,null,null,null,null,null,null,null,null,null,null,null,null,null,null,null,null,null,null,null,null,null,null,null,null,null,null,null,null,null,null,null,null,null,null,null,null,null,null,null,null,null,null,null,null,null,null,null,null,null,null,null,null,null,null,null,null,null,null,null,null,null,null,null,null,null,null,null,null,null,null,null,null,null,null,null,null,null,null,null,null,null,null,null,null,null,null,null,null,null,null,null,null,null,null,null,null,null,null,null,null,null,null,null,null,null,null,null,null,null,null,null,null,null,null,null,null,null,null,null,null,null,null,null,null,null,null,null,null,null,null,null,null,null,null,null,null,null,null,null,null,null,null,null,null,null,null,null,null,null,null,null,null,null,null,null,null,null,null,null,null,null,null,null,null,null,null,null,null,null,null,null,null,null,null,null,null,null,null,null,null,null,null,null,null,null,null,null,null,null,null,null,null,null,null,null,null,null,null,null,null,null,null,null,null,null,null,null,null,null,null,null,null,null,null,null,null,null,null,null,null,null,null,null,null,null,null,null,null,null,null,null,null,null,null,null,null,null,null,null,null,null,null,null,null,null,null,null,null,null,null,null,null,null,null,null,null,null,null,null,null,null,null,null,null,null,null,null,null,null,null,null,null,null,null,null,null,null,null,null,null,null,null,null,null,null,null,null,null,null,null,null,null,null,null,null,null,null,null,null,null,null,null,null,null,null,null,null,null,null,null,null,null,null,null,null,null,null,null,null,null,null,null,null,null,null,null,null,null,null,null,null,null,null,null,null,null,null,null,null,null,null,null,null,null,null,null,null,null,null,null,null,null,null,null,null,null,null,null,null,null,null,null,null,null,null,null,null,null,null,null,null,null,null,null,null,null,null,null,null,null,null,null,null,null,null,null,null,null,null,null,null,null,null,null,null,null,null,null,null,null,null,null,null,null,null,null,null,null,null,null,null,null,null,null,null,null,null,null,null,null,null,null,null,null,null,null,null,null,null,null,null,null,null,null,null,null,null,null,null,null,null,null,null,null,null,null,null,null,null,null,null,null,null,null,null,null,null,null,null,null,null,null,null,null,null,null,null,null,null,null,null,null,null,null,null,null,null,null,null,null,null,null,null,null,null,null,null,null,null,null,null,null,null,null,null,null,null,null,null,null,null,null,null,null,null,null,null,null,null,null,null,null,null,null,null,null,null,null,null,null,null,null,null,null,null,null,null,null,null,null,null,null,null,null,null,null,null,null,null,null,null,null,null,null,null,null,null,null,null,null,null,null,null,null,null,null,null,null,null,null,null,null,null,null,null,null,null,null,null,null,null,null,null,null,null,null,null,null,null,null,null,null,null,null,null,null,null,null,null,null,null,null,null,null,null,null,null,null,null,null,null,null,null,null,null,null,null,null,null,null,null,null,null,null,null,null,null,null,null,null,null,null,null,null,null,null,null,null,null,null,null,null,null,null,null,null,null,null,null,null,null,null,null,null,null,null,null,null,null,null,null,null,null,null,null,null,null,null,null,null,null,null,null,null,null,null,null,null,null,null,null,null,null,null,null,null,null,null,null,null,null,null,null,null,null,null,null,null,null,null,null,null,null,null,null,null,null,null,null,null,null,null,null,null,null,null,null,null,null,null,null,null,null,null,null,null,null,null,null,null,null,null,null,null,null,null,null,null,null,null,null,null,null,null,null,null,null,null,null,null,null,null,null,null,null,null,null,null,null,null,null,null,null,null,null,null,null,null,null,null,null,null,null,null,null,null,null,null,null,null,null,null,null,null,null,null,null,null,null,null,null,null,null,null,null,null,null,null,null,null,null,null,null,null,null,null,null,null,null,null,null,null,null,null,null,null,null,null,null,null,null,null,null,null,null,null,null,null,null,null,null,null,null,null,null,null,null,null,null,null,null,null,null,null,null,null,null,null,null,null,null,null,null,null,null,null,null,null,null,null,null,null,null,null,null,null,null,null,null,null,null,null,null,null,null,null,null,null,null,null,null,null,null,null,null,null,null,null,null,null,null,null,null,null,null,null,null,null,null,null,null,null,null,null,null,null,null,null,null,null,null,null,null,null,null,null,null,null,null,null,null,null,null,null,null,null,null,null,null,null,null,null,null,null,null,null,null,null,null,null,null,null,null,null,null,null,null,null,null,null,null,null,null,null,null,null,null,null,null,null,null,null,null,null,null,null,null,null,null,null,null,null,null,null,null,null,null,null,null,null,null,null,null,null,null,null,null,null,null,null,null,null,null,null,null,null,null,null,null,null,null,null,null,null,null,null,null,null,null,null,null,null,null,null,null,null,null,null,null,null,null,null,null,null,null,null,null,null,null,null,null,null,null,null,null,null,null,null,null,null,null,null,null,null,null,null,null,null,null,null,null,null,null,null,null,null,null,null,null,null,null,null,null,null,null,null,null,null,null,null,null,null,null,null,null,null,null,null,null,null,null,null,null,null,null,null,null,null,null,null,null,null,null,null,null,null,null,null,null,null,null,null,null,null,null,null,null,null,null,null,null,null,null,null,null,null,null,null,null,null,null,null,null,null,null,null,null,null,null,null,null,null,null,null,null,null,null,null,null,null,null,null,null,null,null,null,null,null,null,null,null,null,null,null,null,null,null,null,null,null,null,null,null,null,null,null,null,null,null,null,null,null,null,null,null,null,null,null,null,null,null,null,null,null,null,null,null,null,null,null,null,null,null,null,null,null,null,null,null,null,null,null,null,null,null,null,null,null,null,null,null,null,null,null,null,null,null,null,null,null,null,null,null,null,null,null,null,null,null,null,null,null,null,null,null,null,null,null,null,null,null,null,null,null,null,null,null,null,null,null,null,null,null,null,null,null,null,null,null,null,null,null,null,null,null,null,null,null,null,null,null,null,null,null,null,null,null,null,null,null,null,null,null,null,null,null,null,null,null,null,null,null,null,null,null,null,null,null,null,null,null,null,null,null,null,null,null,null,null,null,null,null,null,null,null,null,null,null,null,null,null,null,null,null,null,null,null,null,null,null,null,null,null,null,null,null,null,null,null,null,null,null,null,null,null,null,null,null,null,null,null,null,null,null,null,null,null,null,null,null,null,null,null,null,null,null,null,null,null,null,null,null,null,null,null,null,null,null,null,null,null,null,null,null,null,null,null,null,null,null,null,null,null,null,null,null,null,null,null,null,null,null,null,null,null,null,null,null,null,null,null,null,null,null,null,null,null,null,null,null,null,null,null,null,null,null,null,null,null,null,null,null,null,null,null,null,null,null,null,null,null,null,null,null,null,null,null,null,null,null,null,null,null,null,null,null,null,null,null,null,null,null,null,null,null,null,null,null,null,null,null,null,null,null,null,null,null,null,null,null,null,null,null,null,null,null,null,null,null,null,null,null,null,null,null,null,null,null,null,null,null,null,null,null,null,null,null,null,null,null,null,null,null,null,null,null,null,null,null,null,null,null,null,null,null,null,null,null,null,null,null,null,null,null,null,null,null,null,null,null,null,null,null,null,null,null,null,null,null,null,null,null,null,null,null,null,null,null,null,null,null,null,null,null,null,null,null,null,null,null,null,null,null,null,null,null,null,null,null,null,null,null,null,null,null,null,null,null,null,null,null,null,null,null,null,null,null,null,null,null,null,null,null,null,null,null,null,null,null,null,null,null,null,null,null,null,null,null,null,null,null,null,null,null,null,null,null,null,null,null,null,null,null,null,null,null,null,null,null,null,null,null,null,null,null,null,null,null,null,null,null,null,null,null,null,null,null,null,null,null,null,null,null,null,null,null,null,null,null,null,null,null,null,null,null,null,null,null,null,null,null,null,null,null,null,null,null,null,null,null,null,null,null,null,null,null,null,null,null,null,null,null,null,null,null,null,null,null,null,null,null,null,null,null,null,null,null,null,null,null,null,null,null,null,null,null,null,null,null,null,null,null,null,null,null,null,null,null,null,null,null,null,null,null,null,null,null,null,null,null,null,null,null,null,null,null,null,null,null,null,null,null,null,null,null,null,null,null,null,null,null,null,null,null,null,null,null,null,null,null,null,null,null,null,null,null,null,null,null,null,null,null,null,null,null,null,null,null,null,null,null,null,null,null,null,null,null,null,null,null,null,null,null,null,null,null,null,null,null,null,null,null,null,null,null,null,null,null,null,null,null,null,null,null,null,null,null,null,null,null,null,null,null,null,null,null,null,null,null,null,null,null,null,null,null,null,null,null,null,null,null,null,null,null,null,null,null,null,null,null,null,null,null,null,null,null,null,null,null,null,null,null,null,null,null,null,null,null,null,null,null,null,null,null,null,null,null,null,null,null,null,null,null,null,null,null,null,null,null,null,null,null,null,null,null,null,null,null,null,null,null,null,null,null,null,null,null,null,null,null,null,null,null,null,null,null,null,null,null,null,null,null,null,null,null,null,null,null,null,null,null,null,null,null,null,null,null,null,null,null,null,null,null,null,null,null,null,null,null,null,null,null,null,null,null,null,null,null,null,null,null,null,null,null,null,null,null,null,null,null,null,null,null,null,null,null,null,null,null,null,null,null,null,null,null,null,null,null,null,null,null,null,null,null,null,null,null,null,null,null,null,null,null,null,null,null,null,null,null,null,null,null,null,null,null,null,null,null,null,null,null,null,null,null,null,null,null,null,null,null,null,null,null,null,null,null,null,null,null,null,null,null,null,null,null,null,null,null,null,null,null,null,null,null,null,null,null,null,null,null,null,null,null,null,null,null,null,null,null,null,null,null,null,null,null,null,null,null,null,null,null,null,null,null,null,null,null,null,null,null,null,null,null,null,null,null,null,null,null,null,null,null,null,null,null,null,null,null,null,null,null,null,null,null,null,null,null,null,null,null,null,null,null,null,null,null,null,null,null,null,null,null,null,null,null,null,null,null,null,null,null,null,null,null,null,null,null,null,null,null,null,null,null,null,null,null,null,null,null,null,null,null,null,null,null,null,null,null,null,null,null,null,null,null,null,null,null,null,null,null,null,null,null,null,null,null,null,null,null,null,null,null,null,null,null,null,null,null,null,null,null,null,null,null,null,null,null,null,null,null,null,null,null,null,null,null,null,null,null,null,null,null,null,null,null,null,null,null,null,null,null,null,null,null,null,null,null,null,null,null,null,null,null,null,null,null,null,null,null,null,null,null,null,null,null,null,null,null,null,null,null,null,null,null,null,null,null,null,null,null,null,null,null,null,null,null,null,null,null,null,null,null,null,null,null,null,null,null,null,null,null,null,null,null,null,null,null,null,null,null,null,null,null,null,null,null,null,null,null,null,null,null,null,null,null,null,null,null,null,null,null,null,null,null,null,null,null,null,null,null,null,null,null,null,null,null,null,null,null,null,null,null,null,null,null,null,null,null,null,null,null,null,null,null,null,null,null,null,null,null,null,null,null,null,null,null,null,null,null,null,null,null,null,null,null,null,null,null,null,null,null,null,null,null,null,null,null,null,null,null,null,null,null,null,null,null,null,null,null,null,null,null,null,null,null,null,null,null,null,null,null,null,null,null,null,null,null,null,null,null,null,null,null,null,null,null,null,null,null,null,null,null,null,null,null,null,null,null,null,null,null,null,null,null,null,null,null,null,null,null,null,null,null,null,null,null,null,null,null,null,null,null,null,null,null,null,null,null,null,null,null,null,null,null,null,null,null,null,null,null,null,null,null,null,null,null,null,null,null,null,null,null,null,null,null,null,null,null,null,null,null,null,null,null,null,null,null,null,null,null,null,null,null,null,null,null,null,null,null,null,null,null,null,null,null,null,null,null,null,null,null,null,null,null,null,null,null,null,null,null,null,null,null,null,null,null,null,null,null,null,null,null,null,null,null,null,null,null,null,null,null,null,null,null,null,null,null,null,null,null,null,null,null,null,null,null,null,null,null,null,null,null,null,null,null,null,null,null,null,null,null,null,null,null,null,null,null,null,null,null,null,null,null,null,null,null,null,null,null,null,null,null,null,null,null,null,null,null,null,null,null,null,null,null,null,null,null,null,null,null,null,null,null,null,null,null,null,null,null,null,null,null,null,null,null,null,null,null,null,null,null,null,null,null,null,null,null,null,null,null,null,null,null,null,null,null,null,null,null,null,null,null,null,null,null,null,null,null,null,null,null,null,null,null,null,null,null,null,null,null,null,null,null,null,null,null,null,null,null,null,null,null,null,null,null,null,null,null,null,null,null,null,null,null,null,null,null,null,null,null,null,null,null,null,null,null,null,null,null,null,null,null,null,null,null,null,null,null,null,null,null,null,null,null,null,null,null,null,null,null,null,null,null,null,null,null,null,null,null,null,null,null,null,null,null,null,null,null,null,null,null,null,null,null,null,null,null,null,null,null,null,null,null,null,null,null,null,null,null,null,null,null,null,null,null,null,null,null,null,null,null,null,null,null,null,null,null,null,null,null,null,null,null,null,null,null,null,null,null,null,null,null,null,null,null,null,null,null,null,null,null,null,null,null,null,null,null,null,null,null,null,null,null,null,null,null,null,null,null,null,null,null,null,null,null,null,null,null,null,null,null,null,null,null,null,null,null,null,null,null,null,null,null,null,null,null,null,null,null,null,null,null,null,null,null,null,null,null,null,null,null,null,null,null,null,null,null,null,null,null,null,null,null,null,null,null,null,null,null,null,null,null,null,null,null,null,null,null,null,null,null,null,null,null,null,null,null,null,null,null,null,null,null,null,null,null,null,null,null,null,null,null,null,null,null,null,null,null,null,null,null,null,null,null,null,null,null,null,null,null,null,null,null,null,null,null,null,null,null,null,null,null,null,null,null,null,null,null,null,null,null,null,null,null,null,null,null,null,null,null,null,null,null,null,null,null,null,null,null,null,null,null,null,null,null,null,null,null,null,null,null,null,null,null,null,null,null,null,null,null,null,null,null,null,null,null,null,null,null,null,null,null,null,null,null,null,null,null,null,null,null,null,null,null,null,null,null,null,null,null,null,null,null,null,null,null,null,null,null,null,null,null,null,null,null,null,null,null,null,null,null,null,null,null,null,null,null,null,null,null,null,null,null,null,null,null,null,null,null,null,null,null,null,null,null,null,null,null,null,null,null,null,null,null,null,null,null,null,null,null,null,null,null,null,null,null,null,null,null,null,null,null,null,null,null,null,null,null,null,null,null,null,null,null,null,null,null,null,null,null,null,null,null,null,null,null,null,null,null,null,null,null,null,null,null,null,null,null,null,null,null,null,null,null,null,null,null,null,null,null,null,null,null,null,null,null,null,null,null,null,null,null,null,null,null,null,null,null,null,null,null,null,null,null,null,null,null,null,null,null,null,null,null,null,null,null,null,null,null,null,null,null,null,null,null,null,null,null,null,null,null,null,null,null,null,null,null,null,null,null,null,null,null,null,null,null,null,null,null,null,null,null,null,null,null,null,null,null,null,null,null,null,null,null,null,null,null,null,null,null,null,null,null,null,null,null,null,null,null,null,null,null,null,null,null,null,null,null,null,null,null,null,null,null,null,null,null,null,null,null,null,null,null,null,null,null,null,null,null,null,null,null,null,null,null,null,null,null,null,null,null,null,null,null,null,null,null,null,null,null,null,null,null,null,null,null,null,null,null,null,null,null,null,null,null,null,null,null,null,null,null,null,null,null,null,null,null,null,null,null,null,null,null,null,null,null,null,null,null,null,null,null,null,null,null,null,null,null,null,null,null,null,null,null,null,null,null,null,null,null,null,null,null,null,null,null,null,null,null,null,null,null,null,null,null,null,null,null,null,null,null,null,null,null,null,null,null,null,null,null,null,null,null,null,null,null,null,null,null,null,null,null,null,null,null,null,null,null,null,null,null,null,null,null,null,null,null,null,null,null,null,null,null,null,null,null,null,null,null,null,null,null,null,null,null,null,null,null,null,null,null,null,null,null,null,null,null,null,null,null,null,null,null,null,null,null,null,null,null,null,null,null,null,null,null,null,null,null,null,null,null,null,null,null,null,null,null,null,null,null,null,null,null,null,null,null,null,null,null,null,null,null,null,null,null,null,null,null,null,null,null,null,null,null,null,null,null,null,null,null,null,null,null,null,null,null,null,null,null,null,null,null,null,null,null,null,null,null,null,null,null,null,null,null,null,null,null,null,null,null,null,null,null,null,null,null,null,null,null,null,null,null,null,null,null,null,null,null,null,null,null,null,null,null,null,null,null,null,null,null,null,null,null,null,null,null,null,null,null,null,null,null,null,null,null,null,null,null,null,null,null,null,null,null,null,null,null,null,null,null,null,null,null,null,null,null,null,null,null,null,null,null,null,null,null,null,null,null,null,null,null,null,null,null,null,null,null,null,null,null,null,null,null,null,null,null,null,null,null,null,null,null,null,null,null,null,null,null,null,null,null,null,null,null,null,null,null,null,null,null,null,null,null,null,null,null,null,null,null,null,null,null,null,null,null,null,null,null,null,null,null,null,null,null,null,null,null,null,null,null,null,null,null,null,null,null,null,null,null,null,null,null,null,null,null,null,null,null,null,null,null,null,null,null,null,null,null,null,null,null,null,null,null,null,null,null,null,null,null,null,null,null,null,null,null,null,null,null,null,null,null,null,null,null,null,null,null,null,null,null,null,null,null,null,null,null,null,null,null,null,null,null,null,null,null,null,null,null,null,null,null,null,null,null,null,null,null,null,null,null,null,null,null,null,null,null,null,null,null,null,null,null,null,null,null,null,null,null,null,null,null,null,null,null,null,null,null,null,null,null,null,null,null,null,null,null,null,null,null,null,null,null,null,null,null,null,null,null,null,null,null,null,null,null,null,null,null,null,null,null,null,null,null,null,null,null,null,null,null,null,null,null,null,null,null,null,null,null,null,null,null,null,null,null,null,null,null,null,null,null,null,null,null,null,null,null,null,null,null,null,null,null,null,null,null,null,null,null,null,null,null,null,null,null,null,null,null,null,null,null,null,null,null,null,null,null,null,null,null,null,null,null,null,null,null,null,null,null,null,null,null,null,null,null,null,null,null,null,null,null,null,null,null,null,null,null,null,null,null,null,null,null,null,null,null,null,null,null,null,null,null,null,null,null,null,null,null,null,null,null,null,null,null,null,null,null,null,null,null,null,null,null,null,null,null,null,null,null,null,null,null,null,null,null,null,null,null,null,null,null,null,null,null,null,null,null,null,null,null,null,null,null,null,null,null,null,null,null,null,null,null,null,null,null,null,null,null,null,null,null,null,null,null,null,null,null,null,null,null,null,null,null,null,null,null,null,null,null,null,null,null,null,null,null,null,null,null,null,null,null,null,null,null,null,null,null,null,null,null,null,null,null,null,null,null,null,null,null,null,null,null,null,null,null,null,null,null,null,null,null,null,null,null,null,null,null,null,null,null,null,null,null,null,null,null,null,null,null,null,null,null,null,null,null,null,null,null,null,null,null,null,null,null,null,null,null,null,null,null,null,null,null,null,null,null,null,null,null,null,null,null,null,null,null,null,null,null,null,null,null,null,null,null,null,null,null,null,null,null,null,null,null,null,null,null,null,null,null,null,null,null,null,null,null,null,null,null,null,null,null,null,null,null,null,null,null,null,null,null,null,null,null,null,null,null,null,null,null,null,null,null,null,null,null,null,null,null,null,null,null,null,null,null,null,null,null,null,null,null,null,null,null,null,null,null,null,null,null,null,null,null,null,null,null,null,null,null,null,null,null,null,null,null,null,null,null,null,null,null,null,null,null,null,null,null,null,null,null,null,null,null,null,null,null,null,null,null,null,null,null,null,null,null,null,null,null,null,null,null,null,null,null,null,null,null,null,null,null,null,null,null,null,null,null,null,null,null,null,null,null,null,null,null,null,null,null,null,null,null,null,null,null,null,null,null,null,null,null,null,null,null,null,null,null,null,null,null,null,null,null,null,null,null,null,null,null,null,null,null,null,null,null,null,null,null,null,null,null,null,null,null,null,null,null,null,null,null,null,null,null,null,null,null,null,null,null,null,null,null,null,null,null,null,null,null,null,null,null,null,null,null,null,null,null,null,null,null,null,null,null,null,null,null,null,null,null,null,null,null,null,null,null,null,null,null,null,null,null,null,null,null,null,null,null,null,null,null,null,null,null,null,null,null,null,null,null,null,null,null,null,null,null,null,null,null,null,null,null,null,null,null,null,null,null,null,null,null,null,null,null,null,null,null,null,null,null,null,null,null,null,null,null,null,null,null,null,null,null,null,null,null,null,null,null,null,null,null,null,null,null,null,null,null,null,null,null,null,null,null,null,null,null,null,null,null,null,null,null,null,null,null,null,null,null,null,null,null,null,null,null,null,null,null,null,null,null,null,null,null,null,null,null,null,null,null,null,null,null,null,null,null,null,null,null,null,null,null,null,null,null,null,null,null,null,null,null,null,null,null,null,null,null,null,null,null,null,null,null,null,null,null,null,null,null,null,null,null,null,null,null,null,null,null,null,null,null,null,null,null,null,null,null,null,null,null,null,null,null,null,null,null,null,null,null,null,null,null,null,null,null,null,null,null,null,null,null,null,null,null,null,null,null,null,null,null,null,null,null,null,null,null,null,null,null,null,null,null,null,null,null,null,null,null,null,null,null,null,null,null,null,null,null,null,null,null,null,null,null,null,null,null,null,null,null,null,null,null,null,null,null,null,null,null,null,null,null,null,null,null,null,null,null,null,null,null,null,null,null,null,null,null,null,null,null,null,null,null,null,null,null,null,null,null,null,null,null,null,null,null,null,null,null,null,null,null,null,null,null,null,null,null,null,null,null,null,null,null,null,null,null,null,null,null,null,null,null,null,null,null,null,null,null,null,null,null,null,null,null,null,null,null,null,null,null,null,null,null,null,null,null,null,null,null,null,null,null,null,null,null,null,null,null,null,null,null,null,null,null,null,null,null,null,null,null,null,null,null,null,null,null,null,null,null,null,null,null,null,null,null,null,null,null,null,null,null,null,null,null,null,null,null,null,null,null,null,null,null,null,null,null,null,null,null,null,null,null,null,null,null,null,null,null,null,null,null,null,null,null,null,null,null,null,null,null,null,null,null,null,null,null,null,null,null,null,null,null,null,null,null,null,null,null,null,null,null,null,null,null,null,null,null,null,null,null,null,null,null,null,null,null,null,null,null,null,null,null,null,null,null,null,null,null,null,null,null,null,null,null,null,null,null,null,null,null,null,null,null,null,null,null,null,null,null,null,null,null,null,null,null,null,null,null,null,null,null,null,null,null,null,null,null,null,null,null,null,null,null,null,null,null,null,null,null,null,null,null,null,null,null,null,null,null,null,null,null,null,null,null,null,null,null,null,null,null,null,null,null,null,null,null,null,null,null,null,null,null,null,null,null,null,null,null,null,null,null,null,null,null,null,null,null,null,null,null,null,null,null,null,null,null,null,null,null,null,null,null,null,null,null,null,null,null,null,null,null,null,null,null,null,null,null,null,null,null,null,null,null,null,null,null,null,null,null,null,null,null,null,null,null,null,null,null,null,null,null,null,null,null,null,null,null,null,null,null,null,null,null,null,null,null,null,null,null,null,null,null,null,null,null,null,null,null,null,null,null,null,null,null,null,null,null,null,null,null,null,null,null,null,null,null,null,null,null,null,null,null,null,null,null,null,null,null,null,null,null,null,null,null,null,null,null,null,null,null,null,null,null,null,null,null,null,null,null,null,null,null,null,null,null,null,null,null,null,null,null,null,null,null,null,null,null,null,null,null,null,null,null,null,null,null,null,null,null,null,null,null,null,null,null,null,null,null,null,null,null,null,null,null,null,null,null,null,null,null,null,null,null,null,null,null,null,null,null,null,null,null,null,null,null,null,null,null,null,null,null,null,null,null,null,null,null,null,null,null,null,null,null,null,null,null,null,null,null,null,null,null,null,null,null,null,null,null,null,null,null,null,null,null,null,null,null,null,null,null,null,null,null,null,null,null,null,null,null,null,null,null,null,null,null,null,null,null,null,null,null,null,null,null,null,null,null,null,null,null,null,null,null,null,null,null,null,null,null,null,null,null,null,null,null,null,null,null,null,null,null,null,null,null,null,null,null,null,null,null,null,null,null,null,null,null,null,null,null,null,null,null,null,null,null,null,null,null,null,null,null,null,null,null,null,null,null,null,null,null,null,null,null,null,null,null,null,null,null,null,null,null,null,null,null,null,null,null,null,null,null,null,null,null,null,null,null,null,null,null,null,null,null,null,null,null,null,null,null,null,null,null,null,null,null,null,null,null,null,null,null,null,null,null,null,null,null,null,null,null,null,null,null,null,null,null,null,null,null,null,null,null,null,null,null,null,null,null,null,null,null,null,null,null,null,null,null,null,null,null,null,null,null,null,null,null,null,null,null,null,null,null,null,null,null,null,null,null,null,null,null,null,null,null,null,null,null,null,null,null,null,null,null,null,null,null,null,null,null,null,null,null,null,null,null,null,null,null,null,null,null,null,null,null,null,null,null,null,null,null,null,null,null,null,null,null,null,null,null,null,null,null,null,null,null,null,null,null,null,null,null,null,null,null,null,null,null,null,null,null,null,null,null,null,null,null,null,null,null,null,null,null,null,null,null,null,null,null,null,null,null,null,null,null,null,null,null,null,null,null,null,null,null,null,null,null,null,null,null,null,null,null,null,null,null,null,null,null,null,null,null,null,null,null,null,null,null,null,null,null,null,null,null,null,null,null,null,null,null,null,null,null,null,null,null,null,null,null,null,null,null,null,null,null,null,null,null,null,null,null,null,null,null,null,null,null,null,null,null,null,null,null,null,null,null,null,null,null,null,null,null,null,null,null,null,null,null,null,null,null,null,null,null,null,null,null,null,null,null,null,null,null,null,null,null,null,null,null,null,null,null,null,null,null,null,null,null,null,null,null,null,null,null,null,null,null,null,null,null,null,null,null,null,null,null,null,null,null,null,null,null,null,null,null,null,null,null,null,null,null,null,null,null,null,null,null,null,null,null,null,null,null,null,null,null,null,null,null,null,null,null,null,null,null,null,null,null,null,{"$f":"SUM(A46:XFC46)","v":60500}]
[null,"מוטוריקה גסה"]
[null,"נדנדות",1,5000,5000,null,null,0]
[null,"גלילים",1,3000,3000,null,null,0]
[null,"כדורים שונים",1,1500,1500,null,null,0]
[null,"עזרים לפיתוח שיווי משקל ",3,500,1500,null,null,0]
[null,"מזרונים",1,1500,1500,null,null,0]
[null,"אביזרי טיפוס",1,3000,3000,null,null,0]
[null,"ערכות הפעלה",1,2300,2300,null,null,0]
[null,"אביזרים לפעילות קבוצתית",1,4000,4000,null,null,0]
[null,"משחקי גירוי תגובה",1,3000,3000,null,null,0]
[null,"התקנות והתאמות",1,1500,1500,null,null,0]
[null,"עזרי הפעלה ועוררות ",1,1200,1200,null,null,{"$f":"G58*D58","v":0}]
[null,"עזרי פעילות תנועתית",1,3500,{"$f":"D59*C59","v":3500},null,null,0]
[null,"כח וסיבולת",1,1500,1500,null,null,0]
[null," ארון אחסון לאביזרים הקטנים",1,2000,2000,null,null,0]
[null,"מדף אחסון לכדורים וגלילים",1,1700,1700,null,null,0]
[null,"סה\"כ  מוטוריקה גסה כולל מע\"מ",null,null,{"$f":"SUM(E48:E62)","v":36200},null,null,{"$f":"SUM(H48:H62)","v":0},{"$f":"B63","v":"סה\"כ  מוטוריקה גסה כולל מע\"מ"},null,{"$f":"B63","v":"סה\"כ  מוטוריקה גסה כולל מע\"מ"},null,null,{"$f":"SUM(N48:N62)","v":0}]
[null,"מכשירי כושר"]
[null,"אופנים + טלויזיה",1,5500,5500,null,null,0]
[null,"מדרגות ארוביות ",1,1500,1500,null,null,0]
[null,"בוסו",1,1800,1800,null,null,0]
[null,"פולי",1,6800,6800,null,null,0]
[null,"מעמד עם APT",1,14000,14000,null,null,0]
[null,"אופנים עם משענת",1,10500,10500,null,null,0]
[null,"אופני ידיים ורגליים מתכווננים",1,27000,27000,null,null,0]
[null,"הליכון חשמלי",1,23500,23500,null,null,0]
[null,"מתקן נשיאה",1,14500,14500,null,null,0]
[null,"גומיות, כדורי כח ומשקוליות תקציב כולל",1,1600,1600,null,null,0]
[null,"תלת אופן גדול",1,12000,12000,null,null,0]
[null,"קסדות בגדלים ובצבעים שונים- תקציב כולל",1,1700,1700,null,null,0]
[null,"תלת אופן קטן",1,8500,8500,null,null,0]
[null,"תלת אופן רגיל",1,400,400,null,null,0]
[null,"סה\"כ מכשירים ",null,null,{"$f":"SUM(E65:E78)","v":129300},null,null,{"$f":"SUM(H65:H78)","v":0},{"$f":"B79","v":"סה\"כ מכשירים "},null,{"$f":"B79","v":"סה\"כ מכשירים "},null,null,{"$f":"SUM(N65:N78)","v":0}]
[null,"סה\"כ ציוד פיזותרפיה כולל מע\"מ",null,null,{"$f":"E15+E19+E26+E39+E46+E63+E79","v":452160},null,null,{"$f":"H15+H19+H26+H39+H46+H63+H79","v":0},{"$f":"B80","v":"סה\"כ ציוד פיזותרפיה כולל מע\"מ"},null,{"$f":"B80","v":"סה\"כ ציוד פיזותרפיה כולל מע\"מ"},null,null,{"$f":"N15+N19+N26+N39+N46+N63+N79","v":0}]

{"sheet":"יא. ציוד טיפולי-שיקומי","index":11,"n_rows":17,"n_cols":14,"rows_kept":17,"cut":false,"hidden":false,"merged":[[4,1,4,4],[4,6,4,8],[4,10,4,13],[16,1,16,3]]}
[null,{"$f":"'ב. תוכן עניינים'!C24","v":"ציוד טיפולי שיקומי"},null,null,null,null,"שלב הגשת הבקשה:",null,null,null,"שלב הדיווח על ההוצאות:"]
[null,"שם המסגרת :",{"$f":"'ג. שאלון למילוי מגיש הבקשה'!D24","v":0},null,null,null,"עליכם למלא גיליון ג' בטרם מילוי הגיליונות האחרים.",null,null,null,"לאחר אישור הבקשה יוחזר הגיליון עם הפריטים המאושרים"]
[null,"סוג המסגרת :",{"$f":"'ג. שאלון למילוי מגיש הבקשה'!D26","v":"נא לבחור מתוך הרשימה"},null,null,null,"גיליונות ד' עד י\"ב עליכם למלא רק עמודות הצבועות בירוק",null,null,null,"גיליונות ד' עד י\"ב עליכם למלא רק עמודות הצבועות בכתום",null,null,"הצבועות בוורוד"]
[null,"מספר האנשים שעבורם מיועד הפרויקט :",{"$f":"'ג. שאלון למילוי מגיש הבקשה'!D42","v":0},null,null,null,"אין לגעת בתאים האחרים- תאים אלו יהיו נעולים",null,null,null,"אין לגעת בתאים האחרים- תאים אלו יהיו נעולים"]
[null,"תקן",null,null,null,null,"בקשת הגוף ",null,null,null,"דיווח לתשלום לאחר ביצוע"]
[null,"פריטים","כמות תקן","עלות ליחידה כולל מע\"מ","סך עלות  כולל מע\"מ",null,"כמות מבוקשת ","תקציב מבוקש ","הערות הגוף",null,"הפריט שנרכש","מס' חשבונית מס","תאריך חשבונית מס","סכום כולל מע\"מ"]
[null,"מיטה סיעודית כולל מזרן רגיל",1,7500,{"$f":"D7*C7","v":7500},null,null,{"$f":"G7*D7","v":0}]
[null,"מזרן אויר דינאמי (מזרן נגד פצעי לחץ)",1,5500,{"$f":"D8*C8","v":5500},null,null,0]
[null,"כיסאות רחצה- סטנדרטי",1,1700,1700,null,null,0]
[null,"כיסאות רחצה- טילט",1,5000,5000,null,null,0]
[null,"כיסאות רחצה",1,2500,2500,null,null,0]
[null,"אלונקת רחצה",1,15500,15500,null,null,0]
[null,"מיטת החתלה כולל מזרן",1,6500,6500,null,null,0]
[null,"כיסאות שירותים נייח",1,500,500,null,null,0]
[null,"מאחזי יד (סכום גלובלי)",1,500,500,null,null,0]
[null,"הגבהות לאסלה עם ידיות",1,700,700,null,null,0]
[null,"סה\"כ ציוד טיפולי שיקומי כולל מע\"מ",null,null,{"$f":"SUM(E7:E16)","v":45900},null,null,{"$f":"SUM(H7:H16)","v":0},{"$f":"B17","v":"סה\"כ ציוד טיפולי שיקומי כולל מע\"מ"},null,{"$f":"B17","v":"סה\"כ ציוד טיפולי שיקומי כולל מע\"מ"},null,null,{"$f":"SUM(N7:N16)","v":0}]

{"sheet":"יב. מטבח מחמם","index":12,"n_rows":22,"n_cols":14,"rows_kept":22,"cut":false,"hidden":false,"merged":[[4,1,4,4],[4,6,4,8],[4,10,4,13],[21,1,21,3]]}
[null,{"$f":"'ב. תוכן עניינים'!C25","v":"ציוד מטבח מחמם"},{"$f":"IF('ג. שאלון למילוי מגיש הבקשה'!$D$46=\"כן\",\"התקבל מימון ביטוח לאומי, אסור לבקש מימון כפול\",\"\")","v":""},null,null,null,"שלב הגשת הבקשה:",null,null,null,"שלב הדיווח על ההוצאות:"]
[null,"שם המסגרת :",{"$f":"'ג. שאלון למילוי מגיש הבקשה'!D24","v":0},null,null,null,"עליכם למלא גיליון ג' בטרם מילוי הגיליונות האחרים.",null,null,null,"לאחר אישור הבקשה יוחזר הגיליון עם הפריטים המאושרים","לאחר אישור הבקשה יוחזר הגיליון עם הפריטים המאושרים","לאחר אישור הבקשה יוחזר הגיליון עם הפריטים המאושרים"]
[null,"סוג המסגרת :",{"$f":"'ג. שאלון למילוי מגיש הבקשה'!D26","v":"נא לבחור מתוך הרשימה"},null,null,null,"גיליונות ד' עד י\"ב עליכם למלא רק עמודות הצבועות בירוק",null,null,null,"גיליונות ד' עד י\"ב עליכם למלא רק עמודות הצבועות בכתום",null,null,"צבועות בוורוד"]
[null,"מספר האנשים שעבורם מיועד הפרויקט :",{"$f":"'ג. שאלון למילוי מגיש הבקשה'!D42","v":0},null,null,null,"אין לגעת בתאים האחרים- תאים אלו יהיו נעולים",null,null,null,"אין לגעת בתאים האחרים- תאים אלו יהיו נעולים"]
[null,"תקן",null,null,null,null,"בקשת הגוף ",null,null,null,"דיווח לתשלום לאחר ביצוע"]
[null,"פריטים: יש לבחור ציוד מסוג אחד בלבד - מחמם או מבשל","כמות תקן","עלות ליחידה כולל מע\"מ","סך עלות  כולל מע\"מ",null,"כמות מבוקשת ","תקציב מבוקש ","הערות הגוף",null,"הפריט שנרכש","מס' חשבונית מס","תאריך חשבונית מס","סכום כולל מע\"מ"]
[null,"כיריים חשמליות",1,{"$f":"IF($C$4<31,5000,IF($C$4<61,8000,15000))","v":5000},{"$f":"D7*C7","v":5000},{"$f":"IF(C$1=\"\",\"\",\"אסור להזמין\")","v":""},null,{"$f":"G7*D7","v":0}]
[null,"תנור אפיה וחימום – 2 תאים-חלבי / בשרי  ",1,{"$f":"IF($C$4<31,5000,IF($C$4<61,8000,15000))","v":5000},5000,"",null,0]
[null,"תנור קומביסטימר + מנדף ",1,{"$f":"IF($C$4<31,25000,IF($C$4<61,35000,50000))","v":25000},25000,"",null,0]
[null,"מקרר ביתי / תעשייתי ",1,{"$f":"IF($C$4<31,10000,IF($C$4<61,15000,25000))","v":10000},10000,"",null,0]
[null,"מקפיא",1,4000,4000,"",null,0]
[null,"מדיח כלים חצי תעשייתי / תעשייתי + מרכך מים",1,{"$f":"IF($C$4<31,12000,IF($C$4<61,18000,30000))","v":12000},12000,"",null,0]
[null,"מעבד מזון מקצועי",1,4000,4000,"",null,0]
[null,"מקסר / בלנדר - בייתי / תעשייתי ",1,{"$f":"IF($C$4<31,3000,IF($C$4<61,5000,9000))","v":3000},3000,"",null,0]
[null,"מיקרוגל",1,3000,3000,"",null,0]
[null,"מתקן מים",{"$f":"IF($C$4<31,1,IF($C$4<61,2,3))","v":1},3500,3500,"",null,0]
[null,"עגלת הגשה ",{"$f":"IF($C$4<31,1,IF($C$4<61,2,3))","v":1},2000,2000,"",null,0]
[null,"מחם אוטומטי  6 /  10ל'  ",1,{"$f":"IF($C$4<31,2000,IF($C$4<61,2500,3500))","v":2000},2000,"",null,0]
[null,"עגלת חימום / קרור ",{"$f":"IF($C$4<31,1,IF($C$4<61,2,3))","v":1},15000,15000,"",null,0]
[null,"כלי מטבח ",1,{"$f":"C4*200","v":0},0,"",null,0]
[null,"ארון מדפים פתוחים ",{"$f":"IF($C$4<31,1,IF($C$4<61,2,3))","v":1},4000,4000,"",null,0]
[null,"סה\"כ ציוד מטבח מחמם - כולל מע\"מ",null,null,{"$f":"SUM(E7:E21)","v":97500},null,null,{"$f":"SUM(H7:H21)","v":0},{"$f":"B22","v":"סה\"כ ציוד מטבח מחמם - כולל מע\"מ"},null,{"$f":"B22","v":"סה\"כ ציוד מטבח מחמם - כולל מע\"מ"},null,null,{"$f":"SUM(N7:N21)","v":0}]

{"sheet":"יג. מטבח מבשל","index":13,"n_rows":32,"n_cols":14,"rows_kept":32,"cut":false,"hidden":false,"merged":[[4,1,4,4],[4,6,4,8],[4,10,4,13],[31,1,31,3]]}
[null,{"$f":"'ב. תוכן עניינים'!C26","v":"ציוד מטבח מבשל"},{"$f":"IF('ג. שאלון למילוי מגיש הבקשה'!$D$46=\"כן\",\"התקבל מימון ביטוח לאומי, אסור לבקש מימון כפול\",\"\")","v":""},null,null,null,"שלב הגשת הבקשה:",null,null,null,"שלב הדיווח על ההוצאות:"]
[null,"שם המסגרת :",{"$f":"'ג. שאלון למילוי מגיש הבקשה'!D24","v":0},null,null,null,"עליכם למלא גיליון ג' בטרם מילוי הגיליונות האחרים.",null,null,null,"לאחר אישור הבקשה יוחזר הגיליון עם הפריטים המאושרים","לאחר אישור הבקשה יוחזר הגיליון עם הפריטים המאושרים","לאחר אישור הבקשה יוחזר הגיליון עם הפריטים המאושרים"]
[null,"סוג המסגרת :",{"$f":"'ג. שאלון למילוי מגיש הבקשה'!D26","v":"נא לבחור מתוך הרשימה"},null,null,null,"גיליונות ד' עד י\"ב עליכם למלא רק עמודות הצבועות בירוק",null,null,null,"גיליונות ד' עד י\"ב עליכם למלא רק עמודות הצבועות בכתום",null,null,"צבועות בוורוד"]
[null,"מספר האנשים שעבורם מיועד הפרויקט :",{"$f":"'ג. שאלון למילוי מגיש הבקשה'!D42","v":0},null,null,null,"אין לגעת בתאים האחרים- תאים אלו יהיו נעולים",null,null,null,"אין לגעת בתאים האחרים- תאים אלו יהיו נעולים"]
[null,"תקן",null,null,null,null,"בקשת הגוף ",null,null,null,"דיווח לתשלום לאחר ביצוע"]
[null,"פריטים: יש לבחור ציוד מסוג אחד בלבד - מחמם או מבשל","כמות תקן","עלות ליחידה כולל מע\"מ","סך עלות  כולל מע\"מ",null,"כמות מבוקשת ","תקציב מבוקש ","הערות הגוף",null,"הפריט שנרכש","מס' חשבונית מס","תאריך חשבונית מס","סכום כולל מע\"מ"]
[null,"מקרר ארון חד רוחבי",3,10000,{"$f":"D7*C7","v":30000},{"$f":"IF(C$1=\"\",\"\",\"אסור להזמין\")","v":""},null,{"$f":"G7*D7","v":0}]
[null,"מקפיא ארון חד רוחבי",2,10000,20000,"",null,0]
[null,"מקרר דלפק",1,10000,10000,"",null,0]
[null,"שולחן כניסה ויציאה  למדיח כלים",1,8000,8000,"",null,0]
[null,"מדיח כלים חצי תעשייתי / תעשייתי ",1,{"$f":"IF($C$4<31,12000,IF($C$4<61,18000,30000))","v":12000},12000,"",null,0]
[null,"כיריים חשמליות  / גז  6  להבות",1,{"$f":"IF($C$4<31,8000,IF($C$4<61,15000,25000))","v":8000},8000,"",null,0]
[null,"תנור קומביסטימר",1,{"$f":"IF($C$4<31,25000,IF($C$4<61,35000,50000))","v":25000},25000,"",null,0]
[null,"מקסר / בלנדר - בייתי / תעשייתי",1,{"$f":"IF($C$4<31,3000,IF($C$4<61,5000,9000))","v":3000},3000,"",null,0]
[null,"קוצץ ירקות שולחני",1,6500,6500,"",null,0]
[null,"מעבד מזון תעשייתי",1,8000,8000,"",null,0]
[null,"משטחי עבודה",4,2000,8000,"",null,0]
[null,"שולחן כיור",3,5000,15000,"",null,0]
[null,"מיקרוגל לעומס בינוני",1,3000,3000,"",null,0]
[null,"מחבת מתהפך 50 ליטר",1,22000,22000,"",null,0]
[null,"ארון חימום תחתון/ מעמד לתנור",1,10000,10000,"",null,0]
[null,"סוללה עם מתז עליון על שולחן",2,2000,4000,"",null,0]
[null,"ברז שולחני עם פיה מסתובבת לכיור עבודה",4,500,2000,"",null,0]
[null,"מדף עליון כפול",4,2000,8000,"",null,0]
[null,"מתלה ייבוש לצלחות עם מדף לספלים",2,1500,3000,"",null,0]
[null,"עגלת הגשה",{"$f":"IF($C$4<31,1,IF($C$4<61,2,3))","v":1},2000,2000,"",null,0]
[null,"עגלה עם מיכל אשפה  80 ליטר",3,700,2100,"",null,0]
[null,"עגלת חימום / קרור",{"$f":"IF($C$4<31,1,IF($C$4<61,2,3))","v":1},15000,15000,"",null,0]
[null,"מיחם אוטומטי  25 ליטר",1,5000,5000,"",null,0]
[null,"כלי מטבח",1,{"$f":"400*C4","v":0},0,"",null,0]
[null,"ארון אחסון יבש ",2,4000,8000,"",null,0]
[null,"סה\"כ ציוד מטבח מבשל - כולל מע\"מ",null,null,{"$f":"SUM(E7:E31)","v":237600},null,null,{"$f":"SUM(H7:H31)","v":0},{"$f":"B32","v":"סה\"כ ציוד מטבח מבשל - כולל מע\"מ"},null,{"$f":"B32","v":"סה\"כ ציוד מטבח מבשל - כולל מע\"מ"},null,null,{"$f":"SUM(N7:N31)","v":0}]

{"sheet":"יד. ציוד פעילות גופנית- זוזו","index":14,"n_rows":21,"n_cols":15,"rows_kept":21,"cut":false,"hidden":false,"merged":[[4,1,4,4],[4,7,4,9],[4,11,4,14]]}
[null,{"$f":"'ב. תוכן עניינים'!C27","v":"ציוד פעילות גופנית- זוזו"},null,null,null,null,null,"שלב הגשת בקשת הגוף:",null,null,null,"שלב הדיווח לתשלום לאחר ביצוע:"]
[null,{"$f":"'[1]   ד. ציוד כללי'!B2","v":"שם המסגרת"},null,null,{"$f":"'ג. שאלון למילוי מגיש הבקשה'!D24","v":0},null,null,"יש למלא גיליון ג' בטרם מילוי הגיליונות האחרים.",null,null,null,"לאחר אישור הבקשה יוחזר הגיליון עם הפריטים המאושרים"]
[null,{"$f":"'[1]   ד. ציוד כללי'!B3","v":"סוג המסגרת"},null,null,{"$f":"'ג. שאלון למילוי מגיש הבקשה'!D26","v":"נא לבחור מתוך הרשימה"},null,null,"גיליונות ד' עד ח' -יש למלא רק עמודות הצבועות בירוק",null,null,null,"גיליונות ד' עד ח' יש למלא רק עמודות הצבועות בכתום/ורוד"]
[null,{"$f":"'[1]   ד. ציוד כללי'!B4","v":"מספר האנשים שעבורם מיועד הפרויקט"},null,null,{"$f":"'ג. שאלון למילוי מגיש הבקשה'!D42","v":0},null,null,"אין לגעת בתאים האחרים- תאים אלו יהיו נעולים",null,null,null,"אין לגעת בתאים האחרים- תאים אלו יהיו נעולים"]
[null,"תקן",null,null,null,null,null,"בקשת הגוף",null,null,null,"דיווח לתשלום"]
[null,"פריטים","תיאור","כמות תקן למסגרת","מחיר ליחידה","תקציב מומלץ לפי תקן",null,"כמות מבוקשת","תקציב מבוקש לקבוצה","הערות הגוף",null,"הפריט שנרכש","מס' חשבונית מס","תאריך חשבונית מס","סכום כולל מע\"מ"]
[null,"ציוד עזר","טלויזיה  65' + מסך הגנה",1,4500,{"$f":"D7*E7","v":4500},null,null,{"$f":"E7*H7","v":0}]
[null,null,"מתקן תליה לטלוויזיה",1,250,{"$f":"D8*E8","v":250},null,null,{"$f":"E8*H8","v":0}]
[null,null,"ארון איחסון הציוד",1,3000,3000,null,null,0]
[null,null,"רולאפ/שילוט של המיזם (לינק ללוגו)",1,1600,1600,null,null,0]
[null,"ציוד ספורט","טבעות פילאטיס",10,130,1300,null,null,0]
[null,null,"מזרן פילאטיס",10,100,1000,null,null,0]
[null,null,"מוט אימון פילאטיס",10,100,1000,null,null,0]
[null,null,"גומיית פילאטיס",10,100,1000,null,null,0]
[null,null,"כדור over ball",10,100,1000,null,null,0]
[null,null,"כרית שעועית ",10,100,1000,null,null,0]
[null,null,"חולצות עם לוגו הפרויקט (לינק ללוגו)",{"$f":"E4","v":0},70,0,null,null,0]
[null,"סה\"כ ציוד פעילות ספורט (כולל מע\"מ)",null,null,null,{"$f":"SUM(F7:F17)","v":15650},null,null,{"$f":"SUM(I7:I17)","v":0},{"$f":"B18","v":"סה\"כ ציוד פעילות ספורט (כולל מע\"מ)"},null,{"$f":"J18","v":"סה\"כ ציוד פעילות ספורט (כולל מע\"מ)"},null,null,{"$f":"SUM(O7:O17)","v":0}]
[]
[null,"הערה:"]
[null,"קיצור דרך לאתר הפרויקט"]

{"sheet":"טו. ציוד צוות","index":15,"n_rows":37,"n_cols":14,"rows_kept":37,"cut":false,"hidden":false,"merged":[[4,1,4,4],[4,6,4,8],[4,10,4,13]]}
[null,{"$f":"'ב. תוכן עניינים'!C28","v":"ציוד לצוות"},null,null,null,null,"שלב הגשת הבקשה:",null,null,null,"שלב הדיווח על ההוצאות:"]
[null,"שם המסגרת :",{"$f":"'ג. שאלון למילוי מגיש הבקשה'!D24","v":0},null,null,null,"עליכם למלא גיליון ג' בטרם מילוי הגיליונות האחרים.",null,null,null,"לאחר אישור הבקשה יוחזר הגיליון עם הפריטים המאושרים"]
[null," : מס' אנשי צוות  ",{"$f":"$C$37","v":0},null,null,null,"גיליונות ד' עד י\"ב עליכם למלא רק עמודות הצבועות בירוק",null,null,null,"גליונות ד'-י\"ב עליכם למלא רק בעמודות הצבועות בוורוד"]
[null,null,null,null,null,null,"אין לגעת בתאים האחרים- תאים אלו יהיו נעולים",null,null,null,"אין לגעת בתאים האחרים- תאים אלו יהיו נעולים"]
[null,"תקן",null,null,null,null,"בקשת הגוף ",null,null,null,"דיווח לתשלום לאחר ביצוע"]
[null,"פריטים","כמות תקן","עלות ליחידה כולל מע\"מ","סך עלות  כולל מע\"מ",null,"כמות מבוקשת ","תקציב מבוקש ","הערות הגוף",null,"הפריט שנרכש","מס' חשבונית מס","תאריך חשבונית מס","סכום כולל מע\"מ"]
[null,"כיסא אישי",{"$f":"$C$3","v":0},1200,{"$f":"D7*C7","v":0},null,null,{"$f":"G7*D7","v":0}]
[null,"שולחן מגירה",{"$f":"$C$3","v":0},2000,0,null,null,0]
[null,"עמדת מחשב ",{"$f":"$C$3","v":0},1200,0,null,null,0]
[null,"מחשב+תוכנות",{"$f":"$C$3","v":0},5000,0,null,null,0]
[null,"כיסא אורחים",{"$f":"$C$3","v":0},1000,0,null,null,0]
[null,"ארון",{"$f":"ROUNDUP($C$3/4,0)","v":0},3000,0,null,null,0]
[null,"ציוד תקשורת ומולטימדיה",{"$f":"ROUNDUP($C$3*0.3,0)","v":0},1000,0,null,null,0]
[null,"אביזרי עיצוב ",1,2000,2000,null,null,0]
[null,"סה\"כ ציוד צוות כולל מע\"מ",null,null,{"$f":"SUM(E7:E14)","v":2000},null,null,{"$f":"SUM(H7:H14)","v":0},{"$f":"B15","v":"סה\"כ ציוד צוות כולל מע\"מ"},null,{"$f":"B15","v":"סה\"כ ציוד צוות כולל מע\"מ"},null,null,{"$f":"SUM(N7:N14)","v":0}]
[]
[null,"טבלת עזר לאנשי הצוות"]
[null,"פירוט תפקיד "," מס' אנשים "]
[]
[]
[]
[]
[]
[]
[]
[]
[]
[]
[]
[]
[]
[]
[]
[]
[]
[]
[null,"סה\"כ אנשי צוות במסגרת",{"$f":"SUM(C19:C36)","v":0}]

{"sheet":"טז. ציוד נוסף","index":16,"n_rows":29,"n_cols":18,"rows_kept":29,"cut":false,"hidden":false,"merged":[[5,4,5,6],[5,7,5,9],[5,10,5,12],[5,14,5,17]]}
[null,{"$f":"'ב. תוכן עניינים'!C29","v":"ציוד נוסף"},null,null,null,null,null,null,null,null,"שלב הגשת הבקשה:",null,null,null,"שלב הדיווח על ההוצאות:"]
[null,"ציוד נוסף/משלים  ניתן להכניס בטבלה  זאת  יש להציג  2  הצעות מחיר  ולציין  בטורים  K-L  את  ההצעה המועדפת.",null,null,null,null,null,null,null,null,"עליכם למלא גיליון ג' בטרם מילוי הגיליונות האחרים.",null,null,null,"לאחר אישור הבקשה יוחזר הגיליון עם הפריטים המאושרים"]
[null,"שם המסגרת",null,{"$f":"'ג. שאלון למילוי מגיש הבקשה'!D24","v":0},null,null,null,null,null,null,"גיליונות ד' עד י\"ב עליכם למלא רק עמודות הצבועות בירוק",null,null,null,"גיליונות ד' עד י\"ב עליכם למלא רק עמודות הצבועות בוורוד"]
[null,"סוג המסגרת",null,{"$f":"'ג. שאלון למילוי מגיש הבקשה'!D26","v":"נא לבחור מתוך הרשימה"},null,null,null,null,null,null,"אין לגעת בתאים האחרים- תאים אלו יהיו נעולים",null,null,null,"אין לגעת בתאים האחרים- תאים אלו יהיו נעולים"]
[null,"מספר האנשים שעבורם מיועד הפרויקט",null,{"$f":"'ג. שאלון למילוי מגיש הבקשה'!D42","v":0}]
[null,"ציוד נוסף",null,null,"הצעה ראשונה ",null,null," הצעה שניה",null,null,"הצעה מועדפת",null,null,null,"דיווח לתשלום לאחר ביצוע"]
[null,"תאור הציוד","יעוד הציוד","כמות מבוקשת","הספק 1","מחיר ליחידה ","סכום ","שם הספק 2","מחיר ליחידה ","סכום","הספק  המועדף","מחיר ליחידה ","סכום",null,"הפריט שנרכש","מס' חשבונית מס","תאריך חשבונית מס","סכום כולל מע\"מ"]
[null,null,null,null,null,null,{"$f":"D8*F8","v":0},null,null,{"$f":"$D8*I8","v":0},null,null,{"$f":"D8*L8","v":0}]
[null,null,null,null,null,null,0,null,null,{"$f":"$D9*I9","v":0},null,null,{"$f":"D9*L9","v":0}]
[null,null,null,null,null,null,0,null,null,0,null,null,0]
[null,null,null,null,null,null,0,null,null,0,null,null,0]
[null,null,null,null,null,null,0,null,null,0,null,null,0]
[null,null,null,null,null,null,0,null,null,0,null,null,0]
[null,null,null,null,null,null,0,null,null,0,null,null,0]
[null,null,null,null,null,null,0,null,null,0,null,null,0]
[null,null,null,null,null,null,0,null,null,0,null,null,0]
[null,null,null,null,null,null,0,null,null,0,null,null,0]
[null,null,null,null,null,null,0,null,null,0,null,null,0]
[null,null,null,null,null,null,0,null,null,0,null,null,0]
[null,null,null,null,null,null,0,null,null,0,null,null,0]
[null,null,null,null,null,null,0,null,null,0,null,null,0]
[null,null,null,null,null,null,0,null,null,0,null,null,0]
[null,null,null,null,null,null,0,null,null,0,null,null,0]
[null,null,null,null,null,null,0,null,null,0,null,null,0]
[null,null,null,null,null,null,0,null,null,0,null,null,0]
[null,null,null,null,null,null,0,null,null,0,null,null,0]
[null,null,null,null,null,null,0,null,null,0,null,null,0]
[null,null,null,null,null,null,0,null,null,0,null,null,0]
[null,"סה\"כ  ציוד נוסף כולל מע\"מ",null,null,null,null,{"$f":"SUM(G8:G28)","v":0},null,null,{"$f":"SUM(J8:J28)","v":0},null,null,{"$f":"SUM(M8:M28)","v":0},null,{"$f":"B29","v":"סה\"כ  ציוד נוסף כולל מע\"מ"},null,null,{"$f":"SUM(R8:R28)","v":0}]

{"sheet":"יח. סיכום","index":17,"n_rows":46,"n_cols":6,"rows_kept":46,"cut":false,"hidden":false,"merged":[]}
[]
[]
[]
[]
[]
[]
[]
[null,"תקן ציוד למרכזי יום טיפוליים סיעודיים ו/או תעסוקה "]
[null," ציוד פרא רפואי, חדר סנוזלן, ציוד למטבח מבשל וציוד לצוות. "]
[]
[null,"דוח ביצוע מסכם"]
[]
[null,"הנחיות לקבלת תשלום : "]
[null,"יש למלא את ההוצאות בפועל בכל אחד מהגיליונות הרלבנטיים הקודמים. הסכומים יעודכנו אוטומטית בגיליון זה."]
[null,"יש לשלוח את הקובץ הזה במלואו לדוא\"ל המצויין מטה."]
[null,"יש להדפיס עמוד זה ולהחתים כנדרש."]
[null,"בנוסף יש לצרף :"]
[null,"צילומי חשבוניות מס / קבלות או כרטסת חתומה ע\"י רו\"ח של ארגון מפעיל/ גזבר הרשות"]
[null,"את הדיווחים  לתשלום  ואת הקובץ במלואו יש לשלוח  לדוא\"ל  : limor@kshalem.org.il"]
[null,"באחריות השולח לוודא כי המסמכים הגיעו ליעדם."]
[]
[null,{"$f":"'ג. שאלון למילוי מגיש הבקשה'!C24","v":"שם המסגרת"},{"$f":"'ג. שאלון למילוי מגיש הבקשה'!D24","v":0}]
[null,{"$f":"'ג. שאלון למילוי מגיש הבקשה'!C26","v":"סוג המסגרת"},{"$f":"'ג. שאלון למילוי מגיש הבקשה'!D26","v":"נא לבחור מתוך הרשימה"}]
[null,{"$f":"'ג. שאלון למילוי מגיש הבקשה'!C42","v":"מספר האנשים שעבורם מיועד הפרויקט"},{"$f":"'ג. שאלון למילוי מגיש הבקשה'!D42","v":0}]
[]
[null,"ציוד עפ\"י נושאים","סכום מבוקש","סכום שבוצע בפועל"]
[null,{"$f":"'ב. תוכן עניינים'!C17","v":"ציוד כללי למתחם"},{"$f":"'ד. ציוד כללי למתחם'!H47","v":0},{"$f":"'ד. ציוד כללי למתחם'!N47","v":0}]
[null,{"$f":"'ב. תוכן עניינים'!C18","v":"ציוד חדרי קבוצות"},{"$f":"'ה. ציוד חדרי קבוצות'!H38","v":0},{"$f":"'ה. ציוד חדרי קבוצות'!N38","v":0}]
[null,{"$f":"'ב. תוכן עניינים'!C19","v":"ריפוי בעיסוק"},{"$f":"'ו. ריפוי בעיסוק'!H51","v":0},{"$f":"'ו. ריפוי בעיסוק'!N51","v":0}]
[null,{"$f":"'ב. תוכן עניינים'!C20","v":"קלינאות תקשורת"},{"$f":"'ז. קלינאות תקשורת'!H33","v":0},{"$f":"'ז. קלינאות תקשורת'!N33","v":0}]
[null,{"$f":"'ב. תוכן עניינים'!C21","v":"חדר סנוזלן"},{"$f":"'ח. סנוזלן'!H23","v":0},{"$f":"'ח. סנוזלן'!N23","v":0}]
[null,{"$f":"'ב. תוכן עניינים'!C22","v":"מתקני חצר"},{"$f":"'ט. מתקני חצר '!I27","v":0},{"$f":"'ט. מתקני חצר '!O27","v":0}]
[null,{"$f":"'ב. תוכן עניינים'!C23","v":"פיזיותרפיה"},{"$f":"'י. פיזיותרפיה'!H80","v":0},{"$f":"'י. פיזיותרפיה'!N80","v":0}]
[null,{"$f":"'ב. תוכן עניינים'!C24","v":"ציוד טיפולי שיקומי"},{"$f":"'יא. ציוד טיפולי-שיקומי'!H17","v":0},{"$f":"'יא. ציוד טיפולי-שיקומי'!N17","v":0}]
[null,{"$f":"'ב. תוכן עניינים'!C25","v":"ציוד מטבח מחמם"},{"$f":"'יב. מטבח מחמם'!H22","v":0},{"$f":"'יב. מטבח מחמם'!N22","v":0},null,{"$f":"IF(OR(C35=0,C36=0)=TRUE,\"\",\"יש לבחור ציוד מסוג אחד בלבד - מחמם או מבשל\")","v":""}]
[null,{"$f":"'ב. תוכן עניינים'!C26","v":"ציוד מטבח מבשל"},{"$f":"'יג. מטבח מבשל'!H32","v":0},{"$f":"'יג. מטבח מבשל'!N32","v":0},null,{"$f":"IF(OR(C35=0,C36=0)=TRUE,\"\",\"יש לבחור ציוד מסוג אחד בלבד - מחמם או מבשל\")","v":""}]
[null,{"$f":"'ב. תוכן עניינים'!C27","v":"ציוד פעילות גופנית- זוזו"},{"$f":"'יד. ציוד פעילות גופנית- זוזו'!I18","v":0},{"$f":"'יד. ציוד פעילות גופנית- זוזו'!O18","v":0}]
[null,{"$f":"'ב. תוכן עניינים'!C28","v":"ציוד לצוות"},{"$f":"'טו. ציוד צוות'!H15","v":0},{"$f":"'טו. ציוד צוות'!N15","v":0}]
[null,{"$f":"'ב. תוכן עניינים'!C29","v":"ציוד נוסף"},{"$f":"'טז. ציוד נוסף'!M29","v":0},{"$f":"'טז. ציוד נוסף'!R29","v":0}]
[null,"סה\"כ בקשה כולל מע\"מ",{"$f":"SUM(C27:C39)","v":0},{"$f":"SUM(D27:D39)","v":0}]
[]
[null,"מספר פרוייקט קרן שלם"]
[]
[null,"חתימה וחותמת גזבר/רו\"ח"]
[]
[null,"תאריך "]

{"sheet":"סיכום מפורט (לשימוש משרדי)","index":18,"n_rows":322,"n_cols":8,"rows_kept":322,"cut":false,"hidden":false,"merged":[]}
[{"$f":"'ב. תוכן עניינים'!C31","v":"סיכום מפורט (לשימוש משרדי)"}]
["מספר מק\"ט",{"$f":"'יח. סיכום'!C42","v":0}]
[{"$f":"'ג. שאלון למילוי מגיש הבקשה'!C24","v":"שם המסגרת"},{"$f":"'ג. שאלון למילוי מגיש הבקשה'!D24","v":0}]
[{"$f":"'ג. שאלון למילוי מגיש הבקשה'!C26","v":"סוג המסגרת"},{"$f":"'ג. שאלון למילוי מגיש הבקשה'!D26","v":"נא לבחור מתוך הרשימה"}]
[{"$f":"'ג. שאלון למילוי מגיש הבקשה'!C42","v":"מספר האנשים שעבורם מיועד הפרויקט"},{"$f":"'ג. שאלון למילוי מגיש הבקשה'!D42","v":0}]
[null,"בקשה / אישור",null,null,"דיווח לתשלום"]
["תיאור","כמות מבוקשת","תקציב מבוקש לקבוצה",null,"הפריט שנרכש","מס' חשבונית מס","תאריך חשבונית מס","סכום כולל מע\"מ"]
[{"$f":"'יח. סיכום'!B27","v":"ציוד כללי למתחם"},null,null,null,{"$f":"A8","v":"ציוד כללי למתחם"}]
[{"$f":"'ד. ציוד כללי למתחם'!B9","v":"רמה א' - סט ציוד לסדנאות: קרמיקה/  נגרות/ מחשבים ומולטימדיה  "},{"$f":"'ד. ציוד כללי למתחם'!G9","v":0},{"$f":"'ד. ציוד כללי למתחם'!H9","v":0},null,{"$f":"'ד. ציוד כללי למתחם'!K9","v":0},{"$f":"'ד. ציוד כללי למתחם'!L9","v":0},{"$f":"IF(F9=0,\"\",'ד. ציוד כללי למתחם'!M9)","v":""},{"$f":"'ד. ציוד כללי למתחם'!N9","v":0}]
[{"$f":"'ד. ציוד כללי למתחם'!B10","v":"רמה ב' - סט ציוד לסדנאות: גינון עם אדניות מוגבהות/ מוזיקה/ בישול/ אפיה/ בית קפה "},{"$f":"'ד. ציוד כללי למתחם'!G10","v":0},{"$f":"'ד. ציוד כללי למתחם'!H10","v":0},null,{"$f":"'ד. ציוד כללי למתחם'!K10","v":0},{"$f":"'ד. ציוד כללי למתחם'!L10","v":0},{"$f":"IF(F10=0,\"\",'ד. ציוד כללי למתחם'!M10)","v":""},{"$f":"'ד. ציוד כללי למתחם'!N10","v":0}]
[{"$f":"'ד. ציוד כללי למתחם'!B13","v":"פינת ישיבה ללובי  "},{"$f":"'ד. ציוד כללי למתחם'!G13","v":0},{"$f":"'ד. ציוד כללי למתחם'!H13","v":0},null,{"$f":"'ד. ציוד כללי למתחם'!K13","v":0},{"$f":"'ד. ציוד כללי למתחם'!L13","v":0},{"$f":"IF(F11=0,\"\",'ד. ציוד כללי למתחם'!M13)","v":""},{"$f":"'ד. ציוד כללי למתחם'!N13","v":0}]
[{"$f":"'ד. ציוד כללי למתחם'!B14","v":"ציוד מחסן - מדפים "},{"$f":"'ד. ציוד כללי למתחם'!G14","v":0},{"$f":"'ד. ציוד כללי למתחם'!H14","v":0},null,{"$f":"'ד. ציוד כללי למתחם'!K14","v":0},{"$f":"'ד. ציוד כללי למתחם'!L14","v":0},{"$f":"IF(F12=0,\"\",'ד. ציוד כללי למתחם'!M14)","v":""},{"$f":"'ד. ציוד כללי למתחם'!N14","v":0}]
[{"$f":"'ד. ציוד כללי למתחם'!B15","v":"אביזרי נוי  "},{"$f":"'ד. ציוד כללי למתחם'!G15","v":0},{"$f":"'ד. ציוד כללי למתחם'!H15","v":0},null,{"$f":"'ד. ציוד כללי למתחם'!K15","v":0},{"$f":"'ד. ציוד כללי למתחם'!L15","v":0},{"$f":"IF(F13=0,\"\",'ד. ציוד כללי למתחם'!M15)","v":""},{"$f":"'ד. ציוד כללי למתחם'!N15","v":0}]
[{"$f":"'ד. ציוד כללי למתחם'!B18","v":"מערכת הקרנה ומסך חשמלי"},{"$f":"'ד. ציוד כללי למתחם'!G18","v":0},{"$f":"'ד. ציוד כללי למתחם'!H18","v":0},null,{"$f":"'ד. ציוד כללי למתחם'!K18","v":0},{"$f":"'ד. ציוד כללי למתחם'!L18","v":0},{"$f":"IF(F14=0,\"\",'ד. ציוד כללי למתחם'!M18)","v":""},{"$f":"'ד. ציוד כללי למתחם'!N18","v":0}]
[{"$f":"'ד. ציוד כללי למתחם'!B19","v":"מחשב קומפלט "},{"$f":"'ד. ציוד כללי למתחם'!G19","v":0},{"$f":"'ד. ציוד כללי למתחם'!H19","v":0},null,{"$f":"'ד. ציוד כללי למתחם'!K19","v":0},{"$f":"'ד. ציוד כללי למתחם'!L19","v":0},{"$f":"IF(F15=0,\"\",'ד. ציוד כללי למתחם'!M19)","v":""},{"$f":"'ד. ציוד כללי למתחם'!N19","v":0}]
[{"$f":"'ד. ציוד כללי למתחם'!B20","v":"ציוד הגברה  "},{"$f":"'ד. ציוד כללי למתחם'!G20","v":0},{"$f":"'ד. ציוד כללי למתחם'!H20","v":0},null,{"$f":"'ד. ציוד כללי למתחם'!K20","v":0},{"$f":"'ד. ציוד כללי למתחם'!L20","v":0},{"$f":"IF(F16=0,\"\",'ד. ציוד כללי למתחם'!M20)","v":""},{"$f":"'ד. ציוד כללי למתחם'!N20","v":0}]
[{"$f":"'ד. ציוד כללי למתחם'!B23","v":"מכונת שטיפת רצפות "},{"$f":"'ד. ציוד כללי למתחם'!G23","v":0},{"$f":"'ד. ציוד כללי למתחם'!H23","v":0},null,{"$f":"'ד. ציוד כללי למתחם'!K23","v":0},{"$f":"'ד. ציוד כללי למתחם'!L23","v":0},{"$f":"IF(F17=0,\"\",'ד. ציוד כללי למתחם'!M23)","v":""},{"$f":"'ד. ציוד כללי למתחם'!N23","v":0}]
[{"$f":"'ד. ציוד כללי למתחם'!B24","v":"שואב אבק תעשייתי"},{"$f":"'ד. ציוד כללי למתחם'!G24","v":0},{"$f":"'ד. ציוד כללי למתחם'!H24","v":0},null,{"$f":"'ד. ציוד כללי למתחם'!K24","v":0},{"$f":"'ד. ציוד כללי למתחם'!L24","v":0},{"$f":"IF(F18=0,\"\",'ד. ציוד כללי למתחם'!M24)","v":""},{"$f":"'ד. ציוד כללי למתחם'!N24","v":0}]
[{"$f":"'ד. ציוד כללי למתחם'!B25","v":"מכונת כביסה 7 ק\"ג"},{"$f":"'ד. ציוד כללי למתחם'!G25","v":0},{"$f":"'ד. ציוד כללי למתחם'!H25","v":0},null,{"$f":"'ד. ציוד כללי למתחם'!K25","v":0},{"$f":"'ד. ציוד כללי למתחם'!L25","v":0},{"$f":"IF(F19=0,\"\",'ד. ציוד כללי למתחם'!M25)","v":""},{"$f":"'ד. ציוד כללי למתחם'!N25","v":0}]
[{"$f":"'ד. ציוד כללי למתחם'!B26","v":"מייבש כביסה 7 ק\"ג"},{"$f":"'ד. ציוד כללי למתחם'!G26","v":0},{"$f":"'ד. ציוד כללי למתחם'!H26","v":0},null,{"$f":"'ד. ציוד כללי למתחם'!K26","v":0},{"$f":"'ד. ציוד כללי למתחם'!L26","v":0},{"$f":"IF(F20=0,\"\",'ד. ציוד כללי למתחם'!M26)","v":""},{"$f":"'ד. ציוד כללי למתחם'!N26","v":0}]
[{"$f":"'ד. ציוד כללי למתחם'!B27","v":"סולם"},{"$f":"'ד. ציוד כללי למתחם'!G27","v":0},{"$f":"'ד. ציוד כללי למתחם'!H27","v":0},null,{"$f":"'ד. ציוד כללי למתחם'!K27","v":0},{"$f":"'ד. ציוד כללי למתחם'!L27","v":0},{"$f":"IF(F21=0,\"\",'ד. ציוד כללי למתחם'!M27)","v":""},{"$f":"'ד. ציוד כללי למתחם'!N27","v":0}]
[{"$f":"'ד. ציוד כללי למתחם'!B28","v":"ארגז כלים  "},{"$f":"'ד. ציוד כללי למתחם'!G28","v":0},{"$f":"'ד. ציוד כללי למתחם'!H28","v":0},null,{"$f":"'ד. ציוד כללי למתחם'!K28","v":0},{"$f":"'ד. ציוד כללי למתחם'!L28","v":0},{"$f":"IF(F22=0,\"\",'ד. ציוד כללי למתחם'!M28)","v":""},{"$f":"'ד. ציוד כללי למתחם'!N28","v":0}]
[{"$f":"'ד. ציוד כללי למתחם'!B29","v":"ציוד לתחזוקת חצר  וגינון "},{"$f":"'ד. ציוד כללי למתחם'!G29","v":0},{"$f":"'ד. ציוד כללי למתחם'!H29","v":0},null,{"$f":"'ד. ציוד כללי למתחם'!K29","v":0},{"$f":"'ד. ציוד כללי למתחם'!L29","v":0},{"$f":"IF(F23=0,\"\",'ד. ציוד כללי למתחם'!M29)","v":""},{"$f":"'ד. ציוד כללי למתחם'!N29","v":0}]
[{"$f":"'ד. ציוד כללי למתחם'!B32","v":"מערכת מצלמות אבטחה "},{"$f":"'ד. ציוד כללי למתחם'!G32","v":0},{"$f":"'ד. ציוד כללי למתחם'!H32","v":0},null,{"$f":"'ד. ציוד כללי למתחם'!K32","v":0},{"$f":"'ד. ציוד כללי למתחם'!L32","v":0},{"$f":"IF(F24=0,\"\",'ד. ציוד כללי למתחם'!M32)","v":""},{"$f":"'ד. ציוד כללי למתחם'!N32","v":0}]
[{"$f":"'ד. ציוד כללי למתחם'!B33","v":"מערכת כריזת חירום "},{"$f":"'ד. ציוד כללי למתחם'!G33","v":0},{"$f":"'ד. ציוד כללי למתחם'!H33","v":0},null,{"$f":"'ד. ציוד כללי למתחם'!K33","v":0},{"$f":"'ד. ציוד כללי למתחם'!L33","v":0},{"$f":"IF(F25=0,\"\",'ד. ציוד כללי למתחם'!M33)","v":""},{"$f":"'ד. ציוד כללי למתחם'!N33","v":0}]
[{"$f":"'ד. ציוד כללי למתחם'!B36","v":"תיק עזרה ראשונה  "},{"$f":"'ד. ציוד כללי למתחם'!G36","v":0},{"$f":"'ד. ציוד כללי למתחם'!H36","v":0},null,{"$f":"'ד. ציוד כללי למתחם'!K36","v":0},{"$f":"'ד. ציוד כללי למתחם'!L36","v":0},{"$f":"IF(F26=0,\"\",'ד. ציוד כללי למתחם'!M36)","v":""},{"$f":"'ד. ציוד כללי למתחם'!N36","v":0}]
[{"$f":"'ד. ציוד כללי למתחם'!B37","v":"דיפיבריליאטור"},{"$f":"'ד. ציוד כללי למתחם'!G37","v":0},{"$f":"'ד. ציוד כללי למתחם'!H37","v":0},null,{"$f":"'ד. ציוד כללי למתחם'!K37","v":0},{"$f":"'ד. ציוד כללי למתחם'!L37","v":0},{"$f":"IF(F27=0,\"\",'ד. ציוד כללי למתחם'!M37)","v":""},{"$f":"'ד. ציוד כללי למתחם'!N37","v":0}]
[{"$f":"'ד. ציוד כללי למתחם'!B38","v":"ארון תרופות "},{"$f":"'ד. ציוד כללי למתחם'!G38","v":0},{"$f":"'ד. ציוד כללי למתחם'!H38","v":0},null,{"$f":"'ד. ציוד כללי למתחם'!K38","v":0},{"$f":"'ד. ציוד כללי למתחם'!L38","v":0},{"$f":"IF(F28=0,\"\",'ד. ציוד כללי למתחם'!M38)","v":""},{"$f":"'ד. ציוד כללי למתחם'!N38","v":0}]
[{"$f":"'ד. ציוד כללי למתחם'!B41","v":"שולחן חדר אוכל "},{"$f":"'ד. ציוד כללי למתחם'!G41","v":0},{"$f":"'ד. ציוד כללי למתחם'!H41","v":0},null,{"$f":"'ד. ציוד כללי למתחם'!K41","v":0},{"$f":"'ד. ציוד כללי למתחם'!L41","v":0},{"$f":"IF(F29=0,\"\",'ד. ציוד כללי למתחם'!M41)","v":""},{"$f":"'ד. ציוד כללי למתחם'!N41","v":0}]
[{"$f":"'ד. ציוד כללי למתחם'!B42","v":"כיסא חדר אוכל "},{"$f":"'ד. ציוד כללי למתחם'!G42","v":0},{"$f":"'ד. ציוד כללי למתחם'!H42","v":0},null,{"$f":"'ד. ציוד כללי למתחם'!K42","v":0},{"$f":"'ד. ציוד כללי למתחם'!L42","v":0},{"$f":"IF(F30=0,\"\",'ד. ציוד כללי למתחם'!M42)","v":""},{"$f":"'ד. ציוד כללי למתחם'!N42","v":0}]
[{"$f":"'ד. ציוד כללי למתחם'!B43","v":"סט כלי אוכל "},{"$f":"'ד. ציוד כללי למתחם'!G43","v":0},{"$f":"'ד. ציוד כללי למתחם'!H43","v":0},null,{"$f":"'ד. ציוד כללי למתחם'!K43","v":0},{"$f":"'ד. ציוד כללי למתחם'!L43","v":0},{"$f":"IF(F31=0,\"\",'ד. ציוד כללי למתחם'!M43)","v":""},{"$f":"'ד. ציוד כללי למתחם'!N43","v":0}]
[{"$f":"'ד. ציוד כללי למתחם'!B44","v":"עגלת אשפה"},{"$f":"'ד. ציוד כללי למתחם'!G44","v":0},{"$f":"'ד. ציוד כללי למתחם'!H44","v":0},null,{"$f":"'ד. ציוד כללי למתחם'!K44","v":0},{"$f":"'ד. ציוד כללי למתחם'!L44","v":0},{"$f":"IF(F32=0,\"\",'ד. ציוד כללי למתחם'!M44)","v":""},{"$f":"'ד. ציוד כללי למתחם'!N44","v":0}]
[{"$f":"'ד. ציוד כללי למתחם'!B46","v":"שירותי אדריכלות ועיצוב פנים"},{"$f":"'ד. ציוד כללי למתחם'!G46","v":0},{"$f":"'ד. ציוד כללי למתחם'!H46","v":0},null,{"$f":"'ד. ציוד כללי למתחם'!K46","v":0},{"$f":"'ד. ציוד כללי למתחם'!L46","v":0},{"$f":"IF(F33=0,\"\",'ד. ציוד כללי למתחם'!M46)","v":""},{"$f":"'ד. ציוד כללי למתחם'!N46","v":0}]
[{"$f":"'ד. ציוד כללי למתחם'!B47","v":"סה\"כ ציוד כללי למתחם כולל מע\"מ"},null,{"$f":"SUM(C9:C33)","v":0},null,{"$f":"'ד. ציוד כללי למתחם'!K47","v":"סה\"כ ציוד כללי למתחם כולל מע\"מ"},null,{"$f":"IF(F34=0,\"\",'ד. ציוד כללי למתחם'!M47)","v":""},{"$f":"SUM(H9:H33)","v":0}]
[{"$f":"'יח. סיכום'!B28","v":"ציוד חדרי קבוצות"},null,null,null,{"$f":"A35","v":"ציוד חדרי קבוצות"}]
[{"$f":"'ה. ציוד חדרי קבוצות'!B9","v":"כסא בחדר קבוצה "},{"$f":"'ה. ציוד חדרי קבוצות'!G9","v":0},{"$f":"'ה. ציוד חדרי קבוצות'!H9","v":0},null,{"$f":"'ה. ציוד חדרי קבוצות'!K9","v":0},{"$f":"'ה. ציוד חדרי קבוצות'!L9","v":0},{"$f":"IF(F36=0,\"\",'ה. ציוד חדרי קבוצות'!M9)","v":""},{"$f":"'ה. ציוד חדרי קבוצות'!N9","v":0}]
[{"$f":"'ה. ציוד חדרי קבוצות'!B10","v":"שולחן בחדר קבוצה "},{"$f":"'ה. ציוד חדרי קבוצות'!G10","v":0},{"$f":"'ה. ציוד חדרי קבוצות'!H10","v":0},null,{"$f":"'ה. ציוד חדרי קבוצות'!K10","v":0},{"$f":"'ה. ציוד חדרי קבוצות'!L10","v":0},{"$f":"IF(F37=0,\"\",'ה. ציוד חדרי קבוצות'!M10)","v":""},{"$f":"'ה. ציוד חדרי קבוצות'!N10","v":0}]
[{"$f":"'ה. ציוד חדרי קבוצות'!B11","v":"שולחן מחשב "},{"$f":"'ה. ציוד חדרי קבוצות'!G11","v":0},{"$f":"'ה. ציוד חדרי קבוצות'!H11","v":0},null,{"$f":"'ה. ציוד חדרי קבוצות'!K11","v":0},{"$f":"'ה. ציוד חדרי קבוצות'!L11","v":0},{"$f":"IF(F38=0,\"\",'ה. ציוד חדרי קבוצות'!M11)","v":""},{"$f":"'ה. ציוד חדרי קבוצות'!N11","v":0}]
[{"$f":"'ה. ציוד חדרי קבוצות'!B12","v":"כורסא "},{"$f":"'ה. ציוד חדרי קבוצות'!G12","v":0},{"$f":"'ה. ציוד חדרי קבוצות'!H12","v":0},null,{"$f":"'ה. ציוד חדרי קבוצות'!K12","v":0},{"$f":"'ה. ציוד חדרי קבוצות'!L12","v":0},{"$f":"IF(F39=0,\"\",'ה. ציוד חדרי קבוצות'!M12)","v":""},{"$f":"'ה. ציוד חדרי קבוצות'!N12","v":0}]
[{"$f":"'ה. ציוד חדרי קבוצות'!B13","v":"ארון איחסון "},{"$f":"'ה. ציוד חדרי קבוצות'!G13","v":0},{"$f":"'ה. ציוד חדרי קבוצות'!H13","v":0},null,{"$f":"'ה. ציוד חדרי קבוצות'!K13","v":0},{"$f":"'ה. ציוד חדרי קבוצות'!L13","v":0},{"$f":"IF(F40=0,\"\",'ה. ציוד חדרי קבוצות'!M13)","v":""},{"$f":"'ה. ציוד חדרי קבוצות'!N13","v":0}]
[{"$f":"'ה. ציוד חדרי קבוצות'!B14","v":"כוננית מדפים "},{"$f":"'ה. ציוד חדרי קבוצות'!G14","v":0},{"$f":"'ה. ציוד חדרי קבוצות'!H14","v":0},null,{"$f":"'ה. ציוד חדרי קבוצות'!K14","v":0},{"$f":"'ה. ציוד חדרי קבוצות'!L14","v":0},{"$f":"IF(F41=0,\"\",'ה. ציוד חדרי קבוצות'!M14)","v":""},{"$f":"'ה. ציוד חדרי קבוצות'!N14","v":0}]
[{"$f":"'ה. ציוד חדרי קבוצות'!B15","v":"ארון לוקרים "},{"$f":"'ה. ציוד חדרי קבוצות'!G15","v":0},{"$f":"'ה. ציוד חדרי קבוצות'!H15","v":0},null,{"$f":"'ה. ציוד חדרי קבוצות'!K15","v":0},{"$f":"'ה. ציוד חדרי קבוצות'!L15","v":0},{"$f":"IF(F42=0,\"\",'ה. ציוד חדרי קבוצות'!M15)","v":""},{"$f":"'ה. ציוד חדרי קבוצות'!N15","v":0}]
[{"$f":"'ה. ציוד חדרי קבוצות'!B16","v":"מראה "},{"$f":"'ה. ציוד חדרי קבוצות'!G16","v":0},{"$f":"'ה. ציוד חדרי קבוצות'!H16","v":0},null,{"$f":"'ה. ציוד חדרי קבוצות'!K16","v":0},{"$f":"'ה. ציוד חדרי קבוצות'!L16","v":0},{"$f":"IF(F43=0,\"\",'ה. ציוד חדרי קבוצות'!M16)","v":""},{"$f":"'ה. ציוד חדרי קבוצות'!N16","v":0}]
[{"$f":"'ה. ציוד חדרי קבוצות'!B17","v":"שעון קיר "},{"$f":"'ה. ציוד חדרי קבוצות'!G17","v":0},{"$f":"'ה. ציוד חדרי קבוצות'!H17","v":0},null,{"$f":"'ה. ציוד חדרי קבוצות'!K17","v":0},{"$f":"'ה. ציוד חדרי קבוצות'!L17","v":0},{"$f":"IF(F44=0,\"\",'ה. ציוד חדרי קבוצות'!M17)","v":""},{"$f":"'ה. ציוד חדרי קבוצות'!N17","v":0}]
[{"$f":"'ה. ציוד חדרי קבוצות'!B18","v":"וילונות חסיני אש  "},{"$f":"'ה. ציוד חדרי קבוצות'!G18","v":0},{"$f":"'ה. ציוד חדרי קבוצות'!H18","v":0},null,{"$f":"'ה. ציוד חדרי קבוצות'!K18","v":0},{"$f":"'ה. ציוד חדרי קבוצות'!L18","v":0},{"$f":"IF(F45=0,\"\",'ה. ציוד חדרי קבוצות'!M18)","v":""},{"$f":"'ה. ציוד חדרי קבוצות'!N18","v":0}]
[{"$f":"'ה. ציוד חדרי קבוצות'!B19","v":"שלוט פנים לאיפיון חדרים "},{"$f":"'ה. ציוד חדרי קבוצות'!G19","v":0},{"$f":"'ה. ציוד חדרי קבוצות'!H19","v":0},null,{"$f":"'ה. ציוד חדרי קבוצות'!K19","v":0},{"$f":"'ה. ציוד חדרי קבוצות'!L19","v":0},{"$f":"IF(F46=0,\"\",'ה. ציוד חדרי קבוצות'!M19)","v":""},{"$f":"'ה. ציוד חדרי קבוצות'!N19","v":0}]
[{"$f":"'ה. ציוד חדרי קבוצות'!B22","v":"מחשב קומפלט "},{"$f":"'ה. ציוד חדרי קבוצות'!G22","v":0},{"$f":"'ה. ציוד חדרי קבוצות'!H22","v":0},null,{"$f":"'ה. ציוד חדרי קבוצות'!K22","v":0},{"$f":"'ה. ציוד חדרי קבוצות'!L22","v":0},{"$f":"IF(F47=0,\"\",'ה. ציוד חדרי קבוצות'!M22)","v":""},{"$f":"'ה. ציוד חדרי קבוצות'!N22","v":0}]
[{"$f":"'ה. ציוד חדרי קבוצות'!B23","v":"מדפסת משולבת"},{"$f":"'ה. ציוד חדרי קבוצות'!G23","v":0},{"$f":"'ה. ציוד חדרי קבוצות'!H23","v":0},null,{"$f":"'ה. ציוד חדרי קבוצות'!K23","v":0},{"$f":"'ה. ציוד חדרי קבוצות'!L23","v":0},{"$f":"IF(F48=0,\"\",'ה. ציוד חדרי קבוצות'!M23)","v":""},{"$f":"'ה. ציוד חדרי קבוצות'!N23","v":0}]
[{"$f":"'ה. ציוד חדרי קבוצות'!B24","v":"טלוויזיה 65\" + מגן "},{"$f":"'ה. ציוד חדרי קבוצות'!G24","v":0},{"$f":"'ה. ציוד חדרי קבוצות'!H24","v":0},null,{"$f":"'ה. ציוד חדרי קבוצות'!K24","v":0},{"$f":"'ה. ציוד חדרי קבוצות'!L24","v":0},{"$f":"IF(F49=0,\"\",'ה. ציוד חדרי קבוצות'!M24)","v":""},{"$f":"'ה. ציוד חדרי קבוצות'!N24","v":0}]
[{"$f":"'ה. ציוד חדרי קבוצות'!B27","v":"מתקן נייר טואלט כפול "},{"$f":"'ה. ציוד חדרי קבוצות'!G27","v":0},{"$f":"'ה. ציוד חדרי קבוצות'!H27","v":0},null,{"$f":"'ה. ציוד חדרי קבוצות'!K27","v":0},{"$f":"'ה. ציוד חדרי קבוצות'!L27","v":0},{"$f":"IF(F50=0,\"\",'ה. ציוד חדרי קבוצות'!M27)","v":""},{"$f":"'ה. ציוד חדרי קבוצות'!N27","v":0}]
[{"$f":"'ה. ציוד חדרי קבוצות'!B28","v":"פח אשפה "},{"$f":"'ה. ציוד חדרי קבוצות'!G28","v":0},{"$f":"'ה. ציוד חדרי קבוצות'!H28","v":0},null,{"$f":"'ה. ציוד חדרי קבוצות'!K28","v":0},{"$f":"'ה. ציוד חדרי קבוצות'!L28","v":0},{"$f":"IF(F51=0,\"\",'ה. ציוד חדרי קבוצות'!M28)","v":""},{"$f":"'ה. ציוד חדרי קבוצות'!N28","v":0}]
[{"$f":"'ה. ציוד חדרי קבוצות'!B29","v":"דיספנסר לסבון נוזלי "},{"$f":"'ה. ציוד חדרי קבוצות'!G29","v":0},{"$f":"'ה. ציוד חדרי קבוצות'!H29","v":0},null,{"$f":"'ה. ציוד חדרי קבוצות'!K29","v":0},{"$f":"'ה. ציוד חדרי קבוצות'!L29","v":0},{"$f":"IF(F52=0,\"\",'ה. ציוד חדרי קבוצות'!M29)","v":""},{"$f":"'ה. ציוד חדרי קבוצות'!N29","v":0}]
[{"$f":"'ה. ציוד חדרי קבוצות'!B30","v":"מתקן מגבות נייר "},{"$f":"'ה. ציוד חדרי קבוצות'!G30","v":0},{"$f":"'ה. ציוד חדרי קבוצות'!H30","v":0},null,{"$f":"'ה. ציוד חדרי קבוצות'!K30","v":0},{"$f":"'ה. ציוד חדרי קבוצות'!L30","v":0},{"$f":"IF(F53=0,\"\",'ה. ציוד חדרי קבוצות'!M30)","v":""},{"$f":"'ה. ציוד חדרי קבוצות'!N30","v":0}]
[{"$f":"'ה. ציוד חדרי קבוצות'!B31","v":"מראה "},{"$f":"'ה. ציוד חדרי קבוצות'!G31","v":0},{"$f":"'ה. ציוד חדרי קבוצות'!H31","v":0},null,{"$f":"'ה. ציוד חדרי קבוצות'!K31","v":0},{"$f":"'ה. ציוד חדרי קבוצות'!L31","v":0},{"$f":"IF(F54=0,\"\",'ה. ציוד חדרי קבוצות'!M31)","v":""},{"$f":"'ה. ציוד חדרי קבוצות'!N31","v":0}]
[{"$f":"'ה. ציוד חדרי קבוצות'!B32","v":"מתקן ניקוי אסלה "},{"$f":"'ה. ציוד חדרי קבוצות'!G32","v":0},{"$f":"'ה. ציוד חדרי קבוצות'!H32","v":0},null,{"$f":"'ה. ציוד חדרי קבוצות'!K32","v":0},{"$f":"'ה. ציוד חדרי קבוצות'!L32","v":0},{"$f":"IF(F55=0,\"\",'ה. ציוד חדרי קבוצות'!M32)","v":""},{"$f":"'ה. ציוד חדרי קבוצות'!N32","v":0}]
[{"$f":"'ה. ציוד חדרי קבוצות'!B35","v":"שמשיה למרפסת "},{"$f":"'ה. ציוד חדרי קבוצות'!G35","v":0},{"$f":"'ה. ציוד חדרי קבוצות'!H35","v":0},null,{"$f":"'ה. ציוד חדרי קבוצות'!K35","v":0},{"$f":"'ה. ציוד חדרי קבוצות'!L35","v":0},{"$f":"IF(F56=0,\"\",'ה. ציוד חדרי קבוצות'!M35)","v":""},{"$f":"'ה. ציוד חדרי קבוצות'!N35","v":0}]
[{"$f":"'ה. ציוד חדרי קבוצות'!B36","v":"פינת ישיבה למרפסת כיתה "},{"$f":"'ה. ציוד חדרי קבוצות'!G36","v":0},{"$f":"'ה. ציוד חדרי קבוצות'!H36","v":0},null,{"$f":"'ה. ציוד חדרי קבוצות'!K36","v":0},{"$f":"'ה. ציוד חדרי קבוצות'!L36","v":0},{"$f":"IF(F57=0,\"\",'ה. ציוד חדרי קבוצות'!M36)","v":""},{"$f":"'ה. ציוד חדרי קבוצות'!N36","v":0}]
[{"$f":"'ה. ציוד חדרי קבוצות'!B38","v":"סה\"כ ציוד וריהוט חדרי קבוצות כולל מע\"מ"},null,{"$f":"SUM(C36:C57)","v":0},null,{"$f":"A58","v":"סה\"כ ציוד וריהוט חדרי קבוצות כולל מע\"מ"},null,null,{"$f":"SUM(H36:H57)","v":0}]
[{"$f":"'יח. סיכום'!B29","v":"ריפוי בעיסוק"},null,null,null,{"$f":"A59","v":"ריפוי בעיסוק"}]
[{"$f":"'ו. ריפוי בעיסוק'!B9","v":"מזרונים טיפוליים"},{"$f":"'ו. ריפוי בעיסוק'!G9","v":0},{"$f":"'ו. ריפוי בעיסוק'!H9","v":0},null,{"$f":"'ו. ריפוי בעיסוק'!K9","v":0},{"$f":"'ו. ריפוי בעיסוק'!L9","v":0},{"$f":"IF(F60=0,\"\",'ו. ריפוי בעיסוק'!M9)","v":""},{"$f":"'ו. ריפוי בעיסוק'!N9","v":0}]
[{"$f":"'ו. ריפוי בעיסוק'!B10","v":"ארון אחסון"},{"$f":"'ו. ריפוי בעיסוק'!G10","v":0},{"$f":"'ו. ריפוי בעיסוק'!H10","v":0},null,{"$f":"'ו. ריפוי בעיסוק'!K10","v":0},{"$f":"'ו. ריפוי בעיסוק'!L10","v":0},{"$f":"IF(F61=0,\"\",'ו. ריפוי בעיסוק'!M10)","v":""},{"$f":"'ו. ריפוי בעיסוק'!N10","v":0}]
[{"$f":"'ו. ריפוי בעיסוק'!B11","v":"מדף אחסון לציוד גדול תלוי"},{"$f":"'ו. ריפוי בעיסוק'!G11","v":0},{"$f":"'ו. ריפוי בעיסוק'!H11","v":0},null,{"$f":"'ו. ריפוי בעיסוק'!K11","v":0},{"$f":"'ו. ריפוי בעיסוק'!L11","v":0},{"$f":"IF(F62=0,\"\",'ו. ריפוי בעיסוק'!M11)","v":""},{"$f":"'ו. ריפוי בעיסוק'!N11","v":0}]
[{"$f":"'ו. ריפוי בעיסוק'!B12","v":"כסא מתכוונן"},{"$f":"'ו. ריפוי בעיסוק'!G12","v":0},{"$f":"'ו. ריפוי בעיסוק'!H12","v":0},null,{"$f":"'ו. ריפוי בעיסוק'!K12","v":0},{"$f":"'ו. ריפוי בעיסוק'!L12","v":0},{"$f":"IF(F63=0,\"\",'ו. ריפוי בעיסוק'!M12)","v":""},{"$f":"'ו. ריפוי בעיסוק'!N12","v":0}]
[{"$f":"'ו. ריפוי בעיסוק'!B13","v":"כסא מטפל"},{"$f":"'ו. ריפוי בעיסוק'!G13","v":0},{"$f":"'ו. ריפוי בעיסוק'!H13","v":0},null,{"$f":"'ו. ריפוי בעיסוק'!K13","v":0},{"$f":"'ו. ריפוי בעיסוק'!L13","v":0},{"$f":"IF(F64=0,\"\",'ו. ריפוי בעיסוק'!M13)","v":""},{"$f":"'ו. ריפוי בעיסוק'!N13","v":0}]
[{"$f":"'ו. ריפוי בעיסוק'!B14","v":"לוח מחיק"},{"$f":"'ו. ריפוי בעיסוק'!G14","v":0},{"$f":"'ו. ריפוי בעיסוק'!H14","v":0},null,{"$f":"'ו. ריפוי בעיסוק'!K14","v":0},{"$f":"'ו. ריפוי בעיסוק'!L14","v":0},{"$f":"IF(F65=0,\"\",'ו. ריפוי בעיסוק'!M14)","v":""},{"$f":"'ו. ריפוי בעיסוק'!N14","v":0}]
[{"$f":"'ו. ריפוי בעיסוק'!B15","v":"מראה קבועה ווילון"},{"$f":"'ו. ריפוי בעיסוק'!G15","v":0},{"$f":"'ו. ריפוי בעיסוק'!H15","v":0},null,{"$f":"'ו. ריפוי בעיסוק'!K15","v":0},{"$f":"'ו. ריפוי בעיסוק'!L15","v":0},{"$f":"IF(F66=0,\"\",'ו. ריפוי בעיסוק'!M15)","v":""},{"$f":"'ו. ריפוי בעיסוק'!N15","v":0}]
[{"$f":"'ו. ריפוי בעיסוק'!B16","v":"שולחן מתכוונן חשמלי"},{"$f":"'ו. ריפוי בעיסוק'!G16","v":0},{"$f":"'ו. ריפוי בעיסוק'!H16","v":0},null,{"$f":"'ו. ריפוי בעיסוק'!K16","v":0},{"$f":"'ו. ריפוי בעיסוק'!L16","v":0},{"$f":"IF(F67=0,\"\",'ו. ריפוי בעיסוק'!M16)","v":""},{"$f":"'ו. ריפוי בעיסוק'!N16","v":0}]
[{"$f":"'ו. ריפוי בעיסוק'!B19","v":"נקודת תליה בתקרה, כולל התקנה "},{"$f":"'ו. ריפוי בעיסוק'!G19","v":0},{"$f":"'ו. ריפוי בעיסוק'!H19","v":0},null,{"$f":"'ו. ריפוי בעיסוק'!K19","v":0},{"$f":"'ו. ריפוי בעיסוק'!L19","v":0},{"$f":"IF(F68=0,\"\",'ו. ריפוי בעיסוק'!M19)","v":""},{"$f":"'ו. ריפוי בעיסוק'!N19","v":0}]
[{"$f":"'ו. ריפוי בעיסוק'!B20","v":"סקוטר למשקל של מבוגרים"},{"$f":"'ו. ריפוי בעיסוק'!G20","v":0},{"$f":"'ו. ריפוי בעיסוק'!H20","v":0},null,{"$f":"'ו. ריפוי בעיסוק'!K20","v":0},{"$f":"'ו. ריפוי בעיסוק'!L20","v":0},{"$f":"IF(F69=0,\"\",'ו. ריפוי בעיסוק'!M20)","v":""},{"$f":"'ו. ריפוי בעיסוק'!N20","v":0}]
[{"$f":"'ו. ריפוי בעיסוק'!B21","v":"חבית טיפולית"},{"$f":"'ו. ריפוי בעיסוק'!G21","v":0},{"$f":"'ו. ריפוי בעיסוק'!H21","v":0},null,{"$f":"'ו. ריפוי בעיסוק'!K21","v":0},{"$f":"'ו. ריפוי בעיסוק'!L21","v":0},{"$f":"IF(F70=0,\"\",'ו. ריפוי בעיסוק'!M21)","v":""},{"$f":"'ו. ריפוי בעיסוק'!N21","v":0}]
[{"$f":"'ו. ריפוי בעיסוק'!B22","v":"סט חמישה ספסלים"},{"$f":"'ו. ריפוי בעיסוק'!G22","v":0},{"$f":"'ו. ריפוי בעיסוק'!H22","v":0},null,{"$f":"'ו. ריפוי בעיסוק'!K22","v":0},{"$f":"'ו. ריפוי בעיסוק'!L22","v":0},{"$f":"IF(F71=0,\"\",'ו. ריפוי בעיסוק'!M22)","v":""},{"$f":"'ו. ריפוי בעיסוק'!N22","v":0}]
[{"$f":"'ו. ריפוי בעיסוק'!B23","v":"ערסל בד טיפולי"},{"$f":"'ו. ריפוי בעיסוק'!G23","v":0},{"$f":"'ו. ריפוי בעיסוק'!H23","v":0},null,{"$f":"'ו. ריפוי בעיסוק'!K23","v":0},{"$f":"'ו. ריפוי בעיסוק'!L23","v":0},{"$f":"IF(F72=0,\"\",'ו. ריפוי בעיסוק'!M23)","v":""},{"$f":"'ו. ריפוי בעיסוק'!N23","v":0}]
[{"$f":"'ו. ריפוי בעיסוק'!B24","v":"צלחת וסטיבולרית לבוגרים"},{"$f":"'ו. ריפוי בעיסוק'!G24","v":0},{"$f":"'ו. ריפוי בעיסוק'!H24","v":0},null,{"$f":"'ו. ריפוי בעיסוק'!K24","v":0},{"$f":"'ו. ריפוי בעיסוק'!L24","v":0},{"$f":"IF(F73=0,\"\",'ו. ריפוי בעיסוק'!M24)","v":""},{"$f":"'ו. ריפוי בעיסוק'!N24","v":0}]
[{"$f":"'ו. ריפוי בעיסוק'!B25","v":"כדורים (סכום גלובלי)"},{"$f":"'ו. ריפוי בעיסוק'!G25","v":0},{"$f":"'ו. ריפוי בעיסוק'!H25","v":0},null,{"$f":"'ו. ריפוי בעיסוק'!K25","v":0},{"$f":"'ו. ריפוי בעיסוק'!L25","v":0},{"$f":"IF(F74=0,\"\",'ו. ריפוי בעיסוק'!M25)","v":""},{"$f":"'ו. ריפוי בעיסוק'!N25","v":0}]
[{"$f":"'ו. ריפוי בעיסוק'!B26","v":"גלילים בגדלים שונים (סכום גלובלי)"},{"$f":"'ו. ריפוי בעיסוק'!G26","v":0},{"$f":"'ו. ריפוי בעיסוק'!H26","v":0},null,{"$f":"'ו. ריפוי בעיסוק'!K26","v":0},{"$f":"'ו. ריפוי בעיסוק'!L26","v":0},{"$f":"IF(F75=0,\"\",'ו. ריפוי בעיסוק'!M26)","v":""},{"$f":"'ו. ריפוי בעיסוק'!N26","v":0}]
[{"$f":"'ו. ריפוי בעיסוק'!B27","v":"וסט נאופרן"},{"$f":"'ו. ריפוי בעיסוק'!G27","v":0},{"$f":"'ו. ריפוי בעיסוק'!H27","v":0},null,{"$f":"'ו. ריפוי בעיסוק'!K27","v":0},{"$f":"'ו. ריפוי בעיסוק'!L27","v":0},{"$f":"IF(F76=0,\"\",'ו. ריפוי בעיסוק'!M27)","v":""},{"$f":"'ו. ריפוי בעיסוק'!N27","v":0}]
[{"$f":"'ו. ריפוי בעיסוק'!B28","v":"משחקי גריה שונים (סכום גלובלי)"},{"$f":"'ו. ריפוי בעיסוק'!G28","v":0},{"$f":"'ו. ריפוי בעיסוק'!H28","v":0},null,{"$f":"'ו. ריפוי בעיסוק'!K28","v":0},{"$f":"'ו. ריפוי בעיסוק'!L28","v":0},{"$f":"IF(F77=0,\"\",'ו. ריפוי בעיסוק'!M28)","v":""},{"$f":"'ו. ריפוי בעיסוק'!N28","v":0}]
[{"$f":"'ו. ריפוי בעיסוק'!B29","v":"עזרים לטיפול קבוצתי (טבעות, \nמטפחות, כדורים, מצנח וכד') (סכום גלובלי)"},{"$f":"'ו. ריפוי בעיסוק'!G29","v":0},{"$f":"'ו. ריפוי בעיסוק'!H29","v":0},null,{"$f":"'ו. ריפוי בעיסוק'!K29","v":0},{"$f":"'ו. ריפוי בעיסוק'!L29","v":0},{"$f":"IF(F78=0,\"\",'ו. ריפוי בעיסוק'!M29)","v":""},{"$f":"'ו. ריפוי בעיסוק'!N29","v":0}]
[{"$f":"'ו. ריפוי בעיסוק'!B30","v":"משחקי מרחב, בנייה והרכבה  (סכום גלובלי)"},{"$f":"'ו. ריפוי בעיסוק'!G30","v":0},{"$f":"'ו. ריפוי בעיסוק'!H30","v":0},null,{"$f":"'ו. ריפוי בעיסוק'!K30","v":0},{"$f":"'ו. ריפוי בעיסוק'!L30","v":0},{"$f":"IF(F79=0,\"\",'ו. ריפוי בעיסוק'!M30)","v":""},{"$f":"'ו. ריפוי בעיסוק'!N30","v":0}]
[{"$f":"'ו. ריפוי בעיסוק'!B31","v":"פאזלים ומשחקי תפיסה (סכום גלובלי)"},{"$f":"'ו. ריפוי בעיסוק'!G31","v":0},{"$f":"'ו. ריפוי בעיסוק'!H31","v":0},null,{"$f":"'ו. ריפוי בעיסוק'!K31","v":0},{"$f":"'ו. ריפוי בעיסוק'!L31","v":0},{"$f":"IF(F80=0,\"\",'ו. ריפוי בעיסוק'!M31)","v":""},{"$f":"'ו. ריפוי בעיסוק'!N31","v":0}]
[{"$f":"'ו. ריפוי בעיסוק'!B32","v":"אביזרי ADL מותאמים (סכום גלובלי)"},{"$f":"'ו. ריפוי בעיסוק'!G32","v":0},{"$f":"'ו. ריפוי בעיסוק'!H32","v":0},null,{"$f":"'ו. ריפוי בעיסוק'!K32","v":0},{"$f":"'ו. ריפוי בעיסוק'!L32","v":0},{"$f":"IF(F81=0,\"\",'ו. ריפוי בעיסוק'!M32)","v":""},{"$f":"'ו. ריפוי בעיסוק'!N32","v":0}]
[{"$f":"'ו. ריפוי בעיסוק'!B33","v":"ציוד להכנת סדי ידיים "},{"$f":"'ו. ריפוי בעיסוק'!G33","v":0},{"$f":"'ו. ריפוי בעיסוק'!H33","v":0},null,{"$f":"'ו. ריפוי בעיסוק'!K33","v":0},{"$f":"'ו. ריפוי בעיסוק'!L33","v":0},{"$f":"IF(F82=0,\"\",'ו. ריפוי בעיסוק'!M33)","v":""},{"$f":"'ו. ריפוי בעיסוק'!N33","v":0}]
[{"$f":"'ו. ריפוי בעיסוק'!B36","v":"מחשב נייח/נייד עם מסך מגע  "},{"$f":"'ו. ריפוי בעיסוק'!G36","v":0},{"$f":"'ו. ריפוי בעיסוק'!H36","v":0},null,{"$f":"'ו. ריפוי בעיסוק'!K36","v":0},{"$f":"'ו. ריפוי בעיסוק'!L36","v":0},{"$f":"IF(F83=0,\"\",'ו. ריפוי בעיסוק'!M36)","v":""},{"$f":"'ו. ריפוי בעיסוק'!N36","v":0}]
[{"$f":"'ו. ריפוי בעיסוק'!B37","v":"מדפסת"},{"$f":"'ו. ריפוי בעיסוק'!G37","v":0},{"$f":"'ו. ריפוי בעיסוק'!H37","v":0},null,{"$f":"'ו. ריפוי בעיסוק'!K37","v":0},{"$f":"'ו. ריפוי בעיסוק'!L37","v":0},{"$f":"IF(F84=0,\"\",'ו. ריפוי בעיסוק'!M37)","v":""},{"$f":"'ו. ריפוי בעיסוק'!N37","v":0}]
[{"$f":"'ו. ריפוי בעיסוק'!B38","v":" אייפד (1  ל 5 אנשים)   Ipad 10.2\" 128GB WIFI "},{"$f":"'ו. ריפוי בעיסוק'!G38","v":0},{"$f":"'ו. ריפוי בעיסוק'!H38","v":0},null,{"$f":"'ו. ריפוי בעיסוק'!K38","v":0},{"$f":"'ו. ריפוי בעיסוק'!L38","v":0},{"$f":"IF(F85=0,\"\",'ו. ריפוי בעיסוק'!M38)","v":""},{"$f":"'ו. ריפוי בעיסוק'!N38","v":0}]
[{"$f":"'ו. ריפוי בעיסוק'!B39","v":"תוכנות לאייפד"},{"$f":"'ו. ריפוי בעיסוק'!G39","v":0},{"$f":"'ו. ריפוי בעיסוק'!H39","v":0},null,{"$f":"'ו. ריפוי בעיסוק'!K39","v":0},{"$f":"'ו. ריפוי בעיסוק'!L39","v":0},{"$f":"IF(F86=0,\"\",'ו. ריפוי בעיסוק'!M39)","v":""},{"$f":"'ו. ריפוי בעיסוק'!N39","v":0}]
[{"$f":"'ו. ריפוי בעיסוק'!B40","v":"מגן לאייפד + מדבקת זכוכית"},{"$f":"'ו. ריפוי בעיסוק'!G40","v":0},{"$f":"'ו. ריפוי בעיסוק'!H40","v":0},null,{"$f":"'ו. ריפוי בעיסוק'!K40","v":0},{"$f":"'ו. ריפוי בעיסוק'!L40","v":0},{"$f":"IF(F87=0,\"\",'ו. ריפוי בעיסוק'!M40)","v":""},{"$f":"'ו. ריפוי בעיסוק'!N40","v":0}]
[{"$f":"'ו. ריפוי בעיסוק'!B41","v":"Apple tv"},{"$f":"'ו. ריפוי בעיסוק'!G41","v":0},{"$f":"'ו. ריפוי בעיסוק'!H41","v":0},null,{"$f":"'ו. ריפוי בעיסוק'!K41","v":0},{"$f":"'ו. ריפוי בעיסוק'!L41","v":0},{"$f":"IF(F88=0,\"\",'ו. ריפוי בעיסוק'!M41)","v":""},{"$f":"'ו. ריפוי בעיסוק'!N41","v":0}]
[{"$f":"'ו. ריפוי בעיסוק'!B42","v":"מסך הקרנה נגלל"},{"$f":"'ו. ריפוי בעיסוק'!G42","v":0},{"$f":"'ו. ריפוי בעיסוק'!H42","v":0},null,{"$f":"'ו. ריפוי בעיסוק'!K42","v":0},{"$f":"'ו. ריפוי בעיסוק'!L42","v":0},{"$f":"IF(F89=0,\"\",'ו. ריפוי בעיסוק'!M42)","v":""},{"$f":"'ו. ריפוי בעיסוק'!N42","v":0}]
[{"$f":"'ו. ריפוי בעיסוק'!B43","v":"מסך מגע כ- 65\" לתלייה על קיר+ ארון + מחשב להפעלה, ניתן להשתמש גם בלוח חכם "},{"$f":"'ו. ריפוי בעיסוק'!G43","v":0},{"$f":"'ו. ריפוי בעיסוק'!H43","v":0},null,{"$f":"'ו. ריפוי בעיסוק'!K43","v":0},{"$f":"'ו. ריפוי בעיסוק'!L43","v":0},{"$f":"IF(F90=0,\"\",'ו. ריפוי בעיסוק'!M43)","v":""},{"$f":"'ו. ריפוי בעיסוק'!N43","v":0}]
[{"$f":"'ו. ריפוי בעיסוק'!B44","v":"מערכת מציאות מדומה"},{"$f":"'ו. ריפוי בעיסוק'!G44","v":0},{"$f":"'ו. ריפוי בעיסוק'!H44","v":0},null,{"$f":"'ו. ריפוי בעיסוק'!K44","v":0},{"$f":"'ו. ריפוי בעיסוק'!L44","v":0},{"$f":"IF(F91=0,\"\",'ו. ריפוי בעיסוק'!M44)","v":""},{"$f":"'ו. ריפוי בעיסוק'!N44","v":0}]
[{"$f":"'ו. ריפוי בעיסוק'!B45","v":"עכברים ייחודיים "},{"$f":"'ו. ריפוי בעיסוק'!G45","v":0},{"$f":"'ו. ריפוי בעיסוק'!H45","v":0},null,{"$f":"'ו. ריפוי בעיסוק'!K45","v":0},{"$f":"'ו. ריפוי בעיסוק'!L45","v":0},{"$f":"IF(F92=0,\"\",'ו. ריפוי בעיסוק'!M45)","v":""},{"$f":"'ו. ריפוי בעיסוק'!N45","v":0}]
[{"$f":"'ו. ריפוי בעיסוק'!B46","v":"מקלדות ייחודיות "},{"$f":"'ו. ריפוי בעיסוק'!G46","v":0},{"$f":"'ו. ריפוי בעיסוק'!H46","v":0},null,{"$f":"'ו. ריפוי בעיסוק'!K46","v":0},{"$f":"'ו. ריפוי בעיסוק'!L46","v":0},{"$f":"IF(F93=0,\"\",'ו. ריפוי בעיסוק'!M46)","v":""},{"$f":"'ו. ריפוי בעיסוק'!N46","v":0}]
[{"$f":"'ו. ריפוי בעיסוק'!B47","v":"מתגים ומתאמי מתגים "},{"$f":"'ו. ריפוי בעיסוק'!G47","v":0},{"$f":"'ו. ריפוי בעיסוק'!H47","v":0},null,{"$f":"'ו. ריפוי בעיסוק'!K47","v":0},{"$f":"'ו. ריפוי בעיסוק'!L47","v":0},{"$f":"IF(F94=0,\"\",'ו. ריפוי בעיסוק'!M47)","v":""},{"$f":"'ו. ריפוי בעיסוק'!N47","v":0}]
[{"$f":"'ו. ריפוי בעיסוק'!B48","v":"זרועות למתגים ולטאבלט "},{"$f":"'ו. ריפוי בעיסוק'!G48","v":0},{"$f":"'ו. ריפוי בעיסוק'!H48","v":0},null,{"$f":"'ו. ריפוי בעיסוק'!K48","v":0},{"$f":"'ו. ריפוי בעיסוק'!L48","v":0},{"$f":"IF(F95=0,\"\",'ו. ריפוי בעיסוק'!M48)","v":""},{"$f":"'ו. ריפוי בעיסוק'!N48","v":0}]
[{"$f":"'ו. ריפוי בעיסוק'!B49","v":"צעצועים מותאמים - סכום גלובלי"},{"$f":"'ו. ריפוי בעיסוק'!G49","v":0},{"$f":"'ו. ריפוי בעיסוק'!H49","v":0},null,{"$f":"'ו. ריפוי בעיסוק'!K49","v":0},{"$f":"'ו. ריפוי בעיסוק'!L49","v":0},{"$f":"IF(F96=0,\"\",'ו. ריפוי בעיסוק'!M49)","v":""},{"$f":"'ו. ריפוי בעיסוק'!N49","v":0}]
[{"$f":"'ו. ריפוי בעיסוק'!B51","v":"סה\"כ ציוד ריפוי בעיסוק כולל מע\"מ"},null,{"$f":"SUM(C60:C96)","v":0},null,{"$f":"A97","v":"סה\"כ ציוד ריפוי בעיסוק כולל מע\"מ"},null,null,{"$f":"SUM(H60:H96)","v":0}]
[{"$f":"'יח. סיכום'!B30","v":"קלינאות תקשורת"},null,null,null,"קלינאות תקשורת"]
[{"$f":"'ז. קלינאות תקשורת'!B8","v":"מחשב נייח /נייד"},{"$f":"'ז. קלינאות תקשורת'!G8","v":0},{"$f":"'ז. קלינאות תקשורת'!H8","v":0},null,{"$f":"'ז. קלינאות תקשורת'!K8","v":0},{"$f":"'ז. קלינאות תקשורת'!L8","v":0},{"$f":"IF(F99=0,\"\",'ז. קלינאות תקשורת'!M8)","v":""},{"$f":"'ז. קלינאות תקשורת'!N8","v":0}]
[{"$f":"'ז. קלינאות תקשורת'!B9","v":"מדפסת משולבת עם יישומי סריקה וצילום, פלט צבעוני"},{"$f":"'ז. קלינאות תקשורת'!G9","v":0},{"$f":"'ז. קלינאות תקשורת'!H9","v":0},null,{"$f":"'ז. קלינאות תקשורת'!K9","v":0},{"$f":"'ז. קלינאות תקשורת'!L9","v":0},{"$f":"IF(F100=0,\"\",'ז. קלינאות תקשורת'!M9)","v":""},{"$f":"'ז. קלינאות תקשורת'!N9","v":0}]
[{"$f":"'ז. קלינאות תקשורת'!B10","v":"מכשיר למינציה"},{"$f":"'ז. קלינאות תקשורת'!G10","v":0},{"$f":"'ז. קלינאות תקשורת'!H10","v":0},null,{"$f":"'ז. קלינאות תקשורת'!K10","v":0},{"$f":"'ז. קלינאות תקשורת'!L10","v":0},{"$f":"IF(F101=0,\"\",'ז. קלינאות תקשורת'!M10)","v":""},{"$f":"'ז. קלינאות תקשורת'!N10","v":0}]
[{"$f":"'ז. קלינאות תקשורת'!B11","v":"מחשב לוח (אייפד/טאבלט)"},{"$f":"'ז. קלינאות תקשורת'!G11","v":0},{"$f":"'ז. קלינאות תקשורת'!H11","v":0},null,{"$f":"'ז. קלינאות תקשורת'!K11","v":0},{"$f":"'ז. קלינאות תקשורת'!L11","v":0},{"$f":"IF(F102=0,\"\",'ז. קלינאות תקשורת'!M11)","v":""},{"$f":"'ז. קלינאות תקשורת'!N11","v":0}]
[{"$f":"'ז. קלינאות תקשורת'!B12","v":"אפליקציות למחשב לוח (אייפד/טאבלט)"},{"$f":"'ז. קלינאות תקשורת'!G12","v":0},{"$f":"'ז. קלינאות תקשורת'!H12","v":0},null,{"$f":"'ז. קלינאות תקשורת'!K12","v":0},{"$f":"'ז. קלינאות תקשורת'!L12","v":0},{"$f":"IF(F103=0,\"\",'ז. קלינאות תקשורת'!M12)","v":""},{"$f":"'ז. קלינאות תקשורת'!N12","v":0}]
[{"$f":"'ז. קלינאות תקשורת'!B15","v":"פלטים קוליים (סכום גלובלי)"},{"$f":"'ז. קלינאות תקשורת'!G15","v":0},{"$f":"'ז. קלינאות תקשורת'!H15","v":0},null,{"$f":"'ז. קלינאות תקשורת'!K15","v":0},{"$f":"'ז. קלינאות תקשורת'!L15","v":0},{"$f":"IF(F104=0,\"\",'ז. קלינאות תקשורת'!M15)","v":""},{"$f":"'ז. קלינאות תקשורת'!N15","v":0}]
[{"$f":"'ז. קלינאות תקשורת'!B16","v":"מתגים (סכום גלובלי)"},{"$f":"'ז. קלינאות תקשורת'!G16","v":0},{"$f":"'ז. קלינאות תקשורת'!H16","v":0},null,{"$f":"'ז. קלינאות תקשורת'!K16","v":0},{"$f":"'ז. קלינאות תקשורת'!L16","v":0},{"$f":"IF(F105=0,\"\",'ז. קלינאות תקשורת'!M16)","v":""},{"$f":"'ז. קלינאות תקשורת'!N16","v":0}]
[{"$f":"'ז. קלינאות תקשורת'!B17","v":"אפליקציות לתקשורת תומכת חליפית  (סכום גלובלי)"},{"$f":"'ז. קלינאות תקשורת'!G17","v":0},{"$f":"'ז. קלינאות תקשורת'!H17","v":0},null,{"$f":"'ז. קלינאות תקשורת'!K17","v":0},{"$f":"'ז. קלינאות תקשורת'!L17","v":0},{"$f":"IF(F106=0,\"\",'ז. קלינאות תקשורת'!M17)","v":""},{"$f":"'ז. קלינאות תקשורת'!N17","v":0}]
[{"$f":"'ז. קלינאות תקשורת'!B18","v":"תוכנת גריד (סכום גלובלי)"},{"$f":"'ז. קלינאות תקשורת'!G18","v":0},{"$f":"'ז. קלינאות תקשורת'!H18","v":0},null,{"$f":"'ז. קלינאות תקשורת'!K18","v":0},{"$f":"'ז. קלינאות תקשורת'!L18","v":0},{"$f":"IF(F107=0,\"\",'ז. קלינאות תקשורת'!M18)","v":""},{"$f":"'ז. קלינאות תקשורת'!N18","v":0}]
[{"$f":"'ז. קלינאות תקשורת'!B21","v":"ציוד טיפולי, ספרים, כרטיסיות ומשחקי שפה ותקשורת"},{"$f":"'ז. קלינאות תקשורת'!G21","v":0},{"$f":"'ז. קלינאות תקשורת'!H21","v":0},null,{"$f":"'ז. קלינאות תקשורת'!K21","v":0},{"$f":"'ז. קלינאות תקשורת'!L21","v":0},{"$f":"IF(F108=0,\"\",'ז. קלינאות תקשורת'!M21)","v":""},{"$f":"'ז. קלינאות תקשורת'!N21","v":0}]
[{"$f":"'ז. קלינאות תקשורת'!B22","v":"תוכנות תקשורת לאי-פד כמו sounding board, book creator,choice boards, snap scene ועוד, בהתאם למאפייני האוכלוסיה"},{"$f":"'ז. קלינאות תקשורת'!G22","v":0},{"$f":"'ז. קלינאות תקשורת'!H22","v":0},null,{"$f":"'ז. קלינאות תקשורת'!K22","v":0},{"$f":"'ז. קלינאות תקשורת'!L22","v":0},{"$f":"IF(F109=0,\"\",'ז. קלינאות תקשורת'!M22)","v":""},{"$f":"'ז. קלינאות תקשורת'!N22","v":0}]
[{"$f":"'ז. קלינאות תקשורת'!B23","v":"אי פד "},{"$f":"'ז. קלינאות תקשורת'!G23","v":0},{"$f":"'ז. קלינאות תקשורת'!H23","v":0},null,{"$f":"'ז. קלינאות תקשורת'!K23","v":0},{"$f":"'ז. קלינאות תקשורת'!L23","v":0},{"$f":"IF(F110=0,\"\",'ז. קלינאות תקשורת'!M23)","v":""},{"$f":"'ז. קלינאות תקשורת'!N23","v":0}]
[{"$f":"'ז. קלינאות תקשורת'!B26","v":"ארון אחסון לציוד"},{"$f":"'ז. קלינאות תקשורת'!G26","v":0},{"$f":"'ז. קלינאות תקשורת'!H26","v":0},null,{"$f":"'ז. קלינאות תקשורת'!K26","v":0},{"$f":"'ז. קלינאות תקשורת'!L26","v":0},{"$f":"IF(F111=0,\"\",'ז. קלינאות תקשורת'!M26)","v":""},{"$f":"'ז. קלינאות תקשורת'!N26","v":0}]
[{"$f":"'ז. קלינאות תקשורת'!B27","v":"כסאות"},{"$f":"'ז. קלינאות תקשורת'!G27","v":0},{"$f":"'ז. קלינאות תקשורת'!H27","v":0},null,{"$f":"'ז. קלינאות תקשורת'!K27","v":0},{"$f":"'ז. קלינאות תקשורת'!L27","v":0},{"$f":"IF(F112=0,\"\",'ז. קלינאות תקשורת'!M27)","v":""},{"$f":"'ז. קלינאות תקשורת'!N27","v":0}]
[{"$f":"'ז. קלינאות תקשורת'!B28","v":"שולחנות"},{"$f":"'ז. קלינאות תקשורת'!G28","v":0},{"$f":"'ז. קלינאות תקשורת'!H28","v":0},null,{"$f":"'ז. קלינאות תקשורת'!K28","v":0},{"$f":"'ז. קלינאות תקשורת'!L28","v":0},{"$f":"IF(F113=0,\"\",'ז. קלינאות תקשורת'!M28)","v":""},{"$f":"'ז. קלינאות תקשורת'!N28","v":0}]
[{"$f":"'ז. קלינאות תקשורת'!B29","v":"מראה ווילון"},{"$f":"'ז. קלינאות תקשורת'!G29","v":0},{"$f":"'ז. קלינאות תקשורת'!H29","v":0},null,{"$f":"'ז. קלינאות תקשורת'!K29","v":0},{"$f":"'ז. קלינאות תקשורת'!L29","v":0},{"$f":"IF(F114=0,\"\",'ז. קלינאות תקשורת'!M29)","v":""},{"$f":"'ז. קלינאות תקשורת'!N29","v":0}]
[{"$f":"'ז. קלינאות תקשורת'!B30","v":"לוח מחיק"},{"$f":"'ז. קלינאות תקשורת'!G30","v":0},{"$f":"'ז. קלינאות תקשורת'!H30","v":0},null,{"$f":"'ז. קלינאות תקשורת'!K30","v":0},{"$f":"'ז. קלינאות תקשורת'!L30","v":0},{"$f":"IF(F115=0,\"\",'ז. קלינאות תקשורת'!M30)","v":""},{"$f":"'ז. קלינאות תקשורת'!N30","v":0}]
[{"$f":"'ז. קלינאות תקשורת'!B31","v":"שטיח"},{"$f":"'ז. קלינאות תקשורת'!G31","v":0},{"$f":"'ז. קלינאות תקשורת'!H31","v":0},null,{"$f":"'ז. קלינאות תקשורת'!K31","v":0},{"$f":"'ז. קלינאות תקשורת'!L31","v":0},{"$f":"IF(F116=0,\"\",'ז. קלינאות תקשורת'!M31)","v":""},{"$f":"'ז. קלינאות תקשורת'!N31","v":0}]
[{"$f":"'ז. קלינאות תקשורת'!B33","v":"סה\"כ ציוד קלינאות תקשורת כולל מע\"מ"},null,{"$f":"SUM(C99:C116)","v":0},null,{"$f":"A117","v":"סה\"כ ציוד קלינאות תקשורת כולל מע\"מ"},null,null,{"$f":"SUM(H99:H116)","v":0}]
[{"$f":"'יח. סיכום'!B31","v":"חדר סנוזלן"},null,null,null,{"$f":"A118","v":"חדר סנוזלן"}]
[{"$f":"'ח. סנוזלן'!B7","v":"מנוף תקרה+ התקנה (לסיעודיים)"},{"$f":"'ח. סנוזלן'!G7","v":0},{"$f":"'ח. סנוזלן'!H7","v":0},null,{"$f":"'ח. סנוזלן'!K7","v":0},{"$f":"'ח. סנוזלן'!L7","v":0},{"$f":"IF(F119=0,\"\",'ח. סנוזלן'!M7)","v":""},{"$f":"'ח. סנוזלן'!N7","v":0}]
[{"$f":"'ח. סנוזלן'!B8","v":"עמוד בועות"},{"$f":"'ח. סנוזלן'!G8","v":0},{"$f":"'ח. סנוזלן'!H8","v":0},null,{"$f":"'ח. סנוזלן'!K8","v":0},{"$f":"'ח. סנוזלן'!L8","v":0},{"$f":"IF(F120=0,\"\",'ח. סנוזלן'!M8)","v":""},{"$f":"'ח. סנוזלן'!N8","v":0}]
[{"$f":"'ח. סנוזלן'!B9","v":"מראות מחוסמות"},{"$f":"'ח. סנוזלן'!G9","v":0},{"$f":"'ח. סנוזלן'!H9","v":0},null,{"$f":"'ח. סנוזלן'!K9","v":0},{"$f":"'ח. סנוזלן'!L9","v":0},{"$f":"IF(F121=0,\"\",'ח. סנוזלן'!M9)","v":""},{"$f":"'ח. סנוזלן'!N9","v":0}]
[{"$f":"'ח. סנוזלן'!B10","v":"בסיס מרופד"},{"$f":"'ח. סנוזלן'!G10","v":0},{"$f":"'ח. סנוזלן'!H10","v":0},null,{"$f":"'ח. סנוזלן'!K10","v":0},{"$f":"'ח. סנוזלן'!L10","v":0},{"$f":"IF(F122=0,\"\",'ח. סנוזלן'!M10)","v":""},{"$f":"'ח. סנוזלן'!N10","v":0}]
[{"$f":"'ח. סנוזלן'!B11","v":"פרוג'קטור"},{"$f":"'ח. סנוזלן'!G11","v":0},{"$f":"'ח. סנוזלן'!H11","v":0},null,{"$f":"'ח. סנוזלן'!K11","v":0},{"$f":"'ח. סנוזלן'!L11","v":0},{"$f":"IF(F123=0,\"\",'ח. סנוזלן'!M11)","v":""},{"$f":"'ח. סנוזלן'!N11","v":0}]
[{"$f":"'ח. סנוזלן'!B12","v":"פופ"},{"$f":"'ח. סנוזלן'!G12","v":0},{"$f":"'ח. סנוזלן'!H12","v":0},null,{"$f":"'ח. סנוזלן'!K12","v":0},{"$f":"'ח. סנוזלן'!L12","v":0},{"$f":"IF(F124=0,\"\",'ח. סנוזלן'!M12)","v":""},{"$f":"'ח. סנוזלן'!N12","v":0}]
[{"$f":"'ח. סנוזלן'!B13","v":"מערכת מוסיקה"},{"$f":"'ח. סנוזלן'!G13","v":0},{"$f":"'ח. סנוזלן'!H13","v":0},null,{"$f":"'ח. סנוזלן'!K13","v":0},{"$f":"'ח. סנוזלן'!L13","v":0},{"$f":"IF(F125=0,\"\",'ח. סנוזלן'!M13)","v":""},{"$f":"'ח. סנוזלן'!N13","v":0}]
[{"$f":"'ח. סנוזלן'!B14","v":"ריפוד רצפה  וקירות ל 20 מ\"ר"},{"$f":"'ח. סנוזלן'!G14","v":0},{"$f":"'ח. סנוזלן'!H14","v":0},null,{"$f":"'ח. סנוזלן'!K14","v":0},{"$f":"'ח. סנוזלן'!L14","v":0},{"$f":"IF(F126=0,\"\",'ח. סנוזלן'!M14)","v":""},{"$f":"'ח. סנוזלן'!N14","v":0}]
[{"$f":"'ח. סנוזלן'!B15","v":"סיבים אופטיים"},{"$f":"'ח. סנוזלן'!G15","v":0},{"$f":"'ח. סנוזלן'!H15","v":0},null,{"$f":"'ח. סנוזלן'!K15","v":0},{"$f":"'ח. סנוזלן'!L15","v":0},{"$f":"IF(F127=0,\"\",'ח. סנוזלן'!M15)","v":""},{"$f":"'ח. סנוזלן'!N15","v":0}]
[{"$f":"'ח. סנוזלן'!B16","v":"כדור מראות+מקרן"},{"$f":"'ח. סנוזלן'!G16","v":0},{"$f":"'ח. סנוזלן'!H16","v":0},null,{"$f":"'ח. סנוזלן'!K16","v":0},{"$f":"'ח. סנוזלן'!L16","v":0},{"$f":"IF(F128=0,\"\",'ח. סנוזלן'!M16)","v":""},{"$f":"'ח. סנוזלן'!N16","v":0}]
[{"$f":"'ח. סנוזלן'!B17","v":"נדנדה"},{"$f":"'ח. סנוזלן'!G17","v":0},{"$f":"'ח. סנוזלן'!H17","v":0},null,{"$f":"'ח. סנוזלן'!K17","v":0},{"$f":"'ח. סנוזלן'!L17","v":0},{"$f":"IF(F129=0,\"\",'ח. סנוזלן'!M17)","v":""},{"$f":"'ח. סנוזלן'!N17","v":0}]
[{"$f":"'ח. סנוזלן'!B18","v":"מתרגם קול לאור"},{"$f":"'ח. סנוזלן'!G18","v":0},{"$f":"'ח. סנוזלן'!H18","v":0},null,{"$f":"'ח. סנוזלן'!K18","v":0},{"$f":"'ח. סנוזלן'!L18","v":0},{"$f":"IF(F130=0,\"\",'ח. סנוזלן'!M18)","v":""},{"$f":"'ח. סנוזלן'!N18","v":0}]
[{"$f":"'ח. סנוזלן'!B19","v":"מתקן גירוי תגובה"},{"$f":"'ח. סנוזלן'!G19","v":0},{"$f":"'ח. סנוזלן'!H19","v":0},null,{"$f":"'ח. סנוזלן'!K19","v":0},{"$f":"'ח. סנוזלן'!L19","v":0},{"$f":"IF(F131=0,\"\",'ח. סנוזלן'!M19)","v":""},{"$f":"'ח. סנוזלן'!N19","v":0}]
[{"$f":"'ח. סנוזלן'!B20","v":"אביזרי עיסוי"},{"$f":"'ח. סנוזלן'!G20","v":0},{"$f":"'ח. סנוזלן'!H20","v":0},null,{"$f":"'ח. סנוזלן'!K20","v":0},{"$f":"'ח. סנוזלן'!L20","v":0},{"$f":"IF(F132=0,\"\",'ח. סנוזלן'!M20)","v":""},{"$f":"'ח. סנוזלן'!N20","v":0}]
[{"$f":"'ח. סנוזלן'!B21","v":"אביזרי גריה קטנים"},{"$f":"'ח. סנוזלן'!G21","v":0},{"$f":"'ח. סנוזלן'!H21","v":0},null,{"$f":"'ח. סנוזלן'!K21","v":0},{"$f":"'ח. סנוזלן'!L21","v":0},{"$f":"IF(F133=0,\"\",'ח. סנוזלן'!M21)","v":""},{"$f":"'ח. סנוזלן'!N21","v":0}]
[{"$f":"'ח. סנוזלן'!B22","v":"ארון אחסון לעזרים"},{"$f":"'ח. סנוזלן'!G22","v":0},{"$f":"'ח. סנוזלן'!H22","v":0},null,{"$f":"'ח. סנוזלן'!K22","v":0},{"$f":"'ח. סנוזלן'!L22","v":0},{"$f":"IF(F134=0,\"\",'ח. סנוזלן'!M22)","v":""},{"$f":"'ח. סנוזלן'!N22","v":0}]
[{"$f":"'ח. סנוזלן'!B23","v":"סה\"כ ציוד חדר סנוזלן כולל מע\"מ"},null,{"$f":"SUM(C119:C134)","v":0},null,{"$f":"A135","v":"סה\"כ ציוד חדר סנוזלן כולל מע\"מ"},null,null,{"$f":"SUM(H119:H134)","v":0}]
[{"$f":"'יח. סיכום'!B32","v":"מתקני חצר"},null,null,null,"מתקני חצר"]
[{"$f":"'ט. מתקני חצר '!B7","v":"לחיצת חזה משיכה עליונה"},{"$f":"'ט. מתקני חצר '!H7","v":0},{"$f":"'ט. מתקני חצר '!I7","v":0},null,{"$f":"'ט. מתקני חצר '!L7","v":0},{"$f":"'ט. מתקני חצר '!M7","v":0},{"$f":"IF(F137=0,\"\",'ט. מתקני חצר '!N7)","v":""},{"$f":"'ט. מתקני חצר '!O7","v":0}]
[{"$f":"'ט. מתקני חצר '!B8","v":"מתקן דחיקת כתפיים למשתמש"},{"$f":"'ט. מתקני חצר '!H8","v":0},{"$f":"'ט. מתקני חצר '!I8","v":0},null,{"$f":"'ט. מתקני חצר '!L8","v":0},{"$f":"'ט. מתקני חצר '!M8","v":0},{"$f":"IF(F138=0,\"\",'ט. מתקני חצר '!N8)","v":""},{"$f":"'ט. מתקני חצר '!O8","v":0}]
[{"$f":"'ט. מתקני חצר '!B9","v":"מתקן פרפר חזה"},{"$f":"'ט. מתקני חצר '!H9","v":0},{"$f":"'ט. מתקני חצר '!I9","v":0},null,{"$f":"'ט. מתקני חצר '!L9","v":0},{"$f":"'ט. מתקני חצר '!M9","v":0},{"$f":"IF(F139=0,\"\",'ט. מתקני חצר '!N9)","v":""},{"$f":"'ט. מתקני חצר '!O9","v":0}]
[{"$f":"'ט. מתקני חצר '!B10","v":"מתקן פרפר הפוך"},{"$f":"'ט. מתקני חצר '!H10","v":0},{"$f":"'ט. מתקני חצר '!I10","v":0},null,{"$f":"'ט. מתקני חצר '!L10","v":0},{"$f":"'ט. מתקני חצר '!M10","v":0},{"$f":"IF(F140=0,\"\",'ט. מתקני חצר '!N10)","v":""},{"$f":"'ט. מתקני חצר '!O10","v":0}]
[{"$f":"'ט. מתקני חצר '!B11","v":"מתקן מקבילי כנף לזוג\nמשתמשים"},{"$f":"'ט. מתקני חצר '!H11","v":0},{"$f":"'ט. מתקני חצר '!I11","v":0},null,{"$f":"'ט. מתקני חצר '!L11","v":0},{"$f":"'ט. מתקני חצר '!M11","v":0},{"$f":"IF(F141=0,\"\",'ט. מתקני חצר '!N11)","v":""},{"$f":"'ט. מתקני חצר '!O11","v":0}]
[{"$f":"'ט. מתקני חצר '!B12","v":"מתקן דחיקת רגליים לזוג משתמשים"},{"$f":"'ט. מתקני חצר '!H12","v":0},{"$f":"'ט. מתקני חצר '!I12","v":0},null,{"$f":"'ט. מתקני חצר '!L12","v":0},{"$f":"'ט. מתקני חצר '!M12","v":0},{"$f":"IF(F142=0,\"\",'ט. מתקני חצר '!N12)","v":""},{"$f":"'ט. מתקני חצר '!O12","v":0}]
[{"$f":"'ט. מתקני חצר '!B13","v":"מתקן סקי"},{"$f":"'ט. מתקני חצר '!H13","v":0},{"$f":"'ט. מתקני חצר '!I13","v":0},null,{"$f":"'ט. מתקני חצר '!L13","v":0},{"$f":"'ט. מתקני חצר '!M13","v":0},{"$f":"IF(F143=0,\"\",'ט. מתקני חצר '!N13)","v":""},{"$f":"'ט. מתקני חצר '!O13","v":0}]
[{"$f":"'ט. מתקני חצר '!B14","v":"מתקן הליכה באוויר לזוג משתמשים"},{"$f":"'ט. מתקני חצר '!H14","v":0},{"$f":"'ט. מתקני חצר '!I14","v":0},null,{"$f":"'ט. מתקני חצר '!L14","v":0},{"$f":"'ט. מתקני חצר '!M14","v":0},{"$f":"IF(F144=0,\"\",'ט. מתקני חצר '!N14)","v":""},{"$f":"'ט. מתקני חצר '!O14","v":0}]
[{"$f":"'ט. מתקני חצר '!B15","v":"מתקן חתירה בכורסא"},{"$f":"'ט. מתקני חצר '!H15","v":0},{"$f":"'ט. מתקני חצר '!I15","v":0},null,{"$f":"'ט. מתקני חצר '!L15","v":0},{"$f":"'ט. מתקני חצר '!M15","v":0},{"$f":"IF(F145=0,\"\",'ט. מתקני חצר '!N15)","v":""},{"$f":"'ט. מתקני חצר '!O15","v":0}]
[{"$f":"'ט. מתקני חצר '!B16","v":"ממתקן מאמן אגן שרירי בטן ישבן  וירכיים בתנועת מטוטלת"},{"$f":"'ט. מתקני חצר '!H16","v":0},{"$f":"'ט. מתקני חצר '!I16","v":0},null,{"$f":"'ט. מתקני חצר '!L16","v":0},{"$f":"'ט. מתקני חצר '!M16","v":0},{"$f":"IF(F146=0,\"\",'ט. מתקני חצר '!N16)","v":""},{"$f":"'ט. מתקני חצר '!O16","v":0}]
[{"$f":"'ט. מתקני חצר '!B17","v":"מתקן אופני ידיים רגליים"},{"$f":"'ט. מתקני חצר '!H17","v":0},{"$f":"'ט. מתקני חצר '!I17","v":0},null,{"$f":"'ט. מתקני חצר '!L17","v":0},{"$f":"'ט. מתקני חצר '!M17","v":0},{"$f":"IF(F147=0,\"\",'ט. מתקני חצר '!N17)","v":""},{"$f":"'ט. מתקני חצר '!O17","v":0}]
[{"$f":"'ט. מתקני חצר '!B18","v":"מתקן אימון פולי תחתון בתמיכת חזה"},{"$f":"'ט. מתקני חצר '!H18","v":0},{"$f":"'ט. מתקני חצר '!I18","v":0},null,{"$f":"'ט. מתקני חצר '!L18","v":0},{"$f":"'ט. מתקני חצר '!M18","v":0},{"$f":"IF(F148=0,\"\",'ט. מתקני חצר '!N18)","v":""},{"$f":"'ט. מתקני חצר '!O18","v":0}]
[{"$f":"'ט. מתקני חצר '!B19","v":"מתקן אופני ספיננג"},{"$f":"'ט. מתקני חצר '!H19","v":0},{"$f":"'ט. מתקני חצר '!I19","v":0},null,{"$f":"'ט. מתקני חצר '!L19","v":0},{"$f":"'ט. מתקני חצר '!M19","v":0},{"$f":"IF(F149=0,\"\",'ט. מתקני חצר '!N19)","v":""},{"$f":"'ט. מתקני חצר '!O19","v":0}]
[{"$f":"'ט. מתקני חצר '!B20","v":"מתקן דחיקת רגליים לארבע"},{"$f":"'ט. מתקני חצר '!H20","v":0},{"$f":"'ט. מתקני חצר '!I20","v":0},null,{"$f":"'ט. מתקני חצר '!L20","v":0},{"$f":"'ט. מתקני חצר '!M20","v":0},{"$f":"IF(F150=0,\"\",'ט. מתקני חצר '!N20)","v":""},{"$f":"'ט. מתקני חצר '!O20","v":0}]
[{"$f":"'ט. מתקני חצר '!B21","v":"מתקן מתח –מקבילים וכורסת בטן"},{"$f":"'ט. מתקני חצר '!H21","v":0},{"$f":"'ט. מתקני חצר '!I21","v":0},null,{"$f":"'ט. מתקני חצר '!L21","v":0},{"$f":"'ט. מתקני חצר '!M21","v":0},{"$f":"IF(F151=0,\"\",'ט. מתקני חצר '!N21)","v":""},{"$f":"'ט. מתקני חצר '!O21","v":0}]
[{"$f":"'ט. מתקני חצר '!B22","v":"נדנדה קן לציפור"},{"$f":"'ט. מתקני חצר '!H22","v":0},{"$f":"'ט. מתקני חצר '!I22","v":0},null,{"$f":"'ט. מתקני חצר '!L22","v":0},{"$f":"'ט. מתקני חצר '!M22","v":0},{"$f":"IF(F152=0,\"\",'ט. מתקני חצר '!N22)","v":""},{"$f":"'ט. מתקני חצר '!O22","v":0}]
[{"$f":"'ט. מתקני חצר '!B23","v":"מתקני מוזיקה"},{"$f":"'ט. מתקני חצר '!H23","v":0},{"$f":"'ט. מתקני חצר '!I23","v":0},null,{"$f":"'ט. מתקני חצר '!L23","v":0},{"$f":"'ט. מתקני חצר '!M23","v":0},{"$f":"IF(F153=0,\"\",'ט. מתקני חצר '!N23)","v":""},{"$f":"'ט. מתקני חצר '!O23","v":0}]
[{"$f":"'ט. מתקני חצר '!B24","v":"כדורגל שולחן"},{"$f":"'ט. מתקני חצר '!H24","v":0},{"$f":"'ט. מתקני חצר '!I24","v":0},null,{"$f":"'ט. מתקני חצר '!L24","v":0},{"$f":"'ט. מתקני חצר '!M24","v":0},{"$f":"IF(F154=0,\"\",'ט. מתקני חצר '!N24)","v":""},{"$f":"'ט. מתקני חצר '!O24","v":0}]
[{"$f":"'ט. מתקני חצר '!B25","v":"הוקי אויר"},{"$f":"'ט. מתקני חצר '!H25","v":0},{"$f":"'ט. מתקני חצר '!I25","v":0},null,{"$f":"'ט. מתקני חצר '!L25","v":0},{"$f":"'ט. מתקני חצר '!M25","v":0},{"$f":"IF(F155=0,\"\",'ט. מתקני חצר '!N25)","v":""},{"$f":"'ט. מתקני חצר '!O25","v":0}]
[{"$f":"'ט. מתקני חצר '!B26","v":"משטח גומי"},{"$f":"'ט. מתקני חצר '!H26","v":0},{"$f":"'ט. מתקני חצר '!I26","v":0},null,{"$f":"'ט. מתקני חצר '!L26","v":0},{"$f":"'ט. מתקני חצר '!M26","v":0},{"$f":"IF(F156=0,\"\",'ט. מתקני חצר '!N26)","v":""},{"$f":"'ט. מתקני חצר '!O26","v":0}]
[{"$f":"'ט. מתקני חצר '!B27","v":"סה\"כ מתקני חצר (כולל מע\"מ)"},null,{"$f":"SUM(C137:C156)","v":0},null,{"$f":"A157","v":"סה\"כ מתקני חצר (כולל מע\"מ)"},null,null,{"$f":"SUM(H137:H156)","v":0}]
[{"$f":"'יח. סיכום'!B33","v":"פיזיותרפיה"},null,null,null,"פיזיותרפיה"]
[{"$f":"'י. פיזיותרפיה'!B8","v":"בובט מיטת טיפול"},{"$f":"'י. פיזיותרפיה'!G8","v":0},{"$f":"'י. פיזיותרפיה'!H8","v":0},null,{"$f":"'י. פיזיותרפיה'!K8","v":0},{"$f":"'י. פיזיותרפיה'!L8","v":0},{"$f":"IF(F159=0,\"\",'י. פיזיותרפיה'!M8)","v":""},{"$f":"'י. פיזיותרפיה'!N8","v":0}]
[{"$f":"'י. פיזיותרפיה'!B9","v":"כסא מטפל"},{"$f":"'י. פיזיותרפיה'!G9","v":0},{"$f":"'י. פיזיותרפיה'!H9","v":0},null,{"$f":"'י. פיזיותרפיה'!K9","v":0},{"$f":"'י. פיזיותרפיה'!L9","v":0},{"$f":"IF(F160=0,\"\",'י. פיזיותרפיה'!M9)","v":""},{"$f":"'י. פיזיותרפיה'!N9","v":0}]
[{"$f":"'י. פיזיותרפיה'!B10","v":"סולם שבדי ותוספות"},{"$f":"'י. פיזיותרפיה'!G10","v":0},{"$f":"'י. פיזיותרפיה'!H10","v":0},null,{"$f":"'י. פיזיותרפיה'!K10","v":0},{"$f":"'י. פיזיותרפיה'!L10","v":0},{"$f":"IF(F161=0,\"\",'י. פיזיותרפיה'!M10)","v":""},{"$f":"'י. פיזיותרפיה'!N10","v":0}]
[{"$f":"'י. פיזיותרפיה'!B11","v":"אחות אילמת"},{"$f":"'י. פיזיותרפיה'!G11","v":0},{"$f":"'י. פיזיותרפיה'!H11","v":0},null,{"$f":"'י. פיזיותרפיה'!K11","v":0},{"$f":"'י. פיזיותרפיה'!L11","v":0},{"$f":"IF(F162=0,\"\",'י. פיזיותרפיה'!M11)","v":""},{"$f":"'י. פיזיותרפיה'!N11","v":0}]
[{"$f":"'י. פיזיותרפיה'!B12","v":"מקבילים"},{"$f":"'י. פיזיותרפיה'!G12","v":0},{"$f":"'י. פיזיותרפיה'!H12","v":0},null,{"$f":"'י. פיזיותרפיה'!K12","v":0},{"$f":"'י. פיזיותרפיה'!L12","v":0},{"$f":"IF(F163=0,\"\",'י. פיזיותרפיה'!M12)","v":""},{"$f":"'י. פיזיותרפיה'!N12","v":0}]
[{"$f":"'י. פיזיותרפיה'!B13","v":"ארון איחסון"},{"$f":"'י. פיזיותרפיה'!G13","v":0},{"$f":"'י. פיזיותרפיה'!H13","v":0},null,{"$f":"'י. פיזיותרפיה'!K13","v":0},{"$f":"'י. פיזיותרפיה'!L13","v":0},{"$f":"IF(F164=0,\"\",'י. פיזיותרפיה'!M13)","v":""},{"$f":"'י. פיזיותרפיה'!N13","v":0}]
[{"$f":"'י. פיזיותרפיה'!B14","v":"מחשוב"},{"$f":"'י. פיזיותרפיה'!G14","v":0},{"$f":"'י. פיזיותרפיה'!H14","v":0},null,{"$f":"'י. פיזיותרפיה'!K14","v":0},{"$f":"'י. פיזיותרפיה'!L14","v":0},{"$f":"IF(F165=0,\"\",'י. פיזיותרפיה'!M14)","v":""},{"$f":"'י. פיזיותרפיה'!N14","v":0}]
[{"$f":"'י. פיזיותרפיה'!B17","v":"כיסא אקטיבי מיוחד קטן/בינוני"},{"$f":"'י. פיזיותרפיה'!G17","v":0},{"$f":"'י. פיזיותרפיה'!H17","v":0},null,{"$f":"'י. פיזיותרפיה'!K17","v":0},{"$f":"'י. פיזיותרפיה'!L17","v":0},{"$f":"IF(F166=0,\"\",'י. פיזיותרפיה'!M17)","v":""},{"$f":"'י. פיזיותרפיה'!N17","v":0}]
[{"$f":"'י. פיזיותרפיה'!B18","v":"כיסא אקטיבי מיוחד גדול"},{"$f":"'י. פיזיותרפיה'!G18","v":0},{"$f":"'י. פיזיותרפיה'!H18","v":0},null,{"$f":"'י. פיזיותרפיה'!K18","v":0},{"$f":"'י. פיזיותרפיה'!L18","v":0},{"$f":"IF(F167=0,\"\",'י. פיזיותרפיה'!M18)","v":""},{"$f":"'י. פיזיותרפיה'!N18","v":0}]
[{"$f":"'י. פיזיותרפיה'!B21","v":"עמידון קידמי כולל תמיכות"},{"$f":"'י. פיזיותרפיה'!G21","v":0},{"$f":"'י. פיזיותרפיה'!H21","v":0},null,{"$f":"'י. פיזיותרפיה'!K21","v":0},{"$f":"'י. פיזיותרפיה'!L21","v":0},{"$f":"IF(F168=0,\"\",'י. פיזיותרפיה'!M21)","v":""},{"$f":"'י. פיזיותרפיה'!N21","v":0}]
[{"$f":"'י. פיזיותרפיה'!B22","v":"עמידון אחורי כולל תמיכות"},{"$f":"'י. פיזיותרפיה'!G22","v":0},{"$f":"'י. פיזיותרפיה'!H22","v":0},null,{"$f":"'י. פיזיותרפיה'!K22","v":0},{"$f":"'י. פיזיותרפיה'!L22","v":0},{"$f":"IF(F169=0,\"\",'י. פיזיותרפיה'!M22)","v":""},{"$f":"'י. פיזיותרפיה'!N22","v":0}]
[{"$f":"'י. פיזיותרפיה'!B23","v":"מיטת טיל גדולה"},{"$f":"'י. פיזיותרפיה'!G23","v":0},{"$f":"'י. פיזיותרפיה'!H23","v":0},null,{"$f":"'י. פיזיותרפיה'!K23","v":0},{"$f":"'י. פיזיותרפיה'!L23","v":0},{"$f":"IF(F170=0,\"\",'י. פיזיותרפיה'!M23)","v":""},{"$f":"'י. פיזיותרפיה'!N23","v":0}]
[{"$f":"'י. פיזיותרפיה'!B24","v":"עמידון גדול כולל תמיכות מרובות "},{"$f":"'י. פיזיותרפיה'!G24","v":0},{"$f":"'י. פיזיותרפיה'!H24","v":0},null,{"$f":"'י. פיזיותרפיה'!K24","v":0},{"$f":"'י. פיזיותרפיה'!L24","v":0},{"$f":"IF(F171=0,\"\",'י. פיזיותרפיה'!M24)","v":""},{"$f":"'י. פיזיותרפיה'!N24","v":0}]
[{"$f":"'י. פיזיותרפיה'!B25","v":"ישיבה לעמידה עם תמיכות מרובות"},{"$f":"'י. פיזיותרפיה'!G25","v":0},{"$f":"'י. פיזיותרפיה'!H25","v":0},null,{"$f":"'י. פיזיותרפיה'!K25","v":0},{"$f":"'י. פיזיותרפיה'!L25","v":0},{"$f":"IF(F172=0,\"\",'י. פיזיותרפיה'!M25)","v":""},{"$f":"'י. פיזיותרפיה'!N25","v":0}]
[{"$f":"'י. פיזיותרפיה'!B28","v":"הליכון קידמי פשוט"},{"$f":"'י. פיזיותרפיה'!G28","v":0},{"$f":"'י. פיזיותרפיה'!H28","v":0},null,{"$f":"'י. פיזיותרפיה'!K28","v":0},{"$f":"'י. פיזיותרפיה'!L28","v":0},{"$f":"IF(F173=0,\"\",'י. פיזיותרפיה'!M28)","v":""},{"$f":"'י. פיזיותרפיה'!N28","v":0}]
[{"$f":"'י. פיזיותרפיה'!B29","v":"הליכון אחורי ק"},{"$f":"'י. פיזיותרפיה'!G29","v":0},{"$f":"'י. פיזיותרפיה'!H29","v":0},null,{"$f":"'י. פיזיותרפיה'!K29","v":0},{"$f":"'י. פיזיותרפיה'!L29","v":0},{"$f":"IF(F174=0,\"\",'י. פיזיותרפיה'!M29)","v":""},{"$f":"'י. פיזיותרפיה'!N29","v":0}]
[{"$f":"'י. פיזיותרפיה'!B30","v":"הליכון אחורי ב"},{"$f":"'י. פיזיותרפיה'!G30","v":0},{"$f":"'י. פיזיותרפיה'!H30","v":0},null,{"$f":"'י. פיזיותרפיה'!K30","v":0},{"$f":"'י. פיזיותרפיה'!L30","v":0},{"$f":"IF(F175=0,\"\",'י. פיזיותרפיה'!M30)","v":""},{"$f":"'י. פיזיותרפיה'!N30","v":0}]
[{"$f":"'י. פיזיותרפיה'!B31","v":"הליכון אחורי ג"},{"$f":"'י. פיזיותרפיה'!G31","v":0},{"$f":"'י. פיזיותרפיה'!H31","v":0},null,{"$f":"'י. פיזיותרפיה'!K31","v":0},{"$f":"'י. פיזיותרפיה'!L31","v":0},{"$f":"IF(F176=0,\"\",'י. פיזיותרפיה'!M31)","v":""},{"$f":"'י. פיזיותרפיה'!N31","v":0}]
[{"$f":"'י. פיזיותרפיה'!B32","v":"הליכון אמות הדראולי"},{"$f":"'י. פיזיותרפיה'!G32","v":0},{"$f":"'י. פיזיותרפיה'!H32","v":0},null,{"$f":"'י. פיזיותרפיה'!K32","v":0},{"$f":"'י. פיזיותרפיה'!L32","v":0},{"$f":"IF(F177=0,\"\",'י. פיזיותרפיה'!M32)","v":""},{"$f":"'י. פיזיותרפיה'!N32","v":0}]
[{"$f":"'י. פיזיותרפיה'!B33","v":"הליכון אמות רגיל"},{"$f":"'י. פיזיותרפיה'!G33","v":0},{"$f":"'י. פיזיותרפיה'!H33","v":0},null,{"$f":"'י. פיזיותרפיה'!K33","v":0},{"$f":"'י. פיזיותרפיה'!L33","v":0},{"$f":"IF(F178=0,\"\",'י. פיזיותרפיה'!M33)","v":""},{"$f":"'י. פיזיותרפיה'!N33","v":0}]
[{"$f":"'י. פיזיותרפיה'!B34","v":"רולטור בסיסי"},{"$f":"'י. פיזיותרפיה'!G34","v":0},{"$f":"'י. פיזיותרפיה'!H34","v":0},null,{"$f":"'י. פיזיותרפיה'!K34","v":0},{"$f":"'י. פיזיותרפיה'!L34","v":0},{"$f":"IF(F179=0,\"\",'י. פיזיותרפיה'!M34)","v":""},{"$f":"'י. פיזיותרפיה'!N34","v":0}]
[{"$f":"'י. פיזיותרפיה'!B35","v":"רולטור מיוחד תמיכות"},{"$f":"'י. פיזיותרפיה'!G35","v":0},{"$f":"'י. פיזיותרפיה'!H35","v":0},null,{"$f":"'י. פיזיותרפיה'!K35","v":0},{"$f":"'י. פיזיותרפיה'!L35","v":0},{"$f":"IF(F180=0,\"\",'י. פיזיותרפיה'!M35)","v":""},{"$f":"'י. פיזיותרפיה'!N35","v":0}]
[{"$f":"'י. פיזיותרפיה'!B36","v":"הליכון פייסר"},{"$f":"'י. פיזיותרפיה'!G36","v":0},{"$f":"'י. פיזיותרפיה'!H36","v":0},null,{"$f":"'י. פיזיותרפיה'!K36","v":0},{"$f":"'י. פיזיותרפיה'!L36","v":0},{"$f":"IF(F181=0,\"\",'י. פיזיותרפיה'!M36)","v":""},{"$f":"'י. פיזיותרפיה'!N36","v":0}]
[{"$f":"'י. פיזיותרפיה'!B37","v":"הליכון גרילו"},{"$f":"'י. פיזיותרפיה'!G37","v":0},{"$f":"'י. פיזיותרפיה'!H37","v":0},null,{"$f":"'י. פיזיותרפיה'!K37","v":0},{"$f":"'י. פיזיותרפיה'!L37","v":0},{"$f":"IF(F182=0,\"\",'י. פיזיותרפיה'!M37)","v":""},{"$f":"'י. פיזיותרפיה'!N37","v":0}]
[{"$f":"'י. פיזיותרפיה'!B38","v":"הליכון אוכף"},{"$f":"'י. פיזיותרפיה'!G38","v":0},{"$f":"'י. פיזיותרפיה'!H38","v":0},null,{"$f":"'י. פיזיותרפיה'!K38","v":0},{"$f":"'י. פיזיותרפיה'!L38","v":0},{"$f":"IF(F183=0,\"\",'י. פיזיותרפיה'!M38)","v":""},{"$f":"'י. פיזיותרפיה'!N38","v":0}]
[{"$f":"'י. פיזיותרפיה'!B41","v":"מנוף תקרה+ התקנה"},{"$f":"'י. פיזיותרפיה'!G41","v":0},{"$f":"'י. פיזיותרפיה'!H41","v":0},null,{"$f":"'י. פיזיותרפיה'!K41","v":0},{"$f":"'י. פיזיותרפיה'!L41","v":0},{"$f":"IF(F184=0,\"\",'י. פיזיותרפיה'!M41)","v":""},{"$f":"'י. פיזיותרפיה'!N41","v":0}]
[{"$f":"'י. פיזיותרפיה'!B42","v":"מנוף רצפה"},{"$f":"'י. פיזיותרפיה'!G42","v":0},{"$f":"'י. פיזיותרפיה'!H42","v":0},null,{"$f":"'י. פיזיותרפיה'!K42","v":0},{"$f":"'י. פיזיותרפיה'!L42","v":0},{"$f":"IF(F185=0,\"\",'י. פיזיותרפיה'!M42)","v":""},{"$f":"'י. פיזיותרפיה'!N42","v":0}]
[{"$f":"'י. פיזיותרפיה'!B43","v":"מנופי העמדה"},{"$f":"'י. פיזיותרפיה'!G43","v":0},{"$f":"'י. פיזיותרפיה'!H43","v":0},null,{"$f":"'י. פיזיותרפיה'!K43","v":0},{"$f":"'י. פיזיותרפיה'!L43","v":0},{"$f":"IF(F186=0,\"\",'י. פיזיותרפיה'!M43)","v":""},{"$f":"'י. פיזיותרפיה'!N43","v":0}]
[{"$f":"'י. פיזיותרפיה'!B44","v":"ערסלים"},{"$f":"'י. פיזיותרפיה'!G44","v":0},{"$f":"'י. פיזיותרפיה'!H44","v":0},null,{"$f":"'י. פיזיותרפיה'!K44","v":0},{"$f":"'י. פיזיותרפיה'!L44","v":0},{"$f":"IF(F187=0,\"\",'י. פיזיותרפיה'!M44)","v":""},{"$f":"'י. פיזיותרפיה'!N44","v":0}]
[{"$f":"'י. פיזיותרפיה'!B45","v":"תוספת לערסלים מיוחדים"},{"$f":"'י. פיזיותרפיה'!G45","v":0},{"$f":"'י. פיזיותרפיה'!H45","v":0},null,{"$f":"'י. פיזיותרפיה'!K45","v":0},{"$f":"'י. פיזיותרפיה'!L45","v":0},{"$f":"IF(F188=0,\"\",'י. פיזיותרפיה'!M45)","v":""},{"$f":"'י. פיזיותרפיה'!N45","v":0}]
[{"$f":"'י. פיזיותרפיה'!B48","v":"נדנדות"},{"$f":"'י. פיזיותרפיה'!G48","v":0},{"$f":"'י. פיזיותרפיה'!H48","v":0},null,{"$f":"'י. פיזיותרפיה'!K48","v":0},{"$f":"'י. פיזיותרפיה'!L48","v":0},{"$f":"IF(F189=0,\"\",'י. פיזיותרפיה'!M48)","v":""},{"$f":"'י. פיזיותרפיה'!N48","v":0}]
[{"$f":"'י. פיזיותרפיה'!B49","v":"גלילים"},{"$f":"'י. פיזיותרפיה'!G49","v":0},{"$f":"'י. פיזיותרפיה'!H49","v":0},null,{"$f":"'י. פיזיותרפיה'!K49","v":0},{"$f":"'י. פיזיותרפיה'!L49","v":0},{"$f":"IF(F190=0,\"\",'י. פיזיותרפיה'!M49)","v":""},{"$f":"'י. פיזיותרפיה'!N49","v":0}]
[{"$f":"'י. פיזיותרפיה'!B50","v":"כדורים שונים"},{"$f":"'י. פיזיותרפיה'!G50","v":0},{"$f":"'י. פיזיותרפיה'!H50","v":0},null,{"$f":"'י. פיזיותרפיה'!K50","v":0},{"$f":"'י. פיזיותרפיה'!L50","v":0},{"$f":"IF(F191=0,\"\",'י. פיזיותרפיה'!M50)","v":""},{"$f":"'י. פיזיותרפיה'!N50","v":0}]
[{"$f":"'י. פיזיותרפיה'!B51","v":"עזרים לפיתוח שיווי משקל "},{"$f":"'י. פיזיותרפיה'!G51","v":0},{"$f":"'י. פיזיותרפיה'!H51","v":0},null,{"$f":"'י. פיזיותרפיה'!K51","v":0},{"$f":"'י. פיזיותרפיה'!L51","v":0},{"$f":"IF(F192=0,\"\",'י. פיזיותרפיה'!M51)","v":""},{"$f":"'י. פיזיותרפיה'!N51","v":0}]
[{"$f":"'י. פיזיותרפיה'!B52","v":"מזרונים"},{"$f":"'י. פיזיותרפיה'!G52","v":0},{"$f":"'י. פיזיותרפיה'!H52","v":0},null,{"$f":"'י. פיזיותרפיה'!K52","v":0},{"$f":"'י. פיזיותרפיה'!L52","v":0},{"$f":"IF(F193=0,\"\",'י. פיזיותרפיה'!M52)","v":""},{"$f":"'י. פיזיותרפיה'!N52","v":0}]
[{"$f":"'י. פיזיותרפיה'!B53","v":"אביזרי טיפוס"},{"$f":"'י. פיזיותרפיה'!G53","v":0},{"$f":"'י. פיזיותרפיה'!H53","v":0},null,{"$f":"'י. פיזיותרפיה'!K53","v":0},{"$f":"'י. פיזיותרפיה'!L53","v":0},{"$f":"IF(F194=0,\"\",'י. פיזיותרפיה'!M53)","v":""},{"$f":"'י. פיזיותרפיה'!N53","v":0}]
[{"$f":"'י. פיזיותרפיה'!B54","v":"ערכות הפעלה"},{"$f":"'י. פיזיותרפיה'!G54","v":0},{"$f":"'י. פיזיותרפיה'!H54","v":0},null,{"$f":"'י. פיזיותרפיה'!K54","v":0},{"$f":"'י. פיזיותרפיה'!L54","v":0},{"$f":"IF(F195=0,\"\",'י. פיזיותרפיה'!M54)","v":""},{"$f":"'י. פיזיותרפיה'!N54","v":0}]
[{"$f":"'י. פיזיותרפיה'!B55","v":"אביזרים לפעילות קבוצתית"},{"$f":"'י. פיזיותרפיה'!G55","v":0},{"$f":"'י. פיזיותרפיה'!H55","v":0},null,{"$f":"'י. פיזיותרפיה'!K55","v":0},{"$f":"'י. פיזיותרפיה'!L55","v":0},{"$f":"IF(F196=0,\"\",'י. פיזיותרפיה'!M55)","v":""},{"$f":"'י. פיזיותרפיה'!N55","v":0}]
[{"$f":"'י. פיזיותרפיה'!B56","v":"משחקי גירוי תגובה"},{"$f":"'י. פיזיותרפיה'!G56","v":0},{"$f":"'י. פיזיותרפיה'!H56","v":0},null,{"$f":"'י. פיזיותרפיה'!K56","v":0},{"$f":"'י. פיזיותרפיה'!L56","v":0},{"$f":"IF(F197=0,\"\",'י. פיזיותרפיה'!M56)","v":""},{"$f":"'י. פיזיותרפיה'!N56","v":0}]
[{"$f":"'י. פיזיותרפיה'!B57","v":"התקנות והתאמות"},{"$f":"'י. פיזיותרפיה'!G57","v":0},{"$f":"'י. פיזיותרפיה'!H57","v":0},null,{"$f":"'י. פיזיותרפיה'!K57","v":0},{"$f":"'י. פיזיותרפיה'!L57","v":0},{"$f":"IF(F198=0,\"\",'י. פיזיותרפיה'!M57)","v":""},{"$f":"'י. פיזיותרפיה'!N57","v":0}]
[{"$f":"'י. פיזיותרפיה'!B58","v":"עזרי הפעלה ועוררות "},{"$f":"'י. פיזיותרפיה'!G58","v":0},{"$f":"'י. פיזיותרפיה'!H58","v":0},null,{"$f":"'י. פיזיותרפיה'!K58","v":0},{"$f":"'י. פיזיותרפיה'!L58","v":0},{"$f":"IF(F199=0,\"\",'י. פיזיותרפיה'!M58)","v":""},{"$f":"'י. פיזיותרפיה'!N58","v":0}]
[{"$f":"'י. פיזיותרפיה'!B59","v":"עזרי פעילות תנועתית"},{"$f":"'י. פיזיותרפיה'!G59","v":0},{"$f":"'י. פיזיותרפיה'!H59","v":0},null,{"$f":"'י. פיזיותרפיה'!K59","v":0},{"$f":"'י. פיזיותרפיה'!L59","v":0},{"$f":"IF(F200=0,\"\",'י. פיזיותרפיה'!M59)","v":""},{"$f":"'י. פיזיותרפיה'!N59","v":0}]
[{"$f":"'י. פיזיותרפיה'!B60","v":"כח וסיבולת"},{"$f":"'י. פיזיותרפיה'!G60","v":0},{"$f":"'י. פיזיותרפיה'!H60","v":0},null,{"$f":"'י. פיזיותרפיה'!K60","v":0},{"$f":"'י. פיזיותרפיה'!L60","v":0},{"$f":"IF(F201=0,\"\",'י. פיזיותרפיה'!M60)","v":""},{"$f":"'י. פיזיותרפיה'!N60","v":0}]
[{"$f":"'י. פיזיותרפיה'!B61","v":" ארון אחסון לאביזרים הקטנים"},{"$f":"'י. פיזיותרפיה'!G61","v":0},{"$f":"'י. פיזיותרפיה'!H61","v":0},null,{"$f":"'י. פיזיותרפיה'!K61","v":0},{"$f":"'י. פיזיותרפיה'!L61","v":0},{"$f":"IF(F202=0,\"\",'י. פיזיותרפיה'!M61)","v":""},{"$f":"'י. פיזיותרפיה'!N61","v":0}]
[{"$f":"'י. פיזיותרפיה'!B62","v":"מדף אחסון לכדורים וגלילים"},{"$f":"'י. פיזיותרפיה'!G62","v":0},{"$f":"'י. פיזיותרפיה'!H62","v":0},null,{"$f":"'י. פיזיותרפיה'!K62","v":0},{"$f":"'י. פיזיותרפיה'!L62","v":0},{"$f":"IF(F203=0,\"\",'י. פיזיותרפיה'!M62)","v":""},{"$f":"'י. פיזיותרפיה'!N62","v":0}]
[{"$f":"'י. פיזיותרפיה'!B65","v":"אופנים + טלויזיה"},{"$f":"'י. פיזיותרפיה'!G65","v":0},{"$f":"'י. פיזיותרפיה'!H65","v":0},null,{"$f":"'י. פיזיותרפיה'!K65","v":0},{"$f":"'י. פיזיותרפיה'!L65","v":0},{"$f":"IF(F204=0,\"\",'י. פיזיותרפיה'!M65)","v":""},{"$f":"'י. פיזיותרפיה'!N65","v":0}]
[{"$f":"'י. פיזיותרפיה'!B66","v":"מדרגות ארוביות "},{"$f":"'י. פיזיותרפיה'!G66","v":0},{"$f":"'י. פיזיותרפיה'!H66","v":0},null,{"$f":"'י. פיזיותרפיה'!K66","v":0},{"$f":"'י. פיזיותרפיה'!L66","v":0},{"$f":"IF(F205=0,\"\",'י. פיזיותרפיה'!M66)","v":""},{"$f":"'י. פיזיותרפיה'!N66","v":0}]
[{"$f":"'י. פיזיותרפיה'!B67","v":"בוסו"},{"$f":"'י. פיזיותרפיה'!G67","v":0},{"$f":"'י. פיזיותרפיה'!H67","v":0},null,{"$f":"'י. פיזיותרפיה'!K67","v":0},{"$f":"'י. פיזיותרפיה'!L67","v":0},{"$f":"IF(F206=0,\"\",'י. פיזיותרפיה'!M67)","v":""},{"$f":"'י. פיזיותרפיה'!N67","v":0}]
[{"$f":"'י. פיזיותרפיה'!B68","v":"פולי"},{"$f":"'י. פיזיותרפיה'!G68","v":0},{"$f":"'י. פיזיותרפיה'!H68","v":0},null,{"$f":"'י. פיזיותרפיה'!K68","v":0},{"$f":"'י. פיזיותרפיה'!L68","v":0},{"$f":"IF(F207=0,\"\",'י. פיזיותרפיה'!M68)","v":""},{"$f":"'י. פיזיותרפיה'!N68","v":0}]
[{"$f":"'י. פיזיותרפיה'!B69","v":"מעמד עם APT"},{"$f":"'י. פיזיותרפיה'!G69","v":0},{"$f":"'י. פיזיותרפיה'!H69","v":0},null,{"$f":"'י. פיזיותרפיה'!K69","v":0},{"$f":"'י. פיזיותרפיה'!L69","v":0},{"$f":"IF(F208=0,\"\",'י. פיזיותרפיה'!M69)","v":""},{"$f":"'י. פיזיותרפיה'!N69","v":0}]
[{"$f":"'י. פיזיותרפיה'!B70","v":"אופנים עם משענת"},{"$f":"'י. פיזיותרפיה'!G70","v":0},{"$f":"'י. פיזיותרפיה'!H70","v":0},null,{"$f":"'י. פיזיותרפיה'!K70","v":0},{"$f":"'י. פיזיותרפיה'!L70","v":0},{"$f":"IF(F209=0,\"\",'י. פיזיותרפיה'!M70)","v":""},{"$f":"'י. פיזיותרפיה'!N70","v":0}]
[{"$f":"'י. פיזיותרפיה'!B71","v":"אופני ידיים ורגליים מתכווננים"},{"$f":"'י. פיזיותרפיה'!G71","v":0},{"$f":"'י. פיזיותרפיה'!H71","v":0},null,{"$f":"'י. פיזיותרפיה'!K71","v":0},{"$f":"'י. פיזיותרפיה'!L71","v":0},{"$f":"IF(F210=0,\"\",'י. פיזיותרפיה'!M71)","v":""},{"$f":"'י. פיזיותרפיה'!N71","v":0}]
[{"$f":"'י. פיזיותרפיה'!B72","v":"הליכון חשמלי"},{"$f":"'י. פיזיותרפיה'!G72","v":0},{"$f":"'י. פיזיותרפיה'!H72","v":0},null,{"$f":"'י. פיזיותרפיה'!K72","v":0},{"$f":"'י. פיזיותרפיה'!L72","v":0},{"$f":"IF(F211=0,\"\",'י. פיזיותרפיה'!M72)","v":""},{"$f":"'י. פיזיותרפיה'!N72","v":0}]
[{"$f":"'י. פיזיותרפיה'!B73","v":"מתקן נשיאה"},{"$f":"'י. פיזיותרפיה'!G73","v":0},{"$f":"'י. פיזיותרפיה'!H73","v":0},null,{"$f":"'י. פיזיותרפיה'!K73","v":0},{"$f":"'י. פיזיותרפיה'!L73","v":0},{"$f":"IF(F212=0,\"\",'י. פיזיותרפיה'!M73)","v":""},{"$f":"'י. פיזיותרפיה'!N73","v":0}]
[{"$f":"'י. פיזיותרפיה'!B74","v":"גומיות, כדורי כח ומשקוליות תקציב כולל"},{"$f":"'י. פיזיותרפיה'!G74","v":0},{"$f":"'י. פיזיותרפיה'!H74","v":0},null,{"$f":"'י. פיזיותרפיה'!K74","v":0},{"$f":"'י. פיזיותרפיה'!L74","v":0},{"$f":"IF(F213=0,\"\",'י. פיזיותרפיה'!M74)","v":""},{"$f":"'י. פיזיותרפיה'!N74","v":0}]
[{"$f":"'י. פיזיותרפיה'!B75","v":"תלת אופן גדול"},{"$f":"'י. פיזיותרפיה'!G75","v":0},{"$f":"'י. פיזיותרפיה'!H75","v":0},null,{"$f":"'י. פיזיותרפיה'!K75","v":0},{"$f":"'י. פיזיותרפיה'!L75","v":0},{"$f":"IF(F214=0,\"\",'י. פיזיותרפיה'!M75)","v":""},{"$f":"'י. פיזיותרפיה'!N75","v":0}]
[{"$f":"'י. פיזיותרפיה'!B76","v":"קסדות בגדלים ובצבעים שונים- תקציב כולל"},{"$f":"'י. פיזיותרפיה'!G76","v":0},{"$f":"'י. פיזיותרפיה'!H76","v":0},null,{"$f":"'י. פיזיותרפיה'!K76","v":0},{"$f":"'י. פיזיותרפיה'!L76","v":0},{"$f":"IF(F215=0,\"\",'י. פיזיותרפיה'!M76)","v":""},{"$f":"'י. פיזיותרפיה'!N76","v":0}]
[{"$f":"'י. פיזיותרפיה'!B77","v":"תלת אופן קטן"},{"$f":"'י. פיזיותרפיה'!G77","v":0},{"$f":"'י. פיזיותרפיה'!H77","v":0},null,{"$f":"'י. פיזיותרפיה'!K77","v":0},{"$f":"'י. פיזיותרפיה'!L77","v":0},{"$f":"IF(F216=0,\"\",'י. פיזיותרפיה'!M77)","v":""},{"$f":"'י. פיזיותרפיה'!N77","v":0}]
[{"$f":"'י. פיזיותרפיה'!B78","v":"תלת אופן רגיל"},{"$f":"'י. פיזיותרפיה'!G78","v":0},{"$f":"'י. פיזיותרפיה'!H78","v":0},null,{"$f":"'י. פיזיותרפיה'!K78","v":0},{"$f":"'י. פיזיותרפיה'!L78","v":0},{"$f":"IF(F217=0,\"\",'י. פיזיותרפיה'!M78)","v":""},{"$f":"'י. פיזיותרפיה'!N78","v":0}]
[{"$f":"'י. פיזיותרפיה'!B80","v":"סה\"כ ציוד פיזותרפיה כולל מע\"מ"},null,{"$f":"SUM(C159:C217)","v":0},null,{"$f":"A218","v":"סה\"כ ציוד פיזותרפיה כולל מע\"מ"},null,null,{"$f":"SUM(H159:H217)","v":0}]
[{"$f":"'יח. סיכום'!B34","v":"ציוד טיפולי שיקומי"},null,null,null,{"$f":"A219","v":"ציוד טיפולי שיקומי"}]
[{"$f":"'יא. ציוד טיפולי-שיקומי'!B7","v":"מיטה סיעודית כולל מזרן רגיל"},{"$f":"'יא. ציוד טיפולי-שיקומי'!G7","v":0},{"$f":"'יא. ציוד טיפולי-שיקומי'!H7","v":0},null,{"$f":"'יא. ציוד טיפולי-שיקומי'!K7","v":0},{"$f":"'יא. ציוד טיפולי-שיקומי'!L7","v":0},{"$f":"IF(F220=0,\"\",'יא. ציוד טיפולי-שיקומי'!M7)","v":""},{"$f":"'יא. ציוד טיפולי-שיקומי'!N7","v":0}]
[{"$f":"'יא. ציוד טיפולי-שיקומי'!B8","v":"מזרן אויר דינאמי (מזרן נגד פצעי לחץ)"},{"$f":"'יא. ציוד טיפולי-שיקומי'!G8","v":0},{"$f":"'יא. ציוד טיפולי-שיקומי'!H8","v":0},null,{"$f":"'יא. ציוד טיפולי-שיקומי'!K8","v":0},{"$f":"'יא. ציוד טיפולי-שיקומי'!L8","v":0},{"$f":"IF(F221=0,\"\",'יא. ציוד טיפולי-שיקומי'!M8)","v":""},{"$f":"'יא. ציוד טיפולי-שיקומי'!N8","v":0}]
[{"$f":"'יא. ציוד טיפולי-שיקומי'!B9","v":"כיסאות רחצה- סטנדרטי"},{"$f":"'יא. ציוד טיפולי-שיקומי'!G9","v":0},{"$f":"'יא. ציוד טיפולי-שיקומי'!H9","v":0},null,{"$f":"'יא. ציוד טיפולי-שיקומי'!K9","v":0},{"$f":"'יא. ציוד טיפולי-שיקומי'!L9","v":0},{"$f":"IF(F222=0,\"\",'יא. ציוד טיפולי-שיקומי'!M9)","v":""},{"$f":"'יא. ציוד טיפולי-שיקומי'!N9","v":0}]
[{"$f":"'יא. ציוד טיפולי-שיקומי'!B10","v":"כיסאות רחצה- טילט"},{"$f":"'יא. ציוד טיפולי-שיקומי'!G10","v":0},{"$f":"'יא. ציוד טיפולי-שיקומי'!H10","v":0},null,{"$f":"'יא. ציוד טיפולי-שיקומי'!K10","v":0},{"$f":"'יא. ציוד טיפולי-שיקומי'!L10","v":0},{"$f":"IF(F223=0,\"\",'יא. ציוד טיפולי-שיקומי'!M10)","v":""},{"$f":"'יא. ציוד טיפולי-שיקומי'!N10","v":0}]
[{"$f":"'יא. ציוד טיפולי-שיקומי'!B11","v":"כיסאות רחצה"},{"$f":"'יא. ציוד טיפולי-שיקומי'!G11","v":0},{"$f":"'יא. ציוד טיפולי-שיקומי'!H11","v":0},null,{"$f":"'יא. ציוד טיפולי-שיקומי'!K11","v":0},{"$f":"'יא. ציוד טיפולי-שיקומי'!L11","v":0},{"$f":"IF(F224=0,\"\",'יא. ציוד טיפולי-שיקומי'!M11)","v":""},{"$f":"'יא. ציוד טיפולי-שיקומי'!N11","v":0}]
[{"$f":"'יא. ציוד טיפולי-שיקומי'!B12","v":"אלונקת רחצה"},{"$f":"'יא. ציוד טיפולי-שיקומי'!G12","v":0},{"$f":"'יא. ציוד טיפולי-שיקומי'!H12","v":0},null,{"$f":"'יא. ציוד טיפולי-שיקומי'!K12","v":0},{"$f":"'יא. ציוד טיפולי-שיקומי'!L12","v":0},{"$f":"IF(F225=0,\"\",'יא. ציוד טיפולי-שיקומי'!M12)","v":""},{"$f":"'יא. ציוד טיפולי-שיקומי'!N12","v":0}]
[{"$f":"'יא. ציוד טיפולי-שיקומי'!B13","v":"מיטת החתלה כולל מזרן"},{"$f":"'יא. ציוד טיפולי-שיקומי'!G13","v":0},{"$f":"'יא. ציוד טיפולי-שיקומי'!H13","v":0},null,{"$f":"'יא. ציוד טיפולי-שיקומי'!K13","v":0},{"$f":"'יא. ציוד טיפולי-שיקומי'!L13","v":0},{"$f":"IF(F226=0,\"\",'יא. ציוד טיפולי-שיקומי'!M13)","v":""},{"$f":"'יא. ציוד טיפולי-שיקומי'!N13","v":0}]
[{"$f":"'יא. ציוד טיפולי-שיקומי'!B14","v":"כיסאות שירותים נייח"},{"$f":"'יא. ציוד טיפולי-שיקומי'!G14","v":0},{"$f":"'יא. ציוד טיפולי-שיקומי'!H14","v":0},null,{"$f":"'יא. ציוד טיפולי-שיקומי'!K14","v":0},{"$f":"'יא. ציוד טיפולי-שיקומי'!L14","v":0},{"$f":"IF(F227=0,\"\",'יא. ציוד טיפולי-שיקומי'!M14)","v":""},{"$f":"'יא. ציוד טיפולי-שיקומי'!N14","v":0}]
[{"$f":"'יא. ציוד טיפולי-שיקומי'!B15","v":"מאחזי יד (סכום גלובלי)"},{"$f":"'יא. ציוד טיפולי-שיקומי'!G15","v":0},{"$f":"'יא. ציוד טיפולי-שיקומי'!H15","v":0},null,{"$f":"'יא. ציוד טיפולי-שיקומי'!K15","v":0},{"$f":"'יא. ציוד טיפולי-שיקומי'!L15","v":0},{"$f":"IF(F228=0,\"\",'יא. ציוד טיפולי-שיקומי'!M15)","v":""},{"$f":"'יא. ציוד טיפולי-שיקומי'!N15","v":0}]
[{"$f":"'יא. ציוד טיפולי-שיקומי'!B16","v":"הגבהות לאסלה עם ידיות"},{"$f":"'יא. ציוד טיפולי-שיקומי'!G16","v":0},{"$f":"'יא. ציוד טיפולי-שיקומי'!H16","v":0},null,{"$f":"'יא. ציוד טיפולי-שיקומי'!K16","v":0},{"$f":"'יא. ציוד טיפולי-שיקומי'!L16","v":0},{"$f":"IF(F229=0,\"\",'יא. ציוד טיפולי-שיקומי'!M16)","v":""},{"$f":"'יא. ציוד טיפולי-שיקומי'!N16","v":0}]
[{"$f":"'יא. ציוד טיפולי-שיקומי'!B17","v":"סה\"כ ציוד טיפולי שיקומי כולל מע\"מ"},null,{"$f":"SUM(C220:C229)","v":0},null,{"$f":"A230","v":"סה\"כ ציוד טיפולי שיקומי כולל מע\"מ"},null,null,{"$f":"SUM(H220:H229)","v":0}]
[{"$f":"'יח. סיכום'!B35","v":"ציוד מטבח מחמם"},null,null,null,{"$f":"A231","v":"ציוד מטבח מחמם"}]
[{"$f":"'יב. מטבח מחמם'!B7","v":"כיריים חשמליות"},{"$f":"'יב. מטבח מחמם'!G7","v":0},{"$f":"'יב. מטבח מחמם'!H7","v":0},null,{"$f":"'יב. מטבח מחמם'!K7","v":0},{"$f":"'יב. מטבח מחמם'!L7","v":0},{"$f":"IF(F232=0,\"\",'יב. מטבח מחמם'!M7)","v":""},{"$f":"'יב. מטבח מחמם'!N7","v":0}]
[{"$f":"'יב. מטבח מחמם'!B8","v":"תנור אפיה וחימום – 2 תאים-חלבי / בשרי  "},{"$f":"'יב. מטבח מחמם'!G8","v":0},{"$f":"'יב. מטבח מחמם'!H8","v":0},null,{"$f":"'יב. מטבח מחמם'!K8","v":0},{"$f":"'יב. מטבח מחמם'!L8","v":0},{"$f":"IF(F233=0,\"\",'יב. מטבח מחמם'!M8)","v":""},{"$f":"'יב. מטבח מחמם'!N8","v":0}]
[{"$f":"'יב. מטבח מחמם'!B9","v":"תנור קומביסטימר + מנדף "},{"$f":"'יב. מטבח מחמם'!G9","v":0},{"$f":"'יב. מטבח מחמם'!H9","v":0},null,{"$f":"'יב. מטבח מחמם'!K9","v":0},{"$f":"'יב. מטבח מחמם'!L9","v":0},{"$f":"IF(F234=0,\"\",'יב. מטבח מחמם'!M9)","v":""},{"$f":"'יב. מטבח מחמם'!N9","v":0}]
[{"$f":"'יב. מטבח מחמם'!B10","v":"מקרר ביתי / תעשייתי "},{"$f":"'יב. מטבח מחמם'!G10","v":0},{"$f":"'יב. מטבח מחמם'!H10","v":0},null,{"$f":"'יב. מטבח מחמם'!K10","v":0},{"$f":"'יב. מטבח מחמם'!L10","v":0},{"$f":"IF(F235=0,\"\",'יב. מטבח מחמם'!M10)","v":""},{"$f":"'יב. מטבח מחמם'!N10","v":0}]
[{"$f":"'יב. מטבח מחמם'!B11","v":"מקפיא"},{"$f":"'יב. מטבח מחמם'!G11","v":0},{"$f":"'יב. מטבח מחמם'!H11","v":0},null,{"$f":"'יב. מטבח מחמם'!K11","v":0},{"$f":"'יב. מטבח מחמם'!L11","v":0},{"$f":"IF(F236=0,\"\",'יב. מטבח מחמם'!M11)","v":""},{"$f":"'יב. מטבח מחמם'!N11","v":0}]
[{"$f":"'יב. מטבח מחמם'!B12","v":"מדיח כלים חצי תעשייתי / תעשייתי + מרכך מים"},{"$f":"'יב. מטבח מחמם'!G12","v":0},{"$f":"'יב. מטבח מחמם'!H12","v":0},null,{"$f":"'יב. מטבח מחמם'!K12","v":0},{"$f":"'יב. מטבח מחמם'!L12","v":0},{"$f":"IF(F237=0,\"\",'יב. מטבח מחמם'!M12)","v":""},{"$f":"'יב. מטבח מחמם'!N12","v":0}]
[{"$f":"'יב. מטבח מחמם'!B13","v":"מעבד מזון מקצועי"},{"$f":"'יב. מטבח מחמם'!G13","v":0},{"$f":"'יב. מטבח מחמם'!H13","v":0},null,{"$f":"'יב. מטבח מחמם'!K13","v":0},{"$f":"'יב. מטבח מחמם'!L13","v":0},{"$f":"IF(F238=0,\"\",'יב. מטבח מחמם'!M13)","v":""},{"$f":"'יב. מטבח מחמם'!N13","v":0}]
[{"$f":"'יב. מטבח מחמם'!B14","v":"מקסר / בלנדר - בייתי / תעשייתי "},{"$f":"'יב. מטבח מחמם'!G14","v":0},{"$f":"'יב. מטבח מחמם'!H14","v":0},null,{"$f":"'יב. מטבח מחמם'!K14","v":0},{"$f":"'יב. מטבח מחמם'!L14","v":0},{"$f":"IF(F239=0,\"\",'יב. מטבח מחמם'!M14)","v":""},{"$f":"'יב. מטבח מחמם'!N14","v":0}]
[{"$f":"'יב. מטבח מחמם'!B15","v":"מיקרוגל"},{"$f":"'יב. מטבח מחמם'!G15","v":0},{"$f":"'יב. מטבח מחמם'!H15","v":0},null,{"$f":"'יב. מטבח מחמם'!K15","v":0},{"$f":"'יב. מטבח מחמם'!L15","v":0},{"$f":"IF(F240=0,\"\",'יב. מטבח מחמם'!M15)","v":""},{"$f":"'יב. מטבח מחמם'!N15","v":0}]
[{"$f":"'יב. מטבח מחמם'!B16","v":"מתקן מים"},{"$f":"'יב. מטבח מחמם'!G16","v":0},{"$f":"'יב. מטבח מחמם'!H16","v":0},null,{"$f":"'יב. מטבח מחמם'!K16","v":0},{"$f":"'יב. מטבח מחמם'!L16","v":0},{"$f":"IF(F241=0,\"\",'יב. מטבח מחמם'!M16)","v":""},{"$f":"'יב. מטבח מחמם'!N16","v":0}]
[{"$f":"'יב. מטבח מחמם'!B17","v":"עגלת הגשה "},{"$f":"'יב. מטבח מחמם'!G17","v":0},{"$f":"'יב. מטבח מחמם'!H17","v":0},null,{"$f":"'יב. מטבח מחמם'!K17","v":0},{"$f":"'יב. מטבח מחמם'!L17","v":0},{"$f":"IF(F242=0,\"\",'יב. מטבח מחמם'!M17)","v":""},{"$f":"'יב. מטבח מחמם'!N17","v":0}]
[{"$f":"'יב. מטבח מחמם'!B18","v":"מחם אוטומטי  6 /  10ל'  "},{"$f":"'יב. מטבח מחמם'!G18","v":0},{"$f":"'יב. מטבח מחמם'!H18","v":0},null,{"$f":"'יב. מטבח מחמם'!K18","v":0},{"$f":"'יב. מטבח מחמם'!L18","v":0},{"$f":"IF(F243=0,\"\",'יב. מטבח מחמם'!M18)","v":""},{"$f":"'יב. מטבח מחמם'!N18","v":0}]
[{"$f":"'יב. מטבח מחמם'!B19","v":"עגלת חימום / קרור "},{"$f":"'יב. מטבח מחמם'!G19","v":0},{"$f":"'יב. מטבח מחמם'!H19","v":0},null,{"$f":"'יב. מטבח מחמם'!K19","v":0},{"$f":"'יב. מטבח מחמם'!L19","v":0},{"$f":"IF(F244=0,\"\",'יב. מטבח מחמם'!M19)","v":""},{"$f":"'יב. מטבח מחמם'!N19","v":0}]
[{"$f":"'יב. מטבח מחמם'!B20","v":"כלי מטבח "},{"$f":"'יב. מטבח מחמם'!G20","v":0},{"$f":"'יב. מטבח מחמם'!H20","v":0},null,{"$f":"'יב. מטבח מחמם'!K20","v":0},{"$f":"'יב. מטבח מחמם'!L20","v":0},{"$f":"IF(F245=0,\"\",'יב. מטבח מחמם'!M20)","v":""},{"$f":"'יב. מטבח מחמם'!N20","v":0}]
[{"$f":"'יב. מטבח מחמם'!B21","v":"ארון מדפים פתוחים "},{"$f":"'יב. מטבח מחמם'!G21","v":0},{"$f":"'יב. מטבח מחמם'!H21","v":0},null,{"$f":"'יב. מטבח מחמם'!K21","v":0},{"$f":"'יב. מטבח מחמם'!L21","v":0},{"$f":"IF(F246=0,\"\",'יב. מטבח מחמם'!M21)","v":""},{"$f":"'יב. מטבח מחמם'!N21","v":0}]
[{"$f":"'יב. מטבח מחמם'!B22","v":"סה\"כ ציוד מטבח מחמם - כולל מע\"מ"},null,{"$f":"SUM(C232:C246)","v":0},null,{"$f":"A247","v":"סה\"כ ציוד מטבח מחמם - כולל מע\"מ"},null,null,{"$f":"SUM(H232:H246)","v":0}]
[{"$f":"'יח. סיכום'!B36","v":"ציוד מטבח מבשל"},null,null,null,"ציוד מטבח מבשל"]
[{"$f":"'יג. מטבח מבשל'!B7","v":"מקרר ארון חד רוחבי"},{"$f":"'יג. מטבח מבשל'!G7","v":0},{"$f":"'יג. מטבח מבשל'!H7","v":0},null,{"$f":"'יג. מטבח מבשל'!K7","v":0},{"$f":"'יג. מטבח מבשל'!L7","v":0},{"$f":"IF(F249=0,\"\",'יג. מטבח מבשל'!M7)","v":""},{"$f":"'יג. מטבח מבשל'!N7","v":0}]
[{"$f":"'יג. מטבח מבשל'!B8","v":"מקפיא ארון חד רוחבי"},{"$f":"'יג. מטבח מבשל'!G8","v":0},{"$f":"'יג. מטבח מבשל'!H8","v":0},null,{"$f":"'יג. מטבח מבשל'!K8","v":0},{"$f":"'יג. מטבח מבשל'!L8","v":0},{"$f":"IF(F250=0,\"\",'יג. מטבח מבשל'!M8)","v":""},{"$f":"'יג. מטבח מבשל'!N8","v":0}]
[{"$f":"'יג. מטבח מבשל'!B9","v":"מקרר דלפק"},{"$f":"'יג. מטבח מבשל'!G9","v":0},{"$f":"'יג. מטבח מבשל'!H9","v":0},null,{"$f":"'יג. מטבח מבשל'!K9","v":0},{"$f":"'יג. מטבח מבשל'!L9","v":0},{"$f":"IF(F251=0,\"\",'יג. מטבח מבשל'!M9)","v":""},{"$f":"'יג. מטבח מבשל'!N9","v":0}]
[{"$f":"'יג. מטבח מבשל'!B10","v":"שולחן כניסה ויציאה  למדיח כלים"},{"$f":"'יג. מטבח מבשל'!G10","v":0},{"$f":"'יג. מטבח מבשל'!H10","v":0},null,{"$f":"'יג. מטבח מבשל'!K10","v":0},{"$f":"'יג. מטבח מבשל'!L10","v":0},{"$f":"IF(F252=0,\"\",'יג. מטבח מבשל'!M10)","v":""},{"$f":"'יג. מטבח מבשל'!N10","v":0}]
[{"$f":"'יג. מטבח מבשל'!B11","v":"מדיח כלים חצי תעשייתי / תעשייתי "},{"$f":"'יג. מטבח מבשל'!G11","v":0},{"$f":"'יג. מטבח מבשל'!H11","v":0},null,{"$f":"'יג. מטבח מבשל'!K11","v":0},{"$f":"'יג. מטבח מבשל'!L11","v":0},{"$f":"IF(F253=0,\"\",'יג. מטבח מבשל'!M11)","v":""},{"$f":"'יג. מטבח מבשל'!N11","v":0}]
[{"$f":"'יג. מטבח מבשל'!#REF!","v":{"$error":"#REF!"}},{"$f":"'יג. מטבח מבשל'!#REF!","v":{"$error":"#REF!"}},{"$f":"'יג. מטבח מבשל'!#REF!","v":{"$error":"#REF!"}},null,{"$f":"'יג. מטבח מבשל'!#REF!","v":{"$error":"#REF!"}},{"$f":"'יג. מטבח מבשל'!#REF!","v":{"$error":"#REF!"}},{"$f":"IF(F254=0,\"\",'יג. מטבח מבשל'!#REF!)","v":{"$error":"#REF!"}},{"$f":"'יג. מטבח מבשל'!#REF!","v":{"$error":"#REF!"}}]
[{"$f":"'יג. מטבח מבשל'!B12","v":"כיריים חשמליות  / גז  6  להבות"},{"$f":"'יג. מטבח מבשל'!G12","v":0},{"$f":"'יג. מטבח מבשל'!H12","v":0},null,{"$f":"'יג. מטבח מבשל'!K12","v":0},{"$f":"'יג. מטבח מבשל'!L12","v":0},{"$f":"IF(F255=0,\"\",'יג. מטבח מבשל'!M12)","v":""},{"$f":"'יג. מטבח מבשל'!N12","v":0}]
[{"$f":"'יג. מטבח מבשל'!B13","v":"תנור קומביסטימר"},{"$f":"'יג. מטבח מבשל'!G13","v":0},{"$f":"'יג. מטבח מבשל'!H13","v":0},null,{"$f":"'יג. מטבח מבשל'!K13","v":0},{"$f":"'יג. מטבח מבשל'!L13","v":0},{"$f":"IF(F256=0,\"\",'יג. מטבח מבשל'!M13)","v":""},{"$f":"'יג. מטבח מבשל'!N13","v":0}]
[{"$f":"'יג. מטבח מבשל'!B14","v":"מקסר / בלנדר - בייתי / תעשייתי"},{"$f":"'יג. מטבח מבשל'!G14","v":0},{"$f":"'יג. מטבח מבשל'!H14","v":0},null,{"$f":"'יג. מטבח מבשל'!K14","v":0},{"$f":"'יג. מטבח מבשל'!L14","v":0},{"$f":"IF(F257=0,\"\",'יג. מטבח מבשל'!M14)","v":""},{"$f":"'יג. מטבח מבשל'!N14","v":0}]
[{"$f":"'יג. מטבח מבשל'!B15","v":"קוצץ ירקות שולחני"},{"$f":"'יג. מטבח מבשל'!G15","v":0},{"$f":"'יג. מטבח מבשל'!H15","v":0},null,{"$f":"'יג. מטבח מבשל'!K15","v":0},{"$f":"'יג. מטבח מבשל'!L15","v":0},{"$f":"IF(F258=0,\"\",'יג. מטבח מבשל'!M15)","v":""},{"$f":"'יג. מטבח מבשל'!N15","v":0}]
[{"$f":"'יג. מטבח מבשל'!B16","v":"מעבד מזון תעשייתי"},{"$f":"'יג. מטבח מבשל'!G16","v":0},{"$f":"'יג. מטבח מבשל'!H16","v":0},null,{"$f":"'יג. מטבח מבשל'!K16","v":0},{"$f":"'יג. מטבח מבשל'!L16","v":0},{"$f":"IF(F259=0,\"\",'יג. מטבח מבשל'!M16)","v":""},{"$f":"'יג. מטבח מבשל'!N16","v":0}]
[{"$f":"'יג. מטבח מבשל'!B17","v":"משטחי עבודה"},{"$f":"'יג. מטבח מבשל'!G17","v":0},{"$f":"'יג. מטבח מבשל'!H17","v":0},null,{"$f":"'יג. מטבח מבשל'!K17","v":0},{"$f":"'יג. מטבח מבשל'!L17","v":0},{"$f":"IF(F260=0,\"\",'יג. מטבח מבשל'!M17)","v":""},{"$f":"'יג. מטבח מבשל'!N17","v":0}]
[{"$f":"'יג. מטבח מבשל'!B18","v":"שולחן כיור"},{"$f":"'יג. מטבח מבשל'!G18","v":0},{"$f":"'יג. מטבח מבשל'!H18","v":0},null,{"$f":"'יג. מטבח מבשל'!K18","v":0},{"$f":"'יג. מטבח מבשל'!L18","v":0},{"$f":"IF(F261=0,\"\",'יג. מטבח מבשל'!M18)","v":""},{"$f":"'יג. מטבח מבשל'!N18","v":0}]
[{"$f":"'יג. מטבח מבשל'!B19","v":"מיקרוגל לעומס בינוני"},{"$f":"'יג. מטבח מבשל'!G19","v":0},{"$f":"'יג. מטבח מבשל'!H19","v":0},null,{"$f":"'יג. מטבח מבשל'!K19","v":0},{"$f":"'יג. מטבח מבשל'!L19","v":0},{"$f":"IF(F262=0,\"\",'יג. מטבח מבשל'!M19)","v":""},{"$f":"'יג. מטבח מבשל'!N19","v":0}]
[{"$f":"'יג. מטבח מבשל'!B20","v":"מחבת מתהפך 50 ליטר"},{"$f":"'יג. מטבח מבשל'!G20","v":0},{"$f":"'יג. מטבח מבשל'!H20","v":0},null,{"$f":"'יג. מטבח מבשל'!K20","v":0},{"$f":"'יג. מטבח מבשל'!L20","v":0},{"$f":"IF(F263=0,\"\",'יג. מטבח מבשל'!M20)","v":""},{"$f":"'יג. מטבח מבשל'!N20","v":0}]
[{"$f":"'יג. מטבח מבשל'!B21","v":"ארון חימום תחתון/ מעמד לתנור"},{"$f":"'יג. מטבח מבשל'!G21","v":0},{"$f":"'יג. מטבח מבשל'!H21","v":0},null,{"$f":"'יג. מטבח מבשל'!K21","v":0},{"$f":"'יג. מטבח מבשל'!L21","v":0},{"$f":"IF(F264=0,\"\",'יג. מטבח מבשל'!M21)","v":""},{"$f":"'יג. מטבח מבשל'!N21","v":0}]
[{"$f":"'יג. מטבח מבשל'!B22","v":"סוללה עם מתז עליון על שולחן"},{"$f":"'יג. מטבח מבשל'!G22","v":0},{"$f":"'יג. מטבח מבשל'!H22","v":0},null,{"$f":"'יג. מטבח מבשל'!K22","v":0},{"$f":"'יג. מטבח מבשל'!L22","v":0},{"$f":"IF(F265=0,\"\",'יג. מטבח מבשל'!M22)","v":""},{"$f":"'יג. מטבח מבשל'!N22","v":0}]
[{"$f":"'יג. מטבח מבשל'!B23","v":"ברז שולחני עם פיה מסתובבת לכיור עבודה"},{"$f":"'יג. מטבח מבשל'!G23","v":0},{"$f":"'יג. מטבח מבשל'!H23","v":0},null,{"$f":"'יג. מטבח מבשל'!K23","v":0},{"$f":"'יג. מטבח מבשל'!L23","v":0},{"$f":"IF(F266=0,\"\",'יג. מטבח מבשל'!M23)","v":""},{"$f":"'יג. מטבח מבשל'!N23","v":0}]
[{"$f":"'יג. מטבח מבשל'!B24","v":"מדף עליון כפול"},{"$f":"'יג. מטבח מבשל'!G24","v":0},{"$f":"'יג. מטבח מבשל'!H24","v":0},null,{"$f":"'יג. מטבח מבשל'!K24","v":0},{"$f":"'יג. מטבח מבשל'!L24","v":0},{"$f":"IF(F267=0,\"\",'יג. מטבח מבשל'!M24)","v":""},{"$f":"'יג. מטבח מבשל'!N24","v":0}]
[{"$f":"'יג. מטבח מבשל'!B25","v":"מתלה ייבוש לצלחות עם מדף לספלים"},{"$f":"'יג. מטבח מבשל'!G25","v":0},{"$f":"'יג. מטבח מבשל'!H25","v":0},null,{"$f":"'יג. מטבח מבשל'!K25","v":0},{"$f":"'יג. מטבח מבשל'!L25","v":0},{"$f":"IF(F268=0,\"\",'יג. מטבח מבשל'!M25)","v":""},{"$f":"'יג. מטבח מבשל'!N25","v":0}]
[{"$f":"'יג. מטבח מבשל'!B26","v":"עגלת הגשה"},{"$f":"'יג. מטבח מבשל'!G26","v":0},{"$f":"'יג. מטבח מבשל'!H26","v":0},null,{"$f":"'יג. מטבח מבשל'!K26","v":0},{"$f":"'יג. מטבח מבשל'!L26","v":0},{"$f":"IF(F269=0,\"\",'יג. מטבח מבשל'!M26)","v":""},{"$f":"'יג. מטבח מבשל'!N26","v":0}]
[{"$f":"'יג. מטבח מבשל'!B27","v":"עגלה עם מיכל אשפה  80 ליטר"},{"$f":"'יג. מטבח מבשל'!G27","v":0},{"$f":"'יג. מטבח מבשל'!H27","v":0},null,{"$f":"'יג. מטבח מבשל'!K27","v":0},{"$f":"'יג. מטבח מבשל'!L27","v":0},{"$f":"IF(F270=0,\"\",'יג. מטבח מבשל'!M27)","v":""},{"$f":"'יג. מטבח מבשל'!N27","v":0}]
[{"$f":"'יג. מטבח מבשל'!B28","v":"עגלת חימום / קרור"},{"$f":"'יג. מטבח מבשל'!G28","v":0},{"$f":"'יג. מטבח מבשל'!H28","v":0},null,{"$f":"'יג. מטבח מבשל'!K28","v":0},{"$f":"'יג. מטבח מבשל'!L28","v":0},{"$f":"IF(F271=0,\"\",'יג. מטבח מבשל'!M28)","v":""},{"$f":"'יג. מטבח מבשל'!N28","v":0}]
[{"$f":"'יג. מטבח מבשל'!B29","v":"מיחם אוטומטי  25 ליטר"},{"$f":"'יג. מטבח מבשל'!G29","v":0},{"$f":"'יג. מטבח מבשל'!H29","v":0},null,{"$f":"'יג. מטבח מבשל'!K29","v":0},{"$f":"'יג. מטבח מבשל'!L29","v":0},{"$f":"IF(F272=0,\"\",'יג. מטבח מבשל'!M29)","v":""},{"$f":"'יג. מטבח מבשל'!N29","v":0}]
[{"$f":"'יג. מטבח מבשל'!B30","v":"כלי מטבח"},{"$f":"'יג. מטבח מבשל'!G30","v":0},{"$f":"'יג. מטבח מבשל'!H30","v":0},null,{"$f":"'יג. מטבח מבשל'!K30","v":0},{"$f":"'יג. מטבח מבשל'!L30","v":0},{"$f":"IF(F273=0,\"\",'יג. מטבח מבשל'!M30)","v":""},{"$f":"'יג. מטבח מבשל'!N30","v":0}]
[{"$f":"'יג. מטבח מבשל'!B31","v":"ארון אחסון יבש "},{"$f":"'יג. מטבח מבשל'!G31","v":0},{"$f":"'יג. מטבח מבשל'!H31","v":0},null,{"$f":"'יג. מטבח מבשל'!K31","v":0},{"$f":"'יג. מטבח מבשל'!L31","v":0},{"$f":"IF(F274=0,\"\",'יג. מטבח מבשל'!M31)","v":""},{"$f":"'יג. מטבח מבשל'!N31","v":0}]
[{"$f":"'יג. מטבח מבשל'!B32","v":"סה\"כ ציוד מטבח מבשל - כולל מע\"מ"},null,{"$f":"SUM(C249:C274)","v":{"$error":"#REF!"}},null,{"$f":"A275","v":"סה\"כ ציוד מטבח מבשל - כולל מע\"מ"},null,null,{"$f":"SUM(H249:H274)","v":{"$error":"#REF!"}}]
[{"$f":"'יד. ציוד פעילות גופנית- זוזו'!B1","v":"ציוד פעילות גופנית- זוזו"},null,null,null,{"$f":"A276","v":"ציוד פעילות גופנית- זוזו"}]
[{"$f":"'יד. ציוד פעילות גופנית- זוזו'!C7","v":"טלויזיה  65' + מסך הגנה"},{"$f":"'יד. ציוד פעילות גופנית- זוזו'!H7","v":0},{"$f":"'יד. ציוד פעילות גופנית- זוזו'!I7","v":0},null,{"$f":"'יד. ציוד פעילות גופנית- זוזו'!L7","v":0},{"$f":"'יד. ציוד פעילות גופנית- זוזו'!M7","v":0},{"$f":"IF(F277=0,\"\",'יד. ציוד פעילות גופנית- זוזו'!N7)","v":""},{"$f":"'יד. ציוד פעילות גופנית- זוזו'!O7","v":0}]
[{"$f":"'יד. ציוד פעילות גופנית- זוזו'!C8","v":"מתקן תליה לטלוויזיה"},{"$f":"'יד. ציוד פעילות גופנית- זוזו'!H8","v":0},{"$f":"'יד. ציוד פעילות גופנית- זוזו'!I8","v":0},null,{"$f":"'יד. ציוד פעילות גופנית- זוזו'!L8","v":0},{"$f":"'יד. ציוד פעילות גופנית- זוזו'!M8","v":0},{"$f":"IF(F278=0,\"\",'יד. ציוד פעילות גופנית- זוזו'!N8)","v":""},{"$f":"'יד. ציוד פעילות גופנית- זוזו'!O8","v":0}]
[{"$f":"'יד. ציוד פעילות גופנית- זוזו'!C9","v":"ארון איחסון הציוד"},{"$f":"'יד. ציוד פעילות גופנית- זוזו'!H9","v":0},{"$f":"'יד. ציוד פעילות גופנית- זוזו'!I9","v":0},null,{"$f":"'יד. ציוד פעילות גופנית- זוזו'!L9","v":0},{"$f":"'יד. ציוד פעילות גופנית- זוזו'!M9","v":0},{"$f":"IF(F279=0,\"\",'יד. ציוד פעילות גופנית- זוזו'!N9)","v":""},{"$f":"'יד. ציוד פעילות גופנית- זוזו'!O9","v":0}]
[{"$f":"'יד. ציוד פעילות גופנית- זוזו'!C10","v":"רולאפ/שילוט של המיזם (לינק ללוגו)"},{"$f":"'יד. ציוד פעילות גופנית- זוזו'!H10","v":0},{"$f":"'יד. ציוד פעילות גופנית- זוזו'!I10","v":0},null,{"$f":"'יד. ציוד פעילות גופנית- זוזו'!L10","v":0},{"$f":"'יד. ציוד פעילות גופנית- זוזו'!M10","v":0},{"$f":"IF(F280=0,\"\",'יד. ציוד פעילות גופנית- זוזו'!N10)","v":""},{"$f":"'יד. ציוד פעילות גופנית- זוזו'!O10","v":0}]
[{"$f":"'יד. ציוד פעילות גופנית- זוזו'!C11","v":"טבעות פילאטיס"},{"$f":"'יד. ציוד פעילות גופנית- זוזו'!H11","v":0},{"$f":"'יד. ציוד פעילות גופנית- זוזו'!I11","v":0},null,{"$f":"'יד. ציוד פעילות גופנית- זוזו'!L11","v":0},{"$f":"'יד. ציוד פעילות גופנית- זוזו'!M11","v":0},{"$f":"IF(F281=0,\"\",'יד. ציוד פעילות גופנית- זוזו'!N11)","v":""},{"$f":"'יד. ציוד פעילות גופנית- זוזו'!O11","v":0}]
[{"$f":"'יד. ציוד פעילות גופנית- זוזו'!C12","v":"מזרן פילאטיס"},{"$f":"'יד. ציוד פעילות גופנית- זוזו'!H12","v":0},{"$f":"'יד. ציוד פעילות גופנית- זוזו'!I12","v":0},null,{"$f":"'יד. ציוד פעילות גופנית- זוזו'!L12","v":0},{"$f":"'יד. ציוד פעילות גופנית- זוזו'!M12","v":0},{"$f":"IF(F282=0,\"\",'יד. ציוד פעילות גופנית- זוזו'!N12)","v":""},{"$f":"'יד. ציוד פעילות גופנית- זוזו'!O12","v":0}]
[{"$f":"'יד. ציוד פעילות גופנית- זוזו'!C13","v":"מוט אימון פילאטיס"},{"$f":"'יד. ציוד פעילות גופנית- זוזו'!H13","v":0},{"$f":"'יד. ציוד פעילות גופנית- זוזו'!I13","v":0},null,{"$f":"'יד. ציוד פעילות גופנית- זוזו'!L13","v":0},{"$f":"'יד. ציוד פעילות גופנית- זוזו'!M13","v":0},{"$f":"IF(F283=0,\"\",'יד. ציוד פעילות גופנית- זוזו'!N13)","v":""},{"$f":"'יד. ציוד פעילות גופנית- זוזו'!O13","v":0}]
[{"$f":"'יד. ציוד פעילות גופנית- זוזו'!C14","v":"גומיית פילאטיס"},{"$f":"'יד. ציוד פעילות גופנית- זוזו'!H14","v":0},{"$f":"'יד. ציוד פעילות גופנית- זוזו'!I14","v":0},null,{"$f":"'יד. ציוד פעילות גופנית- זוזו'!L14","v":0},{"$f":"'יד. ציוד פעילות גופנית- זוזו'!M14","v":0},{"$f":"IF(F284=0,\"\",'יד. ציוד פעילות גופנית- זוזו'!N14)","v":""},{"$f":"'יד. ציוד פעילות גופנית- זוזו'!O14","v":0}]
[{"$f":"'יד. ציוד פעילות גופנית- זוזו'!C15","v":"כדור over ball"},{"$f":"'יד. ציוד פעילות גופנית- זוזו'!H15","v":0},{"$f":"'יד. ציוד פעילות גופנית- זוזו'!I15","v":0},null,{"$f":"'יד. ציוד פעילות גופנית- זוזו'!L15","v":0},{"$f":"'יד. ציוד פעילות גופנית- זוזו'!M15","v":0},{"$f":"IF(F285=0,\"\",'יד. ציוד פעילות גופנית- זוזו'!N15)","v":""},{"$f":"'יד. ציוד פעילות גופנית- זוזו'!O15","v":0}]
[{"$f":"'יד. ציוד פעילות גופנית- זוזו'!C16","v":"כרית שעועית "},{"$f":"'יד. ציוד פעילות גופנית- זוזו'!H16","v":0},{"$f":"'יד. ציוד פעילות גופנית- זוזו'!I16","v":0},null,{"$f":"'יד. ציוד פעילות גופנית- זוזו'!L16","v":0},{"$f":"'יד. ציוד פעילות גופנית- זוזו'!M16","v":0},{"$f":"IF(F286=0,\"\",'יד. ציוד פעילות גופנית- זוזו'!N16)","v":""},{"$f":"'יד. ציוד פעילות גופנית- זוזו'!O16","v":0}]
[{"$f":"'יד. ציוד פעילות גופנית- זוזו'!C17","v":"חולצות עם לוגו הפרויקט (לינק ללוגו)"},{"$f":"'יד. ציוד פעילות גופנית- זוזו'!H17","v":0},{"$f":"'יד. ציוד פעילות גופנית- זוזו'!I17","v":0},null,{"$f":"'יד. ציוד פעילות גופנית- זוזו'!L17","v":0},{"$f":"'יד. ציוד פעילות גופנית- זוזו'!M17","v":0},{"$f":"IF(F287=0,\"\",'יד. ציוד פעילות גופנית- זוזו'!N17)","v":""},{"$f":"'יד. ציוד פעילות גופנית- זוזו'!O17","v":0}]
[{"$f":"'יד. ציוד פעילות גופנית- זוזו'!B18","v":"סה\"כ ציוד פעילות ספורט (כולל מע\"מ)"},null,{"$f":"SUM(C277:C287)","v":0},null,{"$f":"A288","v":"סה\"כ ציוד פעילות ספורט (כולל מע\"מ)"},null,null,{"$f":"SUM(H277:H287)","v":0}]
[{"$f":"'יח. סיכום'!B38","v":"ציוד לצוות"},null,null,null,{"$f":"A289","v":"ציוד לצוות"}]
[{"$f":"'טו. ציוד צוות'!B7","v":"כיסא אישי"},{"$f":"'טו. ציוד צוות'!G7","v":0},{"$f":"'טו. ציוד צוות'!H7","v":0},null,{"$f":"'טו. ציוד צוות'!K7","v":0},{"$f":"'טו. ציוד צוות'!L7","v":0},{"$f":"IF(F290=0,\"\",'טו. ציוד צוות'!M7)","v":""},{"$f":"'טו. ציוד צוות'!N7","v":0}]
[{"$f":"'טו. ציוד צוות'!B8","v":"שולחן מגירה"},{"$f":"'טו. ציוד צוות'!G8","v":0},{"$f":"'טו. ציוד צוות'!H8","v":0},null,{"$f":"'טו. ציוד צוות'!K8","v":0},{"$f":"'טו. ציוד צוות'!L8","v":0},{"$f":"IF(F291=0,\"\",'טו. ציוד צוות'!M8)","v":""},{"$f":"'טו. ציוד צוות'!N8","v":0}]
[{"$f":"'טו. ציוד צוות'!B9","v":"עמדת מחשב "},{"$f":"'טו. ציוד צוות'!G9","v":0},{"$f":"'טו. ציוד צוות'!H9","v":0},null,{"$f":"'טו. ציוד צוות'!K9","v":0},{"$f":"'טו. ציוד צוות'!L9","v":0},{"$f":"IF(F292=0,\"\",'טו. ציוד צוות'!M9)","v":""},{"$f":"'טו. ציוד צוות'!N9","v":0}]
[{"$f":"'טו. ציוד צוות'!B10","v":"מחשב+תוכנות"},{"$f":"'טו. ציוד צוות'!G10","v":0},{"$f":"'טו. ציוד צוות'!H10","v":0},null,{"$f":"'טו. ציוד צוות'!K10","v":0},{"$f":"'טו. ציוד צוות'!L10","v":0},{"$f":"IF(F293=0,\"\",'טו. ציוד צוות'!M10)","v":""},{"$f":"'טו. ציוד צוות'!N10","v":0}]
[{"$f":"'טו. ציוד צוות'!B11","v":"כיסא אורחים"},{"$f":"'טו. ציוד צוות'!G11","v":0},{"$f":"'טו. ציוד צוות'!H11","v":0},null,{"$f":"'טו. ציוד צוות'!K11","v":0},{"$f":"'טו. ציוד צוות'!L11","v":0},{"$f":"IF(F294=0,\"\",'טו. ציוד צוות'!M11)","v":""},{"$f":"'טו. ציוד צוות'!N11","v":0}]
[{"$f":"'טו. ציוד צוות'!B12","v":"ארון"},{"$f":"'טו. ציוד צוות'!G12","v":0},{"$f":"'טו. ציוד צוות'!H12","v":0},null,{"$f":"'טו. ציוד צוות'!K12","v":0},{"$f":"'טו. ציוד צוות'!L12","v":0},{"$f":"IF(F295=0,\"\",'טו. ציוד צוות'!M12)","v":""},{"$f":"'טו. ציוד צוות'!N12","v":0}]
[{"$f":"'טו. ציוד צוות'!B13","v":"ציוד תקשורת ומולטימדיה"},{"$f":"'טו. ציוד צוות'!G13","v":0},{"$f":"'טו. ציוד צוות'!H13","v":0},null,{"$f":"'טו. ציוד צוות'!K13","v":0},{"$f":"'טו. ציוד צוות'!L13","v":0},{"$f":"IF(F296=0,\"\",'טו. ציוד צוות'!M13)","v":""},{"$f":"'טו. ציוד צוות'!N13","v":0}]
[{"$f":"'טו. ציוד צוות'!B14","v":"אביזרי עיצוב "},{"$f":"'טו. ציוד צוות'!G14","v":0},{"$f":"'טו. ציוד צוות'!H14","v":0},null,{"$f":"'טו. ציוד צוות'!K14","v":0},{"$f":"'טו. ציוד צוות'!L14","v":0},{"$f":"IF(F297=0,\"\",'טו. ציוד צוות'!M14)","v":""},{"$f":"'טו. ציוד צוות'!N14","v":0}]
[{"$f":"'טו. ציוד צוות'!B15","v":"סה\"כ ציוד צוות כולל מע\"מ"},null,{"$f":"SUM(C290:C297)","v":0},null,{"$f":"A298","v":"סה\"כ ציוד צוות כולל מע\"מ"},null,null,{"$f":"SUM(H290:H297)","v":0}]
[{"$f":"'טז. ציוד נוסף'!B1","v":"ציוד נוסף"},null,null,null,{"$f":"A299","v":"ציוד נוסף"}]
[{"$f":"'טז. ציוד נוסף'!B8","v":0},{"$f":"'טז. ציוד נוסף'!D8","v":0},{"$f":"'טז. ציוד נוסף'!M8","v":0},null,{"$f":"'טז. ציוד נוסף'!O8","v":0},{"$f":"'טז. ציוד נוסף'!P8","v":0},{"$f":"IF(F300=0,\"\",'טז. ציוד נוסף'!Q8)","v":""},{"$f":"'טז. ציוד נוסף'!R8","v":0}]
[{"$f":"'טז. ציוד נוסף'!B9","v":0},{"$f":"'טז. ציוד נוסף'!D9","v":0},{"$f":"'טז. ציוד נוסף'!M9","v":0},null,{"$f":"'טז. ציוד נוסף'!O9","v":0},{"$f":"'טז. ציוד נוסף'!P9","v":0},{"$f":"IF(F301=0,\"\",'טז. ציוד נוסף'!Q9)","v":""},{"$f":"'טז. ציוד נוסף'!R9","v":0}]
[{"$f":"'טז. ציוד נוסף'!B10","v":0},{"$f":"'טז. ציוד נוסף'!D10","v":0},{"$f":"'טז. ציוד נוסף'!M10","v":0},null,{"$f":"'טז. ציוד נוסף'!O10","v":0},{"$f":"'טז. ציוד נוסף'!P10","v":0},{"$f":"IF(F302=0,\"\",'טז. ציוד נוסף'!Q10)","v":""},{"$f":"'טז. ציוד נוסף'!R10","v":0}]
[{"$f":"'טז. ציוד נוסף'!B11","v":0},{"$f":"'טז. ציוד נוסף'!D11","v":0},{"$f":"'טז. ציוד נוסף'!M11","v":0},null,{"$f":"'טז. ציוד נוסף'!O11","v":0},{"$f":"'טז. ציוד נוסף'!P11","v":0},{"$f":"IF(F303=0,\"\",'טז. ציוד נוסף'!Q11)","v":""},{"$f":"'טז. ציוד נוסף'!R11","v":0}]
[{"$f":"'טז. ציוד נוסף'!B12","v":0},{"$f":"'טז. ציוד נוסף'!D12","v":0},{"$f":"'טז. ציוד נוסף'!M12","v":0},null,{"$f":"'טז. ציוד נוסף'!O12","v":0},{"$f":"'טז. ציוד נוסף'!P12","v":0},{"$f":"IF(F304=0,\"\",'טז. ציוד נוסף'!Q12)","v":""},{"$f":"'טז. ציוד נוסף'!R12","v":0}]
[{"$f":"'טז. ציוד נוסף'!B13","v":0},{"$f":"'טז. ציוד נוסף'!D13","v":0},{"$f":"'טז. ציוד נוסף'!M13","v":0},null,{"$f":"'טז. ציוד נוסף'!O13","v":0},{"$f":"'טז. ציוד נוסף'!P13","v":0},{"$f":"IF(F305=0,\"\",'טז. ציוד נוסף'!Q13)","v":""},{"$f":"'טז. ציוד נוסף'!R13","v":0}]
[{"$f":"'טז. ציוד נוסף'!B14","v":0},{"$f":"'טז. ציוד נוסף'!D14","v":0},{"$f":"'טז. ציוד נוסף'!M14","v":0},null,{"$f":"'טז. ציוד נוסף'!O14","v":0},{"$f":"'טז. ציוד נוסף'!P14","v":0},{"$f":"IF(F306=0,\"\",'טז. ציוד נוסף'!Q14)","v":""},{"$f":"'טז. ציוד נוסף'!R14","v":0}]
[{"$f":"'טז. ציוד נוסף'!B15","v":0},{"$f":"'טז. ציוד נוסף'!D15","v":0},{"$f":"'טז. ציוד נוסף'!M15","v":0},null,{"$f":"'טז. ציוד נוסף'!O15","v":0},{"$f":"'טז. ציוד נוסף'!P15","v":0},{"$f":"IF(F307=0,\"\",'טז. ציוד נוסף'!Q15)","v":""},{"$f":"'טז. ציוד נוסף'!R15","v":0}]
[{"$f":"'טז. ציוד נוסף'!B16","v":0},{"$f":"'טז. ציוד נוסף'!D16","v":0},{"$f":"'טז. ציוד נוסף'!M16","v":0},null,{"$f":"'טז. ציוד נוסף'!O16","v":0},{"$f":"'טז. ציוד נוסף'!P16","v":0},{"$f":"IF(F308=0,\"\",'טז. ציוד נוסף'!Q16)","v":""},{"$f":"'טז. ציוד נוסף'!R16","v":0}]
[{"$f":"'טז. ציוד נוסף'!B17","v":0},{"$f":"'טז. ציוד נוסף'!D17","v":0},{"$f":"'טז. ציוד נוסף'!M17","v":0},null,{"$f":"'טז. ציוד נוסף'!O17","v":0},{"$f":"'טז. ציוד נוסף'!P17","v":0},{"$f":"IF(F309=0,\"\",'טז. ציוד נוסף'!Q17)","v":""},{"$f":"'טז. ציוד נוסף'!R17","v":0}]
[{"$f":"'טז. ציוד נוסף'!B18","v":0},{"$f":"'טז. ציוד נוסף'!D18","v":0},{"$f":"'טז. ציוד נוסף'!M18","v":0},null,{"$f":"'טז. ציוד נוסף'!O18","v":0},{"$f":"'טז. ציוד נוסף'!P18","v":0},{"$f":"IF(F310=0,\"\",'טז. ציוד נוסף'!Q18)","v":""},{"$f":"'טז. ציוד נוסף'!R18","v":0}]
[{"$f":"'טז. ציוד נוסף'!B19","v":0},{"$f":"'טז. ציוד נוסף'!D19","v":0},{"$f":"'טז. ציוד נוסף'!M19","v":0},null,{"$f":"'טז. ציוד נוסף'!O19","v":0},{"$f":"'טז. ציוד נוסף'!P19","v":0},{"$f":"IF(F311=0,\"\",'טז. ציוד נוסף'!Q19)","v":""},{"$f":"'טז. ציוד נוסף'!R19","v":0}]
[{"$f":"'טז. ציוד נוסף'!B20","v":0},{"$f":"'טז. ציוד נוסף'!D20","v":0},{"$f":"'טז. ציוד נוסף'!M20","v":0},null,{"$f":"'טז. ציוד נוסף'!O20","v":0},{"$f":"'טז. ציוד נוסף'!P20","v":0},{"$f":"IF(F312=0,\"\",'טז. ציוד נוסף'!Q20)","v":""},{"$f":"'טז. ציוד נוסף'!R20","v":0}]
[{"$f":"'טז. ציוד נוסף'!B21","v":0},{"$f":"'טז. ציוד נוסף'!D21","v":0},{"$f":"'טז. ציוד נוסף'!M21","v":0},null,{"$f":"'טז. ציוד נוסף'!O21","v":0},{"$f":"'טז. ציוד נוסף'!P21","v":0},{"$f":"IF(F313=0,\"\",'טז. ציוד נוסף'!Q21)","v":""},{"$f":"'טז. ציוד נוסף'!R21","v":0}]
[{"$f":"'טז. ציוד נוסף'!B22","v":0},{"$f":"'טז. ציוד נוסף'!D22","v":0},{"$f":"'טז. ציוד נוסף'!M22","v":0},null,{"$f":"'טז. ציוד נוסף'!O22","v":0},{"$f":"'טז. ציוד נוסף'!P22","v":0},{"$f":"IF(F314=0,\"\",'טז. ציוד נוסף'!Q22)","v":""},{"$f":"'טז. ציוד נוסף'!R22","v":0}]
[{"$f":"'טז. ציוד נוסף'!B23","v":0},{"$f":"'טז. ציוד נוסף'!D23","v":0},{"$f":"'טז. ציוד נוסף'!M23","v":0},null,{"$f":"'טז. ציוד נוסף'!O23","v":0},{"$f":"'טז. ציוד נוסף'!P23","v":0},{"$f":"IF(F315=0,\"\",'טז. ציוד נוסף'!Q23)","v":""},{"$f":"'טז. ציוד נוסף'!R23","v":0}]
[{"$f":"'טז. ציוד נוסף'!B24","v":0},{"$f":"'טז. ציוד נוסף'!D24","v":0},{"$f":"'טז. ציוד נוסף'!M24","v":0},null,{"$f":"'טז. ציוד נוסף'!O24","v":0},{"$f":"'טז. ציוד נוסף'!P24","v":0},{"$f":"IF(F316=0,\"\",'טז. ציוד נוסף'!Q24)","v":""},{"$f":"'טז. ציוד נוסף'!R24","v":0}]
[{"$f":"'טז. ציוד נוסף'!B25","v":0},{"$f":"'טז. ציוד נוסף'!D25","v":0},{"$f":"'טז. ציוד נוסף'!M25","v":0},null,{"$f":"'טז. ציוד נוסף'!O25","v":0},{"$f":"'טז. ציוד נוסף'!P25","v":0},{"$f":"IF(F317=0,\"\",'טז. ציוד נוסף'!Q25)","v":""},{"$f":"'טז. ציוד נוסף'!R25","v":0}]
[{"$f":"'טז. ציוד נוסף'!B26","v":0},{"$f":"'טז. ציוד נוסף'!D26","v":0},{"$f":"'טז. ציוד נוסף'!M26","v":0},null,{"$f":"'טז. ציוד נוסף'!O26","v":0},{"$f":"'טז. ציוד נוסף'!P26","v":0},{"$f":"IF(F318=0,\"\",'טז. ציוד נוסף'!Q26)","v":""},{"$f":"'טז. ציוד נוסף'!R26","v":0}]
[{"$f":"'טז. ציוד נוסף'!B27","v":0},{"$f":"'טז. ציוד נוסף'!D27","v":0},{"$f":"'טז. ציוד נוסף'!M27","v":0},null,{"$f":"'טז. ציוד נוסף'!O27","v":0},{"$f":"'טז. ציוד נוסף'!P27","v":0},{"$f":"IF(F319=0,\"\",'טז. ציוד נוסף'!Q27)","v":""},{"$f":"'טז. ציוד נוסף'!R27","v":0}]
[{"$f":"'טז. ציוד נוסף'!B28","v":0},{"$f":"'טז. ציוד נוסף'!D28","v":0},{"$f":"'טז. ציוד נוסף'!M28","v":0},null,{"$f":"'טז. ציוד נוסף'!O28","v":0},{"$f":"'טז. ציוד נוסף'!P28","v":0},{"$f":"IF(F320=0,\"\",'טז. ציוד נוסף'!Q28)","v":""},{"$f":"'טז. ציוד נוסף'!R28","v":0}]
[{"$f":"'טז. ציוד נוסף'!B29","v":"סה\"כ  ציוד נוסף כולל מע\"מ"},null,{"$f":"SUM(C300:C320)","v":0},null,{"$f":"A321","v":"סה\"כ  ציוד נוסף כולל מע\"מ"},null,null,{"$f":"SUM(H300:H320)","v":0}]
["סה\"כ פרויקט כולל מע\"מ",null,{"$f":"C34+C58+C97+C117+C135+C157+C218+C230+C247+C275+C288+C298+C321","v":{"$error":"#REF!"}},null,{"$f":"A322","v":"סה\"כ פרויקט כולל מע\"מ"},null,null,{"$f":"H34+H58+H97+H117+H135+H157+H218+H230+H247+H275+H288+H298+H321","v":{"$error":"#REF!"}}]